Workbook

Sheet Directions_New (hidden)

Sheet Directions
B7: Directions
B8: This calculator is designed to estimate whether a proposed building energy code for new construction and major renovations delivers equivalent or greater energy savings relative to the statute-specified building energy codes or zero energy codes in IRA Section 50131. Outputs can be generated in four simple steps:
B10: 1. Select your location information
B11: 2. Select the appropriate code for comparison per IRA 50131 (i.e., Latest Model Code or Zero Energy Code)
B12: 3. Enter the proposed Code Residential EUI and/or Commercial EUI (EUI is the site energy in kBtu/sf). The proposed residential and/or commercial EUI inputs can be calculated following Section 4 in the Equivalence Methodology document. Proposals for Topic Area 2 and certain proposals for Topic Area 3 may also submit the required inputs to DOE for assistance in determining equivalence of the proposed building energy code as outlined in Section IV(D)(vi) of the FOA.
B13: 4. Choose the building types affected (residential, commercial, or both)
B15: Location Information
B16: 1. Start by selecting “Program Area” to indicate whether the program will be administered at the state, county, or local levels.
B17: 2. Select the state in which the program will take place. A state selection must always be made.
B18: 3. If your program is focused at the county or local level, enter the name of the jurisdiction, and then enter the 2020 Census population estimate for that jurisdiction.
B20: Code Comparison Information
B21: The calculator provides comparison with the Latest Model Code (ASHRAE 90.1-2019 for commercial buildings and IECC 2021 for residential buildings) or Zero Energy Codes (IECC 2021 Appendix CC for commercial buildings and IECC 2021 Appendix RC for residential buildings) per IRA 50131. The appropriate option can be chosen from the dropdown menu.
B23: Outputs
B24: Outputs are displayed to the applicant based on the inputs provided. A ‘YES’ or ‘NO’ will display for the cumulative 30-year site energy savings of the proposed Building Energy Code to the applicant jurisdiction adopting the latest model code or zero energy code as appropriate based on the input selections.
B26: Other Resources That Might be Helpful
B27: Building Energy Codes Program (BECP) State Portal:
B28: https://www.energycodes.gov/state-portal
B30: Code improvement graph:
B31: https://www.energycodes.gov/infographics
B33: Population estimates:
B34: https://www.census.gov/quickfacts/fact/table/US/PST045221

Sheet Inputs-Outputs
C2: PROGRAM INPUTS FOR NEW CONSTRUCTION: | H2: OUTPUTS:
D4: Location Information | H4: Current code (residential): | I4: =IFERROR(INDEX(Dropdowns_S!$F$4:$F$56,MATCH(state_S,Dropdowns_S!$D$4:$D$56,0)),"Please select state") -> Please select state
C5: Program area | D5: Choose from drop-down list | H5: Current code (commercial): | I5: =IFERROR(INDEX(Dropdowns_S!$G$4:$G$56,MATCH(state_S,Dropdowns_S!$D$4:$D$56,0)),"Please select state") -> Please select state
C6: State | D6: Choose from drop-down list
C7: City or county name (if not statewide) | H7: Site Energy Savings (30-yr cumulative, TBtu) | N7: Commercial | O7: Residential | P7: Total
C8: City or county population (if not statewide) | I8: Commercial | J8: Residential | M8: Total | N8: First year | O8: First year | P8: First year
H9: IRA-Specified Code | I9: ='17. ForReport_S'!BN5 -> 0 | J9: ='17. ForReport_S'!BP5 -> 0 | M9: ='17. ForReport_S'!BR5 -> 0
D10: Code Information | H10: Applicant's Proposed Code | I10: ='Inputs-Outputs_Proposed'!I8 -> 0 | J10: ='Inputs-Outputs_Proposed'!J8 -> 0 | M10: ='Inputs-Outputs_Proposed'!K8 -> 0 | N10: ='17. ForReport_S'!BM5 -> 0 | O10: ='17. ForReport_S'!BO5 -> 0 | P10: ='17. ForReport_S'!BQ5 -> 0
C11: IRA 50131 Specified Code for Comparison | D11: Choose from drop-down list | M11: =M10/M9 ->  | N11: ='17. ForReport_S'!BM7 -> 0 | O11: ='17. ForReport_S'!BO7 -> 0 | P11: ='17. ForReport_S'!BQ7 -> 0
C12: Proposed Code Residential EUI, kBtu/sf | D12: Enter residential EUI | H12: Equivalent To Specified Code | I12: =IF($I$4="Please select state","---", IF(AND(I9=0,I10>=0),"YES", IF(AND(I9=0,I10<0),"NO", IF(I10>I9,"YES", IF(I10/I9>0.99,"YES","NO"))))) -> --- | J12: =IF($I$4="Please select state","---", IF(AND(J9=0,J10>=0),"YES", IF(AND(J9=0,J10<0),"NO", IF(J10>J9,"YES", IF(J10/J9>0.99,"YES","NO"))))) -> --- | N12: ='17. ForReport_S'!BM9 -> 0 | O12: ='17. ForReport_S'!BO9 -> 0 | P12: ='17. ForReport_S'!BQ9 -> 0
C13: Proposed Code Commercial EUI, kBtu/sf | D13: Enter commercial EUI
D15: Building Type(s)
C16: Residential or Commercial | D16: Choose from drop-down list
C25: Type of code improvement | D25: Target code | H25: Energy Cost Savings (million $) | I25: ='17. ForReport_S'!BN7 -> 0 | J25: ='17. ForReport_S'!BP7 -> 0 | K25: ='17. ForReport_S'!BR7 -> 0
C26: % better residential | H26: CO2 Reduction (MMT) | I26: ='17. ForReport_S'!BN9 -> 0 | J26: ='17. ForReport_S'!BP9 -> 0 | K26: ='17. ForReport_S'!BR9 -> 0
C27: % better commercial
C28: Compliance | D28: Standard

Sheet Inputs-Outputs_Proposed (hidden)
C1: maybe change to 'proposed code' | H1: maybe change to 'proposed code'
C2: PROGRAM INPUTS FOR NEW CONSTRUCTION: | H2: OUTPUTS:
D4: Location Information | H4: Current code (residential): | I4: =IFERROR(INDEX(Dropdowns_P!$F$4:$F$56,MATCH(state_P,Dropdowns_P!$D$4:$D$56,0)),"Please select state") -> Please select state
C5: Program area | D5: ='Inputs-Outputs'!D5 -> Choose from drop-down list | H5: Current code (commercial): | I5: =IFERROR(INDEX(Dropdowns_P!$G$4:$G$56,MATCH(state_P,Dropdowns_P!$D$4:$D$56,0)),"Please select state") -> Please select state
C6: State | D6: =state_S -> Choose from drop-down list
C7: City or county name (if not statewide) | D7: ='Inputs-Outputs'!D7 -> 0 | I7: Commercial | J7: Residential | K7: Total | O7: Commercial | P7: Residential | Q7: Total
C8: City or county population (if not statewide) | D8: =population_S -> 0 | H8: Site Energy Savings | I8: ='17. ForReport_P'!BN5 -> 0 | J8: ='17. ForReport_P'!BP5 -> 0 | K8: ='17. ForReport_P'!BR5 -> 0 | O8: First year | P8: First year | Q8: First year
H9: (30-yr cumulative, TBtu)
D10: Code Information | O10: ='17. ForReport_P'!BM5 -> 0 | P10: ='17. ForReport_P'!BO5 -> 0 | Q10: ='17. ForReport_P'!BQ5 -> 0
C11: Proposed Code Residential EUI, kBtu/dwelling unit | D11: ='Inputs-Outputs'!D12 -> Enter residential EUI | O11: ='17. ForReport_P'!BM7 -> 0 | P11: ='17. ForReport_P'!BO7 -> 0 | Q11: ='17. ForReport_P'!BQ7 -> 0
C12: Proposed Code Commercial EUI, kBtu/sf | D12: ='Inputs-Outputs'!D13 -> Enter commercial EUI | O12: ='17. ForReport_P'!BM9 -> 0 | P12: ='17. ForReport_P'!BO9 -> 0 | Q12: ='17. ForReport_P'!BQ9 -> 0
D14: Building Type
C15: Residential or Commercial | D15: =ResOrComm_S -> Choose from drop-down list
D21: Code Information
C22: Code | D22: Unchanged (current code)
C23: Type of code improvement | D23: % better | H23: Energy Cost Savings (million $) | I23: ='17. ForReport_P'!BN7 -> 0 | J23: ='17. ForReport_P'!BP7 -> 0 | K23: ='17. ForReport_P'!BR7 -> 0
C24: % better residential | D24: ='1. Code Versions and EUI_P'!N418 -> --- | H24: CO2 Reduction (MMT) | I24: ='17. ForReport_P'!BN9 -> 0 | J24: ='17. ForReport_P'!BP9 -> 0 | K24: ='17. ForReport_P'!BR9 -> 0
C25: % better commercial | D25: ='1. Code Versions and EUI_P'!M104 -> ---
C26: Compliance | D26: Standard

Sheet Dropdowns_P (hidden)
B2: Program area | D2: States: | F2: Current code res | G2: Current code comm | I2: Res or Comm: | K2: Type of improvement | M2: Target code | O2: Compliance
B4: Choose from drop-down list | D4: Choose from drop-down list | F4: Please select state | G4: Please select state | I4: Choose from drop-down list | K4: Choose from drop-down list | M4: Choose from drop-down list | O4: Standard
B5: State | D5: Alabama | E5: AL | F5: 2015 IECC with amendments | G5: 90.1-2013 | I5: Residential | K5: None | M5: Unchanged (current code) | O5: Improved
B6: City or county | D6: Alaska | E6: AK | F6: None statewide (2012 IECC) | G6: None statewide (90.1-2010) | I6: Commercial | K6: Target code | M6: 2015 IECC and/or ASHRAE 90.1-2013 | O6: Aggressive
D7: Arizona | E7: AZ | F7: Home rule (2009 IECC) | G7: Home rule (90.1-2007) | I7: Residential and Commercial | K7: % better | M7: 2018 IECC and/or ASHRAE 90.1-2016
D8: Arkansas | E8: AR | F8: 2009 IECC with amendments | G8: 2009 IECC and 90.1-2007 | M8: 2021 IECC and/or ASHRAE 90.1-2019
D9: California | E9: CA | F9: Custom | G9: Custom
D10: Colorado | E10: CO | F10: Home rule (2012 IECC) | G10: Home rule (90.1-2010)
D11: Connecticut | E11: CT | F11: 2021 IECC with amendments | G11: 2021 IECC and 90.1-2019
D12: Delaware | E12: DE | F12: 2018 IECC | G12: 2018 IECC and 90.1-2016
D13: District of Columbia | E13: DC | F13: 2015 IECC with amendments | G13: 90.1-2013 with amendments
D14: Florida | E14: FL | F14: 2018 IECC with amendments | G14: 2018 IECC and 90.1-2016 with amendments
D15: Georgia | E15: GA | F15: 2015 IECC with amendments | G15: 2015 IECC and 90.1-2013 with amendments
D16: Hawaii | E16: HI | F16: 2015 IECC with amendments | G16: Home rule (90.1-2013)
D17: Idaho | E17: ID | F17: 2018 IECC with amendments | G17: 2018 IECC and 90.1-2016
D18: Illinois | E18: IL | F18: 2018 IECC with amendments | G18: 2018 IECC and 90.1-2016
D19: Indiana | E19: IN | F19: 2018 IECC with amendments | G19: 90.1-2007
D20: Iowa | E20: IA | F20: 2012 IECC with amendments | G20: 2012 IECC and 90.1-2010
D21: Kansas | E21: KS | F21: Home rule (2012 IECC) | G21: Home rule (90.1-2010)
D22: Kentucky | E22: KY | F22: 2009 IECC | G22: 2012 IECC and 90.1-2010
D23: Louisiana | E23: LA | F23: 2021 IECC with amendments | G23: 2021 IECC and 90.1-2019 with amendments
D24: Maine | E24: ME | F24: 2015 IECC with amendments | G24: 2015 IECC and 90.1-2013
D25: Maryland | E25: MD | F25: 2021 IECC with amendments | G25: 2021 IECC and 90.1-2019 with amendments
D26: Massachusetts | E26: MA | F26: 2018 IECC with amendments | G26: 2018 IECC and 90.1-2016 with amendments
D27: Michigan | E27: MI | F27: 2015 IECC with amendments | G27: 2015 IECC and 90.1.2013 with amendments
D28: Minnesota | E28: MN | F28: 2012 IECC with amendments | G28: 90.1-2019 with amendments
D29: Mississippi | E29: MS | F29: None statewide (2012 IECC) | G29: None statewide (90.1-2010)
D30: Missouri | E30: MO | F30: Home rule (2012 IECC) | G30: Home rule (90.1-2010)
D31: Montana | E31: MT | F31: 2021 IECC with amendments | G31: 2021 IECC and 90.1-2019
D32: Nebraska | E32: NE | F32: 2018 IECC | G32: 2018 IECC and 90.1-2016
D33: Nevada | E33: NV | F33: 2018 IECC with amendments | G33: 2018 IECC and 90.1-2016
D34: New Hampshire | E34: NH | F34: 2018 IECC | G34: 2018 IECC and 90.1-2016 with amendments
D35: New Jersey | E35: NJ | F35: 2021 IECC with amendments | G35: 90.1-2019
D36: New Mexico | E36: NM | F36: 2018 IECC with amendments | G36: 2018 IECC and 90.1-2016 with amendments
D37: New York | E37: NY | F37: 2018 IECC | G37: 2018 IECC and 90.1-2016 with amendments
D38: North Carolina | E38: NC | F38: 2015 IECC with amendments | G38: 2015 IECC and 90.1-2013 with amendments
D39: North Dakota | E39: ND | F39: Home rule (2012 IECC) | G39: Home rule (90.1-2010)
D40: Ohio | E40: OH | F40: 2018 IECC with amendments | G40: 2012 IECC and 90.1-2010
D41: Oklahoma | E41: OK | F41: 2009 IECC with amendments | G41: 2006 IECC and 90.1-2004
D42: Oregon | E42: OR | F42: 2021 IECC with amendments | G42: 90.1-2019
D43: Pennsylvania | E43: PA | F43: 2018 IECC with amendments | G43: 2018 IECC and 90.1-2016
D44: Rhode Island | E44: RI | F44: 2018 IECC with amendments | G44: 2018 IECC and 90.1-2016 with amendments
D45: South Carolina | E45: SC | F45: 2009 IECC | G45: 2009 IECC and 90.1-2007
D46: South Dakota | E46: SD | F46: Home rule (2012 IECC) | G46: Home rule (90.1-2010)
D47: Tennessee | E47: TN | F47: 2018 IECC with amendments | G47: 2012 IECC and 90.1-2010
D48: Texas | E48: TX | F48: 2015 IECC | G48: 2015 IECC and 90.1-2013
D49: Utah | E49: UT | F49: 2015 IECC with amendments | G49: 2021 IECC and 90.1-2019 with amendments
D50: Vermont | E50: VT | F50: 2018 IECC with amendments | G50: 2018 IECC and 90.1-2016 with amendments
D51: Virginia | E51: VA | F51: 2018 IECC with amendments | G51: 2018 IECC and 90.1-2016 with amendments
D52: Washington | E52: WA | F52: Custom | G52: Custom
D53: West Virginia | E53: WV | F53: 2015 IECC with amendments | G53: 90.1-2013
D54: Wisconsin | E54: WI | F54: 2009 IECC with amendments | G54: 2015 IECC and 90.1-2013 with amendments
D55: Wyoming | E55: WY | F55: Home rule (2012 IECC) | G55: Home rule (90.1-2010)
F56: Please select state | G56: Please select state

Sheet 1. Code Versions and EUI_P (hidden)
A1: COMMERCIAL
A2: No. | B2: State | C2: State ID | D2: ASHRAE_Version | E2: Electricity - HVAC (kWh/ft2) | F2: Electricity - Lighting (kWh/ft2) | G2: Natural Gas - HVAC (kBtu/ft2) | H2: Natural Gas - Plug (kBtu/ft2) | I2: Electricity - Plug (kWh/ft2) | O2: No. | P2: State | Q2: State ID | R2: A90-1980 | S2: 90.1-1989 | T2: 90.1-1999/2001 | U2: 90.1-2004 | V2: 90.1-2007 | W2: 90.1-2010 | X2: 90.1-2013 | Y2: 90.1-2016 | Z2: 90.1-2019 | AA2: 90.1-2022 | AB2: 90.1-2025 | AC2: 90.1-2028 | AD2: 90.1-2031 | AE2: 90.1-2034 | AF2: 90.1-2037 | AG2: 90.1-2040 | AH2: 90.1-2043
R3: 1 | S3: =1+R3 -> 2 | T3: 3 | U3: 4 | V3: 5 | W3: 6 | X3: 7 | Y3: 8 | Z3: 9 | AA3: 10 | AB3: 11 | AC3: 12 | AD3: 13 | AE3: 14 | AF3: 15 | AG3: 16 | AH3: 17
Q4: Historical Index | R4: =INDEX($C$648:$C$655,MATCH(R2,$B$648:$B$655,0)) -> 1.382 | S4: 1.189 | T4: 1.141 | U4: 1 | V4: 1 | W4: 1 | X4: 1
E5: All these values from 2004 through 2019 are from the same simulation batch from Yulong 10-3-23 based on 9-29-23 maps analysis | R5: =$E$2 -> Electricity - HVAC (kWh/ft2) | S5: Electricity - HVAC (kWh/ft2) | T5: Electricity - HVAC (kWh/ft2) | U5: Electricity - HVAC (kWh/ft2) | V5: Electricity - HVAC (kWh/ft2) | W5: Electricity - HVAC (kWh/ft2) | X5: Electricity - HVAC (kWh/ft2) | Y5: Electricity - HVAC (kWh/ft2) | Z5: Electricity - HVAC (kWh/ft2) | AA5: Electricity - HVAC (kWh/ft2) | AB5: Electricity - HVAC (kWh/ft2) | AC5: Electricity - HVAC (kWh/ft2) | AD5: Electricity - HVAC (kWh/ft2) | AE5: Electricity - HVAC (kWh/ft2) | AF5: Electricity - HVAC (kWh/ft2) | AG5: Electricity - HVAC (kWh/ft2) | AH5: Electricity - HVAC (kWh/ft2)
A6: 1 | B6: Alabama | C6: AL | D6: STD_2004 | E6: 8.298130619 | F6: 5.14660395 | G6: 10.1388797 | H6: 10.14613884 | I6: 4.794104483 | O6: =1 -> 1 | P6: Alabama | Q6: AL | R6: =$U6*R$4 -> 11.46801652 | S6: 9.866477307 | T6: 9.468167037 | U6: =E6 -> 8.298130619 | V6: =E57 -> 7.427807543 | W6: =E108 -> 4.502083844 | X6: =E159 -> 4.502083844 | Y6: =E210 -> 4.101394677 | Z6: =E261 -> 4.094192863 | AA6: =$Z6*F$630 -> 3.848541291 | AB6: =$Z6*G$630 -> 3.617628814 | AC6: =$Z6*H$630 -> 3.400571085 | AD6: =$Z6*I$630 -> 3.19653682 | AE6: =$Z6*J$630 -> 3.004744611 | AF6: =$Z6*K$630 -> 2.824459934 | AG6: =$Z6*L$630 -> 2.654992338 | AH6: =$Z6*M$630 -> 2.495692798
A7: =1+A6 -> 2 | B7: Alaska | C7: AK | D7: STD_2004 | E7: 5.009378309 | F7: 5.180543038 | G7: 52.88250471 | H7: 10.72181891 | I7: 5.238820577 | O7: =1+O6 -> 2 | P7: Alaska | Q7: AK | R7: 6.922960823 | S7: 5.956150809 | T7: 5.715700651 | U7: 5.009378309 | V7: 4.354020778 | W7: 3.162958881 | X7: 2.801516319 | Y7: 2.806505756 | Z7: 2.536995175 | AA7: 2.384775465 | AB7: 2.241688937 | AC7: 2.107187601 | AD7: 1.980756345 | AE7: 1.861910964 | AF7: 1.750196306 | AG7: 1.645184528 | AH7: 1.546473456
A8: 3 | B8: Arizona | C8: AZ | D8: STD_2004 | E8: 7.009753886 | F8: 4.810299728 | G8: 6.518353128 | H8: 7.248176379 | I8: 4.424798089 | O8: 3 | P8: Arizona | Q8: AZ | R8: 9.68747987 | S8: 8.33459737 | T8: 7.998129184 | U8: 7.009753886 | V8: 6.229406916 | W8: 6.229406916 | X8: 3.910186812 | Y8: 3.547885131 | Z8: 3.666822038 | AA8: 3.446812716 | AB8: 3.240003953 | AC8: 3.045603716 | AD8: 2.862867493 | AE8: 2.691095443 | AF8: 2.529629717 | AG8: 2.377851934 | AH8: 2.235180818
A9: 4 | B9: Arkansas | C9: AR | D9: STD_2004 | E9: 9.02802967 | F9: 5.262787913 | G9: 16.09495032 | H9: 9.488590505 | I9: 4.907015553 | O9: 4 | P9: Arkansas | Q9: AR | R9: 12.476737 | S9: 10.73432728 | T9: 10.30098185 | U9: 9.02802967 | V9: 8.112715703 | W9: 8.112715703 | X9: 4.879774175 | Y9: 4.571045844 | Z9: 4.462211649 | AA9: 4.19447895 | AB9: 3.942810213 | AC9: 3.7062416 | AD9: 3.483867104 | AE9: 3.274835078 | AF9: 3.078344973 | AG9: 2.893644275 | AH9: 2.720025618
A10: 5 | B10: California | C10: CA | D10: STD_2004 | E10: 3.457764226 | F10: 4.284518389 | G10: 4.890004822 | H10: 6.510723564 | I10: 4.571606123 | O10: 5 | P10: California | Q10: CA | R10: 4.77863016 | S10: 4.111281664 | T10: 3.945308981 | U10: 3.457764226 | V10: 3.014563303 | W10: 1.801410444 | X10: 1.857051508 | Y10: 1.797445256 | Z10: 1.801410444 | AA10: 1.693325817 | AB10: 1.591726268 | AC10: 1.496222692 | AD10: 1.406449331 | AE10: 1.322062371 | AF10: 1.242738628 | AG10: 1.168174311 | AH10: 1.098083852
A11: 6 | B11: Colorado | C11: CO | D11: STD_2004 | E11: 4.719715748 | F11: 4.286454281 | G11: 19.9712901 | H11: 9.207946818 | I11: 5.39008585 | O11: 6 | P11: Colorado | Q11: CO | R11: 6.522647164 | S11: 5.611742024 | T11: 5.385195669 | U11: 4.719715748 | V11: 4.383274775 | W11: 2.63 | X11: 2.727144107 | Y11: 2.634202128 | Z11: 2.587739633 | AA11: 2.432475255 | AB11: 2.286526739 | AC11: 2.149335135 | AD11: 2.020375027 | AE11: 1.899152525 | AF11: 1.785203374 | AG11: 1.678091171 | AH11: 1.577405701
A12: 7 | B12: Connecticut | C12: CT | D12: STD_2004 | E12: 4.973350691 | F12: 4.592192206 | G12: 24.69218797 | H12: 8.149439504 | I12: 4.831113007 | O12: 7 | P12: Connecticut | Q12: CT | R12: 6.873170655 | S12: 5.913313972 | T12: 5.674593139 | U12: 4.973350691 | V12: 4.417065471 | W12: 2.588912209 | X12: 2.794390682 | Y12: 2.624961453 | Z12: 2.54463494 | AA12: 2.391956844 | AB12: 2.248439433 | AC12: 2.113533067 | AD12: 1.986721083 | AE12: 1.867517818 | AF12: 1.755466749 | AG12: 1.650138744 | AH12: 1.55113042
A13: 8 | B13: Delaware | C13: DE | D13: STD_2004 | E13: 6.728432524 | F13: 4.944666078 | G13: 25.03638197 | H13: 9.271830372 | I13: 5.221177296 | O13: 8 | P13: Delaware | Q13: DE | R13: 9.298693748 | S13: 8.00010627 | T13: 7.677141509 | U13: 6.728432524 | V13: 6.127228022 | W13: 3.678610237 | X13: 3.692147492 | Y13: 3.459973759 | Z13: 3.381988059 | AA13: 3.179068776 | AB13: 2.988324649 | AC13: 2.80902517 | AD13: 2.64048366 | AE13: 2.48205464 | AF13: 2.333131362 | AG13: 2.19314348 | AH13: 2.061554871
A14: 9 | B14: District of Columbia | C14: DC | D14: STD_2004 | E14: 5.216935786 | F14: 3.138417768 | G14: 14.3574046 | H14: 8.907107957 | I14: 6.265717708 | O14: 9 | P14: District of Columbia | Q14: DC | R14: 7.209805257 | S14: 6.20293665 | T14: 5.952523732 | U14: 5.216935786 | V14: 4.833731744 | W14: 3.404112231 | X14: 3.567592973 | Y14: 2.549853561 | Z14: 3.208406774 | AA14: 3.015902367 | AB14: 2.834948225 | AC14: 2.664851332 | AD14: 2.504960252 | AE14: 2.354662637 | AF14: 2.213382878 | AG14: 2.080579906 | AH14: 1.955745111
A15: 10 | B15: Florida | C15: FL | D15: STD_2004 | E15: 9.042450091 | F15: 4.205777769 | G15: 3.810536559 | H15: 8.581902532 | I15: 4.534332553 | O15: 10 | P15: Florida | Q15: FL | R15: 12.49666603 | S15: 10.75147316 | T15: 10.31743555 | U15: 9.042450091 | V15: 8.16102029 | W15: 5.190373152 | X15: 5.350967667 | Y15: 4.704050416 | Z15: 4.949793625 | AA15: 4.652806008 | AB15: 4.373637647 | AC15: 4.111219389 | AD15: 3.864546225 | AE15: 3.632673452 | AF15: 3.414713045 | AG15: 3.209830262 | AH15: 3.017240446
A16: 11 | B16: Georgia | C16: GA | D16: STD_2004 | E16: 6.258748444 | F16: 4.597055525 | G16: 10.02797166 | H16: 6.807081973 | I16: 4.336475572 | O16: 11 | P16: Georgia | Q16: GA | R16: 8.64959035 | S16: 7.4416519 | T16: 7.141231975 | U16: 6.258748444 | V16: 5.61078117 | W16: 3.447487294 | X16: 3.410441395 | Y16: 3.072044675 | Z16: 3.116253149 | AA16: 2.92927796 | AB16: 2.753521282 | AC16: 2.588310005 | AD16: 2.433011405 | AE16: 2.287030721 | AF16: 2.149808877 | AG16: 2.020820345 | AH16: 1.899571124
A17: 12 | B17: Hawaii | C17: HI | D17: STD_2004 | E17: 9.481648985 | F17: 3.88292134 | G17: 1.905239779 | H17: 9.673594431 | I17: 4.357003625 | O17: 12 | P17: Hawaii | Q17: HI | R17: 13.1036389 | S17: 11.27368064 | T17: 10.81856149 | U17: 9.481648985 | V17: 8.813448681 | W17: 6.125007931 | X17: 6.125007931 | Y17: 5.291947407 | Z17: 5.623443472 | AA17: 5.286036863 | AB17: 4.968874652 | AC17: 4.670742172 | AD17: 4.390497642 | AE17: 4.127067784 | AF17: 3.879443717 | AG17: 3.646677094 | AH17: 3.427876468
A18: 13 | B18: Idaho | C18: ID | D18: STD_2004 | E18: 5.199905724 | F18: 4.861048677 | G18: 22.12770295 | H18: 9.150852763 | I18: 5.120688066 | O18: 13 | P18: Idaho | Q18: ID | R18: 7.186269711 | S18: 6.182687906 | T18: 5.933092431 | U18: 5.199905724 | V18: 4.692130442 | W18: 2.972671869 | X18: 2.883049651 | Y18: 2.805231788 | Z18: 2.679596109 | AA18: 2.518820343 | AB18: 2.367691122 | AC18: 2.225629655 | AD18: 2.092091875 | AE18: 1.966566363 | AF18: 1.848572381 | AG18: 1.737658038 | AH18: 1.633398556
A19: 14 | B19: Illinois | C19: IL | D19: STD_2004 | E19: 5.105110611 | F19: 4.28314958 | G19: 26.73093344 | H19: 8.37033044 | I19: 4.329270671 | O19: 14 | P19: Illinois | Q19: IL | R19: 7.055262864 | S19: 6.069976516 | T19: 5.824931207 | U19: 5.105110611 | V19: 4.650390306 | W19: 3.023455133 | X19: 2.988853577 | Y19: 2.66146926 | Z19: 2.728356204 | AA19: 2.564654831 | AB19: 2.410775541 | AC19: 2.266129009 | AD19: 2.130161268 | AE19: 2.002351592 | AF19: 1.882210497 | AG19: 1.769277867 | AH19: 1.663121195
A20: 15 | B20: Indiana | C20: IN | D20: STD_2004 | E20: 5.571615468 | F20: 4.822513996 | G20: 25.87880212 | H20: 8.289916123 | I20: 4.265177166 | O20: 15 | P20: Indiana | Q20: IN | R20: 7.699972577 | S20: 6.624650792 | T20: 6.357213249 | U20: 5.571615468 | V20: 5.056866501 | W20: 5.056866501 | X20: 3.073533831 | Y20: 2.94046797 | Z20: 2.82403254 | AA20: 2.654590588 | AB20: 2.495315153 | AC20: 2.345596243 | AD20: 2.204860469 | AE20: 2.072568841 | AF20: 1.94821471 | AG20: 1.831321828 | AH20: 1.721442518
A21: 16 | B21: Iowa | C21: IA | D21: STD_2004 | E21: 6.347768801 | F21: 4.883792014 | G21: 29.92345846 | H21: 8.892778815 | I21: 4.893972583 | O21: 16 | P21: Iowa | Q21: IA | R21: 8.772616483 | S21: 7.547497104 | T21: 7.242804202 | U21: 6.347768801 | V21: 5.658649201 | W21: 5.772914521 | X21: 3.660670387 | Y21: 3.458365862 | Z21: 3.344083792 | AA21: 3.143438765 | AB21: 2.954832439 | AC21: 2.777542493 | AD21: 2.610889943 | AE21: 2.454236547 | AF21: 2.306982354 | AG21: 2.168563413 | AH21: 2.038449608
A22: 17 | B22: Kansas | C22: KS | D22: STD_2004 | E22: 6.51501482 | F22: 4.82042339 | G22: 22.53551066 | H22: 8.241930062 | I22: 4.576381283 | O22: 17 | P22: Kansas | Q22: KS | R22: 9.003750481 | S22: 7.746352621 | T22: 7.433631909 | U22: 6.51501482 | V22: 5.916814332 | W22: 4.057063511 | X22: 3.520061438 | Y22: 3.297623639 | Z22: 3.215169374 | AA22: 3.022259212 | AB22: 2.840923659 | AC22: 2.670468239 | AD22: 2.510240145 | AE22: 2.359625736 | AF22: 2.218048192 | AG22: 2.084965301 | AH22: 1.959867383
A23: 18 | B23: Kentucky | C23: KY | D23: STD_2004 | E23: 5.856758165 | F23: 4.889801736 | G23: 22.03670762 | H23: 8.705340734 | I23: 4.276390105 | O23: 18 | P23: Kentucky | Q23: KY | R23: 8.094039785 | S23: 6.963685459 | T23: 6.682561067 | U23: 5.856758165 | V23: 5.301175402 | W23: 5.006093615 | X23: 3.133979291 | Y23: 2.963207169 | Z23: 2.854817857 | AA23: 2.683528786 | AB23: 2.522517059 | AC23: 2.371166035 | AD23: 2.228896073 | AE23: 2.095162309 | AF23: 1.96945257 | AG23: 1.851285416 | AH23: 1.740208291
A24: 19 | B24: Louisiana | C24: LA | D24: STD_2004 | E24: 9.53665588 | F24: 5.127835813 | G24: 10.95123325 | H24: 10.53794496 | I24: 4.929056477 | O24: 19 | P24: Louisiana | Q24: LA | R24: 13.17965843 | S24: 11.33908384 | T24: 10.88132436 | U24: 9.53665588 | V24: 8.479846099 | W24: 4.800973242 | X24: 5.219172127 | Y24: 4.785160019 | Z24: 4.810099177 | AA24: 4.521493226 | AB24: 4.250203633 | AC24: 3.995191415 | AD24: 3.75547993 | AE24: 3.530151134 | AF24: 3.318342066 | AG24: 3.119241542 | AH24: 2.93208705
A25: 20 | B25: Maine | C25: ME | D25: STD_2004 | E25: 5.469176075 | F25: 5.137631451 | G25: 37.43296261 | H25: 10.54217701 | I25: 4.987597252 | O25: 20 | P25: Maine | Q25: ME | R25: 7.558401336 | S25: 6.502850354 | T25: 6.240329902 | U25: 5.469176075 | V25: 4.885792761 | W25: 3.21829559 | X25: 3.026316212 | Y25: 2.974410054 | Z25: 2.727633288 | AA25: 2.563975291 | AB25: 2.410136773 | AC25: 2.265528567 | AD25: 2.129596853 | AE25: 2.001821042 | AF25: 1.881711779 | AG25: 1.768809072 | AH25: 1.662680528
A26: 21 | B26: Maryland | C26: MD | D26: STD_2004 | E26: 5.082652223 | F26: 3.965006877 | G26: 16.64027555 | H26: 6.590552091 | I26: 5.24841649 | O26: 21 | P26: Maryland | Q26: MD | R26: =$U26*R$4 -> 7.024225373 | S26: 6.043273494 | T26: 5.799306187 | U26: 5.082652223 | V26: 4.585913069 | W26: 2.636786163 | X26: 2.992749568 | Y26: 2.614019033 | Z26: 2.760025829 | AA26: 2.59442428 | AB26: 2.438758823 | AC26: 2.292433294 | AD26: 2.154887296 | AE26: 2.025594058 | AF26: 1.904058415 | AG26: 1.78981491 | AH26: 1.682426015
A27: 22 | B27: Massachusetts | C27: MA | D27: STD_2004 | E27: 4.695375552 | F27: 3.939348177 | G27: 24.51709412 | H27: 8.325837551 | I27: 5.636070516 | O27: 22 | P27: Massachusetts | Q27: MA | R27: 6.489009013 | S27: 5.582801532 | T27: 5.357423505 | U27: 4.695375552 | V27: 4.178085284 | W27: 2.787429965 | X27: 2.764774675 | Y27: 2.459554713 | Z27: 2.526991464 | AA27: 2.375371977 | AB27: 2.232849658 | AC27: 2.098878678 | AD27: 1.972945958 | AE27: 1.8545692 | AF27: 1.743295048 | AG27: 1.638697345 | AH27: 1.540375505
A28: 23 | B28: Michigan | C28: MI | D28: STD_2004 | E28: 6.194503723 | F28: 5.074002406 | G28: 36.06682253 | H28: 11.56173716 | I28: 5.292564704 | O28: 23 | P28: Michigan | Q28: MI | R28: 8.560804145 | S28: 7.365264927 | T28: 7.067928748 | U28: 6.194503723 | V28: 5.505470095 | W28: 3.426822007 | X28: 3.42747092 | Y28: 3.300510062 | Z28: 3.108070471 | AA28: 2.921586243 | AB28: 2.746291068 | AC28: 2.581513604 | AD28: 2.426622788 | AE28: 2.281025421 | AF28: 2.144163895 | AG28: 2.015514062 | AH28: 1.894583218
A29: 24 | B29: Minnesota | C29: MN | D29: STD_2004 | E29: 5.075292501 | F29: 4.203792934 | G29: 36.29822444 | H29: 8.05437547 | I29: 5.632853097 | O29: 24 | P29: Minnesota | Q29: MN | R29: 7.014054236 | S29: 6.034522783 | T29: 5.790908743 | U29: 5.075292501 | V29: 4.583867731 | W29: 2.779136789 | X29: 3.039323364 | Y29: 2.820847184 | Z29: 2.793193918 | AA29: 2.625602283 | AB29: 2.468066146 | AC29: 2.319982177 | AD29: 2.180783246 | AE29: 2.049936252 | AF29: 1.926940077 | AG29: 1.811323672 | AH29: 1.702644252
A30: 25 | B30: Mississippi | C30: MS | D30: STD_2004 | E30: 7.73705709 | F30: 5.068429578 | G30: 9.742431608 | H30: 8.67509146 | I30: 4.054142045 | O30: 25 | P30: Mississippi | Q30: MS | R30: 10.6926129 | S30: 9.19936088 | T30: 8.827982139 | U30: 7.73705709 | V30: 6.939683326 | W30: 4.822453489 | X30: 4.172996677 | Y30: 3.837136708 | Z30: 3.81838592 | AA30: 3.589282764 | AB30: 3.373925799 | AC30: 3.171490251 | AD30: 2.981200836 | AE30: 2.802328785 | AF30: 2.634189058 | AG30: 2.476137715 | AH30: 2.327569452
A31: 26 | B31: Missouri | C31: MO | D31: STD_2004 | E31: 6.933350019 | F31: 4.782352795 | G31: 23.5850623 | H31: 8.801059524 | I31: 5.009225341 | O31: 26 | P31: Missouri | Q31: MO | R31: 9.581889726 | S31: 8.243753173 | T31: 7.910952372 | U31: 6.933350019 | V31: 6.282564753 | W31: 4.422222962 | X31: 3.855800304 | Y31: 3.536467618 | Z31: 3.533728259 | AA31: 3.321704564 | AB31: 3.12240229 | AC31: 2.935058153 | AD31: 2.758954663 | AE31: 2.593417384 | AF31: 2.437812341 | AG31: 2.2915436 | AH31: 2.154050984
... 37 more rows

Sheet 2. Time Lag - State Adoption_P (hidden)
A1: COMMERCIAL | G1: 1 | H1: =1+G1 -> 2 | I1: 3 | J1: 4 | K1: 5 | L1: 6 | M1: 7 | N1: 8 | O1: 9 | P1: 10 | Q1: 11 | R1: 12 | S1: 13 | T1: 14 | U1: 15 | V1: 16
A2: No. | B2: By state | C2: State | D2: Adoption Classification | E2: Lag from Code Version: Adoption Time Lag (Years) | F2: Code Version ----> | G2: A90-1980 | H2: MEC 92-95 90.1-1989 | I2: IECC 2000/2003 90.1-1999/2001 | J2: IECC 2006 90.1-2004 | K2: IECC 2009 90.1-2007 | L2: IECC 2012 90.1-2010 | M2: IECC 2015 90.1-2013 | N2: IECC 2018 90.1-2016 | O2: IECC 2021 90.1-2019 | P2: IECC 2024 90.1-2022 | Q2: IECC 2027 90.1-2025 | R2: IECC 2030 90.1-2028 | S2: IECC 2033 90.1-2031 | T2: IECC 2036 90.1-2034 | U2: IECC 2039 90.1-2037 | V2: IECC 2042 90.1-2040
G3: 1990 | H3: 1992 | I3: 2000 | J3: 2006 | K3: 2009 | L3: 2012 | M3: 2015 | N3: 2018 | O3: 2021 | P3: 2024 | Q3: 2027 | R3: 2030 | S3: 2033 | T3: 2036 | U3: 2039 | V3: 2042
A5: 1 | B5: Alabama | C5: AL | D5: =D141 -> Slow | E5: 7 | G5: 1990 | H5: =IF(H$1>$W141,H141,1990) -> 1990 | I5: 1990 | J5: 1990 | K5: 1990 | L5: 1990 | M5: 2060 | N5: 2060 | O5: 2060 | P5: 2060 | Q5: 2060 | R5: 2060 | S5: 2060 | T5: 2060 | U5: 2060 | V5: 2060
A6: =1+A5 -> 2 | B6: Alaska | C6: AK | D6: NOMAD | E6: 10 | G6: 1990 | H6: =IF(H$1>$W142,H142,1990) -> 1990 | I6: 1990 | J6: 1990 | K6: 1990 | L6: 1990 | M6: 2060 | N6: 2060 | O6: 2060 | P6: 2060 | Q6: 2060 | R6: 2060 | S6: 2060 | T6: 2060 | U6: 2060 | V6: 2060
A7: 3 | B7: Arizona | C7: AZ | D7: Moderate | E7: 4 | G7: 1990 | H7: =IF(H$1>$W143,H143,1990) -> 1990 | I7: 1990 | J7: 1990 | K7: 1990 | L7: 1990 | M7: 2060 | N7: 2060 | O7: 2060 | P7: 2060 | Q7: 2060 | R7: 2060 | S7: 2060 | T7: 2060 | U7: 2060 | V7: 2060
A8: 4 | B8: Arkansas | C8: AR | D8: Slow | E8: 7 | G8: 1990 | H8: =IF(H$1>$W144,H144,1990) -> 1990 | I8: 1990 | J8: 1990 | K8: 1990 | L8: 1990 | M8: 2060 | N8: 2060 | O8: 2060 | P8: 2060 | Q8: 2060 | R8: 2060 | S8: 2060 | T8: 2060 | U8: 2060 | V8: 2060
A9: 5 | B9: California | C9: CA | D9: Aggressive | E9: 1 | G9: 1990 | H9: =IF(H$1>$W145,H145,1990) -> 1990 | I9: 1990 | J9: 1990 | K9: 1990 | L9: 1990 | M9: 2060 | N9: 2060 | O9: 2060 | P9: 2060 | Q9: 2060 | R9: 2060 | S9: 2060 | T9: 2060 | U9: 2060 | V9: 2060
A10: 6 | B10: Colorado | C10: CO | D10: Moderate | E10: 4 | G10: 1990 | H10: =IF(H$1>$W146,H146,1990) -> 1990 | I10: 1990 | J10: 1990 | K10: 1990 | L10: 1990 | M10: 2060 | N10: 2060 | O10: 2060 | P10: 2060 | Q10: 2060 | R10: 2060 | S10: 2060 | T10: 2060 | U10: 2060 | V10: 2060
A11: 7 | B11: Connecticut | C11: CT | D11: Moderate | E11: 4 | G11: 1990 | H11: =IF(H$1>$W147,H147,1990) -> 1990 | I11: 1990 | J11: 1990 | K11: 1990 | L11: 1990 | M11: 2060 | N11: 2060 | O11: 2060 | P11: 2060 | Q11: 2060 | R11: 2060 | S11: 2060 | T11: 2060 | U11: 2060 | V11: 2060
A12: 8 | B12: Delaware | C12: DE | D12: Moderate | E12: 4 | G12: 1990 | H12: =IF(H$1>$W148,H148,1990) -> 1990 | I12: 1990 | J12: 1990 | K12: 1990 | L12: 1990 | M12: 2060 | N12: 2060 | O12: 2060 | P12: 2060 | Q12: 2060 | R12: 2060 | S12: 2060 | T12: 2060 | U12: 2060 | V12: 2060
A13: 9 | B13: District of Columbia | C13: DC | D13: Moderate | E13: 4 | G13: 1990 | H13: =IF(H$1>$W149,H149,1990) -> 1990 | I13: 1990 | J13: 1990 | K13: 1990 | L13: 1990 | M13: 2060 | N13: 2060 | O13: 2060 | P13: 2060 | Q13: 2060 | R13: 2060 | S13: 2060 | T13: 2060 | U13: 2060 | V13: 2060
A14: 10 | B14: Florida | C14: FL | D14: Moderate | E14: 4 | G14: 1990 | H14: =IF(H$1>$W150,H150,1990) -> 1990 | I14: 1990 | J14: 1990 | K14: 1990 | L14: 1990 | M14: 2060 | N14: 2060 | O14: 2060 | P14: 2060 | Q14: 2060 | R14: 2060 | S14: 2060 | T14: 2060 | U14: 2060 | V14: 2060
A15: 11 | B15: Georgia | C15: GA | D15: Slow | E15: 7 | G15: 1990 | H15: =IF(H$1>$W151,H151,1990) -> 1990 | I15: 1990 | J15: 1990 | K15: 1990 | L15: 1990 | M15: 2060 | N15: 2060 | O15: 2060 | P15: 2060 | Q15: 2060 | R15: 2060 | S15: 2060 | T15: 2060 | U15: 2060 | V15: 2060
A16: 12 | B16: Hawaii | C16: HI | D16: Moderate | E16: 4 | G16: 1990 | H16: =IF(H$1>$W152,H152,1990) -> 1990 | I16: 1990 | J16: 1990 | K16: 1990 | L16: 1990 | M16: 2060 | N16: 2060 | O16: 2060 | P16: 2060 | Q16: 2060 | R16: 2060 | S16: 2060 | T16: 2060 | U16: 2060 | V16: 2060
A17: 13 | B17: Idaho | C17: ID | D17: Moderate | E17: 4 | G17: 1990 | H17: =IF(H$1>$W153,H153,1990) -> 1990 | I17: 1990 | J17: 1990 | K17: 1990 | L17: 1990 | M17: 2060 | N17: 2060 | O17: 2060 | P17: 2060 | Q17: 2060 | R17: 2060 | S17: 2060 | T17: 2060 | U17: 2060 | V17: 2060
A18: 14 | B18: Illinois | C18: IL | D18: Aggressive | E18: 1 | G18: 1990 | H18: =IF(H$1>$W154,H154,1990) -> 1990 | I18: 1990 | J18: 1990 | K18: 1990 | L18: 1990 | M18: 2060 | N18: 2060 | O18: 2060 | P18: 2060 | Q18: 2060 | R18: 2060 | S18: 2060 | T18: 2060 | U18: 2060 | V18: 2060
A19: 15 | B19: Indiana | C19: IN | D19: Slow | E19: 7 | G19: 1990 | H19: =IF(H$1>$W155,H155,1990) -> 1990 | I19: 1990 | J19: 1990 | K19: 1990 | L19: 1990 | M19: 2060 | N19: 2060 | O19: 2060 | P19: 2060 | Q19: 2060 | R19: 2060 | S19: 2060 | T19: 2060 | U19: 2060 | V19: 2060
A20: 16 | B20: Iowa | C20: IA | D20: Slow | E20: 7 | G20: 1990 | H20: =IF(H$1>$W156,H156,1990) -> 1990 | I20: 1990 | J20: 1990 | K20: 1990 | L20: 1990 | M20: 2060 | N20: 2060 | O20: 2060 | P20: 2060 | Q20: 2060 | R20: 2060 | S20: 2060 | T20: 2060 | U20: 2060 | V20: 2060
A21: 17 | B21: Kansas | C21: KS | D21: NOMAD | E21: 10 | G21: 1990 | H21: =IF(H$1>$W157,H157,1990) -> 1990 | I21: 1990 | J21: 1990 | K21: 1990 | L21: 1990 | M21: 2060 | N21: 2060 | O21: 2060 | P21: 2060 | Q21: 2060 | R21: 2060 | S21: 2060 | T21: 2060 | U21: 2060 | V21: 2060
A22: 18 | B22: Kentucky | C22: KY | D22: Slow | E22: 7 | G22: 1990 | H22: =IF(H$1>$W158,H158,1990) -> 1990 | I22: 1990 | J22: 1990 | K22: 1990 | L22: 1990 | M22: 2060 | N22: 2060 | O22: 2060 | P22: 2060 | Q22: 2060 | R22: 2060 | S22: 2060 | T22: 2060 | U22: 2060 | V22: 2060
A23: 19 | B23: Louisiana | C23: LA | D23: Slow | E23: 7 | G23: 1990 | H23: =IF(H$1>$W159,H159,1990) -> 1990 | I23: 1990 | J23: 1990 | K23: 1990 | L23: 1990 | M23: 2060 | N23: 2060 | O23: 2060 | P23: 2060 | Q23: 2060 | R23: 2060 | S23: 2060 | T23: 2060 | U23: 2060 | V23: 2060
A24: 20 | B24: Maine | C24: ME | D24: Moderate | E24: 4 | G24: 1990 | H24: =IF(H$1>$W160,H160,1990) -> 1990 | I24: 1990 | J24: 1990 | K24: 1990 | L24: 1990 | M24: 2060 | N24: 2060 | O24: 2060 | P24: 2060 | Q24: 2060 | R24: 2060 | S24: 2060 | T24: 2060 | U24: 2060 | V24: 2060
A25: 21 | B25: Maryland | C25: MD | D25: =D161 -> Aggressive | E25: 1 | G25: 1990 | H25: =IF(H$1>$W161,H161,1990) -> 1990 | I25: 1990 | J25: 1990 | K25: 1990 | L25: 1990 | M25: 2060 | N25: 2060 | O25: 2060 | P25: 2060 | Q25: 2060 | R25: 2060 | S25: 2060 | T25: 2060 | U25: 2060 | V25: 2060
A26: 22 | B26: Massachusetts | C26: MA | D26: Aggressive | E26: 1 | G26: 1990 | H26: =IF(H$1>$W162,H162,1990) -> 1990 | I26: 1990 | J26: 1990 | K26: 1990 | L26: 1990 | M26: 2060 | N26: 2060 | O26: 2060 | P26: 2060 | Q26: 2060 | R26: 2060 | S26: 2060 | T26: 2060 | U26: 2060 | V26: 2060
A27: 23 | B27: Michigan | C27: MI | D27: Moderate | E27: 4 | G27: 1990 | H27: =IF(H$1>$W163,H163,1990) -> 1990 | I27: 1990 | J27: 1990 | K27: 1990 | L27: 1990 | M27: 2060 | N27: 2060 | O27: 2060 | P27: 2060 | Q27: 2060 | R27: 2060 | S27: 2060 | T27: 2060 | U27: 2060 | V27: 2060
A28: 24 | B28: Minnesota | C28: MN | D28: Moderate | E28: 4 | G28: 1990 | H28: =IF(H$1>$W164,H164,1990) -> 1990 | I28: 1990 | J28: 1990 | K28: 1990 | L28: 1990 | M28: 2060 | N28: 2060 | O28: 2060 | P28: 2060 | Q28: 2060 | R28: 2060 | S28: 2060 | T28: 2060 | U28: 2060 | V28: 2060
A29: 25 | B29: Mississippi | C29: MS | D29: NOMAD | E29: 10 | G29: 1990 | H29: =IF(H$1>$W165,H165,1990) -> 1990 | I29: 1990 | J29: 1990 | K29: 1990 | L29: 1990 | M29: 2060 | N29: 2060 | O29: 2060 | P29: 2060 | Q29: 2060 | R29: 2060 | S29: 2060 | T29: 2060 | U29: 2060 | V29: 2060
A30: 26 | B30: Missouri | C30: MO | D30: NOMAD | E30: 10 | G30: 1990 | H30: =IF(H$1>$W166,H166,1990) -> 1990 | I30: 1990 | J30: 1990 | K30: 1990 | L30: 1990 | M30: 2060 | N30: 2060 | O30: 2060 | P30: 2060 | Q30: 2060 | R30: 2060 | S30: 2060 | T30: 2060 | U30: 2060 | V30: 2060
A31: 27 | B31: Montana | C31: MT | D31: Moderate | E31: 4 | G31: 1990 | H31: =IF(H$1>$W167,H167,1990) -> 1990 | I31: 1990 | J31: 1990 | K31: 1990 | L31: 1990 | M31: 2060 | N31: 2060 | O31: 2060 | P31: 2060 | Q31: 2060 | R31: 2060 | S31: 2060 | T31: 2060 | U31: 2060 | V31: 2060
... 33 more rows

Sheet 4. Compliance Rates_P (hidden)
A1: COMMERCIAL
A2: Compliance Rates: HVAC and Envelope
A3: No. | B3: State | C3: State ID | D3: Initial WCE | E3: Initial WCE | F3: Initial WCE | G3: Initial WCE | H3: Initial WCE | I3: Initial WCE | J3: Initial WCE | K3: Initial WCE | L3: Initial WCE | M3: Initial WCE | N3: Initial WCE | O3: Initial WCE
D4: A90-1980 | E4: 90.1-1989 | F4: 90.1-1999/2000 | G4: 90.1-2004 | H4: 90.1-2007 | I4: 90.1-2010* | J4: 90.1-2013 | K4: 90.1-2016 | L4: 90.1-2019 | M4: 90.1-2022 | N4: 90.1-2025 | O4: 90.1-2028
D5: 1 | E5: 2 | F5: 3 | G5: 4 | H5: 5 | I5: 6 | J5: 7 | K5: 8 | L5: 9 | M5: 10 | N5: 11 | O5: 12
A6: 1 | B6: Alabama | C6: AL | D6: 0.7 | E6: 0.7 | F6: 0.7 | G6: =CR_HVEN_IW -> 
A7: 2 | B7: Alaska | C7: AK | D7: 0.7 | E7: 0.7 | F7: 0.7
A8: 3 | B8: Arizona | C8: AZ | D8: 0.7 | E8: 0.7 | F8: 0.7 | R8: COMPLIANCE RATE MATRIX
A9: 4 | B9: Arkansas | C9: AR | D9: 0.7 | E9: 0.7 | F9: 0.7 | U9: Year
A10: 5 | B10: California | C10: CA | D10: 0.7 | E10: 0.7 | F10: 0.7 | Q10: Commercial | S10: Annual Average. Rate of Increase (%), HVAC and Envelope | T10: First Year of the Code in Place, t0 | U10: 1 | V10: =1+U10 -> 2 | W10: 3 | X10: 4 | Y10: 5 | Z10: 6 | AA10: 7 | AB10: 8 | AC10: 9 | AD10: 10 | AE10: 11 | AF10: 12 | AG10: 13 | AH10: 14 | AI10: 15 | AJ10: 16 | AK10: 17 | AM10: OFFSET HCTR | AN10: OFFSET_VCTR | AO10: CodeVersion _Time Step | AP10: Comm: HVAC and Envelope | AQ10: Comm: OTHER | AR10: Res: HVAC and Envelope | AS10: Res: DHW, Lighting, Other | AT10: Time_Step | AU10: Code_Version
A11: 6 | B11: Colorado | C11: CO | D11: 0.7 | E11: 0.7 | F11: 0.7 | Q11: Code Edition | R11: Code ID
A12: 7 | B12: Connecticut | C12: CT | D12: 0.7 | E12: 0.7 | F12: 0.7 | Q12: A90-1980 | R12: 1 | S12: 0 | T12: 1 | U12: =T12+((1-T12)*($S12/100)) -> 1 | V12: 1 | W12: 1 | X12: 1 | Y12: 1 | Z12: 1 | AA12: 1 | AB12: 1 | AC12: 1 | AD12: 1 | AE12: 1 | AF12: 1 | AG12: 1 | AH12: 1 | AI12: 1 | AJ12: 1 | AK12: 1 | AM12: 0 | AN12: =0 -> 0 | AO12: =CONCATENATE($R12,U$10) -> 11 | AP12: =OFFSET($U$12,$AN12,$AM12) -> 1 | AQ12: =OFFSET($U$31,$AN12,$AM12) -> 1 | AR12: =OFFSET($U$50,$AN12,$AM12) -> 1 | AS12: =OFFSET($U$70,$AN12,$AM12) -> 1 | AT12: 1 | AU12: 1
A13: 8 | B13: Delaware | C13: DE | D13: 0.7 | E13: 0.7 | F13: 0.7 | Q13: MEC 92-95 90.1-1989 | R13: 2 | S13: 8.75 | T13: 0.5 | U13: =T13+((1-T13)*($S13/100)) -> 0.54375 | V13: 0.583671875 | W13: 0.6201005859 | X13: 0.6533417847 | Y13: 0.6836743785 | Z13: 0.7113528704 | AA13: 0.7366094942 | AB13: 0.7596561635 | AC13: 0.7806862492 | AD13: 0.7998762024 | AE13: 0.8173870347 | AF13: 0.8333656691 | AG13: 0.8479461731 | AH13: 0.8612508829 | AI13: 0.8733914307 | AJ13: 0.8844696805 | AK13: 0.8945785835 | AM13: =AM12 -> 0 | AN13: =1+AN12 -> 1 | AO13: 21 | AP13: 0.54375 | AQ13: 0.54375 | AR13: 0.85 | AS13: 0.9175 | AT13: 1 | AU13: =1+AU12 -> 2
A14: 9 | B14: District of Columbia | C14: DC | D14: 0.7 | E14: 0.7 | F14: 0.7 | Q14: IECC 2000/2003 90.1-1999/2001 | R14: 3 | S14: 8.75 | T14: 0.5 | U14: =T14+((1-T14)*($S14/100)) -> 0.54375 | V14: 0.583671875 | W14: 0.6201005859 | X14: 0.6533417847 | Y14: 0.6836743785 | Z14: 0.7113528704 | AA14: 0.7366094942 | AB14: 0.7596561635 | AC14: 0.7806862492 | AD14: 0.7998762024 | AE14: 0.8173870347 | AF14: 0.8333656691 | AG14: 0.8479461731 | AH14: 0.8612508829 | AI14: 0.8733914307 | AJ14: 0.8844696805 | AK14: 0.8945785835 | AM14: 0 | AN14: 2 | AO14: 31 | AP14: 0.54375 | AQ14: 0.54375 | AR14: 0.85 | AS14: 0.9175 | AT14: 1 | AU14: 3
A15: 10 | B15: Florida | C15: FL | D15: 0.7 | E15: 0.7 | F15: 0.7 | Q15: IECC 2006 90.1-2004 | R15: 4 | S15: 8.75 | T15: 0.5 | U15: =T15+((1-T15)*($S15/100)) -> 0.54375 | V15: 0.583671875 | W15: 0.6201005859 | X15: 0.6533417847 | Y15: 0.6836743785 | Z15: 0.7113528704 | AA15: 0.7366094942 | AB15: 0.7596561635 | AC15: 0.7806862492 | AD15: 0.7998762024 | AE15: 0.8173870347 | AF15: 0.8333656691 | AG15: 0.8479461731 | AH15: 0.8612508829 | AI15: 0.8733914307 | AJ15: 0.8844696805 | AK15: 0.8945785835 | AM15: 0 | AN15: 3 | AO15: 41 | AP15: 0.54375 | AQ15: 0.54375 | AR15: 0.85 | AS15: 0.9175 | AT15: 1 | AU15: 4
A16: 11 | B16: Georgia | C16: GA | D16: 0.7 | E16: 0.7 | F16: 0.7 | G16: =CR_HVEN_IW ->  | Q16: IECC 2009 90.1-2007 | R16: 5 | S16: 8.75 | T16: 0.5 | U16: =T16+((1-T16)*($S16/100)) -> 0.54375 | V16: 0.583671875 | W16: 0.6201005859 | X16: 0.6533417847 | Y16: 0.6836743785 | Z16: 0.7113528704 | AA16: 0.7366094942 | AB16: 0.7596561635 | AC16: 0.7806862492 | AD16: 0.7998762024 | AE16: 0.8173870347 | AF16: 0.8333656691 | AG16: 0.8479461731 | AH16: 0.8612508829 | AI16: 0.8733914307 | AJ16: 0.8844696805 | AK16: 0.8945785835 | AM16: 0 | AN16: 4 | AO16: 51 | AP16: 0.54375 | AQ16: 0.54375 | AR16: 0.85 | AS16: 0.9175 | AT16: 1 | AU16: 5
A17: 12 | B17: Hawaii | C17: HI | D17: 0.7 | E17: 0.7 | F17: 0.7 | Q17: IECC 2012 90.1-2010 | R17: 6 | S17: 8.75 | T17: 0.5 | U17: =T17+((1-T17)*($S17/100)) -> 0.54375 | V17: 0.583671875 | W17: 0.6201005859 | X17: 0.6533417847 | Y17: 0.6836743785 | Z17: 0.7113528704 | AA17: 0.7366094942 | AB17: 0.7596561635 | AC17: 0.7806862492 | AD17: 0.7998762024 | AE17: 0.8173870347 | AF17: 0.8333656691 | AG17: 0.8479461731 | AH17: 0.8612508829 | AI17: 0.8733914307 | AJ17: 0.8844696805 | AK17: 0.8945785835 | AM17: 0 | AN17: 5 | AO17: 61 | AP17: 0.54375 | AQ17: 0.54375 | AR17: 0.85 | AS17: 0.9175 | AT17: 1 | AU17: 6
A18: 13 | B18: Idaho | C18: ID | D18: 0.7 | E18: 0.7 | F18: 0.7 | Q18: IECC 2015 90.1-2013 | R18: 7 | S18: 8.75 | T18: 0.5 | U18: =T18+((1-T18)*($S18/100)) -> 0.54375 | V18: 0.583671875 | W18: 0.6201005859 | X18: 0.6533417847 | Y18: 0.6836743785 | Z18: 0.7113528704 | AA18: 0.7366094942 | AB18: 0.7596561635 | AC18: 0.7806862492 | AD18: 0.7998762024 | AE18: 0.8173870347 | AF18: 0.8333656691 | AG18: 0.8479461731 | AH18: 0.8612508829 | AI18: 0.8733914307 | AJ18: 0.8844696805 | AK18: 0.8945785835 | AM18: 0 | AN18: 6 | AO18: 71 | AP18: 0.54375 | AQ18: 0.54375 | AR18: 0.85 | AS18: 0.85 | AT18: 1 | AU18: 7
A19: 14 | B19: Illinois | C19: IL | D19: 0.7 | E19: 0.7 | F19: 0.7 | Q19: IECC 2018 90.1-2016 | R19: 8 | S19: 8.75 | T19: 0.5 | U19: =T19+((1-T19)*($S19/100)) -> 0.54375 | V19: 0.583671875 | W19: 0.6201005859 | X19: 0.6533417847 | Y19: 0.6836743785 | Z19: 0.7113528704 | AA19: 0.7366094942 | AB19: 0.7596561635 | AC19: 0.7806862492 | AD19: 0.7998762024 | AE19: 0.8173870347 | AF19: 0.8333656691 | AG19: 0.8479461731 | AH19: 0.8612508829 | AI19: 0.8733914307 | AJ19: 0.8844696805 | AK19: 0.8945785835 | AM19: 0 | AN19: 7 | AO19: 81 | AP19: 0.54375 | AQ19: 0.54375 | AR19: 0.85 | AS19: 0.9175 | AT19: 1 | AU19: 8
A20: 15 | B20: Indiana | C20: IN | D20: 0.7 | E20: 0.7 | F20: 0.7 | Q20: IECC 2021 90.1-2019 | R20: 9 | S20: 8.75 | T20: 0.5 | U20: =T20+((1-T20)*($S20/100)) -> 0.54375 | V20: 0.583671875 | W20: 0.6201005859 | X20: 0.6533417847 | Y20: 0.6836743785 | Z20: 0.7113528704 | AA20: 0.7366094942 | AB20: 0.7596561635 | AC20: 0.7806862492 | AD20: 0.7998762024 | AE20: 0.8173870347 | AF20: 0.8333656691 | AG20: 0.8479461731 | AH20: 0.8612508829 | AI20: 0.8733914307 | AJ20: 0.8844696805 | AK20: 0.8945785835 | AM20: 0 | AN20: 8 | AO20: 91 | AP20: 0.54375 | AQ20: 0.54375 | AR20: 0.85 | AS20: 0.85 | AT20: 1 | AU20: 9
A21: 16 | B21: Iowa | C21: IA | D21: 0.7 | E21: 0.7 | F21: 0.7 | Q21: IECC 2024 90.1-2022 | R21: 10 | S21: 8.75 | T21: 0.5 | U21: =T21+((1-T21)*($S21/100)) -> 0.54375 | V21: 0.583671875 | W21: 0.6201005859 | X21: 0.6533417847 | Y21: 0.6836743785 | Z21: 0.7113528704 | AA21: 0.7366094942 | AB21: 0.7596561635 | AC21: 0.7806862492 | AD21: 0.7998762024 | AE21: 0.8173870347 | AF21: 0.8333656691 | AG21: 0.8479461731 | AH21: 0.8612508829 | AI21: 0.8733914307 | AJ21: 0.8844696805 | AK21: 0.8945785835 | AM21: 0 | AN21: 9 | AO21: 101 | AP21: 0.54375 | AQ21: 0.54375 | AR21: 0.85 | AS21: 0.85 | AT21: 1 | AU21: 10
A22: 17 | B22: Kansas | C22: KS | D22: 0.7 | E22: 0.7 | F22: 0.7 | Q22: IECC 2027 90.1-2025 | R22: 11 | S22: 8.75 | T22: 0.5 | U22: =T22+((1-T22)*($S22/100)) -> 0.54375 | V22: 0.583671875 | W22: 0.6201005859 | X22: 0.6533417847 | Y22: 0.6836743785 | Z22: 0.7113528704 | AA22: 0.7366094942 | AB22: 0.7596561635 | AC22: 0.7806862492 | AD22: 0.7998762024 | AE22: 0.8173870347 | AF22: 0.8333656691 | AG22: 0.8479461731 | AH22: 0.8612508829 | AI22: 0.8733914307 | AJ22: 0.8844696805 | AK22: 0.8945785835 | AM22: 0 | AN22: 10 | AO22: 111 | AP22: 0.54375 | AQ22: 0.54375 | AR22: 0.85 | AS22: 0.85 | AT22: 1 | AU22: 11
A23: 18 | B23: Kentucky | C23: KY | D23: 0.7 | E23: 0.7 | F23: 0.7 | Q23: IECC 2030 90.1-2028 | R23: 12 | S23: 8.75 | T23: 0.5 | U23: =T23+((1-T23)*($S23/100)) -> 0.54375 | V23: 0.583671875 | W23: 0.6201005859 | X23: 0.6533417847 | Y23: 0.6836743785 | Z23: 0.7113528704 | AA23: 0.7366094942 | AB23: 0.7596561635 | AC23: 0.7806862492 | AD23: 0.7998762024 | AE23: 0.8173870347 | AF23: 0.8333656691 | AG23: 0.8479461731 | AH23: 0.8612508829 | AI23: 0.8733914307 | AJ23: 0.8844696805 | AK23: 0.8945785835 | AM23: 0 | AN23: 11 | AO23: 121 | AP23: 0.54375 | AQ23: 0.54375 | AR23: 0.85 | AS23: 0.85 | AT23: 1 | AU23: 12
A24: 19 | B24: Louisiana | C24: LA | D24: 0.7 | E24: 0.7 | F24: 0.7 | Q24: IECC 2033 90.1-2031 | R24: 13 | S24: 8.75 | T24: 0.5 | U24: =T24+((1-T24)*($S24/100)) -> 0.54375 | V24: 0.583671875 | W24: 0.6201005859 | X24: 0.6533417847 | Y24: 0.6836743785 | Z24: 0.7113528704 | AA24: 0.7366094942 | AB24: 0.7596561635 | AC24: 0.7806862492 | AD24: 0.7998762024 | AE24: 0.8173870347 | AF24: 0.8333656691 | AG24: 0.8479461731 | AH24: 0.8612508829 | AI24: 0.8733914307 | AJ24: 0.8844696805 | AK24: 0.8945785835 | AM24: 0 | AN24: 12 | AO24: 131 | AP24: 0.54375 | AQ24: 0.54375 | AR24: 0.85 | AS24: 0.85 | AT24: 1 | AU24: 13
A25: 20 | B25: Maine | C25: ME | D25: 0.7 | E25: 0.7 | F25: 0.7 | Q25: IECC 2036 90.1-2034 | R25: 14 | S25: 8.75 | T25: 0.5 | U25: =T25+((1-T25)*($S25/100)) -> 0.54375 | V25: 0.583671875 | W25: 0.6201005859 | X25: 0.6533417847 | Y25: 0.6836743785 | Z25: 0.7113528704 | AA25: 0.7366094942 | AB25: 0.7596561635 | AC25: 0.7806862492 | AD25: 0.7998762024 | AE25: 0.8173870347 | AF25: 0.8333656691 | AG25: 0.8479461731 | AH25: 0.8612508829 | AI25: 0.8733914307 | AJ25: 0.8844696805 | AK25: 0.8945785835 | AM25: 0 | AN25: 13 | AO25: 141 | AP25: 0.54375 | AQ25: 0.54375 | AR25: 0.85 | AS25: 0.85 | AT25: 1 | AU25: 14
A26: 21 | B26: Maryland | C26: MD | D26: 0.7 | E26: 0.7 | F26: 0.7 | G26: =CR_HVEN_IW ->  | Q26: IECC 2039 90.1-2037 | R26: 15 | S26: 8.75 | T26: 0.5 | U26: =T26+((1-T26)*($S26/100)) -> 0.54375 | V26: 0.583671875 | W26: 0.6201005859 | X26: 0.6533417847 | Y26: 0.6836743785 | Z26: 0.7113528704 | AA26: 0.7366094942 | AB26: 0.7596561635 | AC26: 0.7806862492 | AD26: 0.7998762024 | AE26: 0.8173870347 | AF26: 0.8333656691 | AG26: 0.8479461731 | AH26: 0.8612508829 | AI26: 0.8733914307 | AJ26: 0.8844696805 | AK26: 0.8945785835 | AM26: 0 | AN26: 14 | AO26: 151 | AP26: 0.54375 | AQ26: 0.54375 | AR26: 0.85 | AS26: 0.85 | AT26: 1 | AU26: 15
A27: 22 | B27: Massachusetts | C27: MA | D27: 0.7 | E27: 0.7 | F27: 0.7 | Q27: IECC 2042 90.1-2040 | R27: 16 | S27: 8.75 | T27: 0.5 | U27: =T27+((1-T27)*($S27/100)) -> 0.54375 | V27: 0.583671875 | W27: 0.6201005859 | X27: 0.6533417847 | Y27: 0.6836743785 | Z27: 0.7113528704 | AA27: 0.7366094942 | AB27: 0.7596561635 | AC27: 0.7806862492 | AD27: 0.7998762024 | AE27: 0.8173870347 | AF27: 0.8333656691 | AG27: 0.8479461731 | AH27: 0.8612508829 | AI27: 0.8733914307 | AJ27: 0.8844696805 | AK27: 0.8945785835 | AM27: 0 | AN27: 15 | AO27: 161 | AP27: 0.54375 | AQ27: 0.54375 | AR27: 0.85 | AS27: 0.85 | AT27: 1 | AU27: 16
A28: 23 | B28: Michigan | C28: MI | D28: 0.7 | E28: 0.7 | F28: 0.7 | AM28: =1+AM12 -> 1 | AN28: =AN12 -> 0 | AO28: =CONCATENATE($R12,V$10) -> 12 | AP28: 1 | AQ28: 1 | AR28: 1 | AS28: 1 | AT28: =1+AT12 -> 2 | AU28: =AU12 -> 1
A29: 24 | B29: Minnesota | C29: MN | D29: 0.7 | E29: 0.7 | F29: 0.7 | Q29: Commercial | S29: Annual Average. Rate of Increase (%), Lighting | T29: =T10 -> First Year of the Code in Place, t0 | U29: 1 | V29: =1+U29 -> 2 | W29: 3 | X29: 4 | Y29: 5 | Z29: 6 | AA29: 7 | AB29: 8 | AC29: 9 | AD29: 10 | AE29: 11 | AF29: 12 | AG29: 13 | AH29: 14 | AI29: 15 | AJ29: 16 | AK29: 17 | AM29: 1 | AN29: 1 | AO29: 22 | AP29: 0.583671875 | AQ29: 0.583671875 | AR29: 0.8875 | AS29: 0.938125 | AT29: 2 | AU29: 2
A30: 25 | B30: Mississippi | C30: MS | D30: 0.7 | E30: 0.7 | F30: 0.7 | Q30: Code Edition | R30: Code ID | AM30: 1 | AN30: 2 | AO30: 32 | AP30: 0.583671875 | AQ30: 0.583671875 | AR30: 0.8875 | AS30: 0.938125 | AT30: 2 | AU30: 3
A31: 26 | B31: Missouri | C31: MO | D31: 0.7 | E31: 0.7 | F31: 0.7 | Q31: A90-1980 | R31: 1 | S31: 0 | T31: 1 | U31: =T31+((1-T31)*($S31/100)) -> 1 | V31: 1 | W31: 1 | X31: 1 | Y31: 1 | Z31: 1 | AA31: 1 | AB31: 1 | AC31: 1 | AD31: 1 | AE31: 1 | AF31: 1 | AG31: 1 | AH31: 1 | AI31: 1 | AJ31: 1 | AK31: 1 | AM31: 1 | AN31: 3 | AO31: 42 | AP31: 0.583671875 | AQ31: 0.583671875 | AR31: 0.8875 | AS31: 0.938125 | AT31: 2 | AU31: 4
... 38 more rows

Sheet 5. Time Series_Floor_P (hidden)
A1: COMMERCIAL | D1: New construction, additions and alterations (Million sf)
A3: No. | B3: State | C3: State ID | D3: 1990 | E3: =1+D3 -> 1991 | F3: 1992 | G3: 1993 | H3: 1994 | I3: 1995 | J3: 1996 | K3: 1997 | L3: 1998 | M3: 1999 | N3: 2000 | O3: 2001 | P3: 2002 | Q3: 2003 | R3: 2004 | S3: 2005 | T3: 2006 | U3: 2007 | V3: 2008 | W3: 2009 | X3: 2010 | Y3: 2011 | Z3: 2012 | AA3: 2013 | AB3: 2014 | AC3: 2015 | AD3: 2016 | AE3: 2017 | AF3: 2018 | AG3: 2019 | AH3: 2020 | AI3: 2021 | AJ3: 2022 | AK3: =1+AJ3 -> 2023 | AL3: 2024 | AM3: 2025 | AN3: 2026 | AO3: 2027 | AP3: 2028 | AQ3: 2029 | AR3: 2030 | AS3: 2031 | AT3: 2032 | AU3: 2033 | AV3: 2034 | AW3: 2035 | AX3: 2036 | AY3: 2037 | AZ3: 2038 | BA3: 2039 | BB3: 2040 | BC3: 2041 | BD3: 2042 | BE3: 2043 | BF3: 2044 | BG3: 2045 | BH3: 2046 | BI3: 2047 | BJ3: 2048 | BK3: 2049 | BL3: 2050 | BM3: =SUM(BM4:BM54) -> 87788.19331
A4: 1 | B4: Alabama | C4: AL | D4: 19.60239982 | E4: 18.18738007 | F4: 15.67658591 | G4: 15.82770406 | H4: 18.91900822 | I4: 21.49242629 | J4: 22.85944903 | K4: 28.39677836 | L4: 35.64778951 | M4: 36.97475496 | N4: 34.38322762 | O4: 38.97735905 | P4: 36.58927656 | Q4: 31.86588488 | R4: 30.1060488 | S4: 31.39640078 | T4: 31.62391921 | U4: 30.47175255 | V4: 31.84478626 | W4: 28.69396636 | X4: 19.29142708 | Y4: 14.85530437 | Z4: 15.67454126 | AA4: 24.41869393 | AB4: 25.00435601 | AC4: 27.29023947 | AD4: 28.7389311 | AE4: 28.60059453 | AF4: 29.16960245 | AG4: 29.7317149 | AH4: 25.92689501 | AI4: 28.93866574 | AJ4: 31.57838229 | AK4: 32.59566784 | AL4: 33.01863917 | AM4: 32.84762083 | AN4: 32.89248698 | AO4: 32.87258699 | AP4: 32.97831084 | AQ4: 33.26530197 | AR4: 33.65280527 | AS4: 33.95826376 | AT4: 34.15442471 | AU4: 34.28823012 | AV4: 34.3030977 | AW4: 34.25652424 | AX4: 34.2751949 | AY4: 34.43558375 | AZ4: 34.64720611 | BA4: 34.91298455 | BB4: 35.24702124 | BC4: 35.33240011 | BD4: 35.42143271 | BE4: 35.55915653 | BF4: 35.76011257 | BG4: 36.11926988 | BH4: 36.51440158 | BI4: 36.70261523 | BJ4: 36.8713529 | BK4: 37.0833604 | BL4: 37.31537428 | BM4: =SUM(Y4:BL4) -> 1281.209348 | BN4: =BM4/$BM$3 -> 0.01459432413
A5: =1+A4 -> 2 | B5: Alaska | C5: AK | D5: 1.908756372 | E5: 1.770970796 | F5: 2.477265994 | G5: 3.532047527 | H5: 2.862804364 | I5: 3.026312734 | J5: 3.013346741 | K5: 2.348834693 | L5: 3.436008813 | M5: 4.049951599 | N5: 3.941550964 | O5: 4.201029464 | P5: 4.906563703 | Q5: 5.096696948 | R5: 4.430449433 | S5: 4.421351222 | T5: 4.238195835 | U5: 4.967488182 | V5: 4.924850435 | W5: 4.294711597 | X5: 2.759004327 | Y5: 2.280695911 | Z5: 2.529437588 | AA5: 3.580763407 | AB5: 3.694959521 | AC5: 4.27788051 | AD5: 4.889234074 | AE5: 4.855707 | AF5: 5.098921288 | AG5: 5.276688815 | AH5: 3.878316655 | AI5: 4.041931005 | AJ5: 4.527206046 | AK5: 4.423497679 | AL5: 4.597599722 | AM5: 4.560669679 | AN5: 4.674219577 | AO5: 4.689880877 | AP5: 4.699142223 | AQ5: 4.699396383 | AR5: 4.732687051 | AS5: 4.778138598 | AT5: 4.816650632 | AU5: 4.85676355 | AV5: 4.881311288 | AW5: 4.883512167 | AX5: 4.894907371 | AY5: 4.904294542 | AZ5: 4.93721011 | BA5: 4.983410677 | BB5: 5.031375614 | BC5: 5.050078749 | BD5: 5.085768191 | BE5: 5.111270088 | BF5: 5.134352152 | BG5: 5.173668949 | BH5: 5.218637683 | BI5: 5.248746737 | BJ5: 5.273557183 | BK5: 5.31349092 | BL5: 5.354130555 | BM5: 186.9401108 | BN5: 0.002129444789 | BO5: =BN5+BN8+BN20+BN28+BN29+BN38+BN45+BN51 -> 0.1791434825 | BP5: <--- This is excluded states % share of floor area
A6: 3 | B6: Arizona | C6: AZ | D6: 25.4272445 | E6: 23.59175225 | F6: 21.75828853 | G6: 22.35675713 | H6: 24.30533185 | I6: 32.65522323 | J6: 38.56047854 | K6: 43.33726355 | L6: 55.15312411 | M6: 60.23458362 | N6: 60.01634557 | O6: 60.50815993 | P6: 49.47468919 | Q6: 50.03086815 | R6: 52.61791484 | S6: 54.69498594 | T6: 65.49456219 | U6: 78.1994504 | V6: 71.55816976 | W6: 37.46531617 | X6: 17.69108474 | Y6: 26.96206258 | Z6: 26.42749165 | AA6: 62.62081441 | AB6: 62.61177492 | AC6: 72.22415562 | AD6: 83.43306042 | AE6: 85.47522499 | AF6: 90.41456409 | AG6: 94.81731318 | AH6: 93.34919581 | AI6: 95.73514008 | AJ6: 101.2190206 | AK6: 101.4528546 | AL6: 104.0688798 | AM6: 104.9808317 | AN6: 107.1666647 | AO6: 107.9977661 | AP6: 108.4674297 | AQ6: 108.6873932 | AR6: 109.1553805 | AS6: 109.7813261 | AT6: 110.1833225 | AU6: 110.5815135 | AV6: 110.8096785 | AW6: 110.7170435 | AX6: 110.7850393 | AY6: 110.6901666 | AZ6: 111.0954354 | BA6: 111.8698792 | BB6: 112.751925 | BC6: 113.234791 | BD6: 113.9083719 | BE6: 114.45565 | BF6: 115.007466 | BG6: 115.720573 | BH6: 116.5386685 | BI6: 117.2226614 | BJ6: 117.8880688 | BK6: 118.7209175 | BL6: 119.6333511 | BM6: 4018.862867 | BN6: 0.04577908163
A7: 4 | B7: Arkansas | C7: AR | D7: 10.03618913 | E7: 9.311716313 | F7: 8.397108504 | G7: 8.816557517 | H7: 10.79263608 | I7: 13.878898 | J7: 14.15422869 | K7: 13.85703918 | L7: 15.00800277 | M7: 15.84759529 | N7: 16.11305312 | O7: 16.31794695 | P7: 15.52125923 | Q7: 15.85388016 | R7: 17.04676257 | S7: 17.27676993 | T7: 17.3452662 | U7: 15.39914379 | V7: 14.31309407 | W7: 13.01540914 | X7: 9.526499848 | Y7: 6.868739921 | Z7: 7.151527536 | AA7: 7.547287614 | AB7: 7.6700964 | AC7: 8.734665835 | AD7: 9.822836326 | AE7: 9.400855207 | AF7: 9.914011742 | AG7: 10.47992861 | AH7: 9.432644274 | AI7: 9.982220996 | AJ7: 10.61804539 | AK7: 10.87380955 | AL7: 11.15401667 | AM7: 11.37918389 | AN7: 11.62998649 | AO7: 11.71217171 | AP7: 11.72467236 | AQ7: 11.73836359 | AR7: 11.80112426 | AS7: 11.90476673 | AT7: 11.94021878 | AU7: 11.99311325 | AV7: 12.03245558 | AW7: 12.00344868 | AX7: 12.02493406 | AY7: 12.01068346 | AZ7: 12.10785207 | BA7: 12.19901545 | BB7: 12.30880105 | BC7: 12.36692241 | BD7: 12.43547163 | BE7: 12.49120194 | BF7: 12.55874854 | BG7: 12.64774841 | BH7: 12.76816652 | BI7: 12.8729913 | BJ7: 12.96960164 | BK7: 13.08421865 | BL7: 13.22286321 | BM7: 447.5794117 | BN7: 0.00509840099
A8: 5 | B8: California | C8: CA | D8: 195.5503158 | E8: 181.4343116 | F8: 147.9240903 | G8: 131.6119865 | H8: 137.9095244 | I8: 136.9919905 | J8: 133.9604533 | K8: 154.8800666 | L8: 192.4964623 | M8: 215.0911116 | N8: 224.44679 | O8: 239.9243687 | P8: 212.1979317 | Q8: 191.256534 | R8: 191.9466164 | S8: 189.0404244 | T8: 202.0699887 | U8: 201.4577901 | V8: 169.3798305 | W8: 117.0826486 | X8: 67.57642015 | Y8: 81.55961125 | Z8: 90.4548236 | AA8: 193.5745729 | AB8: 199.7479671 | AC8: 231.2604321 | AD8: 264.3099501 | AE8: 262.4974905 | AF8: 275.6455533 | AG8: 285.2555914 | AH8: 209.6601771 | AI8: 218.5051005 | AJ8: 244.7388663 | AK8: 239.1324353 | AL8: 248.544319 | AM8: 246.5478963 | AN8: 252.6863563 | AO8: 253.5329996 | AP8: 254.0336641 | AQ8: 254.0474039 | AR8: 255.8470835 | AS8: 258.3041751 | AT8: 260.3861196 | AU8: 262.5546072 | AV8: 263.8816477 | AW8: 264.0006263 | AX8: 264.6166462 | AY8: 265.1241127 | AZ8: 266.9035146 | BA8: 269.4010979 | BB8: 271.9940623 | BC8: 273.005146 | BD8: 274.9345023 | BE8: 276.3131242 | BF8: 277.560931 | BG8: 279.6863806 | BH8: 282.1173715 | BI8: 283.7450544 | BJ8: 285.0862968 | BK8: 287.2450979 | BL8: 289.4420596 | BM8: 10017.88487 | BN8: 0.1141142617
A9: 6 | B9: Colorado | C9: CO | D9: 28.60501643 | E9: 26.54013338 | F9: 22.99286906 | G9: 22.4654446 | H9: 22.15316742 | I9: 23.4858924 | J9: 29.40091875 | K9: 34.84677978 | L9: 38.88129652 | M9: 46.10779607 | N9: 50.4049576 | O9: 46.43922883 | P9: 40.71239897 | Q9: 33.92497726 | R9: 34.3058356 | S9: 37.65469707 | T9: 43.81681405 | U9: 48.3004842 | V9: 43.62613066 | W9: 27.12675364 | X9: 16.69843533 | Y9: 17.90453636 | Z9: 17.54954703 | AA9: 49.73207771 | AB9: 49.72489875 | AC9: 57.35884073 | AD9: 66.26070714 | AE9: 67.88254946 | AF9: 71.80526428 | AG9: 75.30183106 | AH9: 74.13588444 | AI9: 76.03074906 | AJ9: 80.38592675 | AK9: 80.57163258 | AL9: 82.64922237 | AM9: 83.37347463 | AN9: 85.10941528 | AO9: 85.76945775 | AP9: 86.14245427 | AQ9: 86.31714449 | AR9: 86.68880971 | AS9: 87.18592198 | AT9: 87.50517871 | AU9: 87.82141326 | AV9: 88.00261691 | AW9: 87.92904827 | AX9: 87.98304903 | AY9: 87.90770323 | AZ9: 88.22955879 | BA9: 88.8446051 | BB9: 89.5451065 | BC9: 89.92858811 | BD9: 90.46353126 | BE9: 90.89816752 | BF9: 91.33640776 | BG9: 91.90274166 | BH9: 92.55245517 | BI9: 93.09566733 | BJ9: 93.62411932 | BK9: 94.28554947 | BL9: 95.01018426 | BM9: 3184.746038 | BN9: 0.03627761226
A10: 7 | B10: Connecticut | C10: CT | D10: 16.90719121 | E10: 15.68672792 | F10: 13.93043979 | G10: 12.80983347 | H10: 10.89058903 | I10: 12.97304981 | J10: 16.32757154 | K10: 16.51036839 | L10: 16.83966764 | M10: 19.13971337 | N10: 25.13750873 | O10: 25.14083961 | P10: 18.57931716 | Q10: 20.23743429 | R10: 19.58222619 | S10: 17.18821792 | T10: 22.29303223 | U10: 22.67329293 | V10: 15.98394906 | W10: 12.54064025 | X10: 8.683676902 | Y10: 9.788646445 | Z10: 10.927659 | AA10: 16.38321392 | AB10: 16.38522692 | AC10: 16.14467313 | AD10: 19.45159458 | AE10: 19.49314834 | AF10: 20.37517455 | AG10: 20.57087859 | AH10: 16.4593997 | AI10: 18.78950318 | AJ10: 20.64024582 | AK10: 20.7527483 | AL10: 20.94681024 | AM10: 21.04056338 | AN10: 21.40442161 | AO10: 21.55253964 | AP10: 21.5379433 | AQ10: 21.55455335 | AR10: 21.65663029 | AS10: 21.793193 | AT10: 21.92060378 | AU10: 22.03748727 | AV10: 22.06868187 | AW10: 22.02518271 | AX10: 22.00756194 | AY10: 22.07113191 | AZ10: 22.14891818 | BA10: 22.29527817 | BB10: 22.47942858 | BC10: 22.49085617 | BD10: 22.56510424 | BE10: 22.6588444 | BF10: 22.75153897 | BG10: 22.93872295 | BH10: 23.14755008 | BI10: 23.24166137 | BJ10: 23.34632088 | BK10: 23.49514726 | BL10: 23.64320323 | BM10: 826.9819912 | BN10: 0.009420196043
A11: 8 | B11: Delaware | C11: DE | D11: 6.391697113 | E11: 5.930305768 | F11: 4.678418573 | G11: 3.778927993 | H11: 3.641291435 | I11: 4.183377436 | J11: 4.839540044 | K11: 4.619399142 | L11: 5.140995466 | M11: 5.333818225 | N11: 6.019077439 | O11: 7.800653618 | P11: 7.658515824 | Q11: 6.598371851 | R11: 4.97480532 | S11: 4.690724406 | T11: 6.81026737 | U11: 4.507970906 | V11: 3.234661594 | W11: 2.92750982 | X11: 1.770715296 | Y11: 1.980064768 | Z11: 2.016149236 | AA11: 5.170215825 | AB11: 5.274396986 | AC11: 5.586983169 | AD11: 6.12488435 | AE11: 6.697587656 | AF11: 7.001744882 | AG11: 7.212023974 | AH11: 6.100697645 | AI11: 6.419226781 | AJ11: 7.473914113 | AK11: 7.518364124 | AL11: 7.785542637 | AM11: 7.788370724 | AN11: 7.994781318 | AO11: 8.069659137 | AP11: 8.092762938 | AQ11: 8.106169237 | AR11: 8.176976988 | AS11: 8.279045998 | AT11: 8.365056622 | AU11: 8.448398622 | AV11: 8.492305486 | AW11: 8.472888497 | AX11: 8.473201632 | AY11: 8.491968381 | AZ11: 8.551787923 | BA11: 8.635552845 | BB11: 8.751052791 | BC11: 8.782292136 | BD11: 8.837959881 | BE11: 8.885764321 | BF11: 8.929502218 | BG11: 9.015117238 | BH11: 9.125668285 | BI11: 9.199003026 | BJ11: 9.26147036 | BK11: 9.35543283 | BL11: 9.462288671 | BM11: 306.4062742 | BN11: 0.003490290239
A12: 9 | B12: District of Columbia | C12: DC | D12: 6.880155984 | E12: 6.383504724 | F12: 6.029288234 | G12: 8.164980225 | H12: 8.999529124 | I12: 6.630204212 | J12: 7.615723174 | K12: 8.990489606 | L12: 7.936219342 | M12: 8.037694448 | N12: 13.13281289 | O12: 16.17325748 | P12: 14.05485205 | Q12: 14.42824096 | R12: 11.13391206 | S12: 10.70102695 | T12: 8.519817894 | U12: 9.699171291 | V12: 9.702530364 | W12: 7.636260975 | X12: 5.146943084 | Y12: 4.186663852 | Z12: 4.262961123 | AA12: 3.755120818 | AB12: 3.830787456 | AC12: 4.057818382 | AD12: 4.448495288 | AE12: 4.864448931 | AF12: 5.085357916 | AG12: 5.238083338 | AH12: 4.430928516 | AI12: 4.662275801 | AJ12: 5.428293795 | AK12: 5.460577779 | AL12: 5.654629174 | AM12: 5.65668321 | AN12: 5.806598948 | AO12: 5.860982607 | AP12: 5.877762866 | AQ12: 5.887499844 | AR12: 5.938927418 | AS12: 6.013060003 | AT12: 6.075529404 | AU12: 6.136060587 | AV12: 6.167950084 | AW12: 6.15384755 | AX12: 6.15407498 | AY12: 6.167705244 | AZ12: 6.211152098 | BA12: 6.271990448 | BB12: 6.355877904 | BC12: 6.378566999 | BD12: 6.418998407 | BE12: 6.453718708 | BF12: 6.485485483 | BG12: 6.547667558 | BH12: 6.627960635 | BI12: 6.681223559 | BJ12: 6.7265935 | BK12: 6.794838315 | BL12: 6.872447569 | BM12: 228.0896461 | BN12: 0.002598181344
A13: 10 | B13: Florida | C13: FL | D13: 117.9925904 | E13: 109.4751718 | F13: 91.79645814 | G13: 86.99025096 | H13: 102.809146 | I13: 122.8096103 | J13: 121.9027461 | K13: 131.4353391 | L13: 174.8209948 | M13: 209.1312469 | N13: 215.1335213 | O13: 203.3348306 | P13: 179.3330077 | Q13: 163.4385548 | R13: 161.6558614 | S13: 178.4179261 | T13: 182.6753487 | U13: 191.5445613 | V13: 181.4339343 | W13: 113.7358627 | X13: 64.23110189 | Y13: 75.45619892 | Z13: 76.83130384 | AA13: 113.8600177 | AB13: 116.1543259 | AC13: 123.0381911 | AD13: 134.8840095 | AE13: 147.4962506 | AF13: 154.1944907 | AG13: 158.8253189 | AH13: 134.3513628 | AI13: 141.3661053 | AJ13: 164.5927408 | AK13: 165.5716321 | AL13: 171.4555161 | AM13: 171.517797 | AN13: 176.063432 | AO13: 177.7124134 | AP13: 178.2212121 | AQ13: 178.5164496 | AR13: 180.0757988 | AS13: 182.3235926 | AT13: 184.217744 | AU13: 186.0531261 | AV13: 187.020056 | AW13: 186.5924493 | AX13: 186.5993452 | AY13: 187.0126321 | AZ13: 188.3299957 | BA13: 190.1746915 | BB13: 192.7182654 | BC13: 193.4062275 | BD13: 194.632159 | BE13: 195.6849225 | BF13: 196.6481313 | BG13: 198.5335706 | BH13: 200.9681583 | BI13: 202.5831576 | BJ13: 203.9588317 | BK13: 206.0281009 | BL13: 208.3813117 | BM13: 6812.051036 | BN13: 0.07759643728
A14: 11 | B14: Georgia | C14: GA | D14: 51.40618037 | E14: 47.69537144 | F14: 42.29074835 | G14: 42.93912395 | H14: 47.36796921 | I14: 61.98608858 | J14: 70.50426317 | K14: 72.21368104 | L14: 97.34066893 | M14: 114.5032936 | N14: 117.8121836 | O14: 112.8799115 | P14: 91.82372003 | Q14: 81.61861551 | R14: 81.51021931 | S14: 93.80221517 | T14: 100.5933805 | U14: 101.5821296 | V14: 97.47745192 | W14: 65.71967896 | X14: 34.96141466 | Y14: 41.17615774 | Z14: 41.9265472 | AA14: 56.2340642 | AB14: 57.36719487 | AC14: 60.7670513 | AD14: 66.61755552 | AE14: 72.84658649 | AF14: 76.15476502 | AG14: 78.44187418 | AH14: 66.35448784 | AI14: 69.81898303 | AJ14: 81.29033301 | AK14: 81.77379538 | AL14: 84.67977342 | AM14: 84.71053321 | AN14: 86.9555665 | AO14: 87.76997816 | AP14: 88.0212676 | AQ14: 88.16708176 | AR14: 88.93722517 | AS14: 90.04738293 | AT14: 90.98288101 | AU14: 91.88935369 | AV14: 92.36690849 | AW14: 92.15571882 | AX14: 92.15912464 | AY14: 92.36324195 | AZ14: 93.01387165 | BA14: 93.92494426 | BB14: 95.18118415 | BC14: 95.52096017 | BD14: 96.12643268 | BE14: 96.64637963 | BF14: 97.12209666 | BG14: 98.05329193 | BH14: 99.25570492 | BI14: 100.0533332 | BJ14: 100.7327617 | BK14: 101.7547484 | BL14: 102.9169703 | BM14: 3372.278113 | BN14: 0.03841380014
A15: 12 | B15: Hawaii | C15: HI | D15: 12.53024222 | E15: 11.62573357 | F15: 10.79641012 | G15: 10.59240768 | H15: 8.946440673 | I15: 9.457653146 | J15: 9.093909699 | K15: 7.224317099 | L15: 8.222805807 | M15: 8.55580731 | N15: 6.100871251 | O15: 4.159739833 | P15: 4.726005909 | Q15: 3.652953281 | R15: 3.887374453 | S15: 4.332280298 | T15: 5.839594179 | U15: 7.165077664 | V15: 5.837287956 | W15: 5.429165245 | X15: 4.398598479 | Y15: 3.086581779 | Z15: 3.423216541 | AA15: 6.897450623 | AB15: 7.117421052 | AC15: 8.240273439 | AD15: 9.417894113 | AE15: 9.353312539 | AF15: 9.821804408 | AG15: 10.16422936 | AH15: 7.470612991 | AI15: 7.785775368 | AJ15: 8.720537107 | AK15: 8.520768717 | AL15: 8.856133026 | AM15: 8.784996479 | AN15: 9.003722131 | AO15: 9.033889733 | AP15: 9.051729414 | AQ15: 9.05221899 | AR15: 9.116345186 | AS15: 9.203896294 | AT15: 9.278080154 | AU15: 9.35534772 | AV15: 9.402632836 | AW15: 9.406872282 | AX15: 9.42882231 | AY15: 9.446904361 | AZ15: 9.510308021 | BA15: 9.599301929 | BB15: 9.691694457 | BC15: 9.727721398 | BD15: 9.796468236 | BE15: 9.845591302 | BF15: 9.89005316 | BG15: 9.965787198 | BH15: 10.05240828 | BI15: 10.11040589 | BJ15: 10.15819705 | BK15: 10.23511947 | BL15: 10.31340162 | BM15: 357.337927 | BN15: 0.004070455417
A16: 13 | B16: Idaho | C16: ID | D16: 4.772914922 | E16: 4.428377064 | F16: 4.311576855 | G16: 5.879121623 | H16: 7.536943506 | I16: 7.890792098 | J16: 7.991412892 | K16: 8.193700838 | L16: 8.667963253 | M16: 10.1409232 | N16: 12.01854526 | O16: 11.45969949 | P16: 9.124165844 | Q16: 8.212291996 | R16: 9.337157438 | S16: 9.612747074 | T16: 11.28753375 | U16: 13.09860156 | V16: 10.96452577 | W16: 7.93412156 | X16: 3.890919875 | Y16: 4.703823481 | Z16: 4.6105618 | AA16: 15.31725542 | AB16: 15.31504434 | AC16: 17.666264 | AD16: 20.40799867 | AE16: 20.90751879 | AF16: 22.11569724 | AG16: 23.19262403 | AH16: 22.83351773 | AI16: 23.41712748 | AJ16: 24.75850255 | AK16: 24.8156991 | AL16: 25.45558738 | AM16: 25.67865381 | AN16: 26.21331569 | AO16: 26.41660579 | AP16: 26.53148704 | AQ16: 26.58529083 | AR16: 26.69976204 | AS16: 26.85287038 | AT16: 26.95120001 | AU16: 27.04859882 | AV16: 27.10440873 | AW16: 27.08174992 | AX16: 27.09838191 | AY16: 27.07517575 | AZ16: 27.17430581 | BA16: 27.36373729 | BB16: 27.57948856 | BC16: 27.69759917 | BD16: 27.86235924 | BE16: 27.99622525 | BF16: 28.13120126 | BG16: 28.30562955 | BH16: 28.50573837 | BI16: 28.67304527 | BJ16: 28.83580609 | BK16: 29.03952359 | BL16: 29.26270784 | BM16: 979.28209 | BN16: 0.0111550546
A17: 14 | B17: Illinois | C17: IL | D17: 67.02802035 | E17: 62.18953256 | F17: 54.17637542 | G17: 55.21249322 | H17: 56.4537784 | I17: 57.13715625 | J17: 62.1960202 | K17: 67.00124809 | L17: 82.7690883 | M17: 92.91684788 | N17: 90.28956039 | O17: 90.56344262 | P17: 92.25268209 | Q17: 82.50095227 | R17: 76.02880412 | S17: 81.03495664 | T17: 79.97475219 | U17: 90.54978976 | V17: 82.99215374 | W17: 47.17798214 | X17: 27.52443628 | Y17: 33.61746378 | Z17: 33.60951329 | AA17: 55.66392409 | AB17: 54.4683003 | AC17: 57.545885 | AD17: 64.95981175 | AE17: 66.6175707 | AF17: 69.64449121 | AG17: 71.73336597 | AH17: 60.79846833 | AI17: 65.63282653 | AJ17: 71.64998787 | AK17: 75.17741076 | AL17: 77.65326244 | AM17: 79.06090526 | AN17: 80.200846 | AO17: 80.58166277 | AP17: 80.53123042 | AQ17: 80.77637276 | AR17: 81.40652786 | AS17: 82.09453269 | AT17: 82.81230072 | AU17: 83.30805735 | AV17: 83.39943462 | AW17: 83.22296376 | AX17: 82.92803086 | AY17: 83.04410605 | AZ17: 83.24292408 | BA17: 83.81616578 | BB17: 84.64647243 | BC17: 85.00170272 | BD17: 85.24073349 | BE17: 85.6273632 | BF17: 86.1304012 | BG17: 87.05547427 | BH17: 88.12563155 | BI17: 88.67898516 | BJ17: 89.1409919 | BK17: 89.71108336 | BL17: 90.31450118 | BM17: 3048.871683 | BN17: 0.03472986023
A18: 15 | B18: Indiana | C18: IN | D18: 31.95486795 | E18: 29.64817237 | F18: 28.56125817 | G18: 32.37643658 | H18: 33.82505538 | I18: 36.0463164 | J18: 39.25810267 | K18: 44.81670957 | L18: 51.04634716 | M18: 53.70323757 | N18: 49.93679978 | O18: 48.52871204 | P18: 45.89194422 | Q18: 46.48714451 | R18: 50.1914828 | S18: 50.84245142 | T18: 55.09769332 | U18: 51.78353971 | V18: 52.02296856 | W18: 37.88691349 | X18: 24.15421876 | Y18: 22.6300707 | Z18: 22.62471872 | AA18: 29.23584099 | AB18: 28.60787472 | AC18: 30.22428568 | AD18: 34.11823293 | AE18: 34.98892211 | AF18: 36.5787232 | AG18: 37.6758433 | AH18: 31.93260953 | AI18: 34.47171417 | AJ18: 37.6320514 | AK18: 39.48472666 | AL18: 40.78509503 | AM18: 41.52441807 | AN18: 42.12313846 | AO18: 42.32315128 | AP18: 42.29666317 | AQ18: 42.42541698 | AR18: 42.75638744 | AS18: 43.11774177 | AT18: 43.49472834 | AU18: 43.75510994 | AV18: 43.80310317 | AW18: 43.71041704 | AX18: 43.55551219 | AY18: 43.61647728 | AZ18: 43.7209006 | BA18: 44.02197897 | BB18: 44.45807315 | BC18: 44.64464743 | BD18: 44.77019132 | BE18: 44.97325721 | BF18: 45.23746314 | BG18: 45.7233306 | BH18: 46.28539928 | BI18: 46.57603201 | BJ18: 46.81868748 | BK18: 47.11811126 | BL18: 47.43503875 | BM18: 1611.276085 | BN18: 0.01835413197
A19: 16 | B19: Iowa | C19: IA | D19: 11.49688946 | E19: 10.66697446 | F19: 8.746346817 | G19: 7.964067531 | H19: 9.392148089 | I19: 11.79845342 | J19: 11.99005899 | K19: 11.0167211 | L19: 12.48772742 | M19: 14.14691698 | N19: 14.97986502 | O19: 15.91201742 | P19: 16.93816878 | Q19: 17.41903898 | R19: 20.55624186 | S19: 22.06233178 | T19: 19.82332764 | U19: 20.70553343 | V19: 23.03938842 | W19: 16.09897385 | X19: 11.54217804 | Y19: 10.13859459 | Z19: 9.805222999 | AA19: 16.51288512 | AB19: 18.52485051 | AC19: 18.67251497 | AD19: 19.87979279 | AE19: 20.52361764 | AF19: 21.20649613 | AG19: 21.86344762 | AH19: 18.1220525 | AI19: 19.504519 | AJ19: 20.54287191 | AK19: 20.50279672 | AL19: 20.88823854 | AM19: 21.05345067 | AN19: 21.49324596 | AO19: 21.62377674 | AP19: 21.6691377 | AQ19: 21.7032617 | AR19: 21.80396106 | AS19: 21.94683908 | AT19: 22.01335242 | AU19: 22.0931247 | AV19: 22.13305004 | AW19: 22.08351875 | AX19: 22.10855251 | AY19: 22.09741757 | AZ19: 22.19601714 | BA19: 22.35287105 | BB19: 22.55861991 | BC19: 22.61954452 | BD19: 22.74839837 | BE19: 22.85631644 | BF19: 22.96319613 | BG19: 23.11830446 | BH19: 23.29588081 | BI19: 23.41993006 | BJ19: 23.55706122 | BK19: 23.73860725 | BL19: 23.94051474 | BM19: 839.8758521 | BN19: 0.0095670707
A20: 17 | B20: Kansas | C20: KS | D20: 12.06707535 | E20: 11.19600089 | F20: 9.754743411 | G20: 9.334794209 | H20: 10.21516525 | I20: 13.41585108 | J20: 14.57381476 | K20: 14.48729799 | L20: 18.18287779 | M20: 20.93505717 | N20: 20.96175098 | O20: 19.21136128 | P20: 17.6043588 | Q20: 16.619896 | R20: 14.02698544 | S20: 14.82538418 | T20: 15.74675329 | U20: 17.07252423 | V20: 17.32591465 | W20: 14.49987591 | X20: 12.04878353 | Y20: 8.525084665 | Z20: 8.244767604 | AA20: 15.23293372 | AB20: 17.08894708 | AC20: 17.22516573 | AD20: 18.3388647 | AE20: 18.93278521 | AF20: 19.56273223 | AG20: 20.16876191 | AH20: 16.71737087 | AI20: 17.99267923 | AJ20: 18.95054704 | AK20: 18.91357817 | AL20: 19.26914351 | AM20: 19.42154968 | AN20: 19.82725543 | AO20: 19.94766847 | AP20: 19.9895134 | AQ20: 20.02099237 | AR20: 20.11388629 | AS20: 20.24568951 | AT20: 20.30704725 | AU20: 20.3806362 | AV20: 20.41746683 | AW20: 20.37177482 | AX20: 20.39486816 | AY20: 20.38459632 | AZ20: 20.47555321 | BA20: 20.62024902 | BB20: 20.81004981 | BC20: 20.86625202 | BD20: 20.98511811 | BE20: 21.0846712 | BF20: 21.1832664 | BG20: 21.32635193 | BH20: 21.49016394 | BI20: 21.60459785 | BJ20: 21.73109966 | BK20: 21.89857364 | BL20: 22.08483082 | BM20: 773.147084 | BN20: 0.008806959738
A21: 18 | B21: Kentucky | C21: KY | D21: 25.74203442 | E21: 23.88381873 | F21: 20.25147567 | G21: 19.16656798 | H21: 19.35802133 | I21: 20.3377349 | J21: 21.79641104 | K21: 23.28364737 | L21: 28.36174892 | M21: 34.71241875 | N21: 37.72932623 | O21: 30.71869587 | P21: 24.57445571 | Q21: 25.87472948 | R21: 25.24091006 | S21: 27.15003376 | T21: 27.53019576 | U21: 30.16882206 | V21: 27.46266273 | W21: 19.55793905 | X21: 14.35610762 | Y21: 12.46359386 | Z21: 13.15093325 | AA21: 22.32312203 | AB21: 22.85852356 | AC21: 24.94823628 | AD21: 26.27260359 | AE21: 26.14613884 | AF21: 26.66631544 | AG21: 27.18018833 | AH21: 23.70189178 | AI21: 26.45519733 | AJ21: 28.86837779 | AK21: 29.79836157 | AL21: 30.1850342 | AM21: 30.02869237 | AN21: 30.06970818 | AO21: 30.05151598 | AP21: 30.14816678 | AQ21: 30.41052881 | AR21: 30.76477722 | AS21: 31.04402176 | AT21: 31.22334851 | AU21: 31.34567095 | AV21: 31.35926262 | AW21: 31.31668602 | AX21: 31.3337544 | AY21: 31.48037894 | AZ21: 31.67384022 | BA21: 31.91681 | BB21: 32.22218021 | BC21: 32.300232 | BD21: 32.38162397 | BE21: 32.50752856 | BF21: 32.69123889 | BG21: 33.01957391 | BH21: 33.38079607 | BI21: 33.55285753 | BJ21: 33.70711441 | BK21: 33.90092778 | BL21: 34.11303061 | BM21: 1168.962785 | BN21: 0.01331571753
A22: 19 | B22: Louisiana | C22: LA | D22: 21.0287208 | E22: 19.51074059 | F22: 16.49908838 | G22: 17.49500653 | H22: 22.47585349 | I22: 25.98882985 | J22: 28.27993282 | K22: 29.76876972 | L22: 29.34326563 | M22: 29.81602554 | N22: 30.19929804 | O22: 27.38658387 | P22: 23.65491854 | Q22: 26.02778219 | R22: 29.31482787 | S22: 24.78914006 | T22: 22.25540442 | U22: 26.94125357 | V22: 32.21695025 | W22: 26.76951909 | X22: 19.94780374 | Y22: 12.64519344 | Z22: 13.16579899 | AA22: 11.66962058 | AB22: 11.8595076 | AC22: 13.50554549 | AD22: 15.18807535 | AE22: 14.53560789 | AF22: 15.32905083 | AG22: 16.20407182 | AH22: 14.58476016 | AI22: 15.43451602 | AJ22: 16.41762807 | AK22: 16.81309076 | AL22: 17.24634718 | AM22: 17.59450087 | AN22: 17.982292 | AO22: 18.10936684 | AP22: 18.12869535 | AQ22: 18.14986473 | AR22: 18.24690532 | AS22: 18.40715737 | AT22: 18.46197334 | AU22: 18.5437588 | AV22: 18.60458994 | AW22: 18.55973946 | AX22: 18.59296016 | AY22: 18.57092588 | AZ22: 18.72116804 | BA22: 18.86212491 | BB22: 19.03187548 | BC22: 19.12174276 | BD22: 19.2277336 | BE22: 19.31390384 | BF22: 19.41834443 | BG22: 19.55595608 | BH22: 19.74214663 | BI22: 19.90422677 | BJ22: 20.05360574 | BK22: 20.23082663 | BL22: 20.44519892 | BM22: 696.1803981 | BN22: 0.007930228107
A23: 20 | B23: Maine | C23: ME | D23: 3.972893564 | E23: 3.686106084 | F23: 3.655134847 | G23: 4.168223909 | H23: 4.052954921 | I23: 4.465355997 | J23: 4.698984033 | K23: 4.537222791 | L23: 5.591517329 | M23: 6.996474074 | N23: 8.319854607 | O23: 8.433770947 | P23: 7.401804488 | Q23: 6.567602158 | R23: 6.552439235 | S23: 6.842455391 | T23: 6.753316143 | U23: 7.442477676 | V23: 8.181300349 | W23: 5.764109654 | X23: 2.9432332 | Y23: 3.702781588 | Z23: 4.133639393 | AA23: 6.137535717 | AB23: 6.138289833 | AC23: 6.04817275 | AD23: 7.287022991 | AE23: 7.302590002 | AF23: 7.633017683 | AG23: 7.706333001 | AH23: 6.166076695 | AI23: 7.038988042 | AJ23: 7.73231959 | AK23: 7.774465653 | AL23: 7.847165802 | AM23: 7.882287926 | AN23: 8.018597742 | AO23: 8.074086224 | AP23: 8.068618095 | AQ23: 8.07484061 | AR23: 8.113081021 | AS23: 8.164240611 | AT23: 8.211971673 | AU23: 8.255758968 | AV23: 8.267445197 | AW23: 8.25114939 | AX23: 8.244548239 | AY23: 8.26836304 | AZ23: 8.297503598 | BA23: 8.352333478 | BB23: 8.421320536 | BC23: 8.425601579 | BD23: 8.453416645 | BE23: 8.488533903 | BF23: 8.523259461 | BG23: 8.593382964 | BH23: 8.671614498 | BI23: 8.706870794 | BJ23: 8.746078696 | BK23: 8.801832546 | BL23: 8.85729778 | BM23: 309.882434 | BN23: 0.00352988736
A24: 21 | B24: Maryland | C24: MD | D24: 35.45381226 | E24: 32.89454172 | F24: 26.46176142 | G24: 21.79267718 | H24: 23.80604251 | I24: 28.63690623 | J24: 31.05078651 | K24: 35.76093712 | L24: 39.39202762 | M24: 45.79551269 | N24: 47.82556806 | O24: 43.18432034 | P24: 43.83735856 | Q24: 40.91502965 | R24: 40.68951278 | S24: 43.98982956 | T24: 42.94477345 | U24: 42.99690144 | V24: 40.34019384 | W24: 34.14619614 | X24: 20.76677259 | Y24: 18.63670378 | Z24: 18.97633688 | AA24: 32.3026189 | AB24: 32.95352487 | AC24: 34.90650957 | AD24: 38.26722359 | AE24: 41.84537531 | AF24: 43.74569733 | AG24: 45.05948491 | AH24: 38.11610922 | AI24: 40.10622446 | AJ24: 46.69572944 | AK24: 46.97344547 | AL24: 48.64273085 | AM24: 48.66040024 | AN24: 49.95001812 | AO24: 50.41784185 | AP24: 50.56219042 | AQ24: 50.64595067 | AR24: 51.08834532 | AS24: 51.72605493 | AT24: 52.26343451 | AU24: 52.78414099 | AV24: 53.05846352 | AW24: 52.93714951 | AX24: 52.93910593 | AY24: 53.05635734 | AZ24: 53.43009955 | BA24: 53.95344837 | BB24: 54.67507216 | BC24: 54.87025022 | BD24: 55.21805271 | BE24: 55.51672663 | BF24: 55.78999348 | BG24: 56.32490139 | BH24: 57.01560532 | BI24: 57.47378816 | BJ24: 57.86407331 | BK24: 58.45113466 | BL24: 59.11875157 | BM24: 1927.019065 | BN24: 0.02195077712
A25: 22 | B25: Massachusetts | C25: MA | D25: 20.0746667 | E25: 18.62555588 | F25: 18.04544107 | G25: 21.1758159 | H25: 23.89236589 | I25: 27.1609135 | J25: 28.8087789 | K25: 32.03379796 | L25: 39.66480244 | M25: 44.29895193 | N25: 49.88692442 | O25: 55.34125697 | P25: 44.24053418 | Q25: 36.83985219 | R25: 34.73740974 | S25: 33.8268723 | T25: 29.59016779 | U25: 26.95535254 | V25: 27.54069271 | W25: 20.34020475 | X25: 17.54076635 | Y25: 14.52874451 | Z25: 16.21931762 | AA25: 31.65126973 | AB25: 31.6551587 | AC25: 31.19042494 | AD25: 37.57917523 | AE25: 37.65945431 | AF25: 39.36346975 | AG25: 39.74155682 | AH25: 31.79845554 | AI25: 36.30005908 | AJ25: 39.87556966 | AK25: 40.09291689 | AL25: 40.46783153 | AM25: 40.64895631 | AN25: 41.35190599 | AO25: 41.63806007 | AP25: 41.60986093 | AQ25: 41.64195044 | AR25: 41.83915623 | AS25: 42.10298622 | AT25: 42.34913529 | AU25: 42.57494636 | AV25: 42.63521224 | AW25: 42.55117476 | AX25: 42.51713263 | AY25: 42.63994555 | AZ25: 42.7902234 | BA25: 43.07298107 | BB25: 43.42874731 | BC25: 43.45082465 | BD25: 43.59426693 | BE25: 43.77536662 | BF25: 43.95444631 | BG25: 44.3160732 | BH25: 44.71951319 | BI25: 44.9013299 | BJ25: 45.10352504 | BK25: 45.39104763 | BL25: 45.67708182 | BM25: 1588.399254 | BN25: 0.01809354077
A26: 23 | B26: Michigan | C26: MI | D26: 43.35773467 | E26: 40.22791122 | F26: 34.88421031 | G26: 33.38337307 | H26: 35.70016399 | I26: 42.19471366 | J26: 44.57391799 | K26: 45.47311705 | L26: 49.80956803 | M26: 60.28962121 | N26: 69.2650014 | O26: 62.78664893 | P26: 51.9560791 | Q26: 43.40425533 | R26: 42.81122985 | S26: 42.54801817 | T26: 45.34929158 | U26: 45.77581876 | V26: 34.58972543 | W26: 25.00328609 | X26: 16.96816708 | Y26: 17.17507452 | Z26: 17.17101264 | AA26: 43.67069775 | AB26: 42.73268043 | AC26: 45.14717552 | AD26: 50.96371396 | AE26: 52.26429582 | AF26: 54.63904272 | AG26: 56.27785313 | AH26: 47.69896442 | AI26: 51.49172246 | AJ26: 56.21243948 | AK26: 58.97985162 | AL26: 60.92226176 | AM26: 62.02661696 | AN26: 62.92094858 | AO26: 63.21971541 | AP26: 63.18014911 | AQ26: 63.37247361 | AR26: 63.86685689 | AS26: 64.40662572 | AT26: 64.96974503 | AU26: 65.35868702 | AV26: 65.43037635 | AW26: 65.29192751 | AX26: 65.0605402 | AY26: 65.15160609 | AZ26: 65.30758722 | BA26: 65.75731954 | BB26: 66.40873014 | BC26: 66.6874233 | BD26: 66.87495303 | BE26: 67.17828035 | BF26: 67.57293489 | BG26: 68.29869376 | BH26: 69.13827732 | BI26: 69.57240657 | BJ26: 69.93487036 | BK26: 70.38213117 | BL26: 70.85553792 | BM26: 2373.5722 | BN26: 0.02703748774
A27: 24 | B27: Minnesota | C27: MN | D27: 29.39911959 | E27: 27.27691338 | F27: 23.51339549 | G27: 22.61105338 | H27: 25.28578542 | I27: 29.89139583 | J27: 28.11228728 | K27: 28.70217892 | L27: 41.11909647 | M27: 49.42542734 | N27: 47.33075772 | O27: 44.41474046 | P27: 38.71889467 | Q27: 30.0338915 | R27: 28.33203801 | S27: 26.79509982 | T27: 28.82183868 | U27: 35.3032463 | V27: 28.59786595 | W27: 18.30835188 | X27: 12.88024111 | Y27: 13.77367782 | Z27: 13.32077946 | AA27: 29.35757205 | AB27: 32.93456167 | AC27: 33.19708818 | AD27: 35.34345724 | AE27: 36.48808666 | AF27: 37.70214796 | AG27: 38.8701147 | AH27: 32.21844385 | AI27: 34.67627356 | AJ27: 36.52231805 | AK27: 36.45107002 | AL27: 37.13633102 | AM27: 37.4300548 | AN27: 38.21194855 | AO27: 38.4440138 | AP27: 38.52465917 | AQ27: 38.58532682 | AR27: 38.76435601 | AS27: 39.0183729 | AT27: 39.13662421 | AU27: 39.27844803 | AV27: 39.34942963 | AW27: 39.26137001 | AX27: 39.3058765 | AY27: 39.28608014 | AZ27: 39.46137623 | BA27: 39.74024028 | BB27: 40.10603262 | BC27: 40.21434795 | BD27: 40.44343186 | BE27: 40.6352949 | BF27: 40.82531186 | BG27: 41.10107251 | BH27: 41.41677812 | BI27: 41.63732013 | BJ27: 41.88111992 | BK27: 42.20388306 | BL27: 42.56284598 | BM27: 1484.817538 | BN27: 0.0169136359
A28: 25 | B28: Mississippi | C28: MS | D28: 17.52334882 | E28: 16.25840755 | F28: 12.18354115 | G28: 11.47711776 | H28: 15.68743539 | I28: 17.28249288 | J28: 22.77905146 | K28: 27.84381268 | L28: 25.72648453 | M28: 22.90862309 | N28: 19.17704209 | O28: 18.18704576 | P28: 18.1219879 | Q28: 16.08914609 | R28: 17.71803959 | S28: 19.78876384 | T28: 19.33617997 | U28: 17.78337634 | V28: 18.78470026 | W28: 15.59632913 | X28: 12.16368217 | Y28: 8.757095001 | Z28: 9.24002925 | AA28: 14.92002592 | AB28: 15.27787034 | AC28: 16.67456422 | AD28: 17.5597269 | AE28: 17.4752021 | AF28: 17.82287069 | AG28: 18.1663261 | AH28: 15.84154937 | AI28: 17.68176643 | AJ28: 19.29465529 | AK28: 19.91622526 | AL28: 20.17466427 | AM28: 20.07017064 | AN28: 20.09758423 | AO28: 20.08542517 | AP28: 20.15002333 | AQ28: 20.32537731 | AR28: 20.56214506 | AS28: 20.74878274 | AT28: 20.86863873 | AU28: 20.95039494 | AV28: 20.95947916 | AW28: 20.93102239 | AX28: 20.94243032 | AY28: 21.04042924 | AZ28: 21.16973227 | BA28: 21.33212512 | BB28: 21.53622433 | BC28: 21.58839153 | BD28: 21.64279119 | BE28: 21.72694159 | BF28: 21.84972741 | BG28: 22.06917553 | BH28: 22.3106043 | BI28: 22.42560441 | BJ28: 22.52870454 | BK28: 22.65824289 | BL28: 22.80000531 | BM28: 782.1727448 | BN28: 0.008909771523
A29: 26 | B29: Missouri | C29: MO | D29: 22.88286006 | E29: 21.23103686 | F29: 18.40649676 | G29: 20.58797582 | H29: 24.95049268 | I29: 29.184894 | J29: 31.83779321 | K29: 28.25069409 | L29: 30.97617457 | M29: 36.34730679 | N29: 38.89967117 | O29: 35.39469316 | P29: 33.29934703 | Q29: 31.35376985 | R29: 32.42732609 | S29: 32.93630226 | T29: 34.75936312 | U29: 32.43189674 | V29: 30.50329474 | W29: 22.77892198 | X29: 16.61077574 | Y29: 15.23792107 | Z29: 14.73687628 | AA29: 32.05346969 | AB29: 35.95893327 | AC29: 36.24556751 | AD29: 38.58903705 | AE29: 39.83877747 | AF29: 41.16432567 | AG29: 42.43954648 | AH29: 35.17705454 | AI29: 37.86058607 | AJ29: 39.87615231 | AK29: 39.7983616 | AL29: 40.54654992 | AM29: 40.86724627 | AN29: 41.72094111 | AO29: 41.97431685 | AP29: 42.06236786 | AQ29: 42.1286066 | AR29: 42.32407599 | AS29: 42.60141919 | AT29: 42.73052948 | AU29: 42.88537694 | AV29: 42.96287676 | AW29: 42.86673065 | AX29: 42.91532415 | AY29: 42.89370991 | AZ29: 43.08510338 | BA29: 43.38957544 | BB29: 43.78895839 | BC29: 43.90722029 | BD29: 44.15734091 | BE29: 44.36682268 | BF29: 44.57428884 | BG29: 44.87537251 | BH29: 45.22006929 | BI29: 45.4608636 | BJ29: 45.72705146 | BK29: 46.07945385 | BL29: 46.47138024 | BM29: 1621.560182 | BN29: 0.01847127866
A30: 27 | B30: Montana | C30: MT | D30: 3.149860275 | E30: 2.922484315 | F30: 2.413160051 | G30: 2.000548366 | H30: 2.409941477 | I30: 3.186964624 | J30: 3.088107539 | K30: 3.603678031 | L30: 4.234104609 | M30: 4.507104164 | N30: 4.47591477 | O30: 4.503061072 | P30: 3.585331197 | Q30: 3.217283457 | R30: 3.320038484 | S30: 2.95171386 | T30: 3.596732584 | U30: 3.727382094 | V30: 3.047445769 | W30: 2.881992505 | X30: 1.721227398 | Y30: 1.493114457 | Z30: 1.463510802 | AA30: 9.275751236 | AB30: 9.274412256 | AC30: 10.69825276 | AD30: 12.3585795 | AE30: 12.66107653 | AF30: 13.39271954 | AG30: 14.04487978 | AH30: 13.82741388 | AI30: 14.18083352 | AJ30: 14.9931371 | AK30: 15.02777392 | AL30: 15.41527444 | AM30: 15.55035796 | AN30: 15.87413598 | AO30: 15.99724344 | AP30: 16.06681268 | AQ30: 16.09939493 | AR30: 16.16871586 | AS30: 16.26143449 | AT30: 16.32098048 | AU30: 16.37996279 | AV30: 16.41375989 | AW30: 16.40003828 | AX30: 16.4101102 | AY30: 16.39605712 | AZ30: 16.45608783 | BA30: 16.57080286 | BB30: 16.7014565 | BC30: 16.77298136 | BD30: 16.87275599 | BE30: 16.95382193 | BF30: 17.03556007 | BG30: 17.14118953 | BH30: 17.26237048 | BI30: 17.3636874 | BJ30: 17.46225134 | BK30: 17.58561762 | BL30: 17.72077248 | BM30: 590.3450892 | BN30: 0.00672465245
A31: 28 | B31: Nebraska | C31: NE | D31: 6.454875884 | E31: 5.988923913 | F31: 5.624302566 | G31: 6.440419427 | H31: 7.829791108 | I31: 8.766718087 | J31: 8.276827248 | K31: 8.841060458 | L31: 9.762052879 | M31: 12.78236387 | N31: 15.57376087 | O31: 15.05027627 | P31: 15.80325087 | Q31: 14.23113031 | R31: 12.2087851 | S31: 12.19575102 | T31: 12.78528654 | U31: 15.09982595 | V31: 14.84433979 | W31: 10.89322821 | X31: 6.992414926 | Y31: 6.73781287 | Z31: 6.516263879 | AA31: 10.09389013 | AB31: 11.32375138 | AC31: 11.41401476 | AD31: 12.15199178 | AE31: 12.54554488 | AF31: 12.96297045 | AG31: 13.36454753 | AH31: 11.07753161 | AI31: 11.92259683 | AJ31: 12.55731451 | AK31: 12.5328176 | AL31: 12.768428 | AM31: 12.86941781 | AN31: 13.13825304 | AO31: 13.21804306 | AP31: 13.24577101 | AQ31: 13.26663011 | AR31: 13.32818497 | AS31: 13.41552252 | AT31: 13.45618037 | AU31: 13.50494306 | AV31: 13.52934836 | AW31: 13.49907119 | AX31: 13.51437367 | AY31: 13.50756717 | AZ31: 13.56783849 | BA31: 13.66371914 | BB31: 13.78948797 | BC31: 13.82672958 | BD31: 13.90549453 | BE31: 13.97146199 | BF31: 14.03679472 | BG31: 14.13160834 | BH31: 14.24015607 | BI31: 14.3159841 | BJ31: 14.39980875 | BK31: 14.51078304 | BL31: 14.63420375 | BM31: 514.456853 | BN31: 0.005860205497
... 37 more rows

Sheet 6. Code Version Adoption_P (hidden)
A1: COMMERCIAL | DE1: OFFSET_CTR | DF1: 0 | DG1: =1+DF1 -> 1 | DH1: 2 | DI1: 3 | DJ1: 4 | DK1: 5 | DL1: 6 | DM1: 7 | DN1: 8 | DO1: 9 | DP1: 10 | DQ1: 11 | DR1: 12 | DS1: 13 | DT1: 14 | DU1: 15 | DV1: 16 | DW1: 17 | DX1: 18 | DY1: 19 | DZ1: 20 | EA1: 21 | EB1: 22 | EC1: 23 | ED1: 24 | EE1: 25 | EF1: 26 | EG1: 27 | EH1: 28 | EI1: 29 | EJ1: 30 | EK1: 31 | EL1: 32 | EM1: 33 | EN1: 34 | EO1: 35 | EP1: 36 | EQ1: 37 | ER1: 38 | ES1: 39 | ET1: 40 | EU1: 41 | EV1: 42 | EW1: 43 | EX1: 44 | EY1: 45 | EZ1: 46 | FA1: 47 | FB1: 48 | FD1: Finalized_Time_Step | HC1: Code Version_Time Step
A2: Code ID | B2: Code version | D2: AFTER | E2: No | F2: State | G2: State ID | H2: 1992 | I2: =1+H2 -> 1993 | J2: 1994 | K2: 1995 | L2: 1996 | M2: 1997 | N2: 1998 | O2: 1999 | P2: 2000 | Q2: 2001 | R2: 2002 | S2: 2003 | T2: 2004 | U2: 2005 | V2: 2006 | W2: 2007 | X2: 2008 | Y2: 2009 | Z2: 2010 | AA2: 2011 | AB2: 2012 | AC2: 2013 | AD2: 2014 | AE2: 2015 | AF2: =1+AE2 -> 2016 | AG2: 2017 | AH2: 2018 | AI2: 2019 | AJ2: 2020 | AK2: 2021 | AL2: 2022 | AM2: 2023 | AN2: 2024 | AO2: 2025 | AP2: 2026 | AQ2: 2027 | AR2: 2028 | AS2: 2029 | AT2: 2030 | AU2: 2031 | AV2: 2032 | AW2: 2033 | AX2: 2034 | AY2: 2035 | AZ2: 2036 | BA2: 2037 | BB2: 2038 | BC2: 2039 | BD2: 2040 | BF2: Initial Time Step -1 | BG2: 1992 | BH2: =1+BG2 -> 1993 | BI2: 1994 | BJ2: 1995 | BK2: 1996 | BL2: 1997 | BM2: 1998 | BN2: 1999 | BO2: 2000 | BP2: 2001 | BQ2: 2002 | BR2: 2003 | BS2: 2004 | BT2: 2005 | BU2: 2006 | BV2: 2007 | BW2: 2008 | BX2: 2009 | BY2: 2010 | BZ2: 2011 | CA2: 2012 | CB2: 2013 | CC2: 2014 | CD2: 2015 | CE2: 2016 | CF2: 2017 | CG2: 2018 | CH2: 2019 | CI2: 2020 | CJ2: 2021 | CK2: 2022 | CL2: 2023 | CM2: 2024 | CN2: 2025 | CO2: 2026 | CP2: 2027 | CQ2: 2028 | CR2: 2029 | CS2: 2030 | CT2: 2031 | CU2: 2032 | CV2: 2033 | CW2: 2034 | CX2: 2035 | CY2: 2036 | CZ2: 2037 | DA2: 2038 | DB2: 2039 | DC2: 2040 | DF2: 1992 | DG2: =1+DF2 -> 1993 | DH2: 1994 | DI2: 1995 | DJ2: 1996 | DK2: 1997 | DL2: 1998 | DM2: 1999 | DN2: 2000 | DO2: 2001 | DP2: 2002 | DQ2: 2003 | DR2: 2004 | DS2: 2005 | DT2: 2006 | DU2: 2007 | DV2: 2008 | DW2: 2009 | DX2: 2010 | DY2: 2011 | DZ2: 2012 | EA2: 2013 | EB2: 2014 | EC2: 2015 | ED2: 2016 | EE2: 2017 | EF2: 2018 | EG2: 2019 | EH2: 2020 | EI2: 2021 | EJ2: 2022 | EK2: 2023 | EL2: 2024 | EM2: 2025 | EN2: 2026 | EO2: 2027 | EP2: 2028 | EQ2: 2029 | ER2: 2030 | ES2: 2031 | ET2: 2032 | EU2: 2033 | EV2: 2034 | EW2: 2035 | EX2: 2036 | EY2: 2037 | EZ2: 2038 | FA2: 2039 | FB2: 2040 | FE2: 1992 | FF2: =1+FE2 -> 1993 | FG2: 1994 | FH2: 1995 | FI2: 1996 | FJ2: 1997 | FK2: 1998 | FL2: 1999 | FM2: 2000 | FN2: 2001 | FO2: 2002 | FP2: 2003 | FQ2: 2004 | FR2: 2005 | FS2: 2006 | FT2: 2007 | FU2: 2008 | FV2: 2009 | FW2: 2010 | FX2: 2011 | FY2: 2012 | FZ2: 2013 | GA2: 2014 | GB2: 2015 | GC2: 2016 | GD2: 2017 | GE2: 2018 | GF2: 2019 | GG2: 2020 | GH2: 2021 | GI2: 2022 | GJ2: 2023 | GK2: 2024 | GL2: 2025 | GM2: 2026 | GN2: 2027 | GO2: 2028 | GP2: 2029 | GQ2: 2030 | GR2: 2031 | GS2: 2032 | GT2: 2033 | GU2: 2034 | GV2: 2035 | GW2: 2036 | GX2: 2037 | GY2: 2038 | GZ2: 2039 | HA2: 2040 | HD2: =BG2 -> 1992 | HE2: 1993 | HF2: 1994 | HG2: 1995 | HH2: 1996 | HI2: 1997 | HJ2: 1998 | HK2: 1999 | HL2: 2000 | HM2: 2001 | HN2: 2002 | HO2: 2003 | HP2: 2004 | HQ2: 2005 | HR2: 2006 | HS2: 2007 | HT2: 2008 | HU2: 2009 | HV2: 2010 | HW2: 2011 | HX2: 2012 | HY2: 2013 | HZ2: 2014 | IA2: 2015 | IB2: 2016 | IC2: 2017 | ID2: 2018 | IE2: 2019 | IF2: 2020 | IG2: 2021 | IH2: 2022 | II2: 2023 | IJ2: =CM2 -> 2024 | IK2: 2025 | IL2: 2026 | IM2: 2027 | IN2: 2028 | IO2: 2029 | IP2: 2030 | IQ2: 2031 | IR2: 2032 | IS2: 2033 | IT2: 2034 | IU2: 2035 | IV2: 2036 | IW2: 2037 | IX2: 2038 | IY2: 2039 | IZ2: 2040
A3: 1 | B3: A90-1980 | E3: 1 | F3: Alabama | G3: AL | H3: =MATCH(H$2,'2. Time Lag - State Adoption_P'!$G5:$V5,1) -> 6 | I3: =MATCH(I$2,'2. Time Lag - State Adoption_P'!$G5:$V5,1) -> 6 | J3: =MATCH(J$2,'2. Time Lag - State Adoption_P'!$G5:$V5,1) -> 6 | K3: =MATCH(K$2,'2. Time Lag - State Adoption_P'!$G5:$V5,1) -> 6 | L3: =MATCH(L$2,'2. Time Lag - State Adoption_P'!$G5:$V5,1) -> 6 | M3: =MATCH(M$2,'2. Time Lag - State Adoption_P'!$G5:$V5,1) -> 6 | N3: =MATCH(N$2,'2. Time Lag - State Adoption_P'!$G5:$V5,1) -> 6 | O3: =MATCH(O$2,'2. Time Lag - State Adoption_P'!$G5:$V5,1) -> 6 | P3: =MATCH(P$2,'2. Time Lag - State Adoption_P'!$G5:$V5,1) -> 6 | Q3: =MATCH(Q$2,'2. Time Lag - State Adoption_P'!$G5:$V5,1) -> 6 | R3: =MATCH(R$2,'2. Time Lag - State Adoption_P'!$G5:$V5,1) -> 6 | S3: =MATCH(S$2,'2. Time Lag - State Adoption_P'!$G5:$V5,1) -> 6 | T3: =MATCH(T$2,'2. Time Lag - State Adoption_P'!$G5:$V5,1) -> 6 | U3: =MATCH(U$2,'2. Time Lag - State Adoption_P'!$G5:$V5,1) -> 6 | V3: =MATCH(V$2,'2. Time Lag - State Adoption_P'!$G5:$V5,1) -> 6 | W3: =MATCH(W$2,'2. Time Lag - State Adoption_P'!$G5:$V5,1) -> 6 | X3: =MATCH(X$2,'2. Time Lag - State Adoption_P'!$G5:$V5,1) -> 6 | Y3: =MATCH(Y$2,'2. Time Lag - State Adoption_P'!$G5:$V5,1) -> 6 | Z3: =MATCH(Z$2,'2. Time Lag - State Adoption_P'!$G5:$V5,1) -> 6 | AA3: =MATCH(AA$2,'2. Time Lag - State Adoption_P'!$G5:$V5,1) -> 6 | AB3: =MATCH(AB$2,'2. Time Lag - State Adoption_P'!$G5:$V5,1) -> 6 | AC3: =MATCH(AC$2,'2. Time Lag - State Adoption_P'!$G5:$V5,1) -> 6 | AD3: =MATCH(AD$2,'2. Time Lag - State Adoption_P'!$G5:$V5,1) -> 6 | AE3: =MATCH(AE$2,'2. Time Lag - State Adoption_P'!$G5:$V5,1) -> 6 | AF3: =MATCH(AF$2,'2. Time Lag - State Adoption_P'!$G5:$V5,1) -> 6 | AG3: =MATCH(AG$2,'2. Time Lag - State Adoption_P'!$G5:$V5,1) -> 6 | AH3: =MATCH(AH$2,'2. Time Lag - State Adoption_P'!$G5:$V5,1) -> 6 | AI3: =MATCH(AI$2,'2. Time Lag - State Adoption_P'!$G5:$V5,1) -> 6 | AJ3: =MATCH(AJ$2,'2. Time Lag - State Adoption_P'!$G5:$V5,1) -> 6 | AK3: =MATCH(AK$2,'2. Time Lag - State Adoption_P'!$G5:$V5,1) -> 6 | AL3: =MATCH(AL$2,'2. Time Lag - State Adoption_P'!$G5:$V5,1) -> 6 | AM3: =MATCH(AM$2,'2. Time Lag - State Adoption_P'!$G5:$V5,1) -> 6 | AN3: =MATCH(AN$2,'2. Time Lag - State Adoption_P'!$G5:$V5,1) -> 6 | AO3: =MATCH(AO$2,'2. Time Lag - State Adoption_P'!$G5:$V5,1) -> 6 | AP3: =MATCH(AP$2,'2. Time Lag - State Adoption_P'!$G5:$V5,1) -> 6 | AQ3: =MATCH(AQ$2,'2. Time Lag - State Adoption_P'!$G5:$V5,1) -> 6 | AR3: =MATCH(AR$2,'2. Time Lag - State Adoption_P'!$G5:$V5,1) -> 6 | AS3: =MATCH(AS$2,'2. Time Lag - State Adoption_P'!$G5:$V5,1) -> 6 | AT3: =MATCH(AT$2,'2. Time Lag - State Adoption_P'!$G5:$V5,1) -> 6 | AU3: =MATCH(AU$2,'2. Time Lag - State Adoption_P'!$G5:$V5,1) -> 6 | AV3: =MATCH(AV$2,'2. Time Lag - State Adoption_P'!$G5:$V5,1) -> 6 | AW3: =MATCH(AW$2,'2. Time Lag - State Adoption_P'!$G5:$V5,1) -> 6 | AX3: =MATCH(AX$2,'2. Time Lag - State Adoption_P'!$G5:$V5,1) -> 6 | AY3: =MATCH(AY$2,'2. Time Lag - State Adoption_P'!$G5:$V5,1) -> 6 | AZ3: =MATCH(AZ$2,'2. Time Lag - State Adoption_P'!$G5:$V5,1) -> 6 | BA3: =MATCH(BA$2,'2. Time Lag - State Adoption_P'!$G5:$V5,1) -> 6 | BB3: =MATCH(BB$2,'2. Time Lag - State Adoption_P'!$G5:$V5,1) -> 6 | BC3: =MATCH(BC$2,'2. Time Lag - State Adoption_P'!$G5:$V5,1) -> 6 | BD3: =MATCH(BD$2,'2. Time Lag - State Adoption_P'!$G5:$V5,1) -> 6 | BF3: =G3 -> AL | BG3: =INDEX('2. Time Lag - State Adoption_P'!$Y141:$AN141,MATCH(H3,'2. Time Lag - State Adoption_P'!$Y$137:$AN$137,0)) -> 0 | BH3: =INDEX('2. Time Lag - State Adoption_P'!$Y141:$AN141,MATCH(I3,'2. Time Lag - State Adoption_P'!$Y$137:$AN$137,0)) -> 0 | BI3: =INDEX('2. Time Lag - State Adoption_P'!$Y141:$AN141,MATCH(J3,'2. Time Lag - State Adoption_P'!$Y$137:$AN$137,0)) -> 0 | BJ3: =INDEX('2. Time Lag - State Adoption_P'!$Y141:$AN141,MATCH(K3,'2. Time Lag - State Adoption_P'!$Y$137:$AN$137,0)) -> 0 | BK3: =INDEX('2. Time Lag - State Adoption_P'!$Y141:$AN141,MATCH(L3,'2. Time Lag - State Adoption_P'!$Y$137:$AN$137,0)) -> 0 | BL3: =INDEX('2. Time Lag - State Adoption_P'!$Y141:$AN141,MATCH(M3,'2. Time Lag - State Adoption_P'!$Y$137:$AN$137,0)) -> 0 | BM3: =INDEX('2. Time Lag - State Adoption_P'!$Y141:$AN141,MATCH(N3,'2. Time Lag - State Adoption_P'!$Y$137:$AN$137,0)) -> 0 | BN3: =INDEX('2. Time Lag - State Adoption_P'!$Y141:$AN141,MATCH(O3,'2. Time Lag - State Adoption_P'!$Y$137:$AN$137,0)) -> 0 | BO3: =INDEX('2. Time Lag - State Adoption_P'!$Y141:$AN141,MATCH(P3,'2. Time Lag - State Adoption_P'!$Y$137:$AN$137,0)) -> 0 | BP3: =INDEX('2. Time Lag - State Adoption_P'!$Y141:$AN141,MATCH(Q3,'2. Time Lag - State Adoption_P'!$Y$137:$AN$137,0)) -> 0 | BQ3: =INDEX('2. Time Lag - State Adoption_P'!$Y141:$AN141,MATCH(R3,'2. Time Lag - State Adoption_P'!$Y$137:$AN$137,0)) -> 0 | BR3: =INDEX('2. Time Lag - State Adoption_P'!$Y141:$AN141,MATCH(S3,'2. Time Lag - State Adoption_P'!$Y$137:$AN$137,0)) -> 0 | BS3: =INDEX('2. Time Lag - State Adoption_P'!$Y141:$AN141,MATCH(T3,'2. Time Lag - State Adoption_P'!$Y$137:$AN$137,0)) -> 0 | BT3: =INDEX('2. Time Lag - State Adoption_P'!$Y141:$AN141,MATCH(U3,'2. Time Lag - State Adoption_P'!$Y$137:$AN$137,0)) -> 0 | BU3: =INDEX('2. Time Lag - State Adoption_P'!$Y141:$AN141,MATCH(V3,'2. Time Lag - State Adoption_P'!$Y$137:$AN$137,0)) -> 0 | BV3: =INDEX('2. Time Lag - State Adoption_P'!$Y141:$AN141,MATCH(W3,'2. Time Lag - State Adoption_P'!$Y$137:$AN$137,0)) -> 0 | BW3: =INDEX('2. Time Lag - State Adoption_P'!$Y141:$AN141,MATCH(X3,'2. Time Lag - State Adoption_P'!$Y$137:$AN$137,0)) -> 0 | BX3: =INDEX('2. Time Lag - State Adoption_P'!$Y141:$AN141,MATCH(Y3,'2. Time Lag - State Adoption_P'!$Y$137:$AN$137,0)) -> 0 | BY3: =INDEX('2. Time Lag - State Adoption_P'!$Y141:$AN141,MATCH(Z3,'2. Time Lag - State Adoption_P'!$Y$137:$AN$137,0)) -> 0 | BZ3: =INDEX('2. Time Lag - State Adoption_P'!$Y141:$AN141,MATCH(AA3,'2. Time Lag - State Adoption_P'!$Y$137:$AN$137,0)) -> 0 | CA3: =INDEX('2. Time Lag - State Adoption_P'!$Y141:$AN141,MATCH(AB3,'2. Time Lag - State Adoption_P'!$Y$137:$AN$137,0)) -> 0 | CB3: =INDEX('2. Time Lag - State Adoption_P'!$Y141:$AN141,MATCH(AC3,'2. Time Lag - State Adoption_P'!$Y$137:$AN$137,0)) -> 0 | CC3: =INDEX('2. Time Lag - State Adoption_P'!$Y141:$AN141,MATCH(AD3,'2. Time Lag - State Adoption_P'!$Y$137:$AN$137,0)) -> 0 | CD3: =INDEX('2. Time Lag - State Adoption_P'!$Y141:$AN141,MATCH(AE3,'2. Time Lag - State Adoption_P'!$Y$137:$AN$137,0)) -> 0 | CE3: =INDEX('2. Time Lag - State Adoption_P'!$Y141:$AN141,MATCH(AF3,'2. Time Lag - State Adoption_P'!$Y$137:$AN$137,0)) -> 0 | CF3: =INDEX('2. Time Lag - State Adoption_P'!$Y141:$AN141,MATCH(AG3,'2. Time Lag - State Adoption_P'!$Y$137:$AN$137,0)) -> 0 | CG3: =INDEX('2. Time Lag - State Adoption_P'!$Y141:$AN141,MATCH(AH3,'2. Time Lag - State Adoption_P'!$Y$137:$AN$137,0)) -> 0 | CH3: =INDEX('2. Time Lag - State Adoption_P'!$Y141:$AN141,MATCH(AI3,'2. Time Lag - State Adoption_P'!$Y$137:$AN$137,0)) -> 0 | CI3: =INDEX('2. Time Lag - State Adoption_P'!$Y141:$AN141,MATCH(AJ3,'2. Time Lag - State Adoption_P'!$Y$137:$AN$137,0)) -> 0 | CJ3: =INDEX('2. Time Lag - State Adoption_P'!$Y141:$AN141,MATCH(AK3,'2. Time Lag - State Adoption_P'!$Y$137:$AN$137,0)) -> 0 | CK3: =INDEX('2. Time Lag - State Adoption_P'!$Y141:$AN141,MATCH(AL3,'2. Time Lag - State Adoption_P'!$Y$137:$AN$137,0)) -> 0 | CL3: =INDEX('2. Time Lag - State Adoption_P'!$Y141:$AN141,MATCH(AM3,'2. Time Lag - State Adoption_P'!$Y$137:$AN$137,0)) -> 0 | CM3: =INDEX('2. Time Lag - State Adoption_P'!$Y141:$AN141,MATCH(AN3,'2. Time Lag - State Adoption_P'!$Y$137:$AN$137,0)) -> 0 | CN3: =INDEX('2. Time Lag - State Adoption_P'!$Y141:$AN141,MATCH(AO3,'2. Time Lag - State Adoption_P'!$Y$137:$AN$137,0)) -> 0 | CO3: =INDEX('2. Time Lag - State Adoption_P'!$Y141:$AN141,MATCH(AP3,'2. Time Lag - State Adoption_P'!$Y$137:$AN$137,0)) -> 0 | CP3: =INDEX('2. Time Lag - State Adoption_P'!$Y141:$AN141,MATCH(AQ3,'2. Time Lag - State Adoption_P'!$Y$137:$AN$137,0)) -> 0 | CQ3: =INDEX('2. Time Lag - State Adoption_P'!$Y141:$AN141,MATCH(AR3,'2. Time Lag - State Adoption_P'!$Y$137:$AN$137,0)) -> 0 | CR3: =INDEX('2. Time Lag - State Adoption_P'!$Y141:$AN141,MATCH(AS3,'2. Time Lag - State Adoption_P'!$Y$137:$AN$137,0)) -> 0 | CS3: =INDEX('2. Time Lag - State Adoption_P'!$Y141:$AN141,MATCH(AT3,'2. Time Lag - State Adoption_P'!$Y$137:$AN$137,0)) -> 0 | CT3: =INDEX('2. Time Lag - State Adoption_P'!$Y141:$AN141,MATCH(AU3,'2. Time Lag - State Adoption_P'!$Y$137:$AN$137,0)) -> 0 | CU3: =INDEX('2. Time Lag - State Adoption_P'!$Y141:$AN141,MATCH(AV3,'2. Time Lag - State Adoption_P'!$Y$137:$AN$137,0)) -> 0 | CV3: =INDEX('2. Time Lag - State Adoption_P'!$Y141:$AN141,MATCH(AW3,'2. Time Lag - State Adoption_P'!$Y$137:$AN$137,0)) -> 0 | CW3: =INDEX('2. Time Lag - State Adoption_P'!$Y141:$AN141,MATCH(AX3,'2. Time Lag - State Adoption_P'!$Y$137:$AN$137,0)) -> 0 | CX3: =INDEX('2. Time Lag - State Adoption_P'!$Y141:$AN141,MATCH(AY3,'2. Time Lag - State Adoption_P'!$Y$137:$AN$137,0)) -> 0 | CY3: =INDEX('2. Time Lag - State Adoption_P'!$Y141:$AN141,MATCH(AZ3,'2. Time Lag - State Adoption_P'!$Y$137:$AN$137,0)) -> 0 | CZ3: =INDEX('2. Time Lag - State Adoption_P'!$Y141:$AN141,MATCH(BA3,'2. Time Lag - State Adoption_P'!$Y$137:$AN$137,0)) -> 0 | DA3: =INDEX('2. Time Lag - State Adoption_P'!$Y141:$AN141,MATCH(BB3,'2. Time Lag - State Adoption_P'!$Y$137:$AN$137,0)) -> 0 | DB3: =INDEX('2. Time Lag - State Adoption_P'!$Y141:$AN141,MATCH(BC3,'2. Time Lag - State Adoption_P'!$Y$137:$AN$137,0)) -> 0 | DC3: =INDEX('2. Time Lag - State Adoption_P'!$Y141:$AN141,MATCH(BD3,'2. Time Lag - State Adoption_P'!$Y$137:$AN$137,0)) -> 0 | DE3: AL | DF3: =COUNTIF($H3:OFFSET($H3,0,DF$1),H3) -> 1 | DG3: =COUNTIF($H3:OFFSET($H3,0,DG$1),I3) -> 2 | DH3: =COUNTIF($H3:OFFSET($H3,0,DH$1),J3) -> 3 | DI3: =COUNTIF($H3:OFFSET($H3,0,DI$1),K3) -> 4 | DJ3: =COUNTIF($H3:OFFSET($H3,0,DJ$1),L3) -> 5 | DK3: =COUNTIF($H3:OFFSET($H3,0,DK$1),M3) -> 6 | DL3: =COUNTIF($H3:OFFSET($H3,0,DL$1),N3) -> 7 | DM3: =COUNTIF($H3:OFFSET($H3,0,DM$1),O3) -> 8 | DN3: =COUNTIF($H3:OFFSET($H3,0,DN$1),P3) -> 9 | DO3: =COUNTIF($H3:OFFSET($H3,0,DO$1),Q3) -> 10 | DP3: =COUNTIF($H3:OFFSET($H3,0,DP$1),R3) -> 11 | DQ3: =COUNTIF($H3:OFFSET($H3,0,DQ$1),S3) -> 12 | DR3: =COUNTIF($H3:OFFSET($H3,0,DR$1),T3) -> 13 | DS3: =COUNTIF($H3:OFFSET($H3,0,DS$1),U3) -> 14 | DT3: =COUNTIF($H3:OFFSET($H3,0,DT$1),V3) -> 15 | DU3: =COUNTIF($H3:OFFSET($H3,0,DU$1),W3) -> 16 | DV3: =COUNTIF($H3:OFFSET($H3,0,DV$1),X3) -> 17 | DW3: =COUNTIF($H3:OFFSET($H3,0,DW$1),Y3) -> 18 | DX3: =COUNTIF($H3:OFFSET($H3,0,DX$1),Z3) -> 19 | DY3: =COUNTIF($H3:OFFSET($H3,0,DY$1),AA3) -> 20 | DZ3: =COUNTIF($H3:OFFSET($H3,0,DZ$1),AB3) -> 21 | EA3: =COUNTIF($H3:OFFSET($H3,0,EA$1),AC3) -> 22 | EB3: =COUNTIF($H3:OFFSET($H3,0,EB$1),AD3) -> 23 | EC3: =COUNTIF($H3:OFFSET($H3,0,EC$1),AE3) -> 24 | ED3: =COUNTIF($H3:OFFSET($H3,0,ED$1),AF3) -> 25 | EE3: =COUNTIF($H3:OFFSET($H3,0,EE$1),AG3) -> 26 | EF3: =COUNTIF($H3:OFFSET($H3,0,EF$1),AH3) -> 27 | EG3: =COUNTIF($H3:OFFSET($H3,0,EG$1),AI3) -> 28 | EH3: =COUNTIF($H3:OFFSET($H3,0,EH$1),AJ3) -> 29 | EI3: =COUNTIF($H3:OFFSET($H3,0,EI$1),AK3) -> 30 | EJ3: =COUNTIF($H3:OFFSET($H3,0,EJ$1),AL3) -> 31 | EK3: =COUNTIF($H3:OFFSET($H3,0,EK$1),AM3) -> 32 | EL3: =COUNTIF($H3:OFFSET($H3,0,EL$1),AN3) -> 33 | EM3: =COUNTIF($H3:OFFSET($H3,0,EM$1),AO3) -> 34 | EN3: =COUNTIF($H3:OFFSET($H3,0,EN$1),AP3) -> 35 | EO3: =COUNTIF($H3:OFFSET($H3,0,EO$1),AQ3) -> 36 | EP3: =COUNTIF($H3:OFFSET($H3,0,EP$1),AR3) -> 37 | EQ3: =COUNTIF($H3:OFFSET($H3,0,EQ$1),AS3) -> 38 | ER3: =COUNTIF($H3:OFFSET($H3,0,ER$1),AT3) -> 39 | ES3: =COUNTIF($H3:OFFSET($H3,0,ES$1),AU3) -> 40 | ET3: =COUNTIF($H3:OFFSET($H3,0,ET$1),AV3) -> 41 | EU3: =COUNTIF($H3:OFFSET($H3,0,EU$1),AW3) -> 42 | EV3: =COUNTIF($H3:OFFSET($H3,0,EV$1),AX3) -> 43 | EW3: =COUNTIF($H3:OFFSET($H3,0,EW$1),AY3) -> 44 | EX3: =COUNTIF($H3:OFFSET($H3,0,EX$1),AZ3) -> 45 | EY3: =COUNTIF($H3:OFFSET($H3,0,EY$1),BA3) -> 46 | EZ3: =COUNTIF($H3:OFFSET($H3,0,EZ$1),BB3) -> 47 | FA3: =COUNTIF($H3:OFFSET($H3,0,FA$1),BC3) -> 48 | FB3: =COUNTIF($H3:OFFSET($H3,0,FB$1),BD3) -> 49 | FD3: AL | FE3: =DF3+BG3 -> 1 | FF3: =DG3+BH3 -> 2 | FG3: =DH3+BI3 -> 3 | FH3: =DI3+BJ3 -> 4 | FI3: =DJ3+BK3 -> 5 | FJ3: =DK3+BL3 -> 6 | FK3: =DL3+BM3 -> 7 | FL3: =DM3+BN3 -> 8 | FM3: =DN3+BO3 -> 9 | FN3: =DO3+BP3 -> 10 | FO3: =DP3+BQ3 -> 11 | FP3: =DQ3+BR3 -> 12 | FQ3: =DR3+BS3 -> 13 | FR3: =DS3+BT3 -> 14 | FS3: =DT3+BU3 -> 15 | FT3: =DU3+BV3 -> 16 | FU3: =DV3+BW3 -> 17 | FV3: =DW3+BX3 -> 18 | FW3: =DX3+BY3 -> 19 | FX3: =DY3+BZ3 -> 20 | FY3: =DZ3+CA3 -> 21 | FZ3: =EA3+CB3 -> 22 | GA3: =EB3+CC3 -> 23 | GB3: =EC3+CD3 -> 24 | GC3: =ED3+CE3 -> 25 | GD3: =EE3+CF3 -> 26 | GE3: =EF3+CG3 -> 27 | GF3: =EG3+CH3 -> 28 | GG3: =EH3+CI3 -> 29 | GH3: =EI3+CJ3 -> 30 | GI3: =EJ3+CK3 -> 31 | GJ3: =EK3+CL3 -> 32 | GK3: =EL3+CM3 -> 33 | GL3: =EM3+CN3 -> 34 | GM3: =EN3+CO3 -> 35 | GN3: =EO3+CP3 -> 36 | GO3: =EP3+CQ3 -> 37 | GP3: =EQ3+CR3 -> 38 | GQ3: =ER3+CS3 -> 39 | GR3: =ES3+CT3 -> 40 | GS3: =ET3+CU3 -> 41 | GT3: =EU3+CV3 -> 42 | GU3: =EV3+CW3 -> 43 | GV3: =EW3+CX3 -> 44 | GW3: =EX3+CY3 -> 45 | GX3: =EY3+CZ3 -> 46 | GY3: =EZ3+DA3 -> 47 | GZ3: =FA3+DB3 -> 48 | HA3: =FB3+DC3 -> 49 | HC3: =BF3 -> AL | HD3: =CONCATENATE(H3,FE3) -> 61 | HE3: =CONCATENATE(I3,FF3) -> 62 | HF3: =CONCATENATE(J3,FG3) -> 63 | HG3: =CONCATENATE(K3,FH3) -> 64 | HH3: =CONCATENATE(L3,FI3) -> 65 | HI3: =CONCATENATE(M3,FJ3) -> 66 | HJ3: =CONCATENATE(N3,FK3) -> 67 | HK3: =CONCATENATE(O3,FL3) -> 68 | HL3: =CONCATENATE(P3,FM3) -> 69 | HM3: =CONCATENATE(Q3,FN3) -> 610 | HN3: =CONCATENATE(R3,FO3) -> 611 | HO3: =CONCATENATE(S3,FP3) -> 612 | HP3: =CONCATENATE(T3,FQ3) -> 613 | HQ3: =CONCATENATE(U3,FR3) -> 614 | HR3: =CONCATENATE(V3,FS3) -> 615 | HS3: =CONCATENATE(W3,FT3) -> 616 | HT3: =CONCATENATE(X3,FU3) -> 617 | HU3: =CONCATENATE(Y3,FV3) -> 618 | HV3: =CONCATENATE(Z3,FW3) -> 619 | HW3: =CONCATENATE(AA3,FX3) -> 620 | HX3: =CONCATENATE(AB3,FY3) -> 621 | HY3: =CONCATENATE(AC3,FZ3) -> 622 | HZ3: =CONCATENATE(AD3,GA3) -> 623 | IA3: =CONCATENATE(AE3,GB3) -> 624 | IB3: =CONCATENATE(AF3,GC3) -> 625 | IC3: =CONCATENATE(AG3,GD3) -> 626 | ID3: =CONCATENATE(AH3,GE3) -> 627 | IE3: =CONCATENATE(AI3,GF3) -> 628 | IF3: =CONCATENATE(AJ3,GG3) -> 629 | IG3: =CONCATENATE(AK3,GH3) -> 630 | IH3: =CONCATENATE(AL3,GI3) -> 631 | II3: =CONCATENATE(AM3,GJ3) -> 632 | IJ3: =CONCATENATE(AN3,GK3) -> 633 | IK3: =CONCATENATE(AO3,GL3) -> 634 | IL3: =CONCATENATE(AP3,GM3) -> 635 | IM3: =CONCATENATE(AQ3,GN3) -> 636 | IN3: =CONCATENATE(AR3,GO3) -> 637 | IO3: =CONCATENATE(AS3,GP3) -> 638 | IP3: =CONCATENATE(AT3,GQ3) -> 639 | IQ3: =CONCATENATE(AU3,GR3) -> 640 | IR3: =CONCATENATE(AV3,GS3) -> 641 | IS3: =CONCATENATE(AW3,GT3) -> 642 | IT3: =CONCATENATE(AX3,GU3) -> 643 | IU3: =CONCATENATE(AY3,GV3) -> 644 | IV3: =CONCATENATE(AZ3,GW3) -> 645 | IW3: =CONCATENATE(BA3,GX3) -> 646 | IX3: =CONCATENATE(BB3,GY3) -> 647 | IY3: =CONCATENATE(BC3,GZ3) -> 648 | IZ3: =CONCATENATE(BD3,HA3) -> 649
A4: 2 | B4: 90.1-1989 | E4: =1+E3 -> 2 | F4: Alaska | G4: AK | H4: =MATCH(H$2,'2. Time Lag - State Adoption_P'!$G6:$V6,1) -> 6 | I4: =MATCH(I$2,'2. Time Lag - State Adoption_P'!$G6:$V6,1) -> 6 | J4: =MATCH(J$2,'2. Time Lag - State Adoption_P'!$G6:$V6,1) -> 6 | K4: =MATCH(K$2,'2. Time Lag - State Adoption_P'!$G6:$V6,1) -> 6 | L4: =MATCH(L$2,'2. Time Lag - State Adoption_P'!$G6:$V6,1) -> 6 | M4: =MATCH(M$2,'2. Time Lag - State Adoption_P'!$G6:$V6,1) -> 6 | N4: =MATCH(N$2,'2. Time Lag - State Adoption_P'!$G6:$V6,1) -> 6 | O4: =MATCH(O$2,'2. Time Lag - State Adoption_P'!$G6:$V6,1) -> 6 | P4: =MATCH(P$2,'2. Time Lag - State Adoption_P'!$G6:$V6,1) -> 6 | Q4: =MATCH(Q$2,'2. Time Lag - State Adoption_P'!$G6:$V6,1) -> 6 | R4: =MATCH(R$2,'2. Time Lag - State Adoption_P'!$G6:$V6,1) -> 6 | S4: =MATCH(S$2,'2. Time Lag - State Adoption_P'!$G6:$V6,1) -> 6 | T4: =MATCH(T$2,'2. Time Lag - State Adoption_P'!$G6:$V6,1) -> 6 | U4: =MATCH(U$2,'2. Time Lag - State Adoption_P'!$G6:$V6,1) -> 6 | V4: =MATCH(V$2,'2. Time Lag - State Adoption_P'!$G6:$V6,1) -> 6 | W4: =MATCH(W$2,'2. Time Lag - State Adoption_P'!$G6:$V6,1) -> 6 | X4: =MATCH(X$2,'2. Time Lag - State Adoption_P'!$G6:$V6,1) -> 6 | Y4: =MATCH(Y$2,'2. Time Lag - State Adoption_P'!$G6:$V6,1) -> 6 | Z4: =MATCH(Z$2,'2. Time Lag - State Adoption_P'!$G6:$V6,1) -> 6 | AA4: =MATCH(AA$2,'2. Time Lag - State Adoption_P'!$G6:$V6,1) -> 6 | AB4: =MATCH(AB$2,'2. Time Lag - State Adoption_P'!$G6:$V6,1) -> 6 | AC4: =MATCH(AC$2,'2. Time Lag - State Adoption_P'!$G6:$V6,1) -> 6 | AD4: =MATCH(AD$2,'2. Time Lag - State Adoption_P'!$G6:$V6,1) -> 6 | AE4: =MATCH(AE$2,'2. Time Lag - State Adoption_P'!$G6:$V6,1) -> 6 | AF4: =MATCH(AF$2,'2. Time Lag - State Adoption_P'!$G6:$V6,1) -> 6 | AG4: =MATCH(AG$2,'2. Time Lag - State Adoption_P'!$G6:$V6,1) -> 6 | AH4: =MATCH(AH$2,'2. Time Lag - State Adoption_P'!$G6:$V6,1) -> 6 | AI4: =MATCH(AI$2,'2. Time Lag - State Adoption_P'!$G6:$V6,1) -> 6 | AJ4: =MATCH(AJ$2,'2. Time Lag - State Adoption_P'!$G6:$V6,1) -> 6 | AK4: =MATCH(AK$2,'2. Time Lag - State Adoption_P'!$G6:$V6,1) -> 6 | AL4: =MATCH(AL$2,'2. Time Lag - State Adoption_P'!$G6:$V6,1) -> 6 | AM4: =MATCH(AM$2,'2. Time Lag - State Adoption_P'!$G6:$V6,1) -> 6 | AN4: =MATCH(AN$2,'2. Time Lag - State Adoption_P'!$G6:$V6,1) -> 6 | AO4: =MATCH(AO$2,'2. Time Lag - State Adoption_P'!$G6:$V6,1) -> 6 | AP4: =MATCH(AP$2,'2. Time Lag - State Adoption_P'!$G6:$V6,1) -> 6 | AQ4: =MATCH(AQ$2,'2. Time Lag - State Adoption_P'!$G6:$V6,1) -> 6 | AR4: =MATCH(AR$2,'2. Time Lag - State Adoption_P'!$G6:$V6,1) -> 6 | AS4: =MATCH(AS$2,'2. Time Lag - State Adoption_P'!$G6:$V6,1) -> 6 | AT4: =MATCH(AT$2,'2. Time Lag - State Adoption_P'!$G6:$V6,1) -> 6 | AU4: =MATCH(AU$2,'2. Time Lag - State Adoption_P'!$G6:$V6,1) -> 6 | AV4: =MATCH(AV$2,'2. Time Lag - State Adoption_P'!$G6:$V6,1) -> 6 | AW4: =MATCH(AW$2,'2. Time Lag - State Adoption_P'!$G6:$V6,1) -> 6 | AX4: =MATCH(AX$2,'2. Time Lag - State Adoption_P'!$G6:$V6,1) -> 6 | AY4: =MATCH(AY$2,'2. Time Lag - State Adoption_P'!$G6:$V6,1) -> 6 | AZ4: =MATCH(AZ$2,'2. Time Lag - State Adoption_P'!$G6:$V6,1) -> 6 | BA4: =MATCH(BA$2,'2. Time Lag - State Adoption_P'!$G6:$V6,1) -> 6 | BB4: =MATCH(BB$2,'2. Time Lag - State Adoption_P'!$G6:$V6,1) -> 6 | BC4: =MATCH(BC$2,'2. Time Lag - State Adoption_P'!$G6:$V6,1) -> 6 | BD4: =MATCH(BD$2,'2. Time Lag - State Adoption_P'!$G6:$V6,1) -> 6 | BF4: AK | BG4: =INDEX('2. Time Lag - State Adoption_P'!$Y142:$AN142,MATCH(H4,'2. Time Lag - State Adoption_P'!$Y$137:$AN$137,0)) -> 0 | BH4: =INDEX('2. Time Lag - State Adoption_P'!$Y142:$AN142,MATCH(I4,'2. Time Lag - State Adoption_P'!$Y$137:$AN$137,0)) -> 0 | BI4: =INDEX('2. Time Lag - State Adoption_P'!$Y142:$AN142,MATCH(J4,'2. Time Lag - State Adoption_P'!$Y$137:$AN$137,0)) -> 0 | BJ4: =INDEX('2. Time Lag - State Adoption_P'!$Y142:$AN142,MATCH(K4,'2. Time Lag - State Adoption_P'!$Y$137:$AN$137,0)) -> 0 | BK4: =INDEX('2. Time Lag - State Adoption_P'!$Y142:$AN142,MATCH(L4,'2. Time Lag - State Adoption_P'!$Y$137:$AN$137,0)) -> 0 | BL4: =INDEX('2. Time Lag - State Adoption_P'!$Y142:$AN142,MATCH(M4,'2. Time Lag - State Adoption_P'!$Y$137:$AN$137,0)) -> 0 | BM4: =INDEX('2. Time Lag - State Adoption_P'!$Y142:$AN142,MATCH(N4,'2. Time Lag - State Adoption_P'!$Y$137:$AN$137,0)) -> 0 | BN4: =INDEX('2. Time Lag - State Adoption_P'!$Y142:$AN142,MATCH(O4,'2. Time Lag - State Adoption_P'!$Y$137:$AN$137,0)) -> 0 | BO4: =INDEX('2. Time Lag - State Adoption_P'!$Y142:$AN142,MATCH(P4,'2. Time Lag - State Adoption_P'!$Y$137:$AN$137,0)) -> 0 | BP4: =INDEX('2. Time Lag - State Adoption_P'!$Y142:$AN142,MATCH(Q4,'2. Time Lag - State Adoption_P'!$Y$137:$AN$137,0)) -> 0 | BQ4: =INDEX('2. Time Lag - State Adoption_P'!$Y142:$AN142,MATCH(R4,'2. Time Lag - State Adoption_P'!$Y$137:$AN$137,0)) -> 0 | BR4: =INDEX('2. Time Lag - State Adoption_P'!$Y142:$AN142,MATCH(S4,'2. Time Lag - State Adoption_P'!$Y$137:$AN$137,0)) -> 0 | BS4: =INDEX('2. Time Lag - State Adoption_P'!$Y142:$AN142,MATCH(T4,'2. Time Lag - State Adoption_P'!$Y$137:$AN$137,0)) -> 0 | BT4: =INDEX('2. Time Lag - State Adoption_P'!$Y142:$AN142,MATCH(U4,'2. Time Lag - State Adoption_P'!$Y$137:$AN$137,0)) -> 0 | BU4: =INDEX('2. Time Lag - State Adoption_P'!$Y142:$AN142,MATCH(V4,'2. Time Lag - State Adoption_P'!$Y$137:$AN$137,0)) -> 0 | BV4: =INDEX('2. Time Lag - State Adoption_P'!$Y142:$AN142,MATCH(W4,'2. Time Lag - State Adoption_P'!$Y$137:$AN$137,0)) -> 0 | BW4: =INDEX('2. Time Lag - State Adoption_P'!$Y142:$AN142,MATCH(X4,'2. Time Lag - State Adoption_P'!$Y$137:$AN$137,0)) -> 0 | BX4: =INDEX('2. Time Lag - State Adoption_P'!$Y142:$AN142,MATCH(Y4,'2. Time Lag - State Adoption_P'!$Y$137:$AN$137,0)) -> 0 | BY4: =INDEX('2. Time Lag - State Adoption_P'!$Y142:$AN142,MATCH(Z4,'2. Time Lag - State Adoption_P'!$Y$137:$AN$137,0)) -> 0 | BZ4: =INDEX('2. Time Lag - State Adoption_P'!$Y142:$AN142,MATCH(AA4,'2. Time Lag - State Adoption_P'!$Y$137:$AN$137,0)) -> 0 | CA4: =INDEX('2. Time Lag - State Adoption_P'!$Y142:$AN142,MATCH(AB4,'2. Time Lag - State Adoption_P'!$Y$137:$AN$137,0)) -> 0 | CB4: =INDEX('2. Time Lag - State Adoption_P'!$Y142:$AN142,MATCH(AC4,'2. Time Lag - State Adoption_P'!$Y$137:$AN$137,0)) -> 0 | CC4: =INDEX('2. Time Lag - State Adoption_P'!$Y142:$AN142,MATCH(AD4,'2. Time Lag - State Adoption_P'!$Y$137:$AN$137,0)) -> 0 | CD4: =INDEX('2. Time Lag - State Adoption_P'!$Y142:$AN142,MATCH(AE4,'2. Time Lag - State Adoption_P'!$Y$137:$AN$137,0)) -> 0 | CE4: =INDEX('2. Time Lag - State Adoption_P'!$Y142:$AN142,MATCH(AF4,'2. Time Lag - State Adoption_P'!$Y$137:$AN$137,0)) -> 0 | CF4: =INDEX('2. Time Lag - State Adoption_P'!$Y142:$AN142,MATCH(AG4,'2. Time Lag - State Adoption_P'!$Y$137:$AN$137,0)) -> 0 | CG4: =INDEX('2. Time Lag - State Adoption_P'!$Y142:$AN142,MATCH(AH4,'2. Time Lag - State Adoption_P'!$Y$137:$AN$137,0)) -> 0 | CH4: =INDEX('2. Time Lag - State Adoption_P'!$Y142:$AN142,MATCH(AI4,'2. Time Lag - State Adoption_P'!$Y$137:$AN$137,0)) -> 0 | CI4: =INDEX('2. Time Lag - State Adoption_P'!$Y142:$AN142,MATCH(AJ4,'2. Time Lag - State Adoption_P'!$Y$137:$AN$137,0)) -> 0 | CJ4: =INDEX('2. Time Lag - State Adoption_P'!$Y142:$AN142,MATCH(AK4,'2. Time Lag - State Adoption_P'!$Y$137:$AN$137,0)) -> 0 | CK4: =INDEX('2. Time Lag - State Adoption_P'!$Y142:$AN142,MATCH(AL4,'2. Time Lag - State Adoption_P'!$Y$137:$AN$137,0)) -> 0 | CL4: =INDEX('2. Time Lag - State Adoption_P'!$Y142:$AN142,MATCH(AM4,'2. Time Lag - State Adoption_P'!$Y$137:$AN$137,0)) -> 0 | CM4: =INDEX('2. Time Lag - State Adoption_P'!$Y142:$AN142,MATCH(AN4,'2. Time Lag - State Adoption_P'!$Y$137:$AN$137,0)) -> 0 | CN4: =INDEX('2. Time Lag - State Adoption_P'!$Y142:$AN142,MATCH(AO4,'2. Time Lag - State Adoption_P'!$Y$137:$AN$137,0)) -> 0 | CO4: =INDEX('2. Time Lag - State Adoption_P'!$Y142:$AN142,MATCH(AP4,'2. Time Lag - State Adoption_P'!$Y$137:$AN$137,0)) -> 0 | CP4: =INDEX('2. Time Lag - State Adoption_P'!$Y142:$AN142,MATCH(AQ4,'2. Time Lag - State Adoption_P'!$Y$137:$AN$137,0)) -> 0 | CQ4: =INDEX('2. Time Lag - State Adoption_P'!$Y142:$AN142,MATCH(AR4,'2. Time Lag - State Adoption_P'!$Y$137:$AN$137,0)) -> 0 | CR4: =INDEX('2. Time Lag - State Adoption_P'!$Y142:$AN142,MATCH(AS4,'2. Time Lag - State Adoption_P'!$Y$137:$AN$137,0)) -> 0 | CS4: =INDEX('2. Time Lag - State Adoption_P'!$Y142:$AN142,MATCH(AT4,'2. Time Lag - State Adoption_P'!$Y$137:$AN$137,0)) -> 0 | CT4: =INDEX('2. Time Lag - State Adoption_P'!$Y142:$AN142,MATCH(AU4,'2. Time Lag - State Adoption_P'!$Y$137:$AN$137,0)) -> 0 | CU4: =INDEX('2. Time Lag - State Adoption_P'!$Y142:$AN142,MATCH(AV4,'2. Time Lag - State Adoption_P'!$Y$137:$AN$137,0)) -> 0 | CV4: =INDEX('2. Time Lag - State Adoption_P'!$Y142:$AN142,MATCH(AW4,'2. Time Lag - State Adoption_P'!$Y$137:$AN$137,0)) -> 0 | CW4: =INDEX('2. Time Lag - State Adoption_P'!$Y142:$AN142,MATCH(AX4,'2. Time Lag - State Adoption_P'!$Y$137:$AN$137,0)) -> 0 | CX4: =INDEX('2. Time Lag - State Adoption_P'!$Y142:$AN142,MATCH(AY4,'2. Time Lag - State Adoption_P'!$Y$137:$AN$137,0)) -> 0 | CY4: =INDEX('2. Time Lag - State Adoption_P'!$Y142:$AN142,MATCH(AZ4,'2. Time Lag - State Adoption_P'!$Y$137:$AN$137,0)) -> 0 | CZ4: =INDEX('2. Time Lag - State Adoption_P'!$Y142:$AN142,MATCH(BA4,'2. Time Lag - State Adoption_P'!$Y$137:$AN$137,0)) -> 0 | DA4: =INDEX('2. Time Lag - State Adoption_P'!$Y142:$AN142,MATCH(BB4,'2. Time Lag - State Adoption_P'!$Y$137:$AN$137,0)) -> 0 | DB4: =INDEX('2. Time Lag - State Adoption_P'!$Y142:$AN142,MATCH(BC4,'2. Time Lag - State Adoption_P'!$Y$137:$AN$137,0)) -> 0 | DC4: =INDEX('2. Time Lag - State Adoption_P'!$Y142:$AN142,MATCH(BD4,'2. Time Lag - State Adoption_P'!$Y$137:$AN$137,0)) -> 0 | DE4: AK | DF4: =COUNTIF($H4:OFFSET($H4,0,DF$1),H4) -> 1 | DG4: =COUNTIF($H4:OFFSET($H4,0,DG$1),I4) -> 2 | DH4: =COUNTIF($H4:OFFSET($H4,0,DH$1),J4) -> 3 | DI4: =COUNTIF($H4:OFFSET($H4,0,DI$1),K4) -> 4 | DJ4: =COUNTIF($H4:OFFSET($H4,0,DJ$1),L4) -> 5 | DK4: =COUNTIF($H4:OFFSET($H4,0,DK$1),M4) -> 6 | DL4: =COUNTIF($H4:OFFSET($H4,0,DL$1),N4) -> 7 | DM4: =COUNTIF($H4:OFFSET($H4,0,DM$1),O4) -> 8 | DN4: =COUNTIF($H4:OFFSET($H4,0,DN$1),P4) -> 9 | DO4: =COUNTIF($H4:OFFSET($H4,0,DO$1),Q4) -> 10 | DP4: =COUNTIF($H4:OFFSET($H4,0,DP$1),R4) -> 11 | DQ4: =COUNTIF($H4:OFFSET($H4,0,DQ$1),S4) -> 12 | DR4: =COUNTIF($H4:OFFSET($H4,0,DR$1),T4) -> 13 | DS4: =COUNTIF($H4:OFFSET($H4,0,DS$1),U4) -> 14 | DT4: =COUNTIF($H4:OFFSET($H4,0,DT$1),V4) -> 15 | DU4: =COUNTIF($H4:OFFSET($H4,0,DU$1),W4) -> 16 | DV4: =COUNTIF($H4:OFFSET($H4,0,DV$1),X4) -> 17 | DW4: =COUNTIF($H4:OFFSET($H4,0,DW$1),Y4) -> 18 | DX4: =COUNTIF($H4:OFFSET($H4,0,DX$1),Z4) -> 19 | DY4: =COUNTIF($H4:OFFSET($H4,0,DY$1),AA4) -> 20 | DZ4: =COUNTIF($H4:OFFSET($H4,0,DZ$1),AB4) -> 21 | EA4: =COUNTIF($H4:OFFSET($H4,0,EA$1),AC4) -> 22 | EB4: =COUNTIF($H4:OFFSET($H4,0,EB$1),AD4) -> 23 | EC4: =COUNTIF($H4:OFFSET($H4,0,EC$1),AE4) -> 24 | ED4: =COUNTIF($H4:OFFSET($H4,0,ED$1),AF4) -> 25 | EE4: =COUNTIF($H4:OFFSET($H4,0,EE$1),AG4) -> 26 | EF4: =COUNTIF($H4:OFFSET($H4,0,EF$1),AH4) -> 27 | EG4: =COUNTIF($H4:OFFSET($H4,0,EG$1),AI4) -> 28 | EH4: =COUNTIF($H4:OFFSET($H4,0,EH$1),AJ4) -> 29 | EI4: =COUNTIF($H4:OFFSET($H4,0,EI$1),AK4) -> 30 | EJ4: =COUNTIF($H4:OFFSET($H4,0,EJ$1),AL4) -> 31 | EK4: =COUNTIF($H4:OFFSET($H4,0,EK$1),AM4) -> 32 | EL4: =COUNTIF($H4:OFFSET($H4,0,EL$1),AN4) -> 33 | EM4: =COUNTIF($H4:OFFSET($H4,0,EM$1),AO4) -> 34 | EN4: =COUNTIF($H4:OFFSET($H4,0,EN$1),AP4) -> 35 | EO4: =COUNTIF($H4:OFFSET($H4,0,EO$1),AQ4) -> 36 | EP4: =COUNTIF($H4:OFFSET($H4,0,EP$1),AR4) -> 37 | EQ4: =COUNTIF($H4:OFFSET($H4,0,EQ$1),AS4) -> 38 | ER4: =COUNTIF($H4:OFFSET($H4,0,ER$1),AT4) -> 39 | ES4: =COUNTIF($H4:OFFSET($H4,0,ES$1),AU4) -> 40 | ET4: =COUNTIF($H4:OFFSET($H4,0,ET$1),AV4) -> 41 | EU4: =COUNTIF($H4:OFFSET($H4,0,EU$1),AW4) -> 42 | EV4: =COUNTIF($H4:OFFSET($H4,0,EV$1),AX4) -> 43 | EW4: =COUNTIF($H4:OFFSET($H4,0,EW$1),AY4) -> 44 | EX4: =COUNTIF($H4:OFFSET($H4,0,EX$1),AZ4) -> 45 | EY4: =COUNTIF($H4:OFFSET($H4,0,EY$1),BA4) -> 46 | EZ4: =COUNTIF($H4:OFFSET($H4,0,EZ$1),BB4) -> 47 | FA4: =COUNTIF($H4:OFFSET($H4,0,FA$1),BC4) -> 48 | FB4: =COUNTIF($H4:OFFSET($H4,0,FB$1),BD4) -> 49 | FD4: AK | FE4: 1 | FF4: 2 | FG4: 3 | FH4: 4 | FI4: 5 | FJ4: 6 | FK4: 7 | FL4: 8 | FM4: 9 | FN4: 10 | FO4: 11 | FP4: 12 | FQ4: 13 | FR4: 14 | FS4: 15 | FT4: 16 | FU4: 17 | FV4: 18 | FW4: 19 | FX4: 20 | FY4: 21 | FZ4: 22 | GA4: 23 | GB4: 24 | GC4: 25 | GD4: 26 | GE4: 27 | GF4: 28 | GG4: 29 | GH4: 30 | GI4: 31 | GJ4: 32 | GK4: 33 | GL4: 34 | GM4: 35 | GN4: 36 | GO4: 37 | GP4: 38 | GQ4: 39 | GR4: 40 | GS4: 41 | GT4: 42 | GU4: 43 | GV4: 44 | GW4: 45 | GX4: 46 | GY4: 47 | GZ4: 48 | HA4: 49 | HC4: AK | HD4: 61 | HE4: 62 | HF4: 63 | HG4: 64 | HH4: 65 | HI4: 66 | HJ4: 67 | HK4: 68 | HL4: 69 | HM4: 610 | HN4: 611 | HO4: 612 | HP4: 613 | HQ4: 614 | HR4: 615 | HS4: 616 | HT4: 617 | HU4: 618 | HV4: 619 | HW4: 620 | HX4: 621 | HY4: 622 | HZ4: 623 | IA4: 624 | IB4: 625 | IC4: 626 | ID4: 627 | IE4: 628 | IF4: 629 | IG4: 630 | IH4: 631 | II4: 632 | IJ4: 633 | IK4: 634 | IL4: 635 | IM4: 636 | IN4: 637 | IO4: 638 | IP4: 639 | IQ4: 640 | IR4: 641 | IS4: 642 | IT4: 643 | IU4: 644 | IV4: 645 | IW4: 646 | IX4: 647 | IY4: 648 | IZ4: 649
A5: 3 | B5: 90.1-1999/2001 | E5: 3 | F5: Arizona | G5: AZ | H5: =MATCH(H$2,'2. Time Lag - State Adoption_P'!$G7:$V7,1) -> 6 | I5: =MATCH(I$2,'2. Time Lag - State Adoption_P'!$G7:$V7,1) -> 6 | J5: =MATCH(J$2,'2. Time Lag - State Adoption_P'!$G7:$V7,1) -> 6 | K5: =MATCH(K$2,'2. Time Lag - State Adoption_P'!$G7:$V7,1) -> 6 | L5: =MATCH(L$2,'2. Time Lag - State Adoption_P'!$G7:$V7,1) -> 6 | M5: =MATCH(M$2,'2. Time Lag - State Adoption_P'!$G7:$V7,1) -> 6 | N5: =MATCH(N$2,'2. Time Lag - State Adoption_P'!$G7:$V7,1) -> 6 | O5: =MATCH(O$2,'2. Time Lag - State Adoption_P'!$G7:$V7,1) -> 6 | P5: =MATCH(P$2,'2. Time Lag - State Adoption_P'!$G7:$V7,1) -> 6 | Q5: =MATCH(Q$2,'2. Time Lag - State Adoption_P'!$G7:$V7,1) -> 6 | R5: =MATCH(R$2,'2. Time Lag - State Adoption_P'!$G7:$V7,1) -> 6 | S5: =MATCH(S$2,'2. Time Lag - State Adoption_P'!$G7:$V7,1) -> 6 | T5: =MATCH(T$2,'2. Time Lag - State Adoption_P'!$G7:$V7,1) -> 6 | U5: =MATCH(U$2,'2. Time Lag - State Adoption_P'!$G7:$V7,1) -> 6 | V5: =MATCH(V$2,'2. Time Lag - State Adoption_P'!$G7:$V7,1) -> 6 | W5: =MATCH(W$2,'2. Time Lag - State Adoption_P'!$G7:$V7,1) -> 6 | X5: =MATCH(X$2,'2. Time Lag - State Adoption_P'!$G7:$V7,1) -> 6 | Y5: =MATCH(Y$2,'2. Time Lag - State Adoption_P'!$G7:$V7,1) -> 6 | Z5: =MATCH(Z$2,'2. Time Lag - State Adoption_P'!$G7:$V7,1) -> 6 | AA5: =MATCH(AA$2,'2. Time Lag - State Adoption_P'!$G7:$V7,1) -> 6 | AB5: =MATCH(AB$2,'2. Time Lag - State Adoption_P'!$G7:$V7,1) -> 6 | AC5: =MATCH(AC$2,'2. Time Lag - State Adoption_P'!$G7:$V7,1) -> 6 | AD5: =MATCH(AD$2,'2. Time Lag - State Adoption_P'!$G7:$V7,1) -> 6 | AE5: =MATCH(AE$2,'2. Time Lag - State Adoption_P'!$G7:$V7,1) -> 6 | AF5: =MATCH(AF$2,'2. Time Lag - State Adoption_P'!$G7:$V7,1) -> 6 | AG5: =MATCH(AG$2,'2. Time Lag - State Adoption_P'!$G7:$V7,1) -> 6 | AH5: =MATCH(AH$2,'2. Time Lag - State Adoption_P'!$G7:$V7,1) -> 6 | AI5: =MATCH(AI$2,'2. Time Lag - State Adoption_P'!$G7:$V7,1) -> 6 | AJ5: =MATCH(AJ$2,'2. Time Lag - State Adoption_P'!$G7:$V7,1) -> 6 | AK5: =MATCH(AK$2,'2. Time Lag - State Adoption_P'!$G7:$V7,1) -> 6 | AL5: =MATCH(AL$2,'2. Time Lag - State Adoption_P'!$G7:$V7,1) -> 6 | AM5: =MATCH(AM$2,'2. Time Lag - State Adoption_P'!$G7:$V7,1) -> 6 | AN5: =MATCH(AN$2,'2. Time Lag - State Adoption_P'!$G7:$V7,1) -> 6 | AO5: =MATCH(AO$2,'2. Time Lag - State Adoption_P'!$G7:$V7,1) -> 6 | AP5: =MATCH(AP$2,'2. Time Lag - State Adoption_P'!$G7:$V7,1) -> 6 | AQ5: =MATCH(AQ$2,'2. Time Lag - State Adoption_P'!$G7:$V7,1) -> 6 | AR5: =MATCH(AR$2,'2. Time Lag - State Adoption_P'!$G7:$V7,1) -> 6 | AS5: =MATCH(AS$2,'2. Time Lag - State Adoption_P'!$G7:$V7,1) -> 6 | AT5: =MATCH(AT$2,'2. Time Lag - State Adoption_P'!$G7:$V7,1) -> 6 | AU5: =MATCH(AU$2,'2. Time Lag - State Adoption_P'!$G7:$V7,1) -> 6 | AV5: =MATCH(AV$2,'2. Time Lag - State Adoption_P'!$G7:$V7,1) -> 6 | AW5: =MATCH(AW$2,'2. Time Lag - State Adoption_P'!$G7:$V7,1) -> 6 | AX5: =MATCH(AX$2,'2. Time Lag - State Adoption_P'!$G7:$V7,1) -> 6 | AY5: =MATCH(AY$2,'2. Time Lag - State Adoption_P'!$G7:$V7,1) -> 6 | AZ5: =MATCH(AZ$2,'2. Time Lag - State Adoption_P'!$G7:$V7,1) -> 6 | BA5: =MATCH(BA$2,'2. Time Lag - State Adoption_P'!$G7:$V7,1) -> 6 | BB5: =MATCH(BB$2,'2. Time Lag - State Adoption_P'!$G7:$V7,1) -> 6 | BC5: =MATCH(BC$2,'2. Time Lag - State Adoption_P'!$G7:$V7,1) -> 6 | BD5: =MATCH(BD$2,'2. Time Lag - State Adoption_P'!$G7:$V7,1) -> 6 | BF5: AZ | BG5: =INDEX('2. Time Lag - State Adoption_P'!$Y143:$AN143,MATCH(H5,'2. Time Lag - State Adoption_P'!$Y$137:$AN$137,0)) -> 0 | BH5: =INDEX('2. Time Lag - State Adoption_P'!$Y143:$AN143,MATCH(I5,'2. Time Lag - State Adoption_P'!$Y$137:$AN$137,0)) -> 0 | BI5: =INDEX('2. Time Lag - State Adoption_P'!$Y143:$AN143,MATCH(J5,'2. Time Lag - State Adoption_P'!$Y$137:$AN$137,0)) -> 0 | BJ5: =INDEX('2. Time Lag - State Adoption_P'!$Y143:$AN143,MATCH(K5,'2. Time Lag - State Adoption_P'!$Y$137:$AN$137,0)) -> 0 | BK5: =INDEX('2. Time Lag - State Adoption_P'!$Y143:$AN143,MATCH(L5,'2. Time Lag - State Adoption_P'!$Y$137:$AN$137,0)) -> 0 | BL5: =INDEX('2. Time Lag - State Adoption_P'!$Y143:$AN143,MATCH(M5,'2. Time Lag - State Adoption_P'!$Y$137:$AN$137,0)) -> 0 | BM5: =INDEX('2. Time Lag - State Adoption_P'!$Y143:$AN143,MATCH(N5,'2. Time Lag - State Adoption_P'!$Y$137:$AN$137,0)) -> 0 | BN5: =INDEX('2. Time Lag - State Adoption_P'!$Y143:$AN143,MATCH(O5,'2. Time Lag - State Adoption_P'!$Y$137:$AN$137,0)) -> 0 | BO5: =INDEX('2. Time Lag - State Adoption_P'!$Y143:$AN143,MATCH(P5,'2. Time Lag - State Adoption_P'!$Y$137:$AN$137,0)) -> 0 | BP5: =INDEX('2. Time Lag - State Adoption_P'!$Y143:$AN143,MATCH(Q5,'2. Time Lag - State Adoption_P'!$Y$137:$AN$137,0)) -> 0 | BQ5: =INDEX('2. Time Lag - State Adoption_P'!$Y143:$AN143,MATCH(R5,'2. Time Lag - State Adoption_P'!$Y$137:$AN$137,0)) -> 0 | BR5: =INDEX('2. Time Lag - State Adoption_P'!$Y143:$AN143,MATCH(S5,'2. Time Lag - State Adoption_P'!$Y$137:$AN$137,0)) -> 0 | BS5: =INDEX('2. Time Lag - State Adoption_P'!$Y143:$AN143,MATCH(T5,'2. Time Lag - State Adoption_P'!$Y$137:$AN$137,0)) -> 0 | BT5: =INDEX('2. Time Lag - State Adoption_P'!$Y143:$AN143,MATCH(U5,'2. Time Lag - State Adoption_P'!$Y$137:$AN$137,0)) -> 0 | BU5: =INDEX('2. Time Lag - State Adoption_P'!$Y143:$AN143,MATCH(V5,'2. Time Lag - State Adoption_P'!$Y$137:$AN$137,0)) -> 0 | BV5: =INDEX('2. Time Lag - State Adoption_P'!$Y143:$AN143,MATCH(W5,'2. Time Lag - State Adoption_P'!$Y$137:$AN$137,0)) -> 0 | BW5: =INDEX('2. Time Lag - State Adoption_P'!$Y143:$AN143,MATCH(X5,'2. Time Lag - State Adoption_P'!$Y$137:$AN$137,0)) -> 0 | BX5: =INDEX('2. Time Lag - State Adoption_P'!$Y143:$AN143,MATCH(Y5,'2. Time Lag - State Adoption_P'!$Y$137:$AN$137,0)) -> 0 | BY5: =INDEX('2. Time Lag - State Adoption_P'!$Y143:$AN143,MATCH(Z5,'2. Time Lag - State Adoption_P'!$Y$137:$AN$137,0)) -> 0 | BZ5: =INDEX('2. Time Lag - State Adoption_P'!$Y143:$AN143,MATCH(AA5,'2. Time Lag - State Adoption_P'!$Y$137:$AN$137,0)) -> 0 | CA5: =INDEX('2. Time Lag - State Adoption_P'!$Y143:$AN143,MATCH(AB5,'2. Time Lag - State Adoption_P'!$Y$137:$AN$137,0)) -> 0 | CB5: =INDEX('2. Time Lag - State Adoption_P'!$Y143:$AN143,MATCH(AC5,'2. Time Lag - State Adoption_P'!$Y$137:$AN$137,0)) -> 0 | CC5: =INDEX('2. Time Lag - State Adoption_P'!$Y143:$AN143,MATCH(AD5,'2. Time Lag - State Adoption_P'!$Y$137:$AN$137,0)) -> 0 | CD5: =INDEX('2. Time Lag - State Adoption_P'!$Y143:$AN143,MATCH(AE5,'2. Time Lag - State Adoption_P'!$Y$137:$AN$137,0)) -> 0 | CE5: =INDEX('2. Time Lag - State Adoption_P'!$Y143:$AN143,MATCH(AF5,'2. Time Lag - State Adoption_P'!$Y$137:$AN$137,0)) -> 0 | CF5: =INDEX('2. Time Lag - State Adoption_P'!$Y143:$AN143,MATCH(AG5,'2. Time Lag - State Adoption_P'!$Y$137:$AN$137,0)) -> 0 | CG5: =INDEX('2. Time Lag - State Adoption_P'!$Y143:$AN143,MATCH(AH5,'2. Time Lag - State Adoption_P'!$Y$137:$AN$137,0)) -> 0 | CH5: =INDEX('2. Time Lag - State Adoption_P'!$Y143:$AN143,MATCH(AI5,'2. Time Lag - State Adoption_P'!$Y$137:$AN$137,0)) -> 0 | CI5: =INDEX('2. Time Lag - State Adoption_P'!$Y143:$AN143,MATCH(AJ5,'2. Time Lag - State Adoption_P'!$Y$137:$AN$137,0)) -> 0 | CJ5: =INDEX('2. Time Lag - State Adoption_P'!$Y143:$AN143,MATCH(AK5,'2. Time Lag - State Adoption_P'!$Y$137:$AN$137,0)) -> 0 | CK5: =INDEX('2. Time Lag - State Adoption_P'!$Y143:$AN143,MATCH(AL5,'2. Time Lag - State Adoption_P'!$Y$137:$AN$137,0)) -> 0 | CL5: =INDEX('2. Time Lag - State Adoption_P'!$Y143:$AN143,MATCH(AM5,'2. Time Lag - State Adoption_P'!$Y$137:$AN$137,0)) -> 0 | CM5: =INDEX('2. Time Lag - State Adoption_P'!$Y143:$AN143,MATCH(AN5,'2. Time Lag - State Adoption_P'!$Y$137:$AN$137,0)) -> 0 | CN5: =INDEX('2. Time Lag - State Adoption_P'!$Y143:$AN143,MATCH(AO5,'2. Time Lag - State Adoption_P'!$Y$137:$AN$137,0)) -> 0 | CO5: =INDEX('2. Time Lag - State Adoption_P'!$Y143:$AN143,MATCH(AP5,'2. Time Lag - State Adoption_P'!$Y$137:$AN$137,0)) -> 0 | CP5: =INDEX('2. Time Lag - State Adoption_P'!$Y143:$AN143,MATCH(AQ5,'2. Time Lag - State Adoption_P'!$Y$137:$AN$137,0)) -> 0 | CQ5: =INDEX('2. Time Lag - State Adoption_P'!$Y143:$AN143,MATCH(AR5,'2. Time Lag - State Adoption_P'!$Y$137:$AN$137,0)) -> 0 | CR5: =INDEX('2. Time Lag - State Adoption_P'!$Y143:$AN143,MATCH(AS5,'2. Time Lag - State Adoption_P'!$Y$137:$AN$137,0)) -> 0 | CS5: =INDEX('2. Time Lag - State Adoption_P'!$Y143:$AN143,MATCH(AT5,'2. Time Lag - State Adoption_P'!$Y$137:$AN$137,0)) -> 0 | CT5: =INDEX('2. Time Lag - State Adoption_P'!$Y143:$AN143,MATCH(AU5,'2. Time Lag - State Adoption_P'!$Y$137:$AN$137,0)) -> 0 | CU5: =INDEX('2. Time Lag - State Adoption_P'!$Y143:$AN143,MATCH(AV5,'2. Time Lag - State Adoption_P'!$Y$137:$AN$137,0)) -> 0 | CV5: =INDEX('2. Time Lag - State Adoption_P'!$Y143:$AN143,MATCH(AW5,'2. Time Lag - State Adoption_P'!$Y$137:$AN$137,0)) -> 0 | CW5: =INDEX('2. Time Lag - State Adoption_P'!$Y143:$AN143,MATCH(AX5,'2. Time Lag - State Adoption_P'!$Y$137:$AN$137,0)) -> 0 | CX5: =INDEX('2. Time Lag - State Adoption_P'!$Y143:$AN143,MATCH(AY5,'2. Time Lag - State Adoption_P'!$Y$137:$AN$137,0)) -> 0 | CY5: =INDEX('2. Time Lag - State Adoption_P'!$Y143:$AN143,MATCH(AZ5,'2. Time Lag - State Adoption_P'!$Y$137:$AN$137,0)) -> 0 | CZ5: =INDEX('2. Time Lag - State Adoption_P'!$Y143:$AN143,MATCH(BA5,'2. Time Lag - State Adoption_P'!$Y$137:$AN$137,0)) -> 0 | DA5: =INDEX('2. Time Lag - State Adoption_P'!$Y143:$AN143,MATCH(BB5,'2. Time Lag - State Adoption_P'!$Y$137:$AN$137,0)) -> 0 | DB5: =INDEX('2. Time Lag - State Adoption_P'!$Y143:$AN143,MATCH(BC5,'2. Time Lag - State Adoption_P'!$Y$137:$AN$137,0)) -> 0 | DC5: =INDEX('2. Time Lag - State Adoption_P'!$Y143:$AN143,MATCH(BD5,'2. Time Lag - State Adoption_P'!$Y$137:$AN$137,0)) -> 0 | DE5: AZ | DF5: =COUNTIF($H5:OFFSET($H5,0,DF$1),H5) -> 1 | DG5: =COUNTIF($H5:OFFSET($H5,0,DG$1),I5) -> 2 | DH5: =COUNTIF($H5:OFFSET($H5,0,DH$1),J5) -> 3 | DI5: =COUNTIF($H5:OFFSET($H5,0,DI$1),K5) -> 4 | DJ5: =COUNTIF($H5:OFFSET($H5,0,DJ$1),L5) -> 5 | DK5: =COUNTIF($H5:OFFSET($H5,0,DK$1),M5) -> 6 | DL5: =COUNTIF($H5:OFFSET($H5,0,DL$1),N5) -> 7 | DM5: =COUNTIF($H5:OFFSET($H5,0,DM$1),O5) -> 8 | DN5: =COUNTIF($H5:OFFSET($H5,0,DN$1),P5) -> 9 | DO5: =COUNTIF($H5:OFFSET($H5,0,DO$1),Q5) -> 10 | DP5: =COUNTIF($H5:OFFSET($H5,0,DP$1),R5) -> 11 | DQ5: =COUNTIF($H5:OFFSET($H5,0,DQ$1),S5) -> 12 | DR5: =COUNTIF($H5:OFFSET($H5,0,DR$1),T5) -> 13 | DS5: =COUNTIF($H5:OFFSET($H5,0,DS$1),U5) -> 14 | DT5: =COUNTIF($H5:OFFSET($H5,0,DT$1),V5) -> 15 | DU5: =COUNTIF($H5:OFFSET($H5,0,DU$1),W5) -> 16 | DV5: =COUNTIF($H5:OFFSET($H5,0,DV$1),X5) -> 17 | DW5: =COUNTIF($H5:OFFSET($H5,0,DW$1),Y5) -> 18 | DX5: =COUNTIF($H5:OFFSET($H5,0,DX$1),Z5) -> 19 | DY5: =COUNTIF($H5:OFFSET($H5,0,DY$1),AA5) -> 20 | DZ5: =COUNTIF($H5:OFFSET($H5,0,DZ$1),AB5) -> 21 | EA5: =COUNTIF($H5:OFFSET($H5,0,EA$1),AC5) -> 22 | EB5: =COUNTIF($H5:OFFSET($H5,0,EB$1),AD5) -> 23 | EC5: =COUNTIF($H5:OFFSET($H5,0,EC$1),AE5) -> 24 | ED5: =COUNTIF($H5:OFFSET($H5,0,ED$1),AF5) -> 25 | EE5: =COUNTIF($H5:OFFSET($H5,0,EE$1),AG5) -> 26 | EF5: =COUNTIF($H5:OFFSET($H5,0,EF$1),AH5) -> 27 | EG5: =COUNTIF($H5:OFFSET($H5,0,EG$1),AI5) -> 28 | EH5: =COUNTIF($H5:OFFSET($H5,0,EH$1),AJ5) -> 29 | EI5: =COUNTIF($H5:OFFSET($H5,0,EI$1),AK5) -> 30 | EJ5: =COUNTIF($H5:OFFSET($H5,0,EJ$1),AL5) -> 31 | EK5: =COUNTIF($H5:OFFSET($H5,0,EK$1),AM5) -> 32 | EL5: =COUNTIF($H5:OFFSET($H5,0,EL$1),AN5) -> 33 | EM5: =COUNTIF($H5:OFFSET($H5,0,EM$1),AO5) -> 34 | EN5: =COUNTIF($H5:OFFSET($H5,0,EN$1),AP5) -> 35 | EO5: =COUNTIF($H5:OFFSET($H5,0,EO$1),AQ5) -> 36 | EP5: =COUNTIF($H5:OFFSET($H5,0,EP$1),AR5) -> 37 | EQ5: =COUNTIF($H5:OFFSET($H5,0,EQ$1),AS5) -> 38 | ER5: =COUNTIF($H5:OFFSET($H5,0,ER$1),AT5) -> 39 | ES5: =COUNTIF($H5:OFFSET($H5,0,ES$1),AU5) -> 40 | ET5: =COUNTIF($H5:OFFSET($H5,0,ET$1),AV5) -> 41 | EU5: =COUNTIF($H5:OFFSET($H5,0,EU$1),AW5) -> 42 | EV5: =COUNTIF($H5:OFFSET($H5,0,EV$1),AX5) -> 43 | EW5: =COUNTIF($H5:OFFSET($H5,0,EW$1),AY5) -> 44 | EX5: =COUNTIF($H5:OFFSET($H5,0,EX$1),AZ5) -> 45 | EY5: =COUNTIF($H5:OFFSET($H5,0,EY$1),BA5) -> 46 | EZ5: =COUNTIF($H5:OFFSET($H5,0,EZ$1),BB5) -> 47 | FA5: =COUNTIF($H5:OFFSET($H5,0,FA$1),BC5) -> 48 | FB5: =COUNTIF($H5:OFFSET($H5,0,FB$1),BD5) -> 49 | FD5: AZ | FE5: 1 | FF5: 2 | FG5: 3 | FH5: 4 | FI5: 5 | FJ5: 6 | FK5: 7 | FL5: 8 | FM5: 9 | FN5: 10 | FO5: 11 | FP5: 12 | FQ5: 13 | FR5: 14 | FS5: 15 | FT5: 16 | FU5: 17 | FV5: 18 | FW5: 19 | FX5: 20 | FY5: 21 | FZ5: 22 | GA5: 23 | GB5: 24 | GC5: 25 | GD5: 26 | GE5: 27 | GF5: 28 | GG5: 29 | GH5: 30 | GI5: 31 | GJ5: 32 | GK5: 33 | GL5: 34 | GM5: 35 | GN5: 36 | GO5: 37 | GP5: 38 | GQ5: 39 | GR5: 40 | GS5: 41 | GT5: 42 | GU5: 43 | GV5: 44 | GW5: 45 | GX5: 46 | GY5: 47 | GZ5: 48 | HA5: 49 | HC5: AZ | HD5: 61 | HE5: 62 | HF5: 63 | HG5: 64 | HH5: 65 | HI5: 66 | HJ5: 67 | HK5: 68 | HL5: 69 | HM5: 610 | HN5: 611 | HO5: 612 | HP5: 613 | HQ5: 614 | HR5: 615 | HS5: 616 | HT5: 617 | HU5: 618 | HV5: 619 | HW5: 620 | HX5: 621 | HY5: 622 | HZ5: 623 | IA5: 624 | IB5: 625 | IC5: 626 | ID5: 627 | IE5: 628 | IF5: 629 | IG5: 630 | IH5: 631 | II5: 632 | IJ5: 633 | IK5: 634 | IL5: 635 | IM5: 636 | IN5: 637 | IO5: 638 | IP5: 639 | IQ5: 640 | IR5: 641 | IS5: 642 | IT5: 643 | IU5: 644 | IV5: 645 | IW5: 646 | IX5: 647 | IY5: 648 | IZ5: 649
A6: 4 | B6: 90.1-2004 | E6: 4 | F6: Arkansas | G6: AR | H6: =MATCH(H$2,'2. Time Lag - State Adoption_P'!$G8:$V8,1) -> 6 | I6: =MATCH(I$2,'2. Time Lag - State Adoption_P'!$G8:$V8,1) -> 6 | J6: =MATCH(J$2,'2. Time Lag - State Adoption_P'!$G8:$V8,1) -> 6 | K6: =MATCH(K$2,'2. Time Lag - State Adoption_P'!$G8:$V8,1) -> 6 | L6: =MATCH(L$2,'2. Time Lag - State Adoption_P'!$G8:$V8,1) -> 6 | M6: =MATCH(M$2,'2. Time Lag - State Adoption_P'!$G8:$V8,1) -> 6 | N6: =MATCH(N$2,'2. Time Lag - State Adoption_P'!$G8:$V8,1) -> 6 | O6: =MATCH(O$2,'2. Time Lag - State Adoption_P'!$G8:$V8,1) -> 6 | P6: =MATCH(P$2,'2. Time Lag - State Adoption_P'!$G8:$V8,1) -> 6 | Q6: =MATCH(Q$2,'2. Time Lag - State Adoption_P'!$G8:$V8,1) -> 6 | R6: =MATCH(R$2,'2. Time Lag - State Adoption_P'!$G8:$V8,1) -> 6 | S6: =MATCH(S$2,'2. Time Lag - State Adoption_P'!$G8:$V8,1) -> 6 | T6: =MATCH(T$2,'2. Time Lag - State Adoption_P'!$G8:$V8,1) -> 6 | U6: =MATCH(U$2,'2. Time Lag - State Adoption_P'!$G8:$V8,1) -> 6 | V6: =MATCH(V$2,'2. Time Lag - State Adoption_P'!$G8:$V8,1) -> 6 | W6: =MATCH(W$2,'2. Time Lag - State Adoption_P'!$G8:$V8,1) -> 6 | X6: =MATCH(X$2,'2. Time Lag - State Adoption_P'!$G8:$V8,1) -> 6 | Y6: =MATCH(Y$2,'2. Time Lag - State Adoption_P'!$G8:$V8,1) -> 6 | Z6: =MATCH(Z$2,'2. Time Lag - State Adoption_P'!$G8:$V8,1) -> 6 | AA6: =MATCH(AA$2,'2. Time Lag - State Adoption_P'!$G8:$V8,1) -> 6 | AB6: =MATCH(AB$2,'2. Time Lag - State Adoption_P'!$G8:$V8,1) -> 6 | AC6: =MATCH(AC$2,'2. Time Lag - State Adoption_P'!$G8:$V8,1) -> 6 | AD6: =MATCH(AD$2,'2. Time Lag - State Adoption_P'!$G8:$V8,1) -> 6 | AE6: =MATCH(AE$2,'2. Time Lag - State Adoption_P'!$G8:$V8,1) -> 6 | AF6: =MATCH(AF$2,'2. Time Lag - State Adoption_P'!$G8:$V8,1) -> 6 | AG6: =MATCH(AG$2,'2. Time Lag - State Adoption_P'!$G8:$V8,1) -> 6 | AH6: =MATCH(AH$2,'2. Time Lag - State Adoption_P'!$G8:$V8,1) -> 6 | AI6: =MATCH(AI$2,'2. Time Lag - State Adoption_P'!$G8:$V8,1) -> 6 | AJ6: =MATCH(AJ$2,'2. Time Lag - State Adoption_P'!$G8:$V8,1) -> 6 | AK6: =MATCH(AK$2,'2. Time Lag - State Adoption_P'!$G8:$V8,1) -> 6 | AL6: =MATCH(AL$2,'2. Time Lag - State Adoption_P'!$G8:$V8,1) -> 6 | AM6: =MATCH(AM$2,'2. Time Lag - State Adoption_P'!$G8:$V8,1) -> 6 | AN6: =MATCH(AN$2,'2. Time Lag - State Adoption_P'!$G8:$V8,1) -> 6 | AO6: =MATCH(AO$2,'2. Time Lag - State Adoption_P'!$G8:$V8,1) -> 6 | AP6: =MATCH(AP$2,'2. Time Lag - State Adoption_P'!$G8:$V8,1) -> 6 | AQ6: =MATCH(AQ$2,'2. Time Lag - State Adoption_P'!$G8:$V8,1) -> 6 | AR6: =MATCH(AR$2,'2. Time Lag - State Adoption_P'!$G8:$V8,1) -> 6 | AS6: =MATCH(AS$2,'2. Time Lag - State Adoption_P'!$G8:$V8,1) -> 6 | AT6: =MATCH(AT$2,'2. Time Lag - State Adoption_P'!$G8:$V8,1) -> 6 | AU6: =MATCH(AU$2,'2. Time Lag - State Adoption_P'!$G8:$V8,1) -> 6 | AV6: =MATCH(AV$2,'2. Time Lag - State Adoption_P'!$G8:$V8,1) -> 6 | AW6: =MATCH(AW$2,'2. Time Lag - State Adoption_P'!$G8:$V8,1) -> 6 | AX6: =MATCH(AX$2,'2. Time Lag - State Adoption_P'!$G8:$V8,1) -> 6 | AY6: =MATCH(AY$2,'2. Time Lag - State Adoption_P'!$G8:$V8,1) -> 6 | AZ6: =MATCH(AZ$2,'2. Time Lag - State Adoption_P'!$G8:$V8,1) -> 6 | BA6: =MATCH(BA$2,'2. Time Lag - State Adoption_P'!$G8:$V8,1) -> 6 | BB6: =MATCH(BB$2,'2. Time Lag - State Adoption_P'!$G8:$V8,1) -> 6 | BC6: =MATCH(BC$2,'2. Time Lag - State Adoption_P'!$G8:$V8,1) -> 6 | BD6: =MATCH(BD$2,'2. Time Lag - State Adoption_P'!$G8:$V8,1) -> 6 | BF6: AR | BG6: =INDEX('2. Time Lag - State Adoption_P'!$Y144:$AN144,MATCH(H6,'2. Time Lag - State Adoption_P'!$Y$137:$AN$137,0)) -> 0 | BH6: =INDEX('2. Time Lag - State Adoption_P'!$Y144:$AN144,MATCH(I6,'2. Time Lag - State Adoption_P'!$Y$137:$AN$137,0)) -> 0 | BI6: =INDEX('2. Time Lag - State Adoption_P'!$Y144:$AN144,MATCH(J6,'2. Time Lag - State Adoption_P'!$Y$137:$AN$137,0)) -> 0 | BJ6: =INDEX('2. Time Lag - State Adoption_P'!$Y144:$AN144,MATCH(K6,'2. Time Lag - State Adoption_P'!$Y$137:$AN$137,0)) -> 0 | BK6: =INDEX('2. Time Lag - State Adoption_P'!$Y144:$AN144,MATCH(L6,'2. Time Lag - State Adoption_P'!$Y$137:$AN$137,0)) -> 0 | BL6: =INDEX('2. Time Lag - State Adoption_P'!$Y144:$AN144,MATCH(M6,'2. Time Lag - State Adoption_P'!$Y$137:$AN$137,0)) -> 0 | BM6: =INDEX('2. Time Lag - State Adoption_P'!$Y144:$AN144,MATCH(N6,'2. Time Lag - State Adoption_P'!$Y$137:$AN$137,0)) -> 0 | BN6: =INDEX('2. Time Lag - State Adoption_P'!$Y144:$AN144,MATCH(O6,'2. Time Lag - State Adoption_P'!$Y$137:$AN$137,0)) -> 0 | BO6: =INDEX('2. Time Lag - State Adoption_P'!$Y144:$AN144,MATCH(P6,'2. Time Lag - State Adoption_P'!$Y$137:$AN$137,0)) -> 0 | BP6: =INDEX('2. Time Lag - State Adoption_P'!$Y144:$AN144,MATCH(Q6,'2. Time Lag - State Adoption_P'!$Y$137:$AN$137,0)) -> 0 | BQ6: =INDEX('2. Time Lag - State Adoption_P'!$Y144:$AN144,MATCH(R6,'2. Time Lag - State Adoption_P'!$Y$137:$AN$137,0)) -> 0 | BR6: =INDEX('2. Time Lag - State Adoption_P'!$Y144:$AN144,MATCH(S6,'2. Time Lag - State Adoption_P'!$Y$137:$AN$137,0)) -> 0 | BS6: =INDEX('2. Time Lag - State Adoption_P'!$Y144:$AN144,MATCH(T6,'2. Time Lag - State Adoption_P'!$Y$137:$AN$137,0)) -> 0 | BT6: =INDEX('2. Time Lag - State Adoption_P'!$Y144:$AN144,MATCH(U6,'2. Time Lag - State Adoption_P'!$Y$137:$AN$137,0)) -> 0 | BU6: =INDEX('2. Time Lag - State Adoption_P'!$Y144:$AN144,MATCH(V6,'2. Time Lag - State Adoption_P'!$Y$137:$AN$137,0)) -> 0 | BV6: =INDEX('2. Time Lag - State Adoption_P'!$Y144:$AN144,MATCH(W6,'2. Time Lag - State Adoption_P'!$Y$137:$AN$137,0)) -> 0 | BW6: =INDEX('2. Time Lag - State Adoption_P'!$Y144:$AN144,MATCH(X6,'2. Time Lag - State Adoption_P'!$Y$137:$AN$137,0)) -> 0 | BX6: =INDEX('2. Time Lag - State Adoption_P'!$Y144:$AN144,MATCH(Y6,'2. Time Lag - State Adoption_P'!$Y$137:$AN$137,0)) -> 0 | BY6: =INDEX('2. Time Lag - State Adoption_P'!$Y144:$AN144,MATCH(Z6,'2. Time Lag - State Adoption_P'!$Y$137:$AN$137,0)) -> 0 | BZ6: =INDEX('2. Time Lag - State Adoption_P'!$Y144:$AN144,MATCH(AA6,'2. Time Lag - State Adoption_P'!$Y$137:$AN$137,0)) -> 0 | CA6: =INDEX('2. Time Lag - State Adoption_P'!$Y144:$AN144,MATCH(AB6,'2. Time Lag - State Adoption_P'!$Y$137:$AN$137,0)) -> 0 | CB6: =INDEX('2. Time Lag - State Adoption_P'!$Y144:$AN144,MATCH(AC6,'2. Time Lag - State Adoption_P'!$Y$137:$AN$137,0)) -> 0 | CC6: =INDEX('2. Time Lag - State Adoption_P'!$Y144:$AN144,MATCH(AD6,'2. Time Lag - State Adoption_P'!$Y$137:$AN$137,0)) -> 0 | CD6: =INDEX('2. Time Lag - State Adoption_P'!$Y144:$AN144,MATCH(AE6,'2. Time Lag - State Adoption_P'!$Y$137:$AN$137,0)) -> 0 | CE6: =INDEX('2. Time Lag - State Adoption_P'!$Y144:$AN144,MATCH(AF6,'2. Time Lag - State Adoption_P'!$Y$137:$AN$137,0)) -> 0 | CF6: =INDEX('2. Time Lag - State Adoption_P'!$Y144:$AN144,MATCH(AG6,'2. Time Lag - State Adoption_P'!$Y$137:$AN$137,0)) -> 0 | CG6: =INDEX('2. Time Lag - State Adoption_P'!$Y144:$AN144,MATCH(AH6,'2. Time Lag - State Adoption_P'!$Y$137:$AN$137,0)) -> 0 | CH6: =INDEX('2. Time Lag - State Adoption_P'!$Y144:$AN144,MATCH(AI6,'2. Time Lag - State Adoption_P'!$Y$137:$AN$137,0)) -> 0 | CI6: =INDEX('2. Time Lag - State Adoption_P'!$Y144:$AN144,MATCH(AJ6,'2. Time Lag - State Adoption_P'!$Y$137:$AN$137,0)) -> 0 | CJ6: =INDEX('2. Time Lag - State Adoption_P'!$Y144:$AN144,MATCH(AK6,'2. Time Lag - State Adoption_P'!$Y$137:$AN$137,0)) -> 0 | CK6: =INDEX('2. Time Lag - State Adoption_P'!$Y144:$AN144,MATCH(AL6,'2. Time Lag - State Adoption_P'!$Y$137:$AN$137,0)) -> 0 | CL6: =INDEX('2. Time Lag - State Adoption_P'!$Y144:$AN144,MATCH(AM6,'2. Time Lag - State Adoption_P'!$Y$137:$AN$137,0)) -> 0 | CM6: =INDEX('2. Time Lag - State Adoption_P'!$Y144:$AN144,MATCH(AN6,'2. Time Lag - State Adoption_P'!$Y$137:$AN$137,0)) -> 0 | CN6: =INDEX('2. Time Lag - State Adoption_P'!$Y144:$AN144,MATCH(AO6,'2. Time Lag - State Adoption_P'!$Y$137:$AN$137,0)) -> 0 | CO6: =INDEX('2. Time Lag - State Adoption_P'!$Y144:$AN144,MATCH(AP6,'2. Time Lag - State Adoption_P'!$Y$137:$AN$137,0)) -> 0 | CP6: =INDEX('2. Time Lag - State Adoption_P'!$Y144:$AN144,MATCH(AQ6,'2. Time Lag - State Adoption_P'!$Y$137:$AN$137,0)) -> 0 | CQ6: =INDEX('2. Time Lag - State Adoption_P'!$Y144:$AN144,MATCH(AR6,'2. Time Lag - State Adoption_P'!$Y$137:$AN$137,0)) -> 0 | CR6: =INDEX('2. Time Lag - State Adoption_P'!$Y144:$AN144,MATCH(AS6,'2. Time Lag - State Adoption_P'!$Y$137:$AN$137,0)) -> 0 | CS6: =INDEX('2. Time Lag - State Adoption_P'!$Y144:$AN144,MATCH(AT6,'2. Time Lag - State Adoption_P'!$Y$137:$AN$137,0)) -> 0 | CT6: =INDEX('2. Time Lag - State Adoption_P'!$Y144:$AN144,MATCH(AU6,'2. Time Lag - State Adoption_P'!$Y$137:$AN$137,0)) -> 0 | CU6: =INDEX('2. Time Lag - State Adoption_P'!$Y144:$AN144,MATCH(AV6,'2. Time Lag - State Adoption_P'!$Y$137:$AN$137,0)) -> 0 | CV6: =INDEX('2. Time Lag - State Adoption_P'!$Y144:$AN144,MATCH(AW6,'2. Time Lag - State Adoption_P'!$Y$137:$AN$137,0)) -> 0 | CW6: =INDEX('2. Time Lag - State Adoption_P'!$Y144:$AN144,MATCH(AX6,'2. Time Lag - State Adoption_P'!$Y$137:$AN$137,0)) -> 0 | CX6: =INDEX('2. Time Lag - State Adoption_P'!$Y144:$AN144,MATCH(AY6,'2. Time Lag - State Adoption_P'!$Y$137:$AN$137,0)) -> 0 | CY6: =INDEX('2. Time Lag - State Adoption_P'!$Y144:$AN144,MATCH(AZ6,'2. Time Lag - State Adoption_P'!$Y$137:$AN$137,0)) -> 0 | CZ6: =INDEX('2. Time Lag - State Adoption_P'!$Y144:$AN144,MATCH(BA6,'2. Time Lag - State Adoption_P'!$Y$137:$AN$137,0)) -> 0 | DA6: =INDEX('2. Time Lag - State Adoption_P'!$Y144:$AN144,MATCH(BB6,'2. Time Lag - State Adoption_P'!$Y$137:$AN$137,0)) -> 0 | DB6: =INDEX('2. Time Lag - State Adoption_P'!$Y144:$AN144,MATCH(BC6,'2. Time Lag - State Adoption_P'!$Y$137:$AN$137,0)) -> 0 | DC6: =INDEX('2. Time Lag - State Adoption_P'!$Y144:$AN144,MATCH(BD6,'2. Time Lag - State Adoption_P'!$Y$137:$AN$137,0)) -> 0 | DE6: AR | DF6: =COUNTIF($H6:OFFSET($H6,0,DF$1),H6) -> 1 | DG6: =COUNTIF($H6:OFFSET($H6,0,DG$1),I6) -> 2 | DH6: =COUNTIF($H6:OFFSET($H6,0,DH$1),J6) -> 3 | DI6: =COUNTIF($H6:OFFSET($H6,0,DI$1),K6) -> 4 | DJ6: =COUNTIF($H6:OFFSET($H6,0,DJ$1),L6) -> 5 | DK6: =COUNTIF($H6:OFFSET($H6,0,DK$1),M6) -> 6 | DL6: =COUNTIF($H6:OFFSET($H6,0,DL$1),N6) -> 7 | DM6: =COUNTIF($H6:OFFSET($H6,0,DM$1),O6) -> 8 | DN6: =COUNTIF($H6:OFFSET($H6,0,DN$1),P6) -> 9 | DO6: =COUNTIF($H6:OFFSET($H6,0,DO$1),Q6) -> 10 | DP6: =COUNTIF($H6:OFFSET($H6,0,DP$1),R6) -> 11 | DQ6: =COUNTIF($H6:OFFSET($H6,0,DQ$1),S6) -> 12 | DR6: =COUNTIF($H6:OFFSET($H6,0,DR$1),T6) -> 13 | DS6: =COUNTIF($H6:OFFSET($H6,0,DS$1),U6) -> 14 | DT6: =COUNTIF($H6:OFFSET($H6,0,DT$1),V6) -> 15 | DU6: =COUNTIF($H6:OFFSET($H6,0,DU$1),W6) -> 16 | DV6: =COUNTIF($H6:OFFSET($H6,0,DV$1),X6) -> 17 | DW6: =COUNTIF($H6:OFFSET($H6,0,DW$1),Y6) -> 18 | DX6: =COUNTIF($H6:OFFSET($H6,0,DX$1),Z6) -> 19 | DY6: =COUNTIF($H6:OFFSET($H6,0,DY$1),AA6) -> 20 | DZ6: =COUNTIF($H6:OFFSET($H6,0,DZ$1),AB6) -> 21 | EA6: =COUNTIF($H6:OFFSET($H6,0,EA$1),AC6) -> 22 | EB6: =COUNTIF($H6:OFFSET($H6,0,EB$1),AD6) -> 23 | EC6: =COUNTIF($H6:OFFSET($H6,0,EC$1),AE6) -> 24 | ED6: =COUNTIF($H6:OFFSET($H6,0,ED$1),AF6) -> 25 | EE6: =COUNTIF($H6:OFFSET($H6,0,EE$1),AG6) -> 26 | EF6: =COUNTIF($H6:OFFSET($H6,0,EF$1),AH6) -> 27 | EG6: =COUNTIF($H6:OFFSET($H6,0,EG$1),AI6) -> 28 | EH6: =COUNTIF($H6:OFFSET($H6,0,EH$1),AJ6) -> 29 | EI6: =COUNTIF($H6:OFFSET($H6,0,EI$1),AK6) -> 30 | EJ6: =COUNTIF($H6:OFFSET($H6,0,EJ$1),AL6) -> 31 | EK6: =COUNTIF($H6:OFFSET($H6,0,EK$1),AM6) -> 32 | EL6: =COUNTIF($H6:OFFSET($H6,0,EL$1),AN6) -> 33 | EM6: =COUNTIF($H6:OFFSET($H6,0,EM$1),AO6) -> 34 | EN6: =COUNTIF($H6:OFFSET($H6,0,EN$1),AP6) -> 35 | EO6: =COUNTIF($H6:OFFSET($H6,0,EO$1),AQ6) -> 36 | EP6: =COUNTIF($H6:OFFSET($H6,0,EP$1),AR6) -> 37 | EQ6: =COUNTIF($H6:OFFSET($H6,0,EQ$1),AS6) -> 38 | ER6: =COUNTIF($H6:OFFSET($H6,0,ER$1),AT6) -> 39 | ES6: =COUNTIF($H6:OFFSET($H6,0,ES$1),AU6) -> 40 | ET6: =COUNTIF($H6:OFFSET($H6,0,ET$1),AV6) -> 41 | EU6: =COUNTIF($H6:OFFSET($H6,0,EU$1),AW6) -> 42 | EV6: =COUNTIF($H6:OFFSET($H6,0,EV$1),AX6) -> 43 | EW6: =COUNTIF($H6:OFFSET($H6,0,EW$1),AY6) -> 44 | EX6: =COUNTIF($H6:OFFSET($H6,0,EX$1),AZ6) -> 45 | EY6: =COUNTIF($H6:OFFSET($H6,0,EY$1),BA6) -> 46 | EZ6: =COUNTIF($H6:OFFSET($H6,0,EZ$1),BB6) -> 47 | FA6: =COUNTIF($H6:OFFSET($H6,0,FA$1),BC6) -> 48 | FB6: =COUNTIF($H6:OFFSET($H6,0,FB$1),BD6) -> 49 | FD6: AR | FE6: 1 | FF6: 2 | FG6: 3 | FH6: 4 | FI6: 5 | FJ6: 6 | FK6: 7 | FL6: 8 | FM6: 9 | FN6: 10 | FO6: 11 | FP6: 12 | FQ6: 13 | FR6: 14 | FS6: 15 | FT6: 16 | FU6: 17 | FV6: 18 | FW6: 19 | FX6: 20 | FY6: 21 | FZ6: 22 | GA6: 23 | GB6: 24 | GC6: 25 | GD6: 26 | GE6: 27 | GF6: 28 | GG6: 29 | GH6: 30 | GI6: 31 | GJ6: 32 | GK6: 33 | GL6: 34 | GM6: 35 | GN6: 36 | GO6: 37 | GP6: 38 | GQ6: 39 | GR6: 40 | GS6: 41 | GT6: 42 | GU6: 43 | GV6: 44 | GW6: 45 | GX6: 46 | GY6: 47 | GZ6: 48 | HA6: 49 | HC6: AR | HD6: 61 | HE6: 62 | HF6: 63 | HG6: 64 | HH6: 65 | HI6: 66 | HJ6: 67 | HK6: 68 | HL6: 69 | HM6: 610 | HN6: 611 | HO6: 612 | HP6: 613 | HQ6: 614 | HR6: 615 | HS6: 616 | HT6: 617 | HU6: 618 | HV6: 619 | HW6: 620 | HX6: 621 | HY6: 622 | HZ6: 623 | IA6: 624 | IB6: 625 | IC6: 626 | ID6: 627 | IE6: 628 | IF6: 629 | IG6: 630 | IH6: 631 | II6: 632 | IJ6: 633 | IK6: 634 | IL6: 635 | IM6: 636 | IN6: 637 | IO6: 638 | IP6: 639 | IQ6: 640 | IR6: 641 | IS6: 642 | IT6: 643 | IU6: 644 | IV6: 645 | IW6: 646 | IX6: 647 | IY6: 648 | IZ6: 649
A7: 5 | B7: 90.1-2007 | E7: 5 | F7: California | G7: CA | H7: =MATCH(H$2,'2. Time Lag - State Adoption_P'!$G9:$V9,1) -> 6 | I7: =MATCH(I$2,'2. Time Lag - State Adoption_P'!$G9:$V9,1) -> 6 | J7: =MATCH(J$2,'2. Time Lag - State Adoption_P'!$G9:$V9,1) -> 6 | K7: =MATCH(K$2,'2. Time Lag - State Adoption_P'!$G9:$V9,1) -> 6 | L7: =MATCH(L$2,'2. Time Lag - State Adoption_P'!$G9:$V9,1) -> 6 | M7: =MATCH(M$2,'2. Time Lag - State Adoption_P'!$G9:$V9,1) -> 6 | N7: =MATCH(N$2,'2. Time Lag - State Adoption_P'!$G9:$V9,1) -> 6 | O7: =MATCH(O$2,'2. Time Lag - State Adoption_P'!$G9:$V9,1) -> 6 | P7: =MATCH(P$2,'2. Time Lag - State Adoption_P'!$G9:$V9,1) -> 6 | Q7: =MATCH(Q$2,'2. Time Lag - State Adoption_P'!$G9:$V9,1) -> 6 | R7: =MATCH(R$2,'2. Time Lag - State Adoption_P'!$G9:$V9,1) -> 6 | S7: =MATCH(S$2,'2. Time Lag - State Adoption_P'!$G9:$V9,1) -> 6 | T7: =MATCH(T$2,'2. Time Lag - State Adoption_P'!$G9:$V9,1) -> 6 | U7: =MATCH(U$2,'2. Time Lag - State Adoption_P'!$G9:$V9,1) -> 6 | V7: =MATCH(V$2,'2. Time Lag - State Adoption_P'!$G9:$V9,1) -> 6 | W7: =MATCH(W$2,'2. Time Lag - State Adoption_P'!$G9:$V9,1) -> 6 | X7: =MATCH(X$2,'2. Time Lag - State Adoption_P'!$G9:$V9,1) -> 6 | Y7: =MATCH(Y$2,'2. Time Lag - State Adoption_P'!$G9:$V9,1) -> 6 | Z7: =MATCH(Z$2,'2. Time Lag - State Adoption_P'!$G9:$V9,1) -> 6 | AA7: =MATCH(AA$2,'2. Time Lag - State Adoption_P'!$G9:$V9,1) -> 6 | AB7: =MATCH(AB$2,'2. Time Lag - State Adoption_P'!$G9:$V9,1) -> 6 | AC7: =MATCH(AC$2,'2. Time Lag - State Adoption_P'!$G9:$V9,1) -> 6 | AD7: =MATCH(AD$2,'2. Time Lag - State Adoption_P'!$G9:$V9,1) -> 6 | AE7: =MATCH(AE$2,'2. Time Lag - State Adoption_P'!$G9:$V9,1) -> 6 | AF7: =MATCH(AF$2,'2. Time Lag - State Adoption_P'!$G9:$V9,1) -> 6 | AG7: =MATCH(AG$2,'2. Time Lag - State Adoption_P'!$G9:$V9,1) -> 6 | AH7: =MATCH(AH$2,'2. Time Lag - State Adoption_P'!$G9:$V9,1) -> 6 | AI7: =MATCH(AI$2,'2. Time Lag - State Adoption_P'!$G9:$V9,1) -> 6 | AJ7: =MATCH(AJ$2,'2. Time Lag - State Adoption_P'!$G9:$V9,1) -> 6 | AK7: =MATCH(AK$2,'2. Time Lag - State Adoption_P'!$G9:$V9,1) -> 6 | AL7: =MATCH(AL$2,'2. Time Lag - State Adoption_P'!$G9:$V9,1) -> 6 | AM7: =MATCH(AM$2,'2. Time Lag - State Adoption_P'!$G9:$V9,1) -> 6 | AN7: =MATCH(AN$2,'2. Time Lag - State Adoption_P'!$G9:$V9,1) -> 6 | AO7: =MATCH(AO$2,'2. Time Lag - State Adoption_P'!$G9:$V9,1) -> 6 | AP7: =MATCH(AP$2,'2. Time Lag - State Adoption_P'!$G9:$V9,1) -> 6 | AQ7: =MATCH(AQ$2,'2. Time Lag - State Adoption_P'!$G9:$V9,1) -> 6 | AR7: =MATCH(AR$2,'2. Time Lag - State Adoption_P'!$G9:$V9,1) -> 6 | AS7: =MATCH(AS$2,'2. Time Lag - State Adoption_P'!$G9:$V9,1) -> 6 | AT7: =MATCH(AT$2,'2. Time Lag - State Adoption_P'!$G9:$V9,1) -> 6 | AU7: =MATCH(AU$2,'2. Time Lag - State Adoption_P'!$G9:$V9,1) -> 6 | AV7: =MATCH(AV$2,'2. Time Lag - State Adoption_P'!$G9:$V9,1) -> 6 | AW7: =MATCH(AW$2,'2. Time Lag - State Adoption_P'!$G9:$V9,1) -> 6 | AX7: =MATCH(AX$2,'2. Time Lag - State Adoption_P'!$G9:$V9,1) -> 6 | AY7: =MATCH(AY$2,'2. Time Lag - State Adoption_P'!$G9:$V9,1) -> 6 | AZ7: =MATCH(AZ$2,'2. Time Lag - State Adoption_P'!$G9:$V9,1) -> 6 | BA7: =MATCH(BA$2,'2. Time Lag - State Adoption_P'!$G9:$V9,1) -> 6 | BB7: =MATCH(BB$2,'2. Time Lag - State Adoption_P'!$G9:$V9,1) -> 6 | BC7: =MATCH(BC$2,'2. Time Lag - State Adoption_P'!$G9:$V9,1) -> 6 | BD7: =MATCH(BD$2,'2. Time Lag - State Adoption_P'!$G9:$V9,1) -> 6 | BF7: CA | BG7: =INDEX('2. Time Lag - State Adoption_P'!$Y145:$AN145,MATCH(H7,'2. Time Lag - State Adoption_P'!$Y$137:$AN$137,0)) -> 0 | BH7: =INDEX('2. Time Lag - State Adoption_P'!$Y145:$AN145,MATCH(I7,'2. Time Lag - State Adoption_P'!$Y$137:$AN$137,0)) -> 0 | BI7: =INDEX('2. Time Lag - State Adoption_P'!$Y145:$AN145,MATCH(J7,'2. Time Lag - State Adoption_P'!$Y$137:$AN$137,0)) -> 0 | BJ7: =INDEX('2. Time Lag - State Adoption_P'!$Y145:$AN145,MATCH(K7,'2. Time Lag - State Adoption_P'!$Y$137:$AN$137,0)) -> 0 | BK7: =INDEX('2. Time Lag - State Adoption_P'!$Y145:$AN145,MATCH(L7,'2. Time Lag - State Adoption_P'!$Y$137:$AN$137,0)) -> 0 | BL7: =INDEX('2. Time Lag - State Adoption_P'!$Y145:$AN145,MATCH(M7,'2. Time Lag - State Adoption_P'!$Y$137:$AN$137,0)) -> 0 | BM7: =INDEX('2. Time Lag - State Adoption_P'!$Y145:$AN145,MATCH(N7,'2. Time Lag - State Adoption_P'!$Y$137:$AN$137,0)) -> 0 | BN7: =INDEX('2. Time Lag - State Adoption_P'!$Y145:$AN145,MATCH(O7,'2. Time Lag - State Adoption_P'!$Y$137:$AN$137,0)) -> 0 | BO7: =INDEX('2. Time Lag - State Adoption_P'!$Y145:$AN145,MATCH(P7,'2. Time Lag - State Adoption_P'!$Y$137:$AN$137,0)) -> 0 | BP7: =INDEX('2. Time Lag - State Adoption_P'!$Y145:$AN145,MATCH(Q7,'2. Time Lag - State Adoption_P'!$Y$137:$AN$137,0)) -> 0 | BQ7: =INDEX('2. Time Lag - State Adoption_P'!$Y145:$AN145,MATCH(R7,'2. Time Lag - State Adoption_P'!$Y$137:$AN$137,0)) -> 0 | BR7: =INDEX('2. Time Lag - State Adoption_P'!$Y145:$AN145,MATCH(S7,'2. Time Lag - State Adoption_P'!$Y$137:$AN$137,0)) -> 0 | BS7: =INDEX('2. Time Lag - State Adoption_P'!$Y145:$AN145,MATCH(T7,'2. Time Lag - State Adoption_P'!$Y$137:$AN$137,0)) -> 0 | BT7: =INDEX('2. Time Lag - State Adoption_P'!$Y145:$AN145,MATCH(U7,'2. Time Lag - State Adoption_P'!$Y$137:$AN$137,0)) -> 0 | BU7: =INDEX('2. Time Lag - State Adoption_P'!$Y145:$AN145,MATCH(V7,'2. Time Lag - State Adoption_P'!$Y$137:$AN$137,0)) -> 0 | BV7: =INDEX('2. Time Lag - State Adoption_P'!$Y145:$AN145,MATCH(W7,'2. Time Lag - State Adoption_P'!$Y$137:$AN$137,0)) -> 0 | BW7: =INDEX('2. Time Lag - State Adoption_P'!$Y145:$AN145,MATCH(X7,'2. Time Lag - State Adoption_P'!$Y$137:$AN$137,0)) -> 0 | BX7: =INDEX('2. Time Lag - State Adoption_P'!$Y145:$AN145,MATCH(Y7,'2. Time Lag - State Adoption_P'!$Y$137:$AN$137,0)) -> 0 | BY7: =INDEX('2. Time Lag - State Adoption_P'!$Y145:$AN145,MATCH(Z7,'2. Time Lag - State Adoption_P'!$Y$137:$AN$137,0)) -> 0 | BZ7: =INDEX('2. Time Lag - State Adoption_P'!$Y145:$AN145,MATCH(AA7,'2. Time Lag - State Adoption_P'!$Y$137:$AN$137,0)) -> 0 | CA7: =INDEX('2. Time Lag - State Adoption_P'!$Y145:$AN145,MATCH(AB7,'2. Time Lag - State Adoption_P'!$Y$137:$AN$137,0)) -> 0 | CB7: =INDEX('2. Time Lag - State Adoption_P'!$Y145:$AN145,MATCH(AC7,'2. Time Lag - State Adoption_P'!$Y$137:$AN$137,0)) -> 0 | CC7: =INDEX('2. Time Lag - State Adoption_P'!$Y145:$AN145,MATCH(AD7,'2. Time Lag - State Adoption_P'!$Y$137:$AN$137,0)) -> 0 | CD7: =INDEX('2. Time Lag - State Adoption_P'!$Y145:$AN145,MATCH(AE7,'2. Time Lag - State Adoption_P'!$Y$137:$AN$137,0)) -> 0 | CE7: =INDEX('2. Time Lag - State Adoption_P'!$Y145:$AN145,MATCH(AF7,'2. Time Lag - State Adoption_P'!$Y$137:$AN$137,0)) -> 0 | CF7: =INDEX('2. Time Lag - State Adoption_P'!$Y145:$AN145,MATCH(AG7,'2. Time Lag - State Adoption_P'!$Y$137:$AN$137,0)) -> 0 | CG7: =INDEX('2. Time Lag - State Adoption_P'!$Y145:$AN145,MATCH(AH7,'2. Time Lag - State Adoption_P'!$Y$137:$AN$137,0)) -> 0 | CH7: =INDEX('2. Time Lag - State Adoption_P'!$Y145:$AN145,MATCH(AI7,'2. Time Lag - State Adoption_P'!$Y$137:$AN$137,0)) -> 0 | CI7: =INDEX('2. Time Lag - State Adoption_P'!$Y145:$AN145,MATCH(AJ7,'2. Time Lag - State Adoption_P'!$Y$137:$AN$137,0)) -> 0 | CJ7: =INDEX('2. Time Lag - State Adoption_P'!$Y145:$AN145,MATCH(AK7,'2. Time Lag - State Adoption_P'!$Y$137:$AN$137,0)) -> 0 | CK7: =INDEX('2. Time Lag - State Adoption_P'!$Y145:$AN145,MATCH(AL7,'2. Time Lag - State Adoption_P'!$Y$137:$AN$137,0)) -> 0 | CL7: =INDEX('2. Time Lag - State Adoption_P'!$Y145:$AN145,MATCH(AM7,'2. Time Lag - State Adoption_P'!$Y$137:$AN$137,0)) -> 0 | CM7: =INDEX('2. Time Lag - State Adoption_P'!$Y145:$AN145,MATCH(AN7,'2. Time Lag - State Adoption_P'!$Y$137:$AN$137,0)) -> 0 | CN7: =INDEX('2. Time Lag - State Adoption_P'!$Y145:$AN145,MATCH(AO7,'2. Time Lag - State Adoption_P'!$Y$137:$AN$137,0)) -> 0 | CO7: =INDEX('2. Time Lag - State Adoption_P'!$Y145:$AN145,MATCH(AP7,'2. Time Lag - State Adoption_P'!$Y$137:$AN$137,0)) -> 0 | CP7: =INDEX('2. Time Lag - State Adoption_P'!$Y145:$AN145,MATCH(AQ7,'2. Time Lag - State Adoption_P'!$Y$137:$AN$137,0)) -> 0 | CQ7: =INDEX('2. Time Lag - State Adoption_P'!$Y145:$AN145,MATCH(AR7,'2. Time Lag - State Adoption_P'!$Y$137:$AN$137,0)) -> 0 | CR7: =INDEX('2. Time Lag - State Adoption_P'!$Y145:$AN145,MATCH(AS7,'2. Time Lag - State Adoption_P'!$Y$137:$AN$137,0)) -> 0 | CS7: =INDEX('2. Time Lag - State Adoption_P'!$Y145:$AN145,MATCH(AT7,'2. Time Lag - State Adoption_P'!$Y$137:$AN$137,0)) -> 0 | CT7: =INDEX('2. Time Lag - State Adoption_P'!$Y145:$AN145,MATCH(AU7,'2. Time Lag - State Adoption_P'!$Y$137:$AN$137,0)) -> 0 | CU7: =INDEX('2. Time Lag - State Adoption_P'!$Y145:$AN145,MATCH(AV7,'2. Time Lag - State Adoption_P'!$Y$137:$AN$137,0)) -> 0 | CV7: =INDEX('2. Time Lag - State Adoption_P'!$Y145:$AN145,MATCH(AW7,'2. Time Lag - State Adoption_P'!$Y$137:$AN$137,0)) -> 0 | CW7: =INDEX('2. Time Lag - State Adoption_P'!$Y145:$AN145,MATCH(AX7,'2. Time Lag - State Adoption_P'!$Y$137:$AN$137,0)) -> 0 | CX7: =INDEX('2. Time Lag - State Adoption_P'!$Y145:$AN145,MATCH(AY7,'2. Time Lag - State Adoption_P'!$Y$137:$AN$137,0)) -> 0 | CY7: =INDEX('2. Time Lag - State Adoption_P'!$Y145:$AN145,MATCH(AZ7,'2. Time Lag - State Adoption_P'!$Y$137:$AN$137,0)) -> 0 | CZ7: =INDEX('2. Time Lag - State Adoption_P'!$Y145:$AN145,MATCH(BA7,'2. Time Lag - State Adoption_P'!$Y$137:$AN$137,0)) -> 0 | DA7: =INDEX('2. Time Lag - State Adoption_P'!$Y145:$AN145,MATCH(BB7,'2. Time Lag - State Adoption_P'!$Y$137:$AN$137,0)) -> 0 | DB7: =INDEX('2. Time Lag - State Adoption_P'!$Y145:$AN145,MATCH(BC7,'2. Time Lag - State Adoption_P'!$Y$137:$AN$137,0)) -> 0 | DC7: =INDEX('2. Time Lag - State Adoption_P'!$Y145:$AN145,MATCH(BD7,'2. Time Lag - State Adoption_P'!$Y$137:$AN$137,0)) -> 0 | DE7: CA | DF7: =COUNTIF($H7:OFFSET($H7,0,DF$1),H7) -> 1 | DG7: =COUNTIF($H7:OFFSET($H7,0,DG$1),I7) -> 2 | DH7: =COUNTIF($H7:OFFSET($H7,0,DH$1),J7) -> 3 | DI7: =COUNTIF($H7:OFFSET($H7,0,DI$1),K7) -> 4 | DJ7: =COUNTIF($H7:OFFSET($H7,0,DJ$1),L7) -> 5 | DK7: =COUNTIF($H7:OFFSET($H7,0,DK$1),M7) -> 6 | DL7: =COUNTIF($H7:OFFSET($H7,0,DL$1),N7) -> 7 | DM7: =COUNTIF($H7:OFFSET($H7,0,DM$1),O7) -> 8 | DN7: =COUNTIF($H7:OFFSET($H7,0,DN$1),P7) -> 9 | DO7: =COUNTIF($H7:OFFSET($H7,0,DO$1),Q7) -> 10 | DP7: =COUNTIF($H7:OFFSET($H7,0,DP$1),R7) -> 11 | DQ7: =COUNTIF($H7:OFFSET($H7,0,DQ$1),S7) -> 12 | DR7: =COUNTIF($H7:OFFSET($H7,0,DR$1),T7) -> 13 | DS7: =COUNTIF($H7:OFFSET($H7,0,DS$1),U7) -> 14 | DT7: =COUNTIF($H7:OFFSET($H7,0,DT$1),V7) -> 15 | DU7: =COUNTIF($H7:OFFSET($H7,0,DU$1),W7) -> 16 | DV7: =COUNTIF($H7:OFFSET($H7,0,DV$1),X7) -> 17 | DW7: =COUNTIF($H7:OFFSET($H7,0,DW$1),Y7) -> 18 | DX7: =COUNTIF($H7:OFFSET($H7,0,DX$1),Z7) -> 19 | DY7: =COUNTIF($H7:OFFSET($H7,0,DY$1),AA7) -> 20 | DZ7: =COUNTIF($H7:OFFSET($H7,0,DZ$1),AB7) -> 21 | EA7: =COUNTIF($H7:OFFSET($H7,0,EA$1),AC7) -> 22 | EB7: =COUNTIF($H7:OFFSET($H7,0,EB$1),AD7) -> 23 | EC7: =COUNTIF($H7:OFFSET($H7,0,EC$1),AE7) -> 24 | ED7: =COUNTIF($H7:OFFSET($H7,0,ED$1),AF7) -> 25 | EE7: =COUNTIF($H7:OFFSET($H7,0,EE$1),AG7) -> 26 | EF7: =COUNTIF($H7:OFFSET($H7,0,EF$1),AH7) -> 27 | EG7: =COUNTIF($H7:OFFSET($H7,0,EG$1),AI7) -> 28 | EH7: =COUNTIF($H7:OFFSET($H7,0,EH$1),AJ7) -> 29 | EI7: =COUNTIF($H7:OFFSET($H7,0,EI$1),AK7) -> 30 | EJ7: =COUNTIF($H7:OFFSET($H7,0,EJ$1),AL7) -> 31 | EK7: =COUNTIF($H7:OFFSET($H7,0,EK$1),AM7) -> 32 | EL7: =COUNTIF($H7:OFFSET($H7,0,EL$1),AN7) -> 33 | EM7: =COUNTIF($H7:OFFSET($H7,0,EM$1),AO7) -> 34 | EN7: =COUNTIF($H7:OFFSET($H7,0,EN$1),AP7) -> 35 | EO7: =COUNTIF($H7:OFFSET($H7,0,EO$1),AQ7) -> 36 | EP7: =COUNTIF($H7:OFFSET($H7,0,EP$1),AR7) -> 37 | EQ7: =COUNTIF($H7:OFFSET($H7,0,EQ$1),AS7) -> 38 | ER7: =COUNTIF($H7:OFFSET($H7,0,ER$1),AT7) -> 39 | ES7: =COUNTIF($H7:OFFSET($H7,0,ES$1),AU7) -> 40 | ET7: =COUNTIF($H7:OFFSET($H7,0,ET$1),AV7) -> 41 | EU7: =COUNTIF($H7:OFFSET($H7,0,EU$1),AW7) -> 42 | EV7: =COUNTIF($H7:OFFSET($H7,0,EV$1),AX7) -> 43 | EW7: =COUNTIF($H7:OFFSET($H7,0,EW$1),AY7) -> 44 | EX7: =COUNTIF($H7:OFFSET($H7,0,EX$1),AZ7) -> 45 | EY7: =COUNTIF($H7:OFFSET($H7,0,EY$1),BA7) -> 46 | EZ7: =COUNTIF($H7:OFFSET($H7,0,EZ$1),BB7) -> 47 | FA7: =COUNTIF($H7:OFFSET($H7,0,FA$1),BC7) -> 48 | FB7: =COUNTIF($H7:OFFSET($H7,0,FB$1),BD7) -> 49 | FD7: CA | FE7: 1 | FF7: 2 | FG7: 3 | FH7: 4 | FI7: 5 | FJ7: 6 | FK7: 7 | FL7: 8 | FM7: 9 | FN7: 10 | FO7: 11 | FP7: 12 | FQ7: 13 | FR7: 14 | FS7: 15 | FT7: 16 | FU7: 17 | FV7: 18 | FW7: 19 | FX7: 20 | FY7: 21 | FZ7: 22 | GA7: 23 | GB7: 24 | GC7: 25 | GD7: 26 | GE7: 27 | GF7: 28 | GG7: 29 | GH7: 30 | GI7: 31 | GJ7: 32 | GK7: 33 | GL7: 34 | GM7: 35 | GN7: 36 | GO7: 37 | GP7: 38 | GQ7: 39 | GR7: 40 | GS7: 41 | GT7: 42 | GU7: 43 | GV7: 44 | GW7: 45 | GX7: 46 | GY7: 47 | GZ7: 48 | HA7: 49 | HC7: CA | HD7: 61 | HE7: 62 | HF7: 63 | HG7: 64 | HH7: 65 | HI7: 66 | HJ7: 67 | HK7: 68 | HL7: 69 | HM7: 610 | HN7: 611 | HO7: 612 | HP7: 613 | HQ7: 614 | HR7: 615 | HS7: 616 | HT7: 617 | HU7: 618 | HV7: 619 | HW7: 620 | HX7: 621 | HY7: 622 | HZ7: 623 | IA7: 624 | IB7: 625 | IC7: 626 | ID7: 627 | IE7: 628 | IF7: 629 | IG7: 630 | IH7: 631 | II7: 632 | IJ7: 633 | IK7: 634 | IL7: 635 | IM7: 636 | IN7: 637 | IO7: 638 | IP7: 639 | IQ7: 640 | IR7: 641 | IS7: 642 | IT7: 643 | IU7: 644 | IV7: 645 | IW7: 646 | IX7: 647 | IY7: 648 | IZ7: 649
A8: 6 | B8: 90.1-2010 | E8: 6 | F8: Colorado | G8: CO | H8: =MATCH(H$2,'2. Time Lag - State Adoption_P'!$G10:$V10,1) -> 6 | I8: =MATCH(I$2,'2. Time Lag - State Adoption_P'!$G10:$V10,1) -> 6 | J8: =MATCH(J$2,'2. Time Lag - State Adoption_P'!$G10:$V10,1) -> 6 | K8: =MATCH(K$2,'2. Time Lag - State Adoption_P'!$G10:$V10,1) -> 6 | L8: =MATCH(L$2,'2. Time Lag - State Adoption_P'!$G10:$V10,1) -> 6 | M8: =MATCH(M$2,'2. Time Lag - State Adoption_P'!$G10:$V10,1) -> 6 | N8: =MATCH(N$2,'2. Time Lag - State Adoption_P'!$G10:$V10,1) -> 6 | O8: =MATCH(O$2,'2. Time Lag - State Adoption_P'!$G10:$V10,1) -> 6 | P8: =MATCH(P$2,'2. Time Lag - State Adoption_P'!$G10:$V10,1) -> 6 | Q8: =MATCH(Q$2,'2. Time Lag - State Adoption_P'!$G10:$V10,1) -> 6 | R8: =MATCH(R$2,'2. Time Lag - State Adoption_P'!$G10:$V10,1) -> 6 | S8: =MATCH(S$2,'2. Time Lag - State Adoption_P'!$G10:$V10,1) -> 6 | T8: =MATCH(T$2,'2. Time Lag - State Adoption_P'!$G10:$V10,1) -> 6 | U8: =MATCH(U$2,'2. Time Lag - State Adoption_P'!$G10:$V10,1) -> 6 | V8: =MATCH(V$2,'2. Time Lag - State Adoption_P'!$G10:$V10,1) -> 6 | W8: =MATCH(W$2,'2. Time Lag - State Adoption_P'!$G10:$V10,1) -> 6 | X8: =MATCH(X$2,'2. Time Lag - State Adoption_P'!$G10:$V10,1) -> 6 | Y8: =MATCH(Y$2,'2. Time Lag - State Adoption_P'!$G10:$V10,1) -> 6 | Z8: =MATCH(Z$2,'2. Time Lag - State Adoption_P'!$G10:$V10,1) -> 6 | AA8: =MATCH(AA$2,'2. Time Lag - State Adoption_P'!$G10:$V10,1) -> 6 | AB8: =MATCH(AB$2,'2. Time Lag - State Adoption_P'!$G10:$V10,1) -> 6 | AC8: =MATCH(AC$2,'2. Time Lag - State Adoption_P'!$G10:$V10,1) -> 6 | AD8: =MATCH(AD$2,'2. Time Lag - State Adoption_P'!$G10:$V10,1) -> 6 | AE8: =MATCH(AE$2,'2. Time Lag - State Adoption_P'!$G10:$V10,1) -> 6 | AF8: =MATCH(AF$2,'2. Time Lag - State Adoption_P'!$G10:$V10,1) -> 6 | AG8: =MATCH(AG$2,'2. Time Lag - State Adoption_P'!$G10:$V10,1) -> 6 | AH8: =MATCH(AH$2,'2. Time Lag - State Adoption_P'!$G10:$V10,1) -> 6 | AI8: =MATCH(AI$2,'2. Time Lag - State Adoption_P'!$G10:$V10,1) -> 6 | AJ8: =MATCH(AJ$2,'2. Time Lag - State Adoption_P'!$G10:$V10,1) -> 6 | AK8: =MATCH(AK$2,'2. Time Lag - State Adoption_P'!$G10:$V10,1) -> 6 | AL8: =MATCH(AL$2,'2. Time Lag - State Adoption_P'!$G10:$V10,1) -> 6 | AM8: =MATCH(AM$2,'2. Time Lag - State Adoption_P'!$G10:$V10,1) -> 6 | AN8: =MATCH(AN$2,'2. Time Lag - State Adoption_P'!$G10:$V10,1) -> 6 | AO8: =MATCH(AO$2,'2. Time Lag - State Adoption_P'!$G10:$V10,1) -> 6 | AP8: =MATCH(AP$2,'2. Time Lag - State Adoption_P'!$G10:$V10,1) -> 6 | AQ8: =MATCH(AQ$2,'2. Time Lag - State Adoption_P'!$G10:$V10,1) -> 6 | AR8: =MATCH(AR$2,'2. Time Lag - State Adoption_P'!$G10:$V10,1) -> 6 | AS8: =MATCH(AS$2,'2. Time Lag - State Adoption_P'!$G10:$V10,1) -> 6 | AT8: =MATCH(AT$2,'2. Time Lag - State Adoption_P'!$G10:$V10,1) -> 6 | AU8: =MATCH(AU$2,'2. Time Lag - State Adoption_P'!$G10:$V10,1) -> 6 | AV8: =MATCH(AV$2,'2. Time Lag - State Adoption_P'!$G10:$V10,1) -> 6 | AW8: =MATCH(AW$2,'2. Time Lag - State Adoption_P'!$G10:$V10,1) -> 6 | AX8: =MATCH(AX$2,'2. Time Lag - State Adoption_P'!$G10:$V10,1) -> 6 | AY8: =MATCH(AY$2,'2. Time Lag - State Adoption_P'!$G10:$V10,1) -> 6 | AZ8: =MATCH(AZ$2,'2. Time Lag - State Adoption_P'!$G10:$V10,1) -> 6 | BA8: =MATCH(BA$2,'2. Time Lag - State Adoption_P'!$G10:$V10,1) -> 6 | BB8: =MATCH(BB$2,'2. Time Lag - State Adoption_P'!$G10:$V10,1) -> 6 | BC8: =MATCH(BC$2,'2. Time Lag - State Adoption_P'!$G10:$V10,1) -> 6 | BD8: =MATCH(BD$2,'2. Time Lag - State Adoption_P'!$G10:$V10,1) -> 6 | BF8: CO | BG8: =INDEX('2. Time Lag - State Adoption_P'!$Y146:$AN146,MATCH(H8,'2. Time Lag - State Adoption_P'!$Y$137:$AN$137,0)) -> 0 | BH8: =INDEX('2. Time Lag - State Adoption_P'!$Y146:$AN146,MATCH(I8,'2. Time Lag - State Adoption_P'!$Y$137:$AN$137,0)) -> 0 | BI8: =INDEX('2. Time Lag - State Adoption_P'!$Y146:$AN146,MATCH(J8,'2. Time Lag - State Adoption_P'!$Y$137:$AN$137,0)) -> 0 | BJ8: =INDEX('2. Time Lag - State Adoption_P'!$Y146:$AN146,MATCH(K8,'2. Time Lag - State Adoption_P'!$Y$137:$AN$137,0)) -> 0 | BK8: =INDEX('2. Time Lag - State Adoption_P'!$Y146:$AN146,MATCH(L8,'2. Time Lag - State Adoption_P'!$Y$137:$AN$137,0)) -> 0 | BL8: =INDEX('2. Time Lag - State Adoption_P'!$Y146:$AN146,MATCH(M8,'2. Time Lag - State Adoption_P'!$Y$137:$AN$137,0)) -> 0 | BM8: =INDEX('2. Time Lag - State Adoption_P'!$Y146:$AN146,MATCH(N8,'2. Time Lag - State Adoption_P'!$Y$137:$AN$137,0)) -> 0 | BN8: =INDEX('2. Time Lag - State Adoption_P'!$Y146:$AN146,MATCH(O8,'2. Time Lag - State Adoption_P'!$Y$137:$AN$137,0)) -> 0 | BO8: =INDEX('2. Time Lag - State Adoption_P'!$Y146:$AN146,MATCH(P8,'2. Time Lag - State Adoption_P'!$Y$137:$AN$137,0)) -> 0 | BP8: =INDEX('2. Time Lag - State Adoption_P'!$Y146:$AN146,MATCH(Q8,'2. Time Lag - State Adoption_P'!$Y$137:$AN$137,0)) -> 0 | BQ8: =INDEX('2. Time Lag - State Adoption_P'!$Y146:$AN146,MATCH(R8,'2. Time Lag - State Adoption_P'!$Y$137:$AN$137,0)) -> 0 | BR8: =INDEX('2. Time Lag - State Adoption_P'!$Y146:$AN146,MATCH(S8,'2. Time Lag - State Adoption_P'!$Y$137:$AN$137,0)) -> 0 | BS8: =INDEX('2. Time Lag - State Adoption_P'!$Y146:$AN146,MATCH(T8,'2. Time Lag - State Adoption_P'!$Y$137:$AN$137,0)) -> 0 | BT8: =INDEX('2. Time Lag - State Adoption_P'!$Y146:$AN146,MATCH(U8,'2. Time Lag - State Adoption_P'!$Y$137:$AN$137,0)) -> 0 | BU8: =INDEX('2. Time Lag - State Adoption_P'!$Y146:$AN146,MATCH(V8,'2. Time Lag - State Adoption_P'!$Y$137:$AN$137,0)) -> 0 | BV8: =INDEX('2. Time Lag - State Adoption_P'!$Y146:$AN146,MATCH(W8,'2. Time Lag - State Adoption_P'!$Y$137:$AN$137,0)) -> 0 | BW8: =INDEX('2. Time Lag - State Adoption_P'!$Y146:$AN146,MATCH(X8,'2. Time Lag - State Adoption_P'!$Y$137:$AN$137,0)) -> 0 | BX8: =INDEX('2. Time Lag - State Adoption_P'!$Y146:$AN146,MATCH(Y8,'2. Time Lag - State Adoption_P'!$Y$137:$AN$137,0)) -> 0 | BY8: =INDEX('2. Time Lag - State Adoption_P'!$Y146:$AN146,MATCH(Z8,'2. Time Lag - State Adoption_P'!$Y$137:$AN$137,0)) -> 0 | BZ8: =INDEX('2. Time Lag - State Adoption_P'!$Y146:$AN146,MATCH(AA8,'2. Time Lag - State Adoption_P'!$Y$137:$AN$137,0)) -> 0 | CA8: =INDEX('2. Time Lag - State Adoption_P'!$Y146:$AN146,MATCH(AB8,'2. Time Lag - State Adoption_P'!$Y$137:$AN$137,0)) -> 0 | CB8: =INDEX('2. Time Lag - State Adoption_P'!$Y146:$AN146,MATCH(AC8,'2. Time Lag - State Adoption_P'!$Y$137:$AN$137,0)) -> 0 | CC8: =INDEX('2. Time Lag - State Adoption_P'!$Y146:$AN146,MATCH(AD8,'2. Time Lag - State Adoption_P'!$Y$137:$AN$137,0)) -> 0 | CD8: =INDEX('2. Time Lag - State Adoption_P'!$Y146:$AN146,MATCH(AE8,'2. Time Lag - State Adoption_P'!$Y$137:$AN$137,0)) -> 0 | CE8: =INDEX('2. Time Lag - State Adoption_P'!$Y146:$AN146,MATCH(AF8,'2. Time Lag - State Adoption_P'!$Y$137:$AN$137,0)) -> 0 | CF8: =INDEX('2. Time Lag - State Adoption_P'!$Y146:$AN146,MATCH(AG8,'2. Time Lag - State Adoption_P'!$Y$137:$AN$137,0)) -> 0 | CG8: =INDEX('2. Time Lag - State Adoption_P'!$Y146:$AN146,MATCH(AH8,'2. Time Lag - State Adoption_P'!$Y$137:$AN$137,0)) -> 0 | CH8: =INDEX('2. Time Lag - State Adoption_P'!$Y146:$AN146,MATCH(AI8,'2. Time Lag - State Adoption_P'!$Y$137:$AN$137,0)) -> 0 | CI8: =INDEX('2. Time Lag - State Adoption_P'!$Y146:$AN146,MATCH(AJ8,'2. Time Lag - State Adoption_P'!$Y$137:$AN$137,0)) -> 0 | CJ8: =INDEX('2. Time Lag - State Adoption_P'!$Y146:$AN146,MATCH(AK8,'2. Time Lag - State Adoption_P'!$Y$137:$AN$137,0)) -> 0 | CK8: =INDEX('2. Time Lag - State Adoption_P'!$Y146:$AN146,MATCH(AL8,'2. Time Lag - State Adoption_P'!$Y$137:$AN$137,0)) -> 0 | CL8: =INDEX('2. Time Lag - State Adoption_P'!$Y146:$AN146,MATCH(AM8,'2. Time Lag - State Adoption_P'!$Y$137:$AN$137,0)) -> 0 | CM8: =INDEX('2. Time Lag - State Adoption_P'!$Y146:$AN146,MATCH(AN8,'2. Time Lag - State Adoption_P'!$Y$137:$AN$137,0)) -> 0 | CN8: =INDEX('2. Time Lag - State Adoption_P'!$Y146:$AN146,MATCH(AO8,'2. Time Lag - State Adoption_P'!$Y$137:$AN$137,0)) -> 0 | CO8: =INDEX('2. Time Lag - State Adoption_P'!$Y146:$AN146,MATCH(AP8,'2. Time Lag - State Adoption_P'!$Y$137:$AN$137,0)) -> 0 | CP8: =INDEX('2. Time Lag - State Adoption_P'!$Y146:$AN146,MATCH(AQ8,'2. Time Lag - State Adoption_P'!$Y$137:$AN$137,0)) -> 0 | CQ8: =INDEX('2. Time Lag - State Adoption_P'!$Y146:$AN146,MATCH(AR8,'2. Time Lag - State Adoption_P'!$Y$137:$AN$137,0)) -> 0 | CR8: =INDEX('2. Time Lag - State Adoption_P'!$Y146:$AN146,MATCH(AS8,'2. Time Lag - State Adoption_P'!$Y$137:$AN$137,0)) -> 0 | CS8: =INDEX('2. Time Lag - State Adoption_P'!$Y146:$AN146,MATCH(AT8,'2. Time Lag - State Adoption_P'!$Y$137:$AN$137,0)) -> 0 | CT8: =INDEX('2. Time Lag - State Adoption_P'!$Y146:$AN146,MATCH(AU8,'2. Time Lag - State Adoption_P'!$Y$137:$AN$137,0)) -> 0 | CU8: =INDEX('2. Time Lag - State Adoption_P'!$Y146:$AN146,MATCH(AV8,'2. Time Lag - State Adoption_P'!$Y$137:$AN$137,0)) -> 0 | CV8: =INDEX('2. Time Lag - State Adoption_P'!$Y146:$AN146,MATCH(AW8,'2. Time Lag - State Adoption_P'!$Y$137:$AN$137,0)) -> 0 | CW8: =INDEX('2. Time Lag - State Adoption_P'!$Y146:$AN146,MATCH(AX8,'2. Time Lag - State Adoption_P'!$Y$137:$AN$137,0)) -> 0 | CX8: =INDEX('2. Time Lag - State Adoption_P'!$Y146:$AN146,MATCH(AY8,'2. Time Lag - State Adoption_P'!$Y$137:$AN$137,0)) -> 0 | CY8: =INDEX('2. Time Lag - State Adoption_P'!$Y146:$AN146,MATCH(AZ8,'2. Time Lag - State Adoption_P'!$Y$137:$AN$137,0)) -> 0 | CZ8: =INDEX('2. Time Lag - State Adoption_P'!$Y146:$AN146,MATCH(BA8,'2. Time Lag - State Adoption_P'!$Y$137:$AN$137,0)) -> 0 | DA8: =INDEX('2. Time Lag - State Adoption_P'!$Y146:$AN146,MATCH(BB8,'2. Time Lag - State Adoption_P'!$Y$137:$AN$137,0)) -> 0 | DB8: =INDEX('2. Time Lag - State Adoption_P'!$Y146:$AN146,MATCH(BC8,'2. Time Lag - State Adoption_P'!$Y$137:$AN$137,0)) -> 0 | DC8: =INDEX('2. Time Lag - State Adoption_P'!$Y146:$AN146,MATCH(BD8,'2. Time Lag - State Adoption_P'!$Y$137:$AN$137,0)) -> 0 | DE8: CO | DF8: =COUNTIF($H8:OFFSET($H8,0,DF$1),H8) -> 1 | DG8: =COUNTIF($H8:OFFSET($H8,0,DG$1),I8) -> 2 | DH8: =COUNTIF($H8:OFFSET($H8,0,DH$1),J8) -> 3 | DI8: =COUNTIF($H8:OFFSET($H8,0,DI$1),K8) -> 4 | DJ8: =COUNTIF($H8:OFFSET($H8,0,DJ$1),L8) -> 5 | DK8: =COUNTIF($H8:OFFSET($H8,0,DK$1),M8) -> 6 | DL8: =COUNTIF($H8:OFFSET($H8,0,DL$1),N8) -> 7 | DM8: =COUNTIF($H8:OFFSET($H8,0,DM$1),O8) -> 8 | DN8: =COUNTIF($H8:OFFSET($H8,0,DN$1),P8) -> 9 | DO8: =COUNTIF($H8:OFFSET($H8,0,DO$1),Q8) -> 10 | DP8: =COUNTIF($H8:OFFSET($H8,0,DP$1),R8) -> 11 | DQ8: =COUNTIF($H8:OFFSET($H8,0,DQ$1),S8) -> 12 | DR8: =COUNTIF($H8:OFFSET($H8,0,DR$1),T8) -> 13 | DS8: =COUNTIF($H8:OFFSET($H8,0,DS$1),U8) -> 14 | DT8: =COUNTIF($H8:OFFSET($H8,0,DT$1),V8) -> 15 | DU8: =COUNTIF($H8:OFFSET($H8,0,DU$1),W8) -> 16 | DV8: =COUNTIF($H8:OFFSET($H8,0,DV$1),X8) -> 17 | DW8: =COUNTIF($H8:OFFSET($H8,0,DW$1),Y8) -> 18 | DX8: =COUNTIF($H8:OFFSET($H8,0,DX$1),Z8) -> 19 | DY8: =COUNTIF($H8:OFFSET($H8,0,DY$1),AA8) -> 20 | DZ8: =COUNTIF($H8:OFFSET($H8,0,DZ$1),AB8) -> 21 | EA8: =COUNTIF($H8:OFFSET($H8,0,EA$1),AC8) -> 22 | EB8: =COUNTIF($H8:OFFSET($H8,0,EB$1),AD8) -> 23 | EC8: =COUNTIF($H8:OFFSET($H8,0,EC$1),AE8) -> 24 | ED8: =COUNTIF($H8:OFFSET($H8,0,ED$1),AF8) -> 25 | EE8: =COUNTIF($H8:OFFSET($H8,0,EE$1),AG8) -> 26 | EF8: =COUNTIF($H8:OFFSET($H8,0,EF$1),AH8) -> 27 | EG8: =COUNTIF($H8:OFFSET($H8,0,EG$1),AI8) -> 28 | EH8: =COUNTIF($H8:OFFSET($H8,0,EH$1),AJ8) -> 29 | EI8: =COUNTIF($H8:OFFSET($H8,0,EI$1),AK8) -> 30 | EJ8: =COUNTIF($H8:OFFSET($H8,0,EJ$1),AL8) -> 31 | EK8: =COUNTIF($H8:OFFSET($H8,0,EK$1),AM8) -> 32 | EL8: =COUNTIF($H8:OFFSET($H8,0,EL$1),AN8) -> 33 | EM8: =COUNTIF($H8:OFFSET($H8,0,EM$1),AO8) -> 34 | EN8: =COUNTIF($H8:OFFSET($H8,0,EN$1),AP8) -> 35 | EO8: =COUNTIF($H8:OFFSET($H8,0,EO$1),AQ8) -> 36 | EP8: =COUNTIF($H8:OFFSET($H8,0,EP$1),AR8) -> 37 | EQ8: =COUNTIF($H8:OFFSET($H8,0,EQ$1),AS8) -> 38 | ER8: =COUNTIF($H8:OFFSET($H8,0,ER$1),AT8) -> 39 | ES8: =COUNTIF($H8:OFFSET($H8,0,ES$1),AU8) -> 40 | ET8: =COUNTIF($H8:OFFSET($H8,0,ET$1),AV8) -> 41 | EU8: =COUNTIF($H8:OFFSET($H8,0,EU$1),AW8) -> 42 | EV8: =COUNTIF($H8:OFFSET($H8,0,EV$1),AX8) -> 43 | EW8: =COUNTIF($H8:OFFSET($H8,0,EW$1),AY8) -> 44 | EX8: =COUNTIF($H8:OFFSET($H8,0,EX$1),AZ8) -> 45 | EY8: =COUNTIF($H8:OFFSET($H8,0,EY$1),BA8) -> 46 | EZ8: =COUNTIF($H8:OFFSET($H8,0,EZ$1),BB8) -> 47 | FA8: =COUNTIF($H8:OFFSET($H8,0,FA$1),BC8) -> 48 | FB8: =COUNTIF($H8:OFFSET($H8,0,FB$1),BD8) -> 49 | FD8: CO | FE8: 1 | FF8: 2 | FG8: 3 | FH8: 4 | FI8: 5 | FJ8: 6 | FK8: 7 | FL8: 8 | FM8: 9 | FN8: 10 | FO8: 11 | FP8: 12 | FQ8: 13 | FR8: 14 | FS8: 15 | FT8: 16 | FU8: 17 | FV8: 18 | FW8: 19 | FX8: 20 | FY8: 21 | FZ8: 22 | GA8: 23 | GB8: 24 | GC8: 25 | GD8: 26 | GE8: 27 | GF8: 28 | GG8: 29 | GH8: 30 | GI8: 31 | GJ8: 32 | GK8: 33 | GL8: 34 | GM8: 35 | GN8: 36 | GO8: 37 | GP8: 38 | GQ8: 39 | GR8: 40 | GS8: 41 | GT8: 42 | GU8: 43 | GV8: 44 | GW8: 45 | GX8: 46 | GY8: 47 | GZ8: 48 | HA8: 49 | HC8: CO | HD8: 61 | HE8: 62 | HF8: 63 | HG8: 64 | HH8: 65 | HI8: 66 | HJ8: 67 | HK8: 68 | HL8: 69 | HM8: 610 | HN8: 611 | HO8: 612 | HP8: 613 | HQ8: 614 | HR8: 615 | HS8: 616 | HT8: 617 | HU8: 618 | HV8: 619 | HW8: 620 | HX8: 621 | HY8: 622 | HZ8: 623 | IA8: 624 | IB8: 625 | IC8: 626 | ID8: 627 | IE8: 628 | IF8: 629 | IG8: 630 | IH8: 631 | II8: 632 | IJ8: 633 | IK8: 634 | IL8: 635 | IM8: 636 | IN8: 637 | IO8: 638 | IP8: 639 | IQ8: 640 | IR8: 641 | IS8: 642 | IT8: 643 | IU8: 644 | IV8: 645 | IW8: 646 | IX8: 647 | IY8: 648 | IZ8: 649
A9: 7 | B9: 90.1-2013 | E9: 7 | F9: Connecticut | G9: CT | H9: =MATCH(H$2,'2. Time Lag - State Adoption_P'!$G11:$V11,1) -> 6 | I9: =MATCH(I$2,'2. Time Lag - State Adoption_P'!$G11:$V11,1) -> 6 | J9: =MATCH(J$2,'2. Time Lag - State Adoption_P'!$G11:$V11,1) -> 6 | K9: =MATCH(K$2,'2. Time Lag - State Adoption_P'!$G11:$V11,1) -> 6 | L9: =MATCH(L$2,'2. Time Lag - State Adoption_P'!$G11:$V11,1) -> 6 | M9: =MATCH(M$2,'2. Time Lag - State Adoption_P'!$G11:$V11,1) -> 6 | N9: =MATCH(N$2,'2. Time Lag - State Adoption_P'!$G11:$V11,1) -> 6 | O9: =MATCH(O$2,'2. Time Lag - State Adoption_P'!$G11:$V11,1) -> 6 | P9: =MATCH(P$2,'2. Time Lag - State Adoption_P'!$G11:$V11,1) -> 6 | Q9: =MATCH(Q$2,'2. Time Lag - State Adoption_P'!$G11:$V11,1) -> 6 | R9: =MATCH(R$2,'2. Time Lag - State Adoption_P'!$G11:$V11,1) -> 6 | S9: =MATCH(S$2,'2. Time Lag - State Adoption_P'!$G11:$V11,1) -> 6 | T9: =MATCH(T$2,'2. Time Lag - State Adoption_P'!$G11:$V11,1) -> 6 | U9: =MATCH(U$2,'2. Time Lag - State Adoption_P'!$G11:$V11,1) -> 6 | V9: =MATCH(V$2,'2. Time Lag - State Adoption_P'!$G11:$V11,1) -> 6 | W9: =MATCH(W$2,'2. Time Lag - State Adoption_P'!$G11:$V11,1) -> 6 | X9: =MATCH(X$2,'2. Time Lag - State Adoption_P'!$G11:$V11,1) -> 6 | Y9: =MATCH(Y$2,'2. Time Lag - State Adoption_P'!$G11:$V11,1) -> 6 | Z9: =MATCH(Z$2,'2. Time Lag - State Adoption_P'!$G11:$V11,1) -> 6 | AA9: =MATCH(AA$2,'2. Time Lag - State Adoption_P'!$G11:$V11,1) -> 6 | AB9: =MATCH(AB$2,'2. Time Lag - State Adoption_P'!$G11:$V11,1) -> 6 | AC9: =MATCH(AC$2,'2. Time Lag - State Adoption_P'!$G11:$V11,1) -> 6 | AD9: =MATCH(AD$2,'2. Time Lag - State Adoption_P'!$G11:$V11,1) -> 6 | AE9: =MATCH(AE$2,'2. Time Lag - State Adoption_P'!$G11:$V11,1) -> 6 | AF9: =MATCH(AF$2,'2. Time Lag - State Adoption_P'!$G11:$V11,1) -> 6 | AG9: =MATCH(AG$2,'2. Time Lag - State Adoption_P'!$G11:$V11,1) -> 6 | AH9: =MATCH(AH$2,'2. Time Lag - State Adoption_P'!$G11:$V11,1) -> 6 | AI9: =MATCH(AI$2,'2. Time Lag - State Adoption_P'!$G11:$V11,1) -> 6 | AJ9: =MATCH(AJ$2,'2. Time Lag - State Adoption_P'!$G11:$V11,1) -> 6 | AK9: =MATCH(AK$2,'2. Time Lag - State Adoption_P'!$G11:$V11,1) -> 6 | AL9: =MATCH(AL$2,'2. Time Lag - State Adoption_P'!$G11:$V11,1) -> 6 | AM9: =MATCH(AM$2,'2. Time Lag - State Adoption_P'!$G11:$V11,1) -> 6 | AN9: =MATCH(AN$2,'2. Time Lag - State Adoption_P'!$G11:$V11,1) -> 6 | AO9: =MATCH(AO$2,'2. Time Lag - State Adoption_P'!$G11:$V11,1) -> 6 | AP9: =MATCH(AP$2,'2. Time Lag - State Adoption_P'!$G11:$V11,1) -> 6 | AQ9: =MATCH(AQ$2,'2. Time Lag - State Adoption_P'!$G11:$V11,1) -> 6 | AR9: =MATCH(AR$2,'2. Time Lag - State Adoption_P'!$G11:$V11,1) -> 6 | AS9: =MATCH(AS$2,'2. Time Lag - State Adoption_P'!$G11:$V11,1) -> 6 | AT9: =MATCH(AT$2,'2. Time Lag - State Adoption_P'!$G11:$V11,1) -> 6 | AU9: =MATCH(AU$2,'2. Time Lag - State Adoption_P'!$G11:$V11,1) -> 6 | AV9: =MATCH(AV$2,'2. Time Lag - State Adoption_P'!$G11:$V11,1) -> 6 | AW9: =MATCH(AW$2,'2. Time Lag - State Adoption_P'!$G11:$V11,1) -> 6 | AX9: =MATCH(AX$2,'2. Time Lag - State Adoption_P'!$G11:$V11,1) -> 6 | AY9: =MATCH(AY$2,'2. Time Lag - State Adoption_P'!$G11:$V11,1) -> 6 | AZ9: =MATCH(AZ$2,'2. Time Lag - State Adoption_P'!$G11:$V11,1) -> 6 | BA9: =MATCH(BA$2,'2. Time Lag - State Adoption_P'!$G11:$V11,1) -> 6 | BB9: =MATCH(BB$2,'2. Time Lag - State Adoption_P'!$G11:$V11,1) -> 6 | BC9: =MATCH(BC$2,'2. Time Lag - State Adoption_P'!$G11:$V11,1) -> 6 | BD9: =MATCH(BD$2,'2. Time Lag - State Adoption_P'!$G11:$V11,1) -> 6 | BF9: CT | BG9: =INDEX('2. Time Lag - State Adoption_P'!$Y147:$AN147,MATCH(H9,'2. Time Lag - State Adoption_P'!$Y$137:$AN$137,0)) -> 0 | BH9: =INDEX('2. Time Lag - State Adoption_P'!$Y147:$AN147,MATCH(I9,'2. Time Lag - State Adoption_P'!$Y$137:$AN$137,0)) -> 0 | BI9: =INDEX('2. Time Lag - State Adoption_P'!$Y147:$AN147,MATCH(J9,'2. Time Lag - State Adoption_P'!$Y$137:$AN$137,0)) -> 0 | BJ9: =INDEX('2. Time Lag - State Adoption_P'!$Y147:$AN147,MATCH(K9,'2. Time Lag - State Adoption_P'!$Y$137:$AN$137,0)) -> 0 | BK9: =INDEX('2. Time Lag - State Adoption_P'!$Y147:$AN147,MATCH(L9,'2. Time Lag - State Adoption_P'!$Y$137:$AN$137,0)) -> 0 | BL9: =INDEX('2. Time Lag - State Adoption_P'!$Y147:$AN147,MATCH(M9,'2. Time Lag - State Adoption_P'!$Y$137:$AN$137,0)) -> 0 | BM9: =INDEX('2. Time Lag - State Adoption_P'!$Y147:$AN147,MATCH(N9,'2. Time Lag - State Adoption_P'!$Y$137:$AN$137,0)) -> 0 | BN9: =INDEX('2. Time Lag - State Adoption_P'!$Y147:$AN147,MATCH(O9,'2. Time Lag - State Adoption_P'!$Y$137:$AN$137,0)) -> 0 | BO9: =INDEX('2. Time Lag - State Adoption_P'!$Y147:$AN147,MATCH(P9,'2. Time Lag - State Adoption_P'!$Y$137:$AN$137,0)) -> 0 | BP9: =INDEX('2. Time Lag - State Adoption_P'!$Y147:$AN147,MATCH(Q9,'2. Time Lag - State Adoption_P'!$Y$137:$AN$137,0)) -> 0 | BQ9: =INDEX('2. Time Lag - State Adoption_P'!$Y147:$AN147,MATCH(R9,'2. Time Lag - State Adoption_P'!$Y$137:$AN$137,0)) -> 0 | BR9: =INDEX('2. Time Lag - State Adoption_P'!$Y147:$AN147,MATCH(S9,'2. Time Lag - State Adoption_P'!$Y$137:$AN$137,0)) -> 0 | BS9: =INDEX('2. Time Lag - State Adoption_P'!$Y147:$AN147,MATCH(T9,'2. Time Lag - State Adoption_P'!$Y$137:$AN$137,0)) -> 0 | BT9: =INDEX('2. Time Lag - State Adoption_P'!$Y147:$AN147,MATCH(U9,'2. Time Lag - State Adoption_P'!$Y$137:$AN$137,0)) -> 0 | BU9: =INDEX('2. Time Lag - State Adoption_P'!$Y147:$AN147,MATCH(V9,'2. Time Lag - State Adoption_P'!$Y$137:$AN$137,0)) -> 0 | BV9: =INDEX('2. Time Lag - State Adoption_P'!$Y147:$AN147,MATCH(W9,'2. Time Lag - State Adoption_P'!$Y$137:$AN$137,0)) -> 0 | BW9: =INDEX('2. Time Lag - State Adoption_P'!$Y147:$AN147,MATCH(X9,'2. Time Lag - State Adoption_P'!$Y$137:$AN$137,0)) -> 0 | BX9: =INDEX('2. Time Lag - State Adoption_P'!$Y147:$AN147,MATCH(Y9,'2. Time Lag - State Adoption_P'!$Y$137:$AN$137,0)) -> 0 | BY9: =INDEX('2. Time Lag - State Adoption_P'!$Y147:$AN147,MATCH(Z9,'2. Time Lag - State Adoption_P'!$Y$137:$AN$137,0)) -> 0 | BZ9: =INDEX('2. Time Lag - State Adoption_P'!$Y147:$AN147,MATCH(AA9,'2. Time Lag - State Adoption_P'!$Y$137:$AN$137,0)) -> 0 | CA9: =INDEX('2. Time Lag - State Adoption_P'!$Y147:$AN147,MATCH(AB9,'2. Time Lag - State Adoption_P'!$Y$137:$AN$137,0)) -> 0 | CB9: =INDEX('2. Time Lag - State Adoption_P'!$Y147:$AN147,MATCH(AC9,'2. Time Lag - State Adoption_P'!$Y$137:$AN$137,0)) -> 0 | CC9: =INDEX('2. Time Lag - State Adoption_P'!$Y147:$AN147,MATCH(AD9,'2. Time Lag - State Adoption_P'!$Y$137:$AN$137,0)) -> 0 | CD9: =INDEX('2. Time Lag - State Adoption_P'!$Y147:$AN147,MATCH(AE9,'2. Time Lag - State Adoption_P'!$Y$137:$AN$137,0)) -> 0 | CE9: =INDEX('2. Time Lag - State Adoption_P'!$Y147:$AN147,MATCH(AF9,'2. Time Lag - State Adoption_P'!$Y$137:$AN$137,0)) -> 0 | CF9: =INDEX('2. Time Lag - State Adoption_P'!$Y147:$AN147,MATCH(AG9,'2. Time Lag - State Adoption_P'!$Y$137:$AN$137,0)) -> 0 | CG9: =INDEX('2. Time Lag - State Adoption_P'!$Y147:$AN147,MATCH(AH9,'2. Time Lag - State Adoption_P'!$Y$137:$AN$137,0)) -> 0 | CH9: =INDEX('2. Time Lag - State Adoption_P'!$Y147:$AN147,MATCH(AI9,'2. Time Lag - State Adoption_P'!$Y$137:$AN$137,0)) -> 0 | CI9: =INDEX('2. Time Lag - State Adoption_P'!$Y147:$AN147,MATCH(AJ9,'2. Time Lag - State Adoption_P'!$Y$137:$AN$137,0)) -> 0 | CJ9: =INDEX('2. Time Lag - State Adoption_P'!$Y147:$AN147,MATCH(AK9,'2. Time Lag - State Adoption_P'!$Y$137:$AN$137,0)) -> 0 | CK9: =INDEX('2. Time Lag - State Adoption_P'!$Y147:$AN147,MATCH(AL9,'2. Time Lag - State Adoption_P'!$Y$137:$AN$137,0)) -> 0 | CL9: =INDEX('2. Time Lag - State Adoption_P'!$Y147:$AN147,MATCH(AM9,'2. Time Lag - State Adoption_P'!$Y$137:$AN$137,0)) -> 0 | CM9: =INDEX('2. Time Lag - State Adoption_P'!$Y147:$AN147,MATCH(AN9,'2. Time Lag - State Adoption_P'!$Y$137:$AN$137,0)) -> 0 | CN9: =INDEX('2. Time Lag - State Adoption_P'!$Y147:$AN147,MATCH(AO9,'2. Time Lag - State Adoption_P'!$Y$137:$AN$137,0)) -> 0 | CO9: =INDEX('2. Time Lag - State Adoption_P'!$Y147:$AN147,MATCH(AP9,'2. Time Lag - State Adoption_P'!$Y$137:$AN$137,0)) -> 0 | CP9: =INDEX('2. Time Lag - State Adoption_P'!$Y147:$AN147,MATCH(AQ9,'2. Time Lag - State Adoption_P'!$Y$137:$AN$137,0)) -> 0 | CQ9: =INDEX('2. Time Lag - State Adoption_P'!$Y147:$AN147,MATCH(AR9,'2. Time Lag - State Adoption_P'!$Y$137:$AN$137,0)) -> 0 | CR9: =INDEX('2. Time Lag - State Adoption_P'!$Y147:$AN147,MATCH(AS9,'2. Time Lag - State Adoption_P'!$Y$137:$AN$137,0)) -> 0 | CS9: =INDEX('2. Time Lag - State Adoption_P'!$Y147:$AN147,MATCH(AT9,'2. Time Lag - State Adoption_P'!$Y$137:$AN$137,0)) -> 0 | CT9: =INDEX('2. Time Lag - State Adoption_P'!$Y147:$AN147,MATCH(AU9,'2. Time Lag - State Adoption_P'!$Y$137:$AN$137,0)) -> 0 | CU9: =INDEX('2. Time Lag - State Adoption_P'!$Y147:$AN147,MATCH(AV9,'2. Time Lag - State Adoption_P'!$Y$137:$AN$137,0)) -> 0 | CV9: =INDEX('2. Time Lag - State Adoption_P'!$Y147:$AN147,MATCH(AW9,'2. Time Lag - State Adoption_P'!$Y$137:$AN$137,0)) -> 0 | CW9: =INDEX('2. Time Lag - State Adoption_P'!$Y147:$AN147,MATCH(AX9,'2. Time Lag - State Adoption_P'!$Y$137:$AN$137,0)) -> 0 | CX9: =INDEX('2. Time Lag - State Adoption_P'!$Y147:$AN147,MATCH(AY9,'2. Time Lag - State Adoption_P'!$Y$137:$AN$137,0)) -> 0 | CY9: =INDEX('2. Time Lag - State Adoption_P'!$Y147:$AN147,MATCH(AZ9,'2. Time Lag - State Adoption_P'!$Y$137:$AN$137,0)) -> 0 | CZ9: =INDEX('2. Time Lag - State Adoption_P'!$Y147:$AN147,MATCH(BA9,'2. Time Lag - State Adoption_P'!$Y$137:$AN$137,0)) -> 0 | DA9: =INDEX('2. Time Lag - State Adoption_P'!$Y147:$AN147,MATCH(BB9,'2. Time Lag - State Adoption_P'!$Y$137:$AN$137,0)) -> 0 | DB9: =INDEX('2. Time Lag - State Adoption_P'!$Y147:$AN147,MATCH(BC9,'2. Time Lag - State Adoption_P'!$Y$137:$AN$137,0)) -> 0 | DC9: =INDEX('2. Time Lag - State Adoption_P'!$Y147:$AN147,MATCH(BD9,'2. Time Lag - State Adoption_P'!$Y$137:$AN$137,0)) -> 0 | DE9: CT | DF9: =COUNTIF($H9:OFFSET($H9,0,DF$1),H9) -> 1 | DG9: =COUNTIF($H9:OFFSET($H9,0,DG$1),I9) -> 2 | DH9: =COUNTIF($H9:OFFSET($H9,0,DH$1),J9) -> 3 | DI9: =COUNTIF($H9:OFFSET($H9,0,DI$1),K9) -> 4 | DJ9: =COUNTIF($H9:OFFSET($H9,0,DJ$1),L9) -> 5 | DK9: =COUNTIF($H9:OFFSET($H9,0,DK$1),M9) -> 6 | DL9: =COUNTIF($H9:OFFSET($H9,0,DL$1),N9) -> 7 | DM9: =COUNTIF($H9:OFFSET($H9,0,DM$1),O9) -> 8 | DN9: =COUNTIF($H9:OFFSET($H9,0,DN$1),P9) -> 9 | DO9: =COUNTIF($H9:OFFSET($H9,0,DO$1),Q9) -> 10 | DP9: =COUNTIF($H9:OFFSET($H9,0,DP$1),R9) -> 11 | DQ9: =COUNTIF($H9:OFFSET($H9,0,DQ$1),S9) -> 12 | DR9: =COUNTIF($H9:OFFSET($H9,0,DR$1),T9) -> 13 | DS9: =COUNTIF($H9:OFFSET($H9,0,DS$1),U9) -> 14 | DT9: =COUNTIF($H9:OFFSET($H9,0,DT$1),V9) -> 15 | DU9: =COUNTIF($H9:OFFSET($H9,0,DU$1),W9) -> 16 | DV9: =COUNTIF($H9:OFFSET($H9,0,DV$1),X9) -> 17 | DW9: =COUNTIF($H9:OFFSET($H9,0,DW$1),Y9) -> 18 | DX9: =COUNTIF($H9:OFFSET($H9,0,DX$1),Z9) -> 19 | DY9: =COUNTIF($H9:OFFSET($H9,0,DY$1),AA9) -> 20 | DZ9: =COUNTIF($H9:OFFSET($H9,0,DZ$1),AB9) -> 21 | EA9: =COUNTIF($H9:OFFSET($H9,0,EA$1),AC9) -> 22 | EB9: =COUNTIF($H9:OFFSET($H9,0,EB$1),AD9) -> 23 | EC9: =COUNTIF($H9:OFFSET($H9,0,EC$1),AE9) -> 24 | ED9: =COUNTIF($H9:OFFSET($H9,0,ED$1),AF9) -> 25 | EE9: =COUNTIF($H9:OFFSET($H9,0,EE$1),AG9) -> 26 | EF9: =COUNTIF($H9:OFFSET($H9,0,EF$1),AH9) -> 27 | EG9: =COUNTIF($H9:OFFSET($H9,0,EG$1),AI9) -> 28 | EH9: =COUNTIF($H9:OFFSET($H9,0,EH$1),AJ9) -> 29 | EI9: =COUNTIF($H9:OFFSET($H9,0,EI$1),AK9) -> 30 | EJ9: =COUNTIF($H9:OFFSET($H9,0,EJ$1),AL9) -> 31 | EK9: =COUNTIF($H9:OFFSET($H9,0,EK$1),AM9) -> 32 | EL9: =COUNTIF($H9:OFFSET($H9,0,EL$1),AN9) -> 33 | EM9: =COUNTIF($H9:OFFSET($H9,0,EM$1),AO9) -> 34 | EN9: =COUNTIF($H9:OFFSET($H9,0,EN$1),AP9) -> 35 | EO9: =COUNTIF($H9:OFFSET($H9,0,EO$1),AQ9) -> 36 | EP9: =COUNTIF($H9:OFFSET($H9,0,EP$1),AR9) -> 37 | EQ9: =COUNTIF($H9:OFFSET($H9,0,EQ$1),AS9) -> 38 | ER9: =COUNTIF($H9:OFFSET($H9,0,ER$1),AT9) -> 39 | ES9: =COUNTIF($H9:OFFSET($H9,0,ES$1),AU9) -> 40 | ET9: =COUNTIF($H9:OFFSET($H9,0,ET$1),AV9) -> 41 | EU9: =COUNTIF($H9:OFFSET($H9,0,EU$1),AW9) -> 42 | EV9: =COUNTIF($H9:OFFSET($H9,0,EV$1),AX9) -> 43 | EW9: =COUNTIF($H9:OFFSET($H9,0,EW$1),AY9) -> 44 | EX9: =COUNTIF($H9:OFFSET($H9,0,EX$1),AZ9) -> 45 | EY9: =COUNTIF($H9:OFFSET($H9,0,EY$1),BA9) -> 46 | EZ9: =COUNTIF($H9:OFFSET($H9,0,EZ$1),BB9) -> 47 | FA9: =COUNTIF($H9:OFFSET($H9,0,FA$1),BC9) -> 48 | FB9: =COUNTIF($H9:OFFSET($H9,0,FB$1),BD9) -> 49 | FD9: CT | FE9: 1 | FF9: 2 | FG9: 3 | FH9: 4 | FI9: 5 | FJ9: 6 | FK9: 7 | FL9: 8 | FM9: 9 | FN9: 10 | FO9: 11 | FP9: 12 | FQ9: 13 | FR9: 14 | FS9: 15 | FT9: 16 | FU9: 17 | FV9: 18 | FW9: 19 | FX9: 20 | FY9: 21 | FZ9: 22 | GA9: 23 | GB9: 24 | GC9: 25 | GD9: 26 | GE9: 27 | GF9: 28 | GG9: 29 | GH9: 30 | GI9: 31 | GJ9: 32 | GK9: 33 | GL9: 34 | GM9: 35 | GN9: 36 | GO9: 37 | GP9: 38 | GQ9: 39 | GR9: 40 | GS9: 41 | GT9: 42 | GU9: 43 | GV9: 44 | GW9: 45 | GX9: 46 | GY9: 47 | GZ9: 48 | HA9: 49 | HC9: CT | HD9: 61 | HE9: 62 | HF9: 63 | HG9: 64 | HH9: 65 | HI9: 66 | HJ9: 67 | HK9: 68 | HL9: 69 | HM9: 610 | HN9: 611 | HO9: 612 | HP9: 613 | HQ9: 614 | HR9: 615 | HS9: 616 | HT9: 617 | HU9: 618 | HV9: 619 | HW9: 620 | HX9: 621 | HY9: 622 | HZ9: 623 | IA9: 624 | IB9: 625 | IC9: 626 | ID9: 627 | IE9: 628 | IF9: 629 | IG9: 630 | IH9: 631 | II9: 632 | IJ9: 633 | IK9: 634 | IL9: 635 | IM9: 636 | IN9: 637 | IO9: 638 | IP9: 639 | IQ9: 640 | IR9: 641 | IS9: 642 | IT9: 643 | IU9: 644 | IV9: 645 | IW9: 646 | IX9: 647 | IY9: 648 | IZ9: 649
A10: 8 | B10: 90.1-2016 | E10: 8 | F10: Delaware | G10: DE | H10: =MATCH(H$2,'2. Time Lag - State Adoption_P'!$G12:$V12,1) -> 6 | I10: =MATCH(I$2,'2. Time Lag - State Adoption_P'!$G12:$V12,1) -> 6 | J10: =MATCH(J$2,'2. Time Lag - State Adoption_P'!$G12:$V12,1) -> 6 | K10: =MATCH(K$2,'2. Time Lag - State Adoption_P'!$G12:$V12,1) -> 6 | L10: =MATCH(L$2,'2. Time Lag - State Adoption_P'!$G12:$V12,1) -> 6 | M10: =MATCH(M$2,'2. Time Lag - State Adoption_P'!$G12:$V12,1) -> 6 | N10: =MATCH(N$2,'2. Time Lag - State Adoption_P'!$G12:$V12,1) -> 6 | O10: =MATCH(O$2,'2. Time Lag - State Adoption_P'!$G12:$V12,1) -> 6 | P10: =MATCH(P$2,'2. Time Lag - State Adoption_P'!$G12:$V12,1) -> 6 | Q10: =MATCH(Q$2,'2. Time Lag - State Adoption_P'!$G12:$V12,1) -> 6 | R10: =MATCH(R$2,'2. Time Lag - State Adoption_P'!$G12:$V12,1) -> 6 | S10: =MATCH(S$2,'2. Time Lag - State Adoption_P'!$G12:$V12,1) -> 6 | T10: =MATCH(T$2,'2. Time Lag - State Adoption_P'!$G12:$V12,1) -> 6 | U10: =MATCH(U$2,'2. Time Lag - State Adoption_P'!$G12:$V12,1) -> 6 | V10: =MATCH(V$2,'2. Time Lag - State Adoption_P'!$G12:$V12,1) -> 6 | W10: =MATCH(W$2,'2. Time Lag - State Adoption_P'!$G12:$V12,1) -> 6 | X10: =MATCH(X$2,'2. Time Lag - State Adoption_P'!$G12:$V12,1) -> 6 | Y10: =MATCH(Y$2,'2. Time Lag - State Adoption_P'!$G12:$V12,1) -> 6 | Z10: =MATCH(Z$2,'2. Time Lag - State Adoption_P'!$G12:$V12,1) -> 6 | AA10: =MATCH(AA$2,'2. Time Lag - State Adoption_P'!$G12:$V12,1) -> 6 | AB10: =MATCH(AB$2,'2. Time Lag - State Adoption_P'!$G12:$V12,1) -> 6 | AC10: =MATCH(AC$2,'2. Time Lag - State Adoption_P'!$G12:$V12,1) -> 6 | AD10: =MATCH(AD$2,'2. Time Lag - State Adoption_P'!$G12:$V12,1) -> 6 | AE10: =MATCH(AE$2,'2. Time Lag - State Adoption_P'!$G12:$V12,1) -> 6 | AF10: =MATCH(AF$2,'2. Time Lag - State Adoption_P'!$G12:$V12,1) -> 6 | AG10: =MATCH(AG$2,'2. Time Lag - State Adoption_P'!$G12:$V12,1) -> 6 | AH10: =MATCH(AH$2,'2. Time Lag - State Adoption_P'!$G12:$V12,1) -> 6 | AI10: =MATCH(AI$2,'2. Time Lag - State Adoption_P'!$G12:$V12,1) -> 6 | AJ10: =MATCH(AJ$2,'2. Time Lag - State Adoption_P'!$G12:$V12,1) -> 6 | AK10: =MATCH(AK$2,'2. Time Lag - State Adoption_P'!$G12:$V12,1) -> 6 | AL10: =MATCH(AL$2,'2. Time Lag - State Adoption_P'!$G12:$V12,1) -> 6 | AM10: =MATCH(AM$2,'2. Time Lag - State Adoption_P'!$G12:$V12,1) -> 6 | AN10: =MATCH(AN$2,'2. Time Lag - State Adoption_P'!$G12:$V12,1) -> 6 | AO10: =MATCH(AO$2,'2. Time Lag - State Adoption_P'!$G12:$V12,1) -> 6 | AP10: =MATCH(AP$2,'2. Time Lag - State Adoption_P'!$G12:$V12,1) -> 6 | AQ10: =MATCH(AQ$2,'2. Time Lag - State Adoption_P'!$G12:$V12,1) -> 6 | AR10: =MATCH(AR$2,'2. Time Lag - State Adoption_P'!$G12:$V12,1) -> 6 | AS10: =MATCH(AS$2,'2. Time Lag - State Adoption_P'!$G12:$V12,1) -> 6 | AT10: =MATCH(AT$2,'2. Time Lag - State Adoption_P'!$G12:$V12,1) -> 6 | AU10: =MATCH(AU$2,'2. Time Lag - State Adoption_P'!$G12:$V12,1) -> 6 | AV10: =MATCH(AV$2,'2. Time Lag - State Adoption_P'!$G12:$V12,1) -> 6 | AW10: =MATCH(AW$2,'2. Time Lag - State Adoption_P'!$G12:$V12,1) -> 6 | AX10: =MATCH(AX$2,'2. Time Lag - State Adoption_P'!$G12:$V12,1) -> 6 | AY10: =MATCH(AY$2,'2. Time Lag - State Adoption_P'!$G12:$V12,1) -> 6 | AZ10: =MATCH(AZ$2,'2. Time Lag - State Adoption_P'!$G12:$V12,1) -> 6 | BA10: =MATCH(BA$2,'2. Time Lag - State Adoption_P'!$G12:$V12,1) -> 6 | BB10: =MATCH(BB$2,'2. Time Lag - State Adoption_P'!$G12:$V12,1) -> 6 | BC10: =MATCH(BC$2,'2. Time Lag - State Adoption_P'!$G12:$V12,1) -> 6 | BD10: =MATCH(BD$2,'2. Time Lag - State Adoption_P'!$G12:$V12,1) -> 6 | BF10: DE | BG10: =INDEX('2. Time Lag - State Adoption_P'!$Y148:$AN148,MATCH(H10,'2. Time Lag - State Adoption_P'!$Y$137:$AN$137,0)) -> 0 | BH10: =INDEX('2. Time Lag - State Adoption_P'!$Y148:$AN148,MATCH(I10,'2. Time Lag - State Adoption_P'!$Y$137:$AN$137,0)) -> 0 | BI10: =INDEX('2. Time Lag - State Adoption_P'!$Y148:$AN148,MATCH(J10,'2. Time Lag - State Adoption_P'!$Y$137:$AN$137,0)) -> 0 | BJ10: =INDEX('2. Time Lag - State Adoption_P'!$Y148:$AN148,MATCH(K10,'2. Time Lag - State Adoption_P'!$Y$137:$AN$137,0)) -> 0 | BK10: =INDEX('2. Time Lag - State Adoption_P'!$Y148:$AN148,MATCH(L10,'2. Time Lag - State Adoption_P'!$Y$137:$AN$137,0)) -> 0 | BL10: =INDEX('2. Time Lag - State Adoption_P'!$Y148:$AN148,MATCH(M10,'2. Time Lag - State Adoption_P'!$Y$137:$AN$137,0)) -> 0 | BM10: =INDEX('2. Time Lag - State Adoption_P'!$Y148:$AN148,MATCH(N10,'2. Time Lag - State Adoption_P'!$Y$137:$AN$137,0)) -> 0 | BN10: =INDEX('2. Time Lag - State Adoption_P'!$Y148:$AN148,MATCH(O10,'2. Time Lag - State Adoption_P'!$Y$137:$AN$137,0)) -> 0 | BO10: =INDEX('2. Time Lag - State Adoption_P'!$Y148:$AN148,MATCH(P10,'2. Time Lag - State Adoption_P'!$Y$137:$AN$137,0)) -> 0 | BP10: =INDEX('2. Time Lag - State Adoption_P'!$Y148:$AN148,MATCH(Q10,'2. Time Lag - State Adoption_P'!$Y$137:$AN$137,0)) -> 0 | BQ10: =INDEX('2. Time Lag - State Adoption_P'!$Y148:$AN148,MATCH(R10,'2. Time Lag - State Adoption_P'!$Y$137:$AN$137,0)) -> 0 | BR10: =INDEX('2. Time Lag - State Adoption_P'!$Y148:$AN148,MATCH(S10,'2. Time Lag - State Adoption_P'!$Y$137:$AN$137,0)) -> 0 | BS10: =INDEX('2. Time Lag - State Adoption_P'!$Y148:$AN148,MATCH(T10,'2. Time Lag - State Adoption_P'!$Y$137:$AN$137,0)) -> 0 | BT10: =INDEX('2. Time Lag - State Adoption_P'!$Y148:$AN148,MATCH(U10,'2. Time Lag - State Adoption_P'!$Y$137:$AN$137,0)) -> 0 | BU10: =INDEX('2. Time Lag - State Adoption_P'!$Y148:$AN148,MATCH(V10,'2. Time Lag - State Adoption_P'!$Y$137:$AN$137,0)) -> 0 | BV10: =INDEX('2. Time Lag - State Adoption_P'!$Y148:$AN148,MATCH(W10,'2. Time Lag - State Adoption_P'!$Y$137:$AN$137,0)) -> 0 | BW10: =INDEX('2. Time Lag - State Adoption_P'!$Y148:$AN148,MATCH(X10,'2. Time Lag - State Adoption_P'!$Y$137:$AN$137,0)) -> 0 | BX10: =INDEX('2. Time Lag - State Adoption_P'!$Y148:$AN148,MATCH(Y10,'2. Time Lag - State Adoption_P'!$Y$137:$AN$137,0)) -> 0 | BY10: =INDEX('2. Time Lag - State Adoption_P'!$Y148:$AN148,MATCH(Z10,'2. Time Lag - State Adoption_P'!$Y$137:$AN$137,0)) -> 0 | BZ10: =INDEX('2. Time Lag - State Adoption_P'!$Y148:$AN148,MATCH(AA10,'2. Time Lag - State Adoption_P'!$Y$137:$AN$137,0)) -> 0 | CA10: =INDEX('2. Time Lag - State Adoption_P'!$Y148:$AN148,MATCH(AB10,'2. Time Lag - State Adoption_P'!$Y$137:$AN$137,0)) -> 0 | CB10: =INDEX('2. Time Lag - State Adoption_P'!$Y148:$AN148,MATCH(AC10,'2. Time Lag - State Adoption_P'!$Y$137:$AN$137,0)) -> 0 | CC10: =INDEX('2. Time Lag - State Adoption_P'!$Y148:$AN148,MATCH(AD10,'2. Time Lag - State Adoption_P'!$Y$137:$AN$137,0)) -> 0 | CD10: =INDEX('2. Time Lag - State Adoption_P'!$Y148:$AN148,MATCH(AE10,'2. Time Lag - State Adoption_P'!$Y$137:$AN$137,0)) -> 0 | CE10: =INDEX('2. Time Lag - State Adoption_P'!$Y148:$AN148,MATCH(AF10,'2. Time Lag - State Adoption_P'!$Y$137:$AN$137,0)) -> 0 | CF10: =INDEX('2. Time Lag - State Adoption_P'!$Y148:$AN148,MATCH(AG10,'2. Time Lag - State Adoption_P'!$Y$137:$AN$137,0)) -> 0 | CG10: =INDEX('2. Time Lag - State Adoption_P'!$Y148:$AN148,MATCH(AH10,'2. Time Lag - State Adoption_P'!$Y$137:$AN$137,0)) -> 0 | CH10: =INDEX('2. Time Lag - State Adoption_P'!$Y148:$AN148,MATCH(AI10,'2. Time Lag - State Adoption_P'!$Y$137:$AN$137,0)) -> 0 | CI10: =INDEX('2. Time Lag - State Adoption_P'!$Y148:$AN148,MATCH(AJ10,'2. Time Lag - State Adoption_P'!$Y$137:$AN$137,0)) -> 0 | CJ10: =INDEX('2. Time Lag - State Adoption_P'!$Y148:$AN148,MATCH(AK10,'2. Time Lag - State Adoption_P'!$Y$137:$AN$137,0)) -> 0 | CK10: =INDEX('2. Time Lag - State Adoption_P'!$Y148:$AN148,MATCH(AL10,'2. Time Lag - State Adoption_P'!$Y$137:$AN$137,0)) -> 0 | CL10: =INDEX('2. Time Lag - State Adoption_P'!$Y148:$AN148,MATCH(AM10,'2. Time Lag - State Adoption_P'!$Y$137:$AN$137,0)) -> 0 | CM10: =INDEX('2. Time Lag - State Adoption_P'!$Y148:$AN148,MATCH(AN10,'2. Time Lag - State Adoption_P'!$Y$137:$AN$137,0)) -> 0 | CN10: =INDEX('2. Time Lag - State Adoption_P'!$Y148:$AN148,MATCH(AO10,'2. Time Lag - State Adoption_P'!$Y$137:$AN$137,0)) -> 0 | CO10: =INDEX('2. Time Lag - State Adoption_P'!$Y148:$AN148,MATCH(AP10,'2. Time Lag - State Adoption_P'!$Y$137:$AN$137,0)) -> 0 | CP10: =INDEX('2. Time Lag - State Adoption_P'!$Y148:$AN148,MATCH(AQ10,'2. Time Lag - State Adoption_P'!$Y$137:$AN$137,0)) -> 0 | CQ10: =INDEX('2. Time Lag - State Adoption_P'!$Y148:$AN148,MATCH(AR10,'2. Time Lag - State Adoption_P'!$Y$137:$AN$137,0)) -> 0 | CR10: =INDEX('2. Time Lag - State Adoption_P'!$Y148:$AN148,MATCH(AS10,'2. Time Lag - State Adoption_P'!$Y$137:$AN$137,0)) -> 0 | CS10: =INDEX('2. Time Lag - State Adoption_P'!$Y148:$AN148,MATCH(AT10,'2. Time Lag - State Adoption_P'!$Y$137:$AN$137,0)) -> 0 | CT10: =INDEX('2. Time Lag - State Adoption_P'!$Y148:$AN148,MATCH(AU10,'2. Time Lag - State Adoption_P'!$Y$137:$AN$137,0)) -> 0 | CU10: =INDEX('2. Time Lag - State Adoption_P'!$Y148:$AN148,MATCH(AV10,'2. Time Lag - State Adoption_P'!$Y$137:$AN$137,0)) -> 0 | CV10: =INDEX('2. Time Lag - State Adoption_P'!$Y148:$AN148,MATCH(AW10,'2. Time Lag - State Adoption_P'!$Y$137:$AN$137,0)) -> 0 | CW10: =INDEX('2. Time Lag - State Adoption_P'!$Y148:$AN148,MATCH(AX10,'2. Time Lag - State Adoption_P'!$Y$137:$AN$137,0)) -> 0 | CX10: =INDEX('2. Time Lag - State Adoption_P'!$Y148:$AN148,MATCH(AY10,'2. Time Lag - State Adoption_P'!$Y$137:$AN$137,0)) -> 0 | CY10: =INDEX('2. Time Lag - State Adoption_P'!$Y148:$AN148,MATCH(AZ10,'2. Time Lag - State Adoption_P'!$Y$137:$AN$137,0)) -> 0 | CZ10: =INDEX('2. Time Lag - State Adoption_P'!$Y148:$AN148,MATCH(BA10,'2. Time Lag - State Adoption_P'!$Y$137:$AN$137,0)) -> 0 | DA10: =INDEX('2. Time Lag - State Adoption_P'!$Y148:$AN148,MATCH(BB10,'2. Time Lag - State Adoption_P'!$Y$137:$AN$137,0)) -> 0 | DB10: =INDEX('2. Time Lag - State Adoption_P'!$Y148:$AN148,MATCH(BC10,'2. Time Lag - State Adoption_P'!$Y$137:$AN$137,0)) -> 0 | DC10: =INDEX('2. Time Lag - State Adoption_P'!$Y148:$AN148,MATCH(BD10,'2. Time Lag - State Adoption_P'!$Y$137:$AN$137,0)) -> 0 | DE10: DE | DF10: =COUNTIF($H10:OFFSET($H10,0,DF$1),H10) -> 1 | DG10: =COUNTIF($H10:OFFSET($H10,0,DG$1),I10) -> 2 | DH10: =COUNTIF($H10:OFFSET($H10,0,DH$1),J10) -> 3 | DI10: =COUNTIF($H10:OFFSET($H10,0,DI$1),K10) -> 4 | DJ10: =COUNTIF($H10:OFFSET($H10,0,DJ$1),L10) -> 5 | DK10: =COUNTIF($H10:OFFSET($H10,0,DK$1),M10) -> 6 | DL10: =COUNTIF($H10:OFFSET($H10,0,DL$1),N10) -> 7 | DM10: =COUNTIF($H10:OFFSET($H10,0,DM$1),O10) -> 8 | DN10: =COUNTIF($H10:OFFSET($H10,0,DN$1),P10) -> 9 | DO10: =COUNTIF($H10:OFFSET($H10,0,DO$1),Q10) -> 10 | DP10: =COUNTIF($H10:OFFSET($H10,0,DP$1),R10) -> 11 | DQ10: =COUNTIF($H10:OFFSET($H10,0,DQ$1),S10) -> 12 | DR10: =COUNTIF($H10:OFFSET($H10,0,DR$1),T10) -> 13 | DS10: =COUNTIF($H10:OFFSET($H10,0,DS$1),U10) -> 14 | DT10: =COUNTIF($H10:OFFSET($H10,0,DT$1),V10) -> 15 | DU10: =COUNTIF($H10:OFFSET($H10,0,DU$1),W10) -> 16 | DV10: =COUNTIF($H10:OFFSET($H10,0,DV$1),X10) -> 17 | DW10: =COUNTIF($H10:OFFSET($H10,0,DW$1),Y10) -> 18 | DX10: =COUNTIF($H10:OFFSET($H10,0,DX$1),Z10) -> 19 | DY10: =COUNTIF($H10:OFFSET($H10,0,DY$1),AA10) -> 20 | DZ10: =COUNTIF($H10:OFFSET($H10,0,DZ$1),AB10) -> 21 | EA10: =COUNTIF($H10:OFFSET($H10,0,EA$1),AC10) -> 22 | EB10: =COUNTIF($H10:OFFSET($H10,0,EB$1),AD10) -> 23 | EC10: =COUNTIF($H10:OFFSET($H10,0,EC$1),AE10) -> 24 | ED10: =COUNTIF($H10:OFFSET($H10,0,ED$1),AF10) -> 25 | EE10: =COUNTIF($H10:OFFSET($H10,0,EE$1),AG10) -> 26 | EF10: =COUNTIF($H10:OFFSET($H10,0,EF$1),AH10) -> 27 | EG10: =COUNTIF($H10:OFFSET($H10,0,EG$1),AI10) -> 28 | EH10: =COUNTIF($H10:OFFSET($H10,0,EH$1),AJ10) -> 29 | EI10: =COUNTIF($H10:OFFSET($H10,0,EI$1),AK10) -> 30 | EJ10: =COUNTIF($H10:OFFSET($H10,0,EJ$1),AL10) -> 31 | EK10: =COUNTIF($H10:OFFSET($H10,0,EK$1),AM10) -> 32 | EL10: =COUNTIF($H10:OFFSET($H10,0,EL$1),AN10) -> 33 | EM10: =COUNTIF($H10:OFFSET($H10,0,EM$1),AO10) -> 34 | EN10: =COUNTIF($H10:OFFSET($H10,0,EN$1),AP10) -> 35 | EO10: =COUNTIF($H10:OFFSET($H10,0,EO$1),AQ10) -> 36 | EP10: =COUNTIF($H10:OFFSET($H10,0,EP$1),AR10) -> 37 | EQ10: =COUNTIF($H10:OFFSET($H10,0,EQ$1),AS10) -> 38 | ER10: =COUNTIF($H10:OFFSET($H10,0,ER$1),AT10) -> 39 | ES10: =COUNTIF($H10:OFFSET($H10,0,ES$1),AU10) -> 40 | ET10: =COUNTIF($H10:OFFSET($H10,0,ET$1),AV10) -> 41 | EU10: =COUNTIF($H10:OFFSET($H10,0,EU$1),AW10) -> 42 | EV10: =COUNTIF($H10:OFFSET($H10,0,EV$1),AX10) -> 43 | EW10: =COUNTIF($H10:OFFSET($H10,0,EW$1),AY10) -> 44 | EX10: =COUNTIF($H10:OFFSET($H10,0,EX$1),AZ10) -> 45 | EY10: =COUNTIF($H10:OFFSET($H10,0,EY$1),BA10) -> 46 | EZ10: =COUNTIF($H10:OFFSET($H10,0,EZ$1),BB10) -> 47 | FA10: =COUNTIF($H10:OFFSET($H10,0,FA$1),BC10) -> 48 | FB10: =COUNTIF($H10:OFFSET($H10,0,FB$1),BD10) -> 49 | FD10: DE | FE10: 1 | FF10: 2 | FG10: 3 | FH10: 4 | FI10: 5 | FJ10: 6 | FK10: 7 | FL10: 8 | FM10: 9 | FN10: 10 | FO10: 11 | FP10: 12 | FQ10: 13 | FR10: 14 | FS10: 15 | FT10: 16 | FU10: 17 | FV10: 18 | FW10: 19 | FX10: 20 | FY10: 21 | FZ10: 22 | GA10: 23 | GB10: 24 | GC10: 25 | GD10: 26 | GE10: 27 | GF10: 28 | GG10: 29 | GH10: 30 | GI10: 31 | GJ10: 32 | GK10: 33 | GL10: 34 | GM10: 35 | GN10: 36 | GO10: 37 | GP10: 38 | GQ10: 39 | GR10: 40 | GS10: 41 | GT10: 42 | GU10: 43 | GV10: 44 | GW10: 45 | GX10: 46 | GY10: 47 | GZ10: 48 | HA10: 49 | HC10: DE | HD10: 61 | HE10: 62 | HF10: 63 | HG10: 64 | HH10: 65 | HI10: 66 | HJ10: 67 | HK10: 68 | HL10: 69 | HM10: 610 | HN10: 611 | HO10: 612 | HP10: 613 | HQ10: 614 | HR10: 615 | HS10: 616 | HT10: 617 | HU10: 618 | HV10: 619 | HW10: 620 | HX10: 621 | HY10: 622 | HZ10: 623 | IA10: 624 | IB10: 625 | IC10: 626 | ID10: 627 | IE10: 628 | IF10: 629 | IG10: 630 | IH10: 631 | II10: 632 | IJ10: 633 | IK10: 634 | IL10: 635 | IM10: 636 | IN10: 637 | IO10: 638 | IP10: 639 | IQ10: 640 | IR10: 641 | IS10: 642 | IT10: 643 | IU10: 644 | IV10: 645 | IW10: 646 | IX10: 647 | IY10: 648 | IZ10: 649
A11: 9 | B11: 90.1-2019 | E11: 9 | F11: District of Columbia | G11: DC | H11: =MATCH(H$2,'2. Time Lag - State Adoption_P'!$G13:$V13,1) -> 6 | I11: =MATCH(I$2,'2. Time Lag - State Adoption_P'!$G13:$V13,1) -> 6 | J11: =MATCH(J$2,'2. Time Lag - State Adoption_P'!$G13:$V13,1) -> 6 | K11: =MATCH(K$2,'2. Time Lag - State Adoption_P'!$G13:$V13,1) -> 6 | L11: =MATCH(L$2,'2. Time Lag - State Adoption_P'!$G13:$V13,1) -> 6 | M11: =MATCH(M$2,'2. Time Lag - State Adoption_P'!$G13:$V13,1) -> 6 | N11: =MATCH(N$2,'2. Time Lag - State Adoption_P'!$G13:$V13,1) -> 6 | O11: =MATCH(O$2,'2. Time Lag - State Adoption_P'!$G13:$V13,1) -> 6 | P11: =MATCH(P$2,'2. Time Lag - State Adoption_P'!$G13:$V13,1) -> 6 | Q11: =MATCH(Q$2,'2. Time Lag - State Adoption_P'!$G13:$V13,1) -> 6 | R11: =MATCH(R$2,'2. Time Lag - State Adoption_P'!$G13:$V13,1) -> 6 | S11: =MATCH(S$2,'2. Time Lag - State Adoption_P'!$G13:$V13,1) -> 6 | T11: =MATCH(T$2,'2. Time Lag - State Adoption_P'!$G13:$V13,1) -> 6 | U11: =MATCH(U$2,'2. Time Lag - State Adoption_P'!$G13:$V13,1) -> 6 | V11: =MATCH(V$2,'2. Time Lag - State Adoption_P'!$G13:$V13,1) -> 6 | W11: =MATCH(W$2,'2. Time Lag - State Adoption_P'!$G13:$V13,1) -> 6 | X11: =MATCH(X$2,'2. Time Lag - State Adoption_P'!$G13:$V13,1) -> 6 | Y11: =MATCH(Y$2,'2. Time Lag - State Adoption_P'!$G13:$V13,1) -> 6 | Z11: =MATCH(Z$2,'2. Time Lag - State Adoption_P'!$G13:$V13,1) -> 6 | AA11: =MATCH(AA$2,'2. Time Lag - State Adoption_P'!$G13:$V13,1) -> 6 | AB11: =MATCH(AB$2,'2. Time Lag - State Adoption_P'!$G13:$V13,1) -> 6 | AC11: =MATCH(AC$2,'2. Time Lag - State Adoption_P'!$G13:$V13,1) -> 6 | AD11: =MATCH(AD$2,'2. Time Lag - State Adoption_P'!$G13:$V13,1) -> 6 | AE11: =MATCH(AE$2,'2. Time Lag - State Adoption_P'!$G13:$V13,1) -> 6 | AF11: =MATCH(AF$2,'2. Time Lag - State Adoption_P'!$G13:$V13,1) -> 6 | AG11: =MATCH(AG$2,'2. Time Lag - State Adoption_P'!$G13:$V13,1) -> 6 | AH11: =MATCH(AH$2,'2. Time Lag - State Adoption_P'!$G13:$V13,1) -> 6 | AI11: =MATCH(AI$2,'2. Time Lag - State Adoption_P'!$G13:$V13,1) -> 6 | AJ11: =MATCH(AJ$2,'2. Time Lag - State Adoption_P'!$G13:$V13,1) -> 6 | AK11: =MATCH(AK$2,'2. Time Lag - State Adoption_P'!$G13:$V13,1) -> 6 | AL11: =MATCH(AL$2,'2. Time Lag - State Adoption_P'!$G13:$V13,1) -> 6 | AM11: =MATCH(AM$2,'2. Time Lag - State Adoption_P'!$G13:$V13,1) -> 6 | AN11: =MATCH(AN$2,'2. Time Lag - State Adoption_P'!$G13:$V13,1) -> 6 | AO11: =MATCH(AO$2,'2. Time Lag - State Adoption_P'!$G13:$V13,1) -> 6 | AP11: =MATCH(AP$2,'2. Time Lag - State Adoption_P'!$G13:$V13,1) -> 6 | AQ11: =MATCH(AQ$2,'2. Time Lag - State Adoption_P'!$G13:$V13,1) -> 6 | AR11: =MATCH(AR$2,'2. Time Lag - State Adoption_P'!$G13:$V13,1) -> 6 | AS11: =MATCH(AS$2,'2. Time Lag - State Adoption_P'!$G13:$V13,1) -> 6 | AT11: =MATCH(AT$2,'2. Time Lag - State Adoption_P'!$G13:$V13,1) -> 6 | AU11: =MATCH(AU$2,'2. Time Lag - State Adoption_P'!$G13:$V13,1) -> 6 | AV11: =MATCH(AV$2,'2. Time Lag - State Adoption_P'!$G13:$V13,1) -> 6 | AW11: =MATCH(AW$2,'2. Time Lag - State Adoption_P'!$G13:$V13,1) -> 6 | AX11: =MATCH(AX$2,'2. Time Lag - State Adoption_P'!$G13:$V13,1) -> 6 | AY11: =MATCH(AY$2,'2. Time Lag - State Adoption_P'!$G13:$V13,1) -> 6 | AZ11: =MATCH(AZ$2,'2. Time Lag - State Adoption_P'!$G13:$V13,1) -> 6 | BA11: =MATCH(BA$2,'2. Time Lag - State Adoption_P'!$G13:$V13,1) -> 6 | BB11: =MATCH(BB$2,'2. Time Lag - State Adoption_P'!$G13:$V13,1) -> 6 | BC11: =MATCH(BC$2,'2. Time Lag - State Adoption_P'!$G13:$V13,1) -> 6 | BD11: =MATCH(BD$2,'2. Time Lag - State Adoption_P'!$G13:$V13,1) -> 6 | BF11: DC | BG11: =INDEX('2. Time Lag - State Adoption_P'!$Y149:$AN149,MATCH(H11,'2. Time Lag - State Adoption_P'!$Y$137:$AN$137,0)) -> 0 | BH11: =INDEX('2. Time Lag - State Adoption_P'!$Y149:$AN149,MATCH(I11,'2. Time Lag - State Adoption_P'!$Y$137:$AN$137,0)) -> 0 | BI11: =INDEX('2. Time Lag - State Adoption_P'!$Y149:$AN149,MATCH(J11,'2. Time Lag - State Adoption_P'!$Y$137:$AN$137,0)) -> 0 | BJ11: =INDEX('2. Time Lag - State Adoption_P'!$Y149:$AN149,MATCH(K11,'2. Time Lag - State Adoption_P'!$Y$137:$AN$137,0)) -> 0 | BK11: =INDEX('2. Time Lag - State Adoption_P'!$Y149:$AN149,MATCH(L11,'2. Time Lag - State Adoption_P'!$Y$137:$AN$137,0)) -> 0 | BL11: =INDEX('2. Time Lag - State Adoption_P'!$Y149:$AN149,MATCH(M11,'2. Time Lag - State Adoption_P'!$Y$137:$AN$137,0)) -> 0 | BM11: =INDEX('2. Time Lag - State Adoption_P'!$Y149:$AN149,MATCH(N11,'2. Time Lag - State Adoption_P'!$Y$137:$AN$137,0)) -> 0 | BN11: =INDEX('2. Time Lag - State Adoption_P'!$Y149:$AN149,MATCH(O11,'2. Time Lag - State Adoption_P'!$Y$137:$AN$137,0)) -> 0 | BO11: =INDEX('2. Time Lag - State Adoption_P'!$Y149:$AN149,MATCH(P11,'2. Time Lag - State Adoption_P'!$Y$137:$AN$137,0)) -> 0 | BP11: =INDEX('2. Time Lag - State Adoption_P'!$Y149:$AN149,MATCH(Q11,'2. Time Lag - State Adoption_P'!$Y$137:$AN$137,0)) -> 0 | BQ11: =INDEX('2. Time Lag - State Adoption_P'!$Y149:$AN149,MATCH(R11,'2. Time Lag - State Adoption_P'!$Y$137:$AN$137,0)) -> 0 | BR11: =INDEX('2. Time Lag - State Adoption_P'!$Y149:$AN149,MATCH(S11,'2. Time Lag - State Adoption_P'!$Y$137:$AN$137,0)) -> 0 | BS11: =INDEX('2. Time Lag - State Adoption_P'!$Y149:$AN149,MATCH(T11,'2. Time Lag - State Adoption_P'!$Y$137:$AN$137,0)) -> 0 | BT11: =INDEX('2. Time Lag - State Adoption_P'!$Y149:$AN149,MATCH(U11,'2. Time Lag - State Adoption_P'!$Y$137:$AN$137,0)) -> 0 | BU11: =INDEX('2. Time Lag - State Adoption_P'!$Y149:$AN149,MATCH(V11,'2. Time Lag - State Adoption_P'!$Y$137:$AN$137,0)) -> 0 | BV11: =INDEX('2. Time Lag - State Adoption_P'!$Y149:$AN149,MATCH(W11,'2. Time Lag - State Adoption_P'!$Y$137:$AN$137,0)) -> 0 | BW11: =INDEX('2. Time Lag - State Adoption_P'!$Y149:$AN149,MATCH(X11,'2. Time Lag - State Adoption_P'!$Y$137:$AN$137,0)) -> 0 | BX11: =INDEX('2. Time Lag - State Adoption_P'!$Y149:$AN149,MATCH(Y11,'2. Time Lag - State Adoption_P'!$Y$137:$AN$137,0)) -> 0 | BY11: =INDEX('2. Time Lag - State Adoption_P'!$Y149:$AN149,MATCH(Z11,'2. Time Lag - State Adoption_P'!$Y$137:$AN$137,0)) -> 0 | BZ11: =INDEX('2. Time Lag - State Adoption_P'!$Y149:$AN149,MATCH(AA11,'2. Time Lag - State Adoption_P'!$Y$137:$AN$137,0)) -> 0 | CA11: =INDEX('2. Time Lag - State Adoption_P'!$Y149:$AN149,MATCH(AB11,'2. Time Lag - State Adoption_P'!$Y$137:$AN$137,0)) -> 0 | CB11: =INDEX('2. Time Lag - State Adoption_P'!$Y149:$AN149,MATCH(AC11,'2. Time Lag - State Adoption_P'!$Y$137:$AN$137,0)) -> 0 | CC11: =INDEX('2. Time Lag - State Adoption_P'!$Y149:$AN149,MATCH(AD11,'2. Time Lag - State Adoption_P'!$Y$137:$AN$137,0)) -> 0 | CD11: =INDEX('2. Time Lag - State Adoption_P'!$Y149:$AN149,MATCH(AE11,'2. Time Lag - State Adoption_P'!$Y$137:$AN$137,0)) -> 0 | CE11: =INDEX('2. Time Lag - State Adoption_P'!$Y149:$AN149,MATCH(AF11,'2. Time Lag - State Adoption_P'!$Y$137:$AN$137,0)) -> 0 | CF11: =INDEX('2. Time Lag - State Adoption_P'!$Y149:$AN149,MATCH(AG11,'2. Time Lag - State Adoption_P'!$Y$137:$AN$137,0)) -> 0 | CG11: =INDEX('2. Time Lag - State Adoption_P'!$Y149:$AN149,MATCH(AH11,'2. Time Lag - State Adoption_P'!$Y$137:$AN$137,0)) -> 0 | CH11: =INDEX('2. Time Lag - State Adoption_P'!$Y149:$AN149,MATCH(AI11,'2. Time Lag - State Adoption_P'!$Y$137:$AN$137,0)) -> 0 | CI11: =INDEX('2. Time Lag - State Adoption_P'!$Y149:$AN149,MATCH(AJ11,'2. Time Lag - State Adoption_P'!$Y$137:$AN$137,0)) -> 0 | CJ11: =INDEX('2. Time Lag - State Adoption_P'!$Y149:$AN149,MATCH(AK11,'2. Time Lag - State Adoption_P'!$Y$137:$AN$137,0)) -> 0 | CK11: =INDEX('2. Time Lag - State Adoption_P'!$Y149:$AN149,MATCH(AL11,'2. Time Lag - State Adoption_P'!$Y$137:$AN$137,0)) -> 0 | CL11: =INDEX('2. Time Lag - State Adoption_P'!$Y149:$AN149,MATCH(AM11,'2. Time Lag - State Adoption_P'!$Y$137:$AN$137,0)) -> 0 | CM11: =INDEX('2. Time Lag - State Adoption_P'!$Y149:$AN149,MATCH(AN11,'2. Time Lag - State Adoption_P'!$Y$137:$AN$137,0)) -> 0 | CN11: =INDEX('2. Time Lag - State Adoption_P'!$Y149:$AN149,MATCH(AO11,'2. Time Lag - State Adoption_P'!$Y$137:$AN$137,0)) -> 0 | CO11: =INDEX('2. Time Lag - State Adoption_P'!$Y149:$AN149,MATCH(AP11,'2. Time Lag - State Adoption_P'!$Y$137:$AN$137,0)) -> 0 | CP11: =INDEX('2. Time Lag - State Adoption_P'!$Y149:$AN149,MATCH(AQ11,'2. Time Lag - State Adoption_P'!$Y$137:$AN$137,0)) -> 0 | CQ11: =INDEX('2. Time Lag - State Adoption_P'!$Y149:$AN149,MATCH(AR11,'2. Time Lag - State Adoption_P'!$Y$137:$AN$137,0)) -> 0 | CR11: =INDEX('2. Time Lag - State Adoption_P'!$Y149:$AN149,MATCH(AS11,'2. Time Lag - State Adoption_P'!$Y$137:$AN$137,0)) -> 0 | CS11: =INDEX('2. Time Lag - State Adoption_P'!$Y149:$AN149,MATCH(AT11,'2. Time Lag - State Adoption_P'!$Y$137:$AN$137,0)) -> 0 | CT11: =INDEX('2. Time Lag - State Adoption_P'!$Y149:$AN149,MATCH(AU11,'2. Time Lag - State Adoption_P'!$Y$137:$AN$137,0)) -> 0 | CU11: =INDEX('2. Time Lag - State Adoption_P'!$Y149:$AN149,MATCH(AV11,'2. Time Lag - State Adoption_P'!$Y$137:$AN$137,0)) -> 0 | CV11: =INDEX('2. Time Lag - State Adoption_P'!$Y149:$AN149,MATCH(AW11,'2. Time Lag - State Adoption_P'!$Y$137:$AN$137,0)) -> 0 | CW11: =INDEX('2. Time Lag - State Adoption_P'!$Y149:$AN149,MATCH(AX11,'2. Time Lag - State Adoption_P'!$Y$137:$AN$137,0)) -> 0 | CX11: =INDEX('2. Time Lag - State Adoption_P'!$Y149:$AN149,MATCH(AY11,'2. Time Lag - State Adoption_P'!$Y$137:$AN$137,0)) -> 0 | CY11: =INDEX('2. Time Lag - State Adoption_P'!$Y149:$AN149,MATCH(AZ11,'2. Time Lag - State Adoption_P'!$Y$137:$AN$137,0)) -> 0 | CZ11: =INDEX('2. Time Lag - State Adoption_P'!$Y149:$AN149,MATCH(BA11,'2. Time Lag - State Adoption_P'!$Y$137:$AN$137,0)) -> 0 | DA11: =INDEX('2. Time Lag - State Adoption_P'!$Y149:$AN149,MATCH(BB11,'2. Time Lag - State Adoption_P'!$Y$137:$AN$137,0)) -> 0 | DB11: =INDEX('2. Time Lag - State Adoption_P'!$Y149:$AN149,MATCH(BC11,'2. Time Lag - State Adoption_P'!$Y$137:$AN$137,0)) -> 0 | DC11: =INDEX('2. Time Lag - State Adoption_P'!$Y149:$AN149,MATCH(BD11,'2. Time Lag - State Adoption_P'!$Y$137:$AN$137,0)) -> 0 | DE11: DC | DF11: =COUNTIF($H11:OFFSET($H11,0,DF$1),H11) -> 1 | DG11: =COUNTIF($H11:OFFSET($H11,0,DG$1),I11) -> 2 | DH11: =COUNTIF($H11:OFFSET($H11,0,DH$1),J11) -> 3 | DI11: =COUNTIF($H11:OFFSET($H11,0,DI$1),K11) -> 4 | DJ11: =COUNTIF($H11:OFFSET($H11,0,DJ$1),L11) -> 5 | DK11: =COUNTIF($H11:OFFSET($H11,0,DK$1),M11) -> 6 | DL11: =COUNTIF($H11:OFFSET($H11,0,DL$1),N11) -> 7 | DM11: =COUNTIF($H11:OFFSET($H11,0,DM$1),O11) -> 8 | DN11: =COUNTIF($H11:OFFSET($H11,0,DN$1),P11) -> 9 | DO11: =COUNTIF($H11:OFFSET($H11,0,DO$1),Q11) -> 10 | DP11: =COUNTIF($H11:OFFSET($H11,0,DP$1),R11) -> 11 | DQ11: =COUNTIF($H11:OFFSET($H11,0,DQ$1),S11) -> 12 | DR11: =COUNTIF($H11:OFFSET($H11,0,DR$1),T11) -> 13 | DS11: =COUNTIF($H11:OFFSET($H11,0,DS$1),U11) -> 14 | DT11: =COUNTIF($H11:OFFSET($H11,0,DT$1),V11) -> 15 | DU11: =COUNTIF($H11:OFFSET($H11,0,DU$1),W11) -> 16 | DV11: =COUNTIF($H11:OFFSET($H11,0,DV$1),X11) -> 17 | DW11: =COUNTIF($H11:OFFSET($H11,0,DW$1),Y11) -> 18 | DX11: =COUNTIF($H11:OFFSET($H11,0,DX$1),Z11) -> 19 | DY11: =COUNTIF($H11:OFFSET($H11,0,DY$1),AA11) -> 20 | DZ11: =COUNTIF($H11:OFFSET($H11,0,DZ$1),AB11) -> 21 | EA11: =COUNTIF($H11:OFFSET($H11,0,EA$1),AC11) -> 22 | EB11: =COUNTIF($H11:OFFSET($H11,0,EB$1),AD11) -> 23 | EC11: =COUNTIF($H11:OFFSET($H11,0,EC$1),AE11) -> 24 | ED11: =COUNTIF($H11:OFFSET($H11,0,ED$1),AF11) -> 25 | EE11: =COUNTIF($H11:OFFSET($H11,0,EE$1),AG11) -> 26 | EF11: =COUNTIF($H11:OFFSET($H11,0,EF$1),AH11) -> 27 | EG11: =COUNTIF($H11:OFFSET($H11,0,EG$1),AI11) -> 28 | EH11: =COUNTIF($H11:OFFSET($H11,0,EH$1),AJ11) -> 29 | EI11: =COUNTIF($H11:OFFSET($H11,0,EI$1),AK11) -> 30 | EJ11: =COUNTIF($H11:OFFSET($H11,0,EJ$1),AL11) -> 31 | EK11: =COUNTIF($H11:OFFSET($H11,0,EK$1),AM11) -> 32 | EL11: =COUNTIF($H11:OFFSET($H11,0,EL$1),AN11) -> 33 | EM11: =COUNTIF($H11:OFFSET($H11,0,EM$1),AO11) -> 34 | EN11: =COUNTIF($H11:OFFSET($H11,0,EN$1),AP11) -> 35 | EO11: =COUNTIF($H11:OFFSET($H11,0,EO$1),AQ11) -> 36 | EP11: =COUNTIF($H11:OFFSET($H11,0,EP$1),AR11) -> 37 | EQ11: =COUNTIF($H11:OFFSET($H11,0,EQ$1),AS11) -> 38 | ER11: =COUNTIF($H11:OFFSET($H11,0,ER$1),AT11) -> 39 | ES11: =COUNTIF($H11:OFFSET($H11,0,ES$1),AU11) -> 40 | ET11: =COUNTIF($H11:OFFSET($H11,0,ET$1),AV11) -> 41 | EU11: =COUNTIF($H11:OFFSET($H11,0,EU$1),AW11) -> 42 | EV11: =COUNTIF($H11:OFFSET($H11,0,EV$1),AX11) -> 43 | EW11: =COUNTIF($H11:OFFSET($H11,0,EW$1),AY11) -> 44 | EX11: =COUNTIF($H11:OFFSET($H11,0,EX$1),AZ11) -> 45 | EY11: =COUNTIF($H11:OFFSET($H11,0,EY$1),BA11) -> 46 | EZ11: =COUNTIF($H11:OFFSET($H11,0,EZ$1),BB11) -> 47 | FA11: =COUNTIF($H11:OFFSET($H11,0,FA$1),BC11) -> 48 | FB11: =COUNTIF($H11:OFFSET($H11,0,FB$1),BD11) -> 49 | FD11: DC | FE11: 1 | FF11: 2 | FG11: 3 | FH11: 4 | FI11: 5 | FJ11: 6 | FK11: 7 | FL11: 8 | FM11: 9 | FN11: 10 | FO11: 11 | FP11: 12 | FQ11: 13 | FR11: 14 | FS11: 15 | FT11: 16 | FU11: 17 | FV11: 18 | FW11: 19 | FX11: 20 | FY11: 21 | FZ11: 22 | GA11: 23 | GB11: 24 | GC11: 25 | GD11: 26 | GE11: 27 | GF11: 28 | GG11: 29 | GH11: 30 | GI11: 31 | GJ11: 32 | GK11: 33 | GL11: 34 | GM11: 35 | GN11: 36 | GO11: 37 | GP11: 38 | GQ11: 39 | GR11: 40 | GS11: 41 | GT11: 42 | GU11: 43 | GV11: 44 | GW11: 45 | GX11: 46 | GY11: 47 | GZ11: 48 | HA11: 49 | HC11: DC | HD11: 61 | HE11: 62 | HF11: 63 | HG11: 64 | HH11: 65 | HI11: 66 | HJ11: 67 | HK11: 68 | HL11: 69 | HM11: 610 | HN11: 611 | HO11: 612 | HP11: 613 | HQ11: 614 | HR11: 615 | HS11: 616 | HT11: 617 | HU11: 618 | HV11: 619 | HW11: 620 | HX11: 621 | HY11: 622 | HZ11: 623 | IA11: 624 | IB11: 625 | IC11: 626 | ID11: 627 | IE11: 628 | IF11: 629 | IG11: 630 | IH11: 631 | II11: 632 | IJ11: 633 | IK11: 634 | IL11: 635 | IM11: 636 | IN11: 637 | IO11: 638 | IP11: 639 | IQ11: 640 | IR11: 641 | IS11: 642 | IT11: 643 | IU11: 644 | IV11: 645 | IW11: 646 | IX11: 647 | IY11: 648 | IZ11: 649
A12: 10 | B12: 90.1-2022 | E12: 10 | F12: Florida | G12: FL | H12: =MATCH(H$2,'2. Time Lag - State Adoption_P'!$G14:$V14,1) -> 6 | I12: =MATCH(I$2,'2. Time Lag - State Adoption_P'!$G14:$V14,1) -> 6 | J12: =MATCH(J$2,'2. Time Lag - State Adoption_P'!$G14:$V14,1) -> 6 | K12: =MATCH(K$2,'2. Time Lag - State Adoption_P'!$G14:$V14,1) -> 6 | L12: =MATCH(L$2,'2. Time Lag - State Adoption_P'!$G14:$V14,1) -> 6 | M12: =MATCH(M$2,'2. Time Lag - State Adoption_P'!$G14:$V14,1) -> 6 | N12: =MATCH(N$2,'2. Time Lag - State Adoption_P'!$G14:$V14,1) -> 6 | O12: =MATCH(O$2,'2. Time Lag - State Adoption_P'!$G14:$V14,1) -> 6 | P12: =MATCH(P$2,'2. Time Lag - State Adoption_P'!$G14:$V14,1) -> 6 | Q12: =MATCH(Q$2,'2. Time Lag - State Adoption_P'!$G14:$V14,1) -> 6 | R12: =MATCH(R$2,'2. Time Lag - State Adoption_P'!$G14:$V14,1) -> 6 | S12: =MATCH(S$2,'2. Time Lag - State Adoption_P'!$G14:$V14,1) -> 6 | T12: =MATCH(T$2,'2. Time Lag - State Adoption_P'!$G14:$V14,1) -> 6 | U12: =MATCH(U$2,'2. Time Lag - State Adoption_P'!$G14:$V14,1) -> 6 | V12: =MATCH(V$2,'2. Time Lag - State Adoption_P'!$G14:$V14,1) -> 6 | W12: =MATCH(W$2,'2. Time Lag - State Adoption_P'!$G14:$V14,1) -> 6 | X12: =MATCH(X$2,'2. Time Lag - State Adoption_P'!$G14:$V14,1) -> 6 | Y12: =MATCH(Y$2,'2. Time Lag - State Adoption_P'!$G14:$V14,1) -> 6 | Z12: =MATCH(Z$2,'2. Time Lag - State Adoption_P'!$G14:$V14,1) -> 6 | AA12: =MATCH(AA$2,'2. Time Lag - State Adoption_P'!$G14:$V14,1) -> 6 | AB12: =MATCH(AB$2,'2. Time Lag - State Adoption_P'!$G14:$V14,1) -> 6 | AC12: =MATCH(AC$2,'2. Time Lag - State Adoption_P'!$G14:$V14,1) -> 6 | AD12: =MATCH(AD$2,'2. Time Lag - State Adoption_P'!$G14:$V14,1) -> 6 | AE12: =MATCH(AE$2,'2. Time Lag - State Adoption_P'!$G14:$V14,1) -> 6 | AF12: =MATCH(AF$2,'2. Time Lag - State Adoption_P'!$G14:$V14,1) -> 6 | AG12: =MATCH(AG$2,'2. Time Lag - State Adoption_P'!$G14:$V14,1) -> 6 | AH12: =MATCH(AH$2,'2. Time Lag - State Adoption_P'!$G14:$V14,1) -> 6 | AI12: =MATCH(AI$2,'2. Time Lag - State Adoption_P'!$G14:$V14,1) -> 6 | AJ12: =MATCH(AJ$2,'2. Time Lag - State Adoption_P'!$G14:$V14,1) -> 6 | AK12: =MATCH(AK$2,'2. Time Lag - State Adoption_P'!$G14:$V14,1) -> 6 | AL12: =MATCH(AL$2,'2. Time Lag - State Adoption_P'!$G14:$V14,1) -> 6 | AM12: =MATCH(AM$2,'2. Time Lag - State Adoption_P'!$G14:$V14,1) -> 6 | AN12: =MATCH(AN$2,'2. Time Lag - State Adoption_P'!$G14:$V14,1) -> 6 | AO12: =MATCH(AO$2,'2. Time Lag - State Adoption_P'!$G14:$V14,1) -> 6 | AP12: =MATCH(AP$2,'2. Time Lag - State Adoption_P'!$G14:$V14,1) -> 6 | AQ12: =MATCH(AQ$2,'2. Time Lag - State Adoption_P'!$G14:$V14,1) -> 6 | AR12: =MATCH(AR$2,'2. Time Lag - State Adoption_P'!$G14:$V14,1) -> 6 | AS12: =MATCH(AS$2,'2. Time Lag - State Adoption_P'!$G14:$V14,1) -> 6 | AT12: =MATCH(AT$2,'2. Time Lag - State Adoption_P'!$G14:$V14,1) -> 6 | AU12: =MATCH(AU$2,'2. Time Lag - State Adoption_P'!$G14:$V14,1) -> 6 | AV12: =MATCH(AV$2,'2. Time Lag - State Adoption_P'!$G14:$V14,1) -> 6 | AW12: =MATCH(AW$2,'2. Time Lag - State Adoption_P'!$G14:$V14,1) -> 6 | AX12: =MATCH(AX$2,'2. Time Lag - State Adoption_P'!$G14:$V14,1) -> 6 | AY12: =MATCH(AY$2,'2. Time Lag - State Adoption_P'!$G14:$V14,1) -> 6 | AZ12: =MATCH(AZ$2,'2. Time Lag - State Adoption_P'!$G14:$V14,1) -> 6 | BA12: =MATCH(BA$2,'2. Time Lag - State Adoption_P'!$G14:$V14,1) -> 6 | BB12: =MATCH(BB$2,'2. Time Lag - State Adoption_P'!$G14:$V14,1) -> 6 | BC12: =MATCH(BC$2,'2. Time Lag - State Adoption_P'!$G14:$V14,1) -> 6 | BD12: =MATCH(BD$2,'2. Time Lag - State Adoption_P'!$G14:$V14,1) -> 6 | BF12: FL | BG12: =INDEX('2. Time Lag - State Adoption_P'!$Y150:$AN150,MATCH(H12,'2. Time Lag - State Adoption_P'!$Y$137:$AN$137,0)) -> 0 | BH12: =INDEX('2. Time Lag - State Adoption_P'!$Y150:$AN150,MATCH(I12,'2. Time Lag - State Adoption_P'!$Y$137:$AN$137,0)) -> 0 | BI12: =INDEX('2. Time Lag - State Adoption_P'!$Y150:$AN150,MATCH(J12,'2. Time Lag - State Adoption_P'!$Y$137:$AN$137,0)) -> 0 | BJ12: =INDEX('2. Time Lag - State Adoption_P'!$Y150:$AN150,MATCH(K12,'2. Time Lag - State Adoption_P'!$Y$137:$AN$137,0)) -> 0 | BK12: =INDEX('2. Time Lag - State Adoption_P'!$Y150:$AN150,MATCH(L12,'2. Time Lag - State Adoption_P'!$Y$137:$AN$137,0)) -> 0 | BL12: =INDEX('2. Time Lag - State Adoption_P'!$Y150:$AN150,MATCH(M12,'2. Time Lag - State Adoption_P'!$Y$137:$AN$137,0)) -> 0 | BM12: =INDEX('2. Time Lag - State Adoption_P'!$Y150:$AN150,MATCH(N12,'2. Time Lag - State Adoption_P'!$Y$137:$AN$137,0)) -> 0 | BN12: =INDEX('2. Time Lag - State Adoption_P'!$Y150:$AN150,MATCH(O12,'2. Time Lag - State Adoption_P'!$Y$137:$AN$137,0)) -> 0 | BO12: =INDEX('2. Time Lag - State Adoption_P'!$Y150:$AN150,MATCH(P12,'2. Time Lag - State Adoption_P'!$Y$137:$AN$137,0)) -> 0 | BP12: =INDEX('2. Time Lag - State Adoption_P'!$Y150:$AN150,MATCH(Q12,'2. Time Lag - State Adoption_P'!$Y$137:$AN$137,0)) -> 0 | BQ12: =INDEX('2. Time Lag - State Adoption_P'!$Y150:$AN150,MATCH(R12,'2. Time Lag - State Adoption_P'!$Y$137:$AN$137,0)) -> 0 | BR12: =INDEX('2. Time Lag - State Adoption_P'!$Y150:$AN150,MATCH(S12,'2. Time Lag - State Adoption_P'!$Y$137:$AN$137,0)) -> 0 | BS12: =INDEX('2. Time Lag - State Adoption_P'!$Y150:$AN150,MATCH(T12,'2. Time Lag - State Adoption_P'!$Y$137:$AN$137,0)) -> 0 | BT12: =INDEX('2. Time Lag - State Adoption_P'!$Y150:$AN150,MATCH(U12,'2. Time Lag - State Adoption_P'!$Y$137:$AN$137,0)) -> 0 | BU12: =INDEX('2. Time Lag - State Adoption_P'!$Y150:$AN150,MATCH(V12,'2. Time Lag - State Adoption_P'!$Y$137:$AN$137,0)) -> 0 | BV12: =INDEX('2. Time Lag - State Adoption_P'!$Y150:$AN150,MATCH(W12,'2. Time Lag - State Adoption_P'!$Y$137:$AN$137,0)) -> 0 | BW12: =INDEX('2. Time Lag - State Adoption_P'!$Y150:$AN150,MATCH(X12,'2. Time Lag - State Adoption_P'!$Y$137:$AN$137,0)) -> 0 | BX12: =INDEX('2. Time Lag - State Adoption_P'!$Y150:$AN150,MATCH(Y12,'2. Time Lag - State Adoption_P'!$Y$137:$AN$137,0)) -> 0 | BY12: =INDEX('2. Time Lag - State Adoption_P'!$Y150:$AN150,MATCH(Z12,'2. Time Lag - State Adoption_P'!$Y$137:$AN$137,0)) -> 0 | BZ12: =INDEX('2. Time Lag - State Adoption_P'!$Y150:$AN150,MATCH(AA12,'2. Time Lag - State Adoption_P'!$Y$137:$AN$137,0)) -> 0 | CA12: =INDEX('2. Time Lag - State Adoption_P'!$Y150:$AN150,MATCH(AB12,'2. Time Lag - State Adoption_P'!$Y$137:$AN$137,0)) -> 0 | CB12: =INDEX('2. Time Lag - State Adoption_P'!$Y150:$AN150,MATCH(AC12,'2. Time Lag - State Adoption_P'!$Y$137:$AN$137,0)) -> 0 | CC12: =INDEX('2. Time Lag - State Adoption_P'!$Y150:$AN150,MATCH(AD12,'2. Time Lag - State Adoption_P'!$Y$137:$AN$137,0)) -> 0 | CD12: =INDEX('2. Time Lag - State Adoption_P'!$Y150:$AN150,MATCH(AE12,'2. Time Lag - State Adoption_P'!$Y$137:$AN$137,0)) -> 0 | CE12: =INDEX('2. Time Lag - State Adoption_P'!$Y150:$AN150,MATCH(AF12,'2. Time Lag - State Adoption_P'!$Y$137:$AN$137,0)) -> 0 | CF12: =INDEX('2. Time Lag - State Adoption_P'!$Y150:$AN150,MATCH(AG12,'2. Time Lag - State Adoption_P'!$Y$137:$AN$137,0)) -> 0 | CG12: =INDEX('2. Time Lag - State Adoption_P'!$Y150:$AN150,MATCH(AH12,'2. Time Lag - State Adoption_P'!$Y$137:$AN$137,0)) -> 0 | CH12: =INDEX('2. Time Lag - State Adoption_P'!$Y150:$AN150,MATCH(AI12,'2. Time Lag - State Adoption_P'!$Y$137:$AN$137,0)) -> 0 | CI12: =INDEX('2. Time Lag - State Adoption_P'!$Y150:$AN150,MATCH(AJ12,'2. Time Lag - State Adoption_P'!$Y$137:$AN$137,0)) -> 0 | CJ12: =INDEX('2. Time Lag - State Adoption_P'!$Y150:$AN150,MATCH(AK12,'2. Time Lag - State Adoption_P'!$Y$137:$AN$137,0)) -> 0 | CK12: =INDEX('2. Time Lag - State Adoption_P'!$Y150:$AN150,MATCH(AL12,'2. Time Lag - State Adoption_P'!$Y$137:$AN$137,0)) -> 0 | CL12: =INDEX('2. Time Lag - State Adoption_P'!$Y150:$AN150,MATCH(AM12,'2. Time Lag - State Adoption_P'!$Y$137:$AN$137,0)) -> 0 | CM12: =INDEX('2. Time Lag - State Adoption_P'!$Y150:$AN150,MATCH(AN12,'2. Time Lag - State Adoption_P'!$Y$137:$AN$137,0)) -> 0 | CN12: =INDEX('2. Time Lag - State Adoption_P'!$Y150:$AN150,MATCH(AO12,'2. Time Lag - State Adoption_P'!$Y$137:$AN$137,0)) -> 0 | CO12: =INDEX('2. Time Lag - State Adoption_P'!$Y150:$AN150,MATCH(AP12,'2. Time Lag - State Adoption_P'!$Y$137:$AN$137,0)) -> 0 | CP12: =INDEX('2. Time Lag - State Adoption_P'!$Y150:$AN150,MATCH(AQ12,'2. Time Lag - State Adoption_P'!$Y$137:$AN$137,0)) -> 0 | CQ12: =INDEX('2. Time Lag - State Adoption_P'!$Y150:$AN150,MATCH(AR12,'2. Time Lag - State Adoption_P'!$Y$137:$AN$137,0)) -> 0 | CR12: =INDEX('2. Time Lag - State Adoption_P'!$Y150:$AN150,MATCH(AS12,'2. Time Lag - State Adoption_P'!$Y$137:$AN$137,0)) -> 0 | CS12: =INDEX('2. Time Lag - State Adoption_P'!$Y150:$AN150,MATCH(AT12,'2. Time Lag - State Adoption_P'!$Y$137:$AN$137,0)) -> 0 | CT12: =INDEX('2. Time Lag - State Adoption_P'!$Y150:$AN150,MATCH(AU12,'2. Time Lag - State Adoption_P'!$Y$137:$AN$137,0)) -> 0 | CU12: =INDEX('2. Time Lag - State Adoption_P'!$Y150:$AN150,MATCH(AV12,'2. Time Lag - State Adoption_P'!$Y$137:$AN$137,0)) -> 0 | CV12: =INDEX('2. Time Lag - State Adoption_P'!$Y150:$AN150,MATCH(AW12,'2. Time Lag - State Adoption_P'!$Y$137:$AN$137,0)) -> 0 | CW12: =INDEX('2. Time Lag - State Adoption_P'!$Y150:$AN150,MATCH(AX12,'2. Time Lag - State Adoption_P'!$Y$137:$AN$137,0)) -> 0 | CX12: =INDEX('2. Time Lag - State Adoption_P'!$Y150:$AN150,MATCH(AY12,'2. Time Lag - State Adoption_P'!$Y$137:$AN$137,0)) -> 0 | CY12: =INDEX('2. Time Lag - State Adoption_P'!$Y150:$AN150,MATCH(AZ12,'2. Time Lag - State Adoption_P'!$Y$137:$AN$137,0)) -> 0 | CZ12: =INDEX('2. Time Lag - State Adoption_P'!$Y150:$AN150,MATCH(BA12,'2. Time Lag - State Adoption_P'!$Y$137:$AN$137,0)) -> 0 | DA12: =INDEX('2. Time Lag - State Adoption_P'!$Y150:$AN150,MATCH(BB12,'2. Time Lag - State Adoption_P'!$Y$137:$AN$137,0)) -> 0 | DB12: =INDEX('2. Time Lag - State Adoption_P'!$Y150:$AN150,MATCH(BC12,'2. Time Lag - State Adoption_P'!$Y$137:$AN$137,0)) -> 0 | DC12: =INDEX('2. Time Lag - State Adoption_P'!$Y150:$AN150,MATCH(BD12,'2. Time Lag - State Adoption_P'!$Y$137:$AN$137,0)) -> 0 | DE12: FL | DF12: =COUNTIF($H12:OFFSET($H12,0,DF$1),H12) -> 1 | DG12: =COUNTIF($H12:OFFSET($H12,0,DG$1),I12) -> 2 | DH12: =COUNTIF($H12:OFFSET($H12,0,DH$1),J12) -> 3 | DI12: =COUNTIF($H12:OFFSET($H12,0,DI$1),K12) -> 4 | DJ12: =COUNTIF($H12:OFFSET($H12,0,DJ$1),L12) -> 5 | DK12: =COUNTIF($H12:OFFSET($H12,0,DK$1),M12) -> 6 | DL12: =COUNTIF($H12:OFFSET($H12,0,DL$1),N12) -> 7 | DM12: =COUNTIF($H12:OFFSET($H12,0,DM$1),O12) -> 8 | DN12: =COUNTIF($H12:OFFSET($H12,0,DN$1),P12) -> 9 | DO12: =COUNTIF($H12:OFFSET($H12,0,DO$1),Q12) -> 10 | DP12: =COUNTIF($H12:OFFSET($H12,0,DP$1),R12) -> 11 | DQ12: =COUNTIF($H12:OFFSET($H12,0,DQ$1),S12) -> 12 | DR12: =COUNTIF($H12:OFFSET($H12,0,DR$1),T12) -> 13 | DS12: =COUNTIF($H12:OFFSET($H12,0,DS$1),U12) -> 14 | DT12: =COUNTIF($H12:OFFSET($H12,0,DT$1),V12) -> 15 | DU12: =COUNTIF($H12:OFFSET($H12,0,DU$1),W12) -> 16 | DV12: =COUNTIF($H12:OFFSET($H12,0,DV$1),X12) -> 17 | DW12: =COUNTIF($H12:OFFSET($H12,0,DW$1),Y12) -> 18 | DX12: =COUNTIF($H12:OFFSET($H12,0,DX$1),Z12) -> 19 | DY12: =COUNTIF($H12:OFFSET($H12,0,DY$1),AA12) -> 20 | DZ12: =COUNTIF($H12:OFFSET($H12,0,DZ$1),AB12) -> 21 | EA12: =COUNTIF($H12:OFFSET($H12,0,EA$1),AC12) -> 22 | EB12: =COUNTIF($H12:OFFSET($H12,0,EB$1),AD12) -> 23 | EC12: =COUNTIF($H12:OFFSET($H12,0,EC$1),AE12) -> 24 | ED12: =COUNTIF($H12:OFFSET($H12,0,ED$1),AF12) -> 25 | EE12: =COUNTIF($H12:OFFSET($H12,0,EE$1),AG12) -> 26 | EF12: =COUNTIF($H12:OFFSET($H12,0,EF$1),AH12) -> 27 | EG12: =COUNTIF($H12:OFFSET($H12,0,EG$1),AI12) -> 28 | EH12: =COUNTIF($H12:OFFSET($H12,0,EH$1),AJ12) -> 29 | EI12: =COUNTIF($H12:OFFSET($H12,0,EI$1),AK12) -> 30 | EJ12: =COUNTIF($H12:OFFSET($H12,0,EJ$1),AL12) -> 31 | EK12: =COUNTIF($H12:OFFSET($H12,0,EK$1),AM12) -> 32 | EL12: =COUNTIF($H12:OFFSET($H12,0,EL$1),AN12) -> 33 | EM12: =COUNTIF($H12:OFFSET($H12,0,EM$1),AO12) -> 34 | EN12: =COUNTIF($H12:OFFSET($H12,0,EN$1),AP12) -> 35 | EO12: =COUNTIF($H12:OFFSET($H12,0,EO$1),AQ12) -> 36 | EP12: =COUNTIF($H12:OFFSET($H12,0,EP$1),AR12) -> 37 | EQ12: =COUNTIF($H12:OFFSET($H12,0,EQ$1),AS12) -> 38 | ER12: =COUNTIF($H12:OFFSET($H12,0,ER$1),AT12) -> 39 | ES12: =COUNTIF($H12:OFFSET($H12,0,ES$1),AU12) -> 40 | ET12: =COUNTIF($H12:OFFSET($H12,0,ET$1),AV12) -> 41 | EU12: =COUNTIF($H12:OFFSET($H12,0,EU$1),AW12) -> 42 | EV12: =COUNTIF($H12:OFFSET($H12,0,EV$1),AX12) -> 43 | EW12: =COUNTIF($H12:OFFSET($H12,0,EW$1),AY12) -> 44 | EX12: =COUNTIF($H12:OFFSET($H12,0,EX$1),AZ12) -> 45 | EY12: =COUNTIF($H12:OFFSET($H12,0,EY$1),BA12) -> 46 | EZ12: =COUNTIF($H12:OFFSET($H12,0,EZ$1),BB12) -> 47 | FA12: =COUNTIF($H12:OFFSET($H12,0,FA$1),BC12) -> 48 | FB12: =COUNTIF($H12:OFFSET($H12,0,FB$1),BD12) -> 49 | FD12: FL | FE12: 1 | FF12: 2 | FG12: 3 | FH12: 4 | FI12: 5 | FJ12: 6 | FK12: 7 | FL12: 8 | FM12: 9 | FN12: 10 | FO12: 11 | FP12: 12 | FQ12: 13 | FR12: 14 | FS12: 15 | FT12: 16 | FU12: 17 | FV12: 18 | FW12: 19 | FX12: 20 | FY12: 21 | FZ12: 22 | GA12: 23 | GB12: 24 | GC12: 25 | GD12: 26 | GE12: 27 | GF12: 28 | GG12: 29 | GH12: 30 | GI12: 31 | GJ12: 32 | GK12: 33 | GL12: 34 | GM12: 35 | GN12: 36 | GO12: 37 | GP12: 38 | GQ12: 39 | GR12: 40 | GS12: 41 | GT12: 42 | GU12: 43 | GV12: 44 | GW12: 45 | GX12: 46 | GY12: 47 | GZ12: 48 | HA12: 49 | HC12: FL | HD12: 61 | HE12: 62 | HF12: 63 | HG12: 64 | HH12: 65 | HI12: 66 | HJ12: 67 | HK12: 68 | HL12: 69 | HM12: 610 | HN12: 611 | HO12: 612 | HP12: 613 | HQ12: 614 | HR12: 615 | HS12: 616 | HT12: 617 | HU12: 618 | HV12: 619 | HW12: 620 | HX12: 621 | HY12: 622 | HZ12: 623 | IA12: 624 | IB12: 625 | IC12: 626 | ID12: 627 | IE12: 628 | IF12: 629 | IG12: 630 | IH12: 631 | II12: 632 | IJ12: 633 | IK12: 634 | IL12: 635 | IM12: 636 | IN12: 637 | IO12: 638 | IP12: 639 | IQ12: 640 | IR12: 641 | IS12: 642 | IT12: 643 | IU12: 644 | IV12: 645 | IW12: 646 | IX12: 647 | IY12: 648 | IZ12: 649
A13: 11 | B13: 90.1-2025 | E13: 11 | F13: Georgia | G13: GA | H13: =MATCH(H$2,'2. Time Lag - State Adoption_P'!$G15:$V15,1) -> 6 | I13: =MATCH(I$2,'2. Time Lag - State Adoption_P'!$G15:$V15,1) -> 6 | J13: =MATCH(J$2,'2. Time Lag - State Adoption_P'!$G15:$V15,1) -> 6 | K13: =MATCH(K$2,'2. Time Lag - State Adoption_P'!$G15:$V15,1) -> 6 | L13: =MATCH(L$2,'2. Time Lag - State Adoption_P'!$G15:$V15,1) -> 6 | M13: =MATCH(M$2,'2. Time Lag - State Adoption_P'!$G15:$V15,1) -> 6 | N13: =MATCH(N$2,'2. Time Lag - State Adoption_P'!$G15:$V15,1) -> 6 | O13: =MATCH(O$2,'2. Time Lag - State Adoption_P'!$G15:$V15,1) -> 6 | P13: =MATCH(P$2,'2. Time Lag - State Adoption_P'!$G15:$V15,1) -> 6 | Q13: =MATCH(Q$2,'2. Time Lag - State Adoption_P'!$G15:$V15,1) -> 6 | R13: =MATCH(R$2,'2. Time Lag - State Adoption_P'!$G15:$V15,1) -> 6 | S13: =MATCH(S$2,'2. Time Lag - State Adoption_P'!$G15:$V15,1) -> 6 | T13: =MATCH(T$2,'2. Time Lag - State Adoption_P'!$G15:$V15,1) -> 6 | U13: =MATCH(U$2,'2. Time Lag - State Adoption_P'!$G15:$V15,1) -> 6 | V13: =MATCH(V$2,'2. Time Lag - State Adoption_P'!$G15:$V15,1) -> 6 | W13: =MATCH(W$2,'2. Time Lag - State Adoption_P'!$G15:$V15,1) -> 6 | X13: =MATCH(X$2,'2. Time Lag - State Adoption_P'!$G15:$V15,1) -> 6 | Y13: =MATCH(Y$2,'2. Time Lag - State Adoption_P'!$G15:$V15,1) -> 6 | Z13: =MATCH(Z$2,'2. Time Lag - State Adoption_P'!$G15:$V15,1) -> 6 | AA13: =MATCH(AA$2,'2. Time Lag - State Adoption_P'!$G15:$V15,1) -> 6 | AB13: =MATCH(AB$2,'2. Time Lag - State Adoption_P'!$G15:$V15,1) -> 6 | AC13: =MATCH(AC$2,'2. Time Lag - State Adoption_P'!$G15:$V15,1) -> 6 | AD13: =MATCH(AD$2,'2. Time Lag - State Adoption_P'!$G15:$V15,1) -> 6 | AE13: =MATCH(AE$2,'2. Time Lag - State Adoption_P'!$G15:$V15,1) -> 6 | AF13: =MATCH(AF$2,'2. Time Lag - State Adoption_P'!$G15:$V15,1) -> 6 | AG13: =MATCH(AG$2,'2. Time Lag - State Adoption_P'!$G15:$V15,1) -> 6 | AH13: =MATCH(AH$2,'2. Time Lag - State Adoption_P'!$G15:$V15,1) -> 6 | AI13: =MATCH(AI$2,'2. Time Lag - State Adoption_P'!$G15:$V15,1) -> 6 | AJ13: =MATCH(AJ$2,'2. Time Lag - State Adoption_P'!$G15:$V15,1) -> 6 | AK13: =MATCH(AK$2,'2. Time Lag - State Adoption_P'!$G15:$V15,1) -> 6 | AL13: =MATCH(AL$2,'2. Time Lag - State Adoption_P'!$G15:$V15,1) -> 6 | AM13: =MATCH(AM$2,'2. Time Lag - State Adoption_P'!$G15:$V15,1) -> 6 | AN13: =MATCH(AN$2,'2. Time Lag - State Adoption_P'!$G15:$V15,1) -> 6 | AO13: =MATCH(AO$2,'2. Time Lag - State Adoption_P'!$G15:$V15,1) -> 6 | AP13: =MATCH(AP$2,'2. Time Lag - State Adoption_P'!$G15:$V15,1) -> 6 | AQ13: =MATCH(AQ$2,'2. Time Lag - State Adoption_P'!$G15:$V15,1) -> 6 | AR13: =MATCH(AR$2,'2. Time Lag - State Adoption_P'!$G15:$V15,1) -> 6 | AS13: =MATCH(AS$2,'2. Time Lag - State Adoption_P'!$G15:$V15,1) -> 6 | AT13: =MATCH(AT$2,'2. Time Lag - State Adoption_P'!$G15:$V15,1) -> 6 | AU13: =MATCH(AU$2,'2. Time Lag - State Adoption_P'!$G15:$V15,1) -> 6 | AV13: =MATCH(AV$2,'2. Time Lag - State Adoption_P'!$G15:$V15,1) -> 6 | AW13: =MATCH(AW$2,'2. Time Lag - State Adoption_P'!$G15:$V15,1) -> 6 | AX13: =MATCH(AX$2,'2. Time Lag - State Adoption_P'!$G15:$V15,1) -> 6 | AY13: =MATCH(AY$2,'2. Time Lag - State Adoption_P'!$G15:$V15,1) -> 6 | AZ13: =MATCH(AZ$2,'2. Time Lag - State Adoption_P'!$G15:$V15,1) -> 6 | BA13: =MATCH(BA$2,'2. Time Lag - State Adoption_P'!$G15:$V15,1) -> 6 | BB13: =MATCH(BB$2,'2. Time Lag - State Adoption_P'!$G15:$V15,1) -> 6 | BC13: =MATCH(BC$2,'2. Time Lag - State Adoption_P'!$G15:$V15,1) -> 6 | BD13: =MATCH(BD$2,'2. Time Lag - State Adoption_P'!$G15:$V15,1) -> 6 | BF13: GA | BG13: =INDEX('2. Time Lag - State Adoption_P'!$Y151:$AN151,MATCH(H13,'2. Time Lag - State Adoption_P'!$Y$137:$AN$137,0)) -> 0 | BH13: =INDEX('2. Time Lag - State Adoption_P'!$Y151:$AN151,MATCH(I13,'2. Time Lag - State Adoption_P'!$Y$137:$AN$137,0)) -> 0 | BI13: =INDEX('2. Time Lag - State Adoption_P'!$Y151:$AN151,MATCH(J13,'2. Time Lag - State Adoption_P'!$Y$137:$AN$137,0)) -> 0 | BJ13: =INDEX('2. Time Lag - State Adoption_P'!$Y151:$AN151,MATCH(K13,'2. Time Lag - State Adoption_P'!$Y$137:$AN$137,0)) -> 0 | BK13: =INDEX('2. Time Lag - State Adoption_P'!$Y151:$AN151,MATCH(L13,'2. Time Lag - State Adoption_P'!$Y$137:$AN$137,0)) -> 0 | BL13: =INDEX('2. Time Lag - State Adoption_P'!$Y151:$AN151,MATCH(M13,'2. Time Lag - State Adoption_P'!$Y$137:$AN$137,0)) -> 0 | BM13: =INDEX('2. Time Lag - State Adoption_P'!$Y151:$AN151,MATCH(N13,'2. Time Lag - State Adoption_P'!$Y$137:$AN$137,0)) -> 0 | BN13: =INDEX('2. Time Lag - State Adoption_P'!$Y151:$AN151,MATCH(O13,'2. Time Lag - State Adoption_P'!$Y$137:$AN$137,0)) -> 0 | BO13: =INDEX('2. Time Lag - State Adoption_P'!$Y151:$AN151,MATCH(P13,'2. Time Lag - State Adoption_P'!$Y$137:$AN$137,0)) -> 0 | BP13: =INDEX('2. Time Lag - State Adoption_P'!$Y151:$AN151,MATCH(Q13,'2. Time Lag - State Adoption_P'!$Y$137:$AN$137,0)) -> 0 | BQ13: =INDEX('2. Time Lag - State Adoption_P'!$Y151:$AN151,MATCH(R13,'2. Time Lag - State Adoption_P'!$Y$137:$AN$137,0)) -> 0 | BR13: =INDEX('2. Time Lag - State Adoption_P'!$Y151:$AN151,MATCH(S13,'2. Time Lag - State Adoption_P'!$Y$137:$AN$137,0)) -> 0 | BS13: =INDEX('2. Time Lag - State Adoption_P'!$Y151:$AN151,MATCH(T13,'2. Time Lag - State Adoption_P'!$Y$137:$AN$137,0)) -> 0 | BT13: =INDEX('2. Time Lag - State Adoption_P'!$Y151:$AN151,MATCH(U13,'2. Time Lag - State Adoption_P'!$Y$137:$AN$137,0)) -> 0 | BU13: =INDEX('2. Time Lag - State Adoption_P'!$Y151:$AN151,MATCH(V13,'2. Time Lag - State Adoption_P'!$Y$137:$AN$137,0)) -> 0 | BV13: =INDEX('2. Time Lag - State Adoption_P'!$Y151:$AN151,MATCH(W13,'2. Time Lag - State Adoption_P'!$Y$137:$AN$137,0)) -> 0 | BW13: =INDEX('2. Time Lag - State Adoption_P'!$Y151:$AN151,MATCH(X13,'2. Time Lag - State Adoption_P'!$Y$137:$AN$137,0)) -> 0 | BX13: =INDEX('2. Time Lag - State Adoption_P'!$Y151:$AN151,MATCH(Y13,'2. Time Lag - State Adoption_P'!$Y$137:$AN$137,0)) -> 0 | BY13: =INDEX('2. Time Lag - State Adoption_P'!$Y151:$AN151,MATCH(Z13,'2. Time Lag - State Adoption_P'!$Y$137:$AN$137,0)) -> 0 | BZ13: =INDEX('2. Time Lag - State Adoption_P'!$Y151:$AN151,MATCH(AA13,'2. Time Lag - State Adoption_P'!$Y$137:$AN$137,0)) -> 0 | CA13: =INDEX('2. Time Lag - State Adoption_P'!$Y151:$AN151,MATCH(AB13,'2. Time Lag - State Adoption_P'!$Y$137:$AN$137,0)) -> 0 | CB13: =INDEX('2. Time Lag - State Adoption_P'!$Y151:$AN151,MATCH(AC13,'2. Time Lag - State Adoption_P'!$Y$137:$AN$137,0)) -> 0 | CC13: =INDEX('2. Time Lag - State Adoption_P'!$Y151:$AN151,MATCH(AD13,'2. Time Lag - State Adoption_P'!$Y$137:$AN$137,0)) -> 0 | CD13: =INDEX('2. Time Lag - State Adoption_P'!$Y151:$AN151,MATCH(AE13,'2. Time Lag - State Adoption_P'!$Y$137:$AN$137,0)) -> 0 | CE13: =INDEX('2. Time Lag - State Adoption_P'!$Y151:$AN151,MATCH(AF13,'2. Time Lag - State Adoption_P'!$Y$137:$AN$137,0)) -> 0 | CF13: =INDEX('2. Time Lag - State Adoption_P'!$Y151:$AN151,MATCH(AG13,'2. Time Lag - State Adoption_P'!$Y$137:$AN$137,0)) -> 0 | CG13: =INDEX('2. Time Lag - State Adoption_P'!$Y151:$AN151,MATCH(AH13,'2. Time Lag - State Adoption_P'!$Y$137:$AN$137,0)) -> 0 | CH13: =INDEX('2. Time Lag - State Adoption_P'!$Y151:$AN151,MATCH(AI13,'2. Time Lag - State Adoption_P'!$Y$137:$AN$137,0)) -> 0 | CI13: =INDEX('2. Time Lag - State Adoption_P'!$Y151:$AN151,MATCH(AJ13,'2. Time Lag - State Adoption_P'!$Y$137:$AN$137,0)) -> 0 | CJ13: =INDEX('2. Time Lag - State Adoption_P'!$Y151:$AN151,MATCH(AK13,'2. Time Lag - State Adoption_P'!$Y$137:$AN$137,0)) -> 0 | CK13: =INDEX('2. Time Lag - State Adoption_P'!$Y151:$AN151,MATCH(AL13,'2. Time Lag - State Adoption_P'!$Y$137:$AN$137,0)) -> 0 | CL13: =INDEX('2. Time Lag - State Adoption_P'!$Y151:$AN151,MATCH(AM13,'2. Time Lag - State Adoption_P'!$Y$137:$AN$137,0)) -> 0 | CM13: =INDEX('2. Time Lag - State Adoption_P'!$Y151:$AN151,MATCH(AN13,'2. Time Lag - State Adoption_P'!$Y$137:$AN$137,0)) -> 0 | CN13: =INDEX('2. Time Lag - State Adoption_P'!$Y151:$AN151,MATCH(AO13,'2. Time Lag - State Adoption_P'!$Y$137:$AN$137,0)) -> 0 | CO13: =INDEX('2. Time Lag - State Adoption_P'!$Y151:$AN151,MATCH(AP13,'2. Time Lag - State Adoption_P'!$Y$137:$AN$137,0)) -> 0 | CP13: =INDEX('2. Time Lag - State Adoption_P'!$Y151:$AN151,MATCH(AQ13,'2. Time Lag - State Adoption_P'!$Y$137:$AN$137,0)) -> 0 | CQ13: =INDEX('2. Time Lag - State Adoption_P'!$Y151:$AN151,MATCH(AR13,'2. Time Lag - State Adoption_P'!$Y$137:$AN$137,0)) -> 0 | CR13: =INDEX('2. Time Lag - State Adoption_P'!$Y151:$AN151,MATCH(AS13,'2. Time Lag - State Adoption_P'!$Y$137:$AN$137,0)) -> 0 | CS13: =INDEX('2. Time Lag - State Adoption_P'!$Y151:$AN151,MATCH(AT13,'2. Time Lag - State Adoption_P'!$Y$137:$AN$137,0)) -> 0 | CT13: =INDEX('2. Time Lag - State Adoption_P'!$Y151:$AN151,MATCH(AU13,'2. Time Lag - State Adoption_P'!$Y$137:$AN$137,0)) -> 0 | CU13: =INDEX('2. Time Lag - State Adoption_P'!$Y151:$AN151,MATCH(AV13,'2. Time Lag - State Adoption_P'!$Y$137:$AN$137,0)) -> 0 | CV13: =INDEX('2. Time Lag - State Adoption_P'!$Y151:$AN151,MATCH(AW13,'2. Time Lag - State Adoption_P'!$Y$137:$AN$137,0)) -> 0 | CW13: =INDEX('2. Time Lag - State Adoption_P'!$Y151:$AN151,MATCH(AX13,'2. Time Lag - State Adoption_P'!$Y$137:$AN$137,0)) -> 0 | CX13: =INDEX('2. Time Lag - State Adoption_P'!$Y151:$AN151,MATCH(AY13,'2. Time Lag - State Adoption_P'!$Y$137:$AN$137,0)) -> 0 | CY13: =INDEX('2. Time Lag - State Adoption_P'!$Y151:$AN151,MATCH(AZ13,'2. Time Lag - State Adoption_P'!$Y$137:$AN$137,0)) -> 0 | CZ13: =INDEX('2. Time Lag - State Adoption_P'!$Y151:$AN151,MATCH(BA13,'2. Time Lag - State Adoption_P'!$Y$137:$AN$137,0)) -> 0 | DA13: =INDEX('2. Time Lag - State Adoption_P'!$Y151:$AN151,MATCH(BB13,'2. Time Lag - State Adoption_P'!$Y$137:$AN$137,0)) -> 0 | DB13: =INDEX('2. Time Lag - State Adoption_P'!$Y151:$AN151,MATCH(BC13,'2. Time Lag - State Adoption_P'!$Y$137:$AN$137,0)) -> 0 | DC13: =INDEX('2. Time Lag - State Adoption_P'!$Y151:$AN151,MATCH(BD13,'2. Time Lag - State Adoption_P'!$Y$137:$AN$137,0)) -> 0 | DE13: GA | DF13: =COUNTIF($H13:OFFSET($H13,0,DF$1),H13) -> 1 | DG13: =COUNTIF($H13:OFFSET($H13,0,DG$1),I13) -> 2 | DH13: =COUNTIF($H13:OFFSET($H13,0,DH$1),J13) -> 3 | DI13: =COUNTIF($H13:OFFSET($H13,0,DI$1),K13) -> 4 | DJ13: =COUNTIF($H13:OFFSET($H13,0,DJ$1),L13) -> 5 | DK13: =COUNTIF($H13:OFFSET($H13,0,DK$1),M13) -> 6 | DL13: =COUNTIF($H13:OFFSET($H13,0,DL$1),N13) -> 7 | DM13: =COUNTIF($H13:OFFSET($H13,0,DM$1),O13) -> 8 | DN13: =COUNTIF($H13:OFFSET($H13,0,DN$1),P13) -> 9 | DO13: =COUNTIF($H13:OFFSET($H13,0,DO$1),Q13) -> 10 | DP13: =COUNTIF($H13:OFFSET($H13,0,DP$1),R13) -> 11 | DQ13: =COUNTIF($H13:OFFSET($H13,0,DQ$1),S13) -> 12 | DR13: =COUNTIF($H13:OFFSET($H13,0,DR$1),T13) -> 13 | DS13: =COUNTIF($H13:OFFSET($H13,0,DS$1),U13) -> 14 | DT13: =COUNTIF($H13:OFFSET($H13,0,DT$1),V13) -> 15 | DU13: =COUNTIF($H13:OFFSET($H13,0,DU$1),W13) -> 16 | DV13: =COUNTIF($H13:OFFSET($H13,0,DV$1),X13) -> 17 | DW13: =COUNTIF($H13:OFFSET($H13,0,DW$1),Y13) -> 18 | DX13: =COUNTIF($H13:OFFSET($H13,0,DX$1),Z13) -> 19 | DY13: =COUNTIF($H13:OFFSET($H13,0,DY$1),AA13) -> 20 | DZ13: =COUNTIF($H13:OFFSET($H13,0,DZ$1),AB13) -> 21 | EA13: =COUNTIF($H13:OFFSET($H13,0,EA$1),AC13) -> 22 | EB13: =COUNTIF($H13:OFFSET($H13,0,EB$1),AD13) -> 23 | EC13: =COUNTIF($H13:OFFSET($H13,0,EC$1),AE13) -> 24 | ED13: =COUNTIF($H13:OFFSET($H13,0,ED$1),AF13) -> 25 | EE13: =COUNTIF($H13:OFFSET($H13,0,EE$1),AG13) -> 26 | EF13: =COUNTIF($H13:OFFSET($H13,0,EF$1),AH13) -> 27 | EG13: =COUNTIF($H13:OFFSET($H13,0,EG$1),AI13) -> 28 | EH13: =COUNTIF($H13:OFFSET($H13,0,EH$1),AJ13) -> 29 | EI13: =COUNTIF($H13:OFFSET($H13,0,EI$1),AK13) -> 30 | EJ13: =COUNTIF($H13:OFFSET($H13,0,EJ$1),AL13) -> 31 | EK13: =COUNTIF($H13:OFFSET($H13,0,EK$1),AM13) -> 32 | EL13: =COUNTIF($H13:OFFSET($H13,0,EL$1),AN13) -> 33 | EM13: =COUNTIF($H13:OFFSET($H13,0,EM$1),AO13) -> 34 | EN13: =COUNTIF($H13:OFFSET($H13,0,EN$1),AP13) -> 35 | EO13: =COUNTIF($H13:OFFSET($H13,0,EO$1),AQ13) -> 36 | EP13: =COUNTIF($H13:OFFSET($H13,0,EP$1),AR13) -> 37 | EQ13: =COUNTIF($H13:OFFSET($H13,0,EQ$1),AS13) -> 38 | ER13: =COUNTIF($H13:OFFSET($H13,0,ER$1),AT13) -> 39 | ES13: =COUNTIF($H13:OFFSET($H13,0,ES$1),AU13) -> 40 | ET13: =COUNTIF($H13:OFFSET($H13,0,ET$1),AV13) -> 41 | EU13: =COUNTIF($H13:OFFSET($H13,0,EU$1),AW13) -> 42 | EV13: =COUNTIF($H13:OFFSET($H13,0,EV$1),AX13) -> 43 | EW13: =COUNTIF($H13:OFFSET($H13,0,EW$1),AY13) -> 44 | EX13: =COUNTIF($H13:OFFSET($H13,0,EX$1),AZ13) -> 45 | EY13: =COUNTIF($H13:OFFSET($H13,0,EY$1),BA13) -> 46 | EZ13: =COUNTIF($H13:OFFSET($H13,0,EZ$1),BB13) -> 47 | FA13: =COUNTIF($H13:OFFSET($H13,0,FA$1),BC13) -> 48 | FB13: =COUNTIF($H13:OFFSET($H13,0,FB$1),BD13) -> 49 | FD13: GA | FE13: 1 | FF13: 2 | FG13: 3 | FH13: 4 | FI13: 5 | FJ13: 6 | FK13: 7 | FL13: 8 | FM13: 9 | FN13: 10 | FO13: 11 | FP13: 12 | FQ13: 13 | FR13: 14 | FS13: 15 | FT13: 16 | FU13: 17 | FV13: 18 | FW13: 19 | FX13: 20 | FY13: 21 | FZ13: 22 | GA13: 23 | GB13: 24 | GC13: 25 | GD13: 26 | GE13: 27 | GF13: 28 | GG13: 29 | GH13: 30 | GI13: 31 | GJ13: 32 | GK13: 33 | GL13: 34 | GM13: 35 | GN13: 36 | GO13: 37 | GP13: 38 | GQ13: 39 | GR13: 40 | GS13: 41 | GT13: 42 | GU13: 43 | GV13: 44 | GW13: 45 | GX13: 46 | GY13: 47 | GZ13: 48 | HA13: 49 | HC13: GA | HD13: 61 | HE13: 62 | HF13: 63 | HG13: 64 | HH13: 65 | HI13: 66 | HJ13: 67 | HK13: 68 | HL13: 69 | HM13: 610 | HN13: 611 | HO13: 612 | HP13: 613 | HQ13: 614 | HR13: 615 | HS13: 616 | HT13: 617 | HU13: 618 | HV13: 619 | HW13: 620 | HX13: 621 | HY13: 622 | HZ13: 623 | IA13: 624 | IB13: 625 | IC13: 626 | ID13: 627 | IE13: 628 | IF13: 629 | IG13: 630 | IH13: 631 | II13: 632 | IJ13: 633 | IK13: 634 | IL13: 635 | IM13: 636 | IN13: 637 | IO13: 638 | IP13: 639 | IQ13: 640 | IR13: 641 | IS13: 642 | IT13: 643 | IU13: 644 | IV13: 645 | IW13: 646 | IX13: 647 | IY13: 648 | IZ13: 649
A14: 12 | B14: 90.1-2028 | E14: 12 | F14: Hawaii | G14: HI | H14: =MATCH(H$2,'2. Time Lag - State Adoption_P'!$G16:$V16,1) -> 6 | I14: =MATCH(I$2,'2. Time Lag - State Adoption_P'!$G16:$V16,1) -> 6 | J14: =MATCH(J$2,'2. Time Lag - State Adoption_P'!$G16:$V16,1) -> 6 | K14: =MATCH(K$2,'2. Time Lag - State Adoption_P'!$G16:$V16,1) -> 6 | L14: =MATCH(L$2,'2. Time Lag - State Adoption_P'!$G16:$V16,1) -> 6 | M14: =MATCH(M$2,'2. Time Lag - State Adoption_P'!$G16:$V16,1) -> 6 | N14: =MATCH(N$2,'2. Time Lag - State Adoption_P'!$G16:$V16,1) -> 6 | O14: =MATCH(O$2,'2. Time Lag - State Adoption_P'!$G16:$V16,1) -> 6 | P14: =MATCH(P$2,'2. Time Lag - State Adoption_P'!$G16:$V16,1) -> 6 | Q14: =MATCH(Q$2,'2. Time Lag - State Adoption_P'!$G16:$V16,1) -> 6 | R14: =MATCH(R$2,'2. Time Lag - State Adoption_P'!$G16:$V16,1) -> 6 | S14: =MATCH(S$2,'2. Time Lag - State Adoption_P'!$G16:$V16,1) -> 6 | T14: =MATCH(T$2,'2. Time Lag - State Adoption_P'!$G16:$V16,1) -> 6 | U14: =MATCH(U$2,'2. Time Lag - State Adoption_P'!$G16:$V16,1) -> 6 | V14: =MATCH(V$2,'2. Time Lag - State Adoption_P'!$G16:$V16,1) -> 6 | W14: =MATCH(W$2,'2. Time Lag - State Adoption_P'!$G16:$V16,1) -> 6 | X14: =MATCH(X$2,'2. Time Lag - State Adoption_P'!$G16:$V16,1) -> 6 | Y14: =MATCH(Y$2,'2. Time Lag - State Adoption_P'!$G16:$V16,1) -> 6 | Z14: =MATCH(Z$2,'2. Time Lag - State Adoption_P'!$G16:$V16,1) -> 6 | AA14: =MATCH(AA$2,'2. Time Lag - State Adoption_P'!$G16:$V16,1) -> 6 | AB14: =MATCH(AB$2,'2. Time Lag - State Adoption_P'!$G16:$V16,1) -> 6 | AC14: =MATCH(AC$2,'2. Time Lag - State Adoption_P'!$G16:$V16,1) -> 6 | AD14: =MATCH(AD$2,'2. Time Lag - State Adoption_P'!$G16:$V16,1) -> 6 | AE14: =MATCH(AE$2,'2. Time Lag - State Adoption_P'!$G16:$V16,1) -> 6 | AF14: =MATCH(AF$2,'2. Time Lag - State Adoption_P'!$G16:$V16,1) -> 6 | AG14: =MATCH(AG$2,'2. Time Lag - State Adoption_P'!$G16:$V16,1) -> 6 | AH14: =MATCH(AH$2,'2. Time Lag - State Adoption_P'!$G16:$V16,1) -> 6 | AI14: =MATCH(AI$2,'2. Time Lag - State Adoption_P'!$G16:$V16,1) -> 6 | AJ14: =MATCH(AJ$2,'2. Time Lag - State Adoption_P'!$G16:$V16,1) -> 6 | AK14: =MATCH(AK$2,'2. Time Lag - State Adoption_P'!$G16:$V16,1) -> 6 | AL14: =MATCH(AL$2,'2. Time Lag - State Adoption_P'!$G16:$V16,1) -> 6 | AM14: =MATCH(AM$2,'2. Time Lag - State Adoption_P'!$G16:$V16,1) -> 6 | AN14: =MATCH(AN$2,'2. Time Lag - State Adoption_P'!$G16:$V16,1) -> 6 | AO14: =MATCH(AO$2,'2. Time Lag - State Adoption_P'!$G16:$V16,1) -> 6 | AP14: =MATCH(AP$2,'2. Time Lag - State Adoption_P'!$G16:$V16,1) -> 6 | AQ14: =MATCH(AQ$2,'2. Time Lag - State Adoption_P'!$G16:$V16,1) -> 6 | AR14: =MATCH(AR$2,'2. Time Lag - State Adoption_P'!$G16:$V16,1) -> 6 | AS14: =MATCH(AS$2,'2. Time Lag - State Adoption_P'!$G16:$V16,1) -> 6 | AT14: =MATCH(AT$2,'2. Time Lag - State Adoption_P'!$G16:$V16,1) -> 6 | AU14: =MATCH(AU$2,'2. Time Lag - State Adoption_P'!$G16:$V16,1) -> 6 | AV14: =MATCH(AV$2,'2. Time Lag - State Adoption_P'!$G16:$V16,1) -> 6 | AW14: =MATCH(AW$2,'2. Time Lag - State Adoption_P'!$G16:$V16,1) -> 6 | AX14: =MATCH(AX$2,'2. Time Lag - State Adoption_P'!$G16:$V16,1) -> 6 | AY14: =MATCH(AY$2,'2. Time Lag - State Adoption_P'!$G16:$V16,1) -> 6 | AZ14: =MATCH(AZ$2,'2. Time Lag - State Adoption_P'!$G16:$V16,1) -> 6 | BA14: =MATCH(BA$2,'2. Time Lag - State Adoption_P'!$G16:$V16,1) -> 6 | BB14: =MATCH(BB$2,'2. Time Lag - State Adoption_P'!$G16:$V16,1) -> 6 | BC14: =MATCH(BC$2,'2. Time Lag - State Adoption_P'!$G16:$V16,1) -> 6 | BD14: =MATCH(BD$2,'2. Time Lag - State Adoption_P'!$G16:$V16,1) -> 6 | BF14: HI | BG14: =INDEX('2. Time Lag - State Adoption_P'!$Y152:$AN152,MATCH(H14,'2. Time Lag - State Adoption_P'!$Y$137:$AN$137,0)) -> 0 | BH14: =INDEX('2. Time Lag - State Adoption_P'!$Y152:$AN152,MATCH(I14,'2. Time Lag - State Adoption_P'!$Y$137:$AN$137,0)) -> 0 | BI14: =INDEX('2. Time Lag - State Adoption_P'!$Y152:$AN152,MATCH(J14,'2. Time Lag - State Adoption_P'!$Y$137:$AN$137,0)) -> 0 | BJ14: =INDEX('2. Time Lag - State Adoption_P'!$Y152:$AN152,MATCH(K14,'2. Time Lag - State Adoption_P'!$Y$137:$AN$137,0)) -> 0 | BK14: =INDEX('2. Time Lag - State Adoption_P'!$Y152:$AN152,MATCH(L14,'2. Time Lag - State Adoption_P'!$Y$137:$AN$137,0)) -> 0 | BL14: =INDEX('2. Time Lag - State Adoption_P'!$Y152:$AN152,MATCH(M14,'2. Time Lag - State Adoption_P'!$Y$137:$AN$137,0)) -> 0 | BM14: =INDEX('2. Time Lag - State Adoption_P'!$Y152:$AN152,MATCH(N14,'2. Time Lag - State Adoption_P'!$Y$137:$AN$137,0)) -> 0 | BN14: =INDEX('2. Time Lag - State Adoption_P'!$Y152:$AN152,MATCH(O14,'2. Time Lag - State Adoption_P'!$Y$137:$AN$137,0)) -> 0 | BO14: =INDEX('2. Time Lag - State Adoption_P'!$Y152:$AN152,MATCH(P14,'2. Time Lag - State Adoption_P'!$Y$137:$AN$137,0)) -> 0 | BP14: =INDEX('2. Time Lag - State Adoption_P'!$Y152:$AN152,MATCH(Q14,'2. Time Lag - State Adoption_P'!$Y$137:$AN$137,0)) -> 0 | BQ14: =INDEX('2. Time Lag - State Adoption_P'!$Y152:$AN152,MATCH(R14,'2. Time Lag - State Adoption_P'!$Y$137:$AN$137,0)) -> 0 | BR14: =INDEX('2. Time Lag - State Adoption_P'!$Y152:$AN152,MATCH(S14,'2. Time Lag - State Adoption_P'!$Y$137:$AN$137,0)) -> 0 | BS14: =INDEX('2. Time Lag - State Adoption_P'!$Y152:$AN152,MATCH(T14,'2. Time Lag - State Adoption_P'!$Y$137:$AN$137,0)) -> 0 | BT14: =INDEX('2. Time Lag - State Adoption_P'!$Y152:$AN152,MATCH(U14,'2. Time Lag - State Adoption_P'!$Y$137:$AN$137,0)) -> 0 | BU14: =INDEX('2. Time Lag - State Adoption_P'!$Y152:$AN152,MATCH(V14,'2. Time Lag - State Adoption_P'!$Y$137:$AN$137,0)) -> 0 | BV14: =INDEX('2. Time Lag - State Adoption_P'!$Y152:$AN152,MATCH(W14,'2. Time Lag - State Adoption_P'!$Y$137:$AN$137,0)) -> 0 | BW14: =INDEX('2. Time Lag - State Adoption_P'!$Y152:$AN152,MATCH(X14,'2. Time Lag - State Adoption_P'!$Y$137:$AN$137,0)) -> 0 | BX14: =INDEX('2. Time Lag - State Adoption_P'!$Y152:$AN152,MATCH(Y14,'2. Time Lag - State Adoption_P'!$Y$137:$AN$137,0)) -> 0 | BY14: =INDEX('2. Time Lag - State Adoption_P'!$Y152:$AN152,MATCH(Z14,'2. Time Lag - State Adoption_P'!$Y$137:$AN$137,0)) -> 0 | BZ14: =INDEX('2. Time Lag - State Adoption_P'!$Y152:$AN152,MATCH(AA14,'2. Time Lag - State Adoption_P'!$Y$137:$AN$137,0)) -> 0 | CA14: =INDEX('2. Time Lag - State Adoption_P'!$Y152:$AN152,MATCH(AB14,'2. Time Lag - State Adoption_P'!$Y$137:$AN$137,0)) -> 0 | CB14: =INDEX('2. Time Lag - State Adoption_P'!$Y152:$AN152,MATCH(AC14,'2. Time Lag - State Adoption_P'!$Y$137:$AN$137,0)) -> 0 | CC14: =INDEX('2. Time Lag - State Adoption_P'!$Y152:$AN152,MATCH(AD14,'2. Time Lag - State Adoption_P'!$Y$137:$AN$137,0)) -> 0 | CD14: =INDEX('2. Time Lag - State Adoption_P'!$Y152:$AN152,MATCH(AE14,'2. Time Lag - State Adoption_P'!$Y$137:$AN$137,0)) -> 0 | CE14: =INDEX('2. Time Lag - State Adoption_P'!$Y152:$AN152,MATCH(AF14,'2. Time Lag - State Adoption_P'!$Y$137:$AN$137,0)) -> 0 | CF14: =INDEX('2. Time Lag - State Adoption_P'!$Y152:$AN152,MATCH(AG14,'2. Time Lag - State Adoption_P'!$Y$137:$AN$137,0)) -> 0 | CG14: =INDEX('2. Time Lag - State Adoption_P'!$Y152:$AN152,MATCH(AH14,'2. Time Lag - State Adoption_P'!$Y$137:$AN$137,0)) -> 0 | CH14: =INDEX('2. Time Lag - State Adoption_P'!$Y152:$AN152,MATCH(AI14,'2. Time Lag - State Adoption_P'!$Y$137:$AN$137,0)) -> 0 | CI14: =INDEX('2. Time Lag - State Adoption_P'!$Y152:$AN152,MATCH(AJ14,'2. Time Lag - State Adoption_P'!$Y$137:$AN$137,0)) -> 0 | CJ14: =INDEX('2. Time Lag - State Adoption_P'!$Y152:$AN152,MATCH(AK14,'2. Time Lag - State Adoption_P'!$Y$137:$AN$137,0)) -> 0 | CK14: =INDEX('2. Time Lag - State Adoption_P'!$Y152:$AN152,MATCH(AL14,'2. Time Lag - State Adoption_P'!$Y$137:$AN$137,0)) -> 0 | CL14: =INDEX('2. Time Lag - State Adoption_P'!$Y152:$AN152,MATCH(AM14,'2. Time Lag - State Adoption_P'!$Y$137:$AN$137,0)) -> 0 | CM14: =INDEX('2. Time Lag - State Adoption_P'!$Y152:$AN152,MATCH(AN14,'2. Time Lag - State Adoption_P'!$Y$137:$AN$137,0)) -> 0 | CN14: =INDEX('2. Time Lag - State Adoption_P'!$Y152:$AN152,MATCH(AO14,'2. Time Lag - State Adoption_P'!$Y$137:$AN$137,0)) -> 0 | CO14: =INDEX('2. Time Lag - State Adoption_P'!$Y152:$AN152,MATCH(AP14,'2. Time Lag - State Adoption_P'!$Y$137:$AN$137,0)) -> 0 | CP14: =INDEX('2. Time Lag - State Adoption_P'!$Y152:$AN152,MATCH(AQ14,'2. Time Lag - State Adoption_P'!$Y$137:$AN$137,0)) -> 0 | CQ14: =INDEX('2. Time Lag - State Adoption_P'!$Y152:$AN152,MATCH(AR14,'2. Time Lag - State Adoption_P'!$Y$137:$AN$137,0)) -> 0 | CR14: =INDEX('2. Time Lag - State Adoption_P'!$Y152:$AN152,MATCH(AS14,'2. Time Lag - State Adoption_P'!$Y$137:$AN$137,0)) -> 0 | CS14: =INDEX('2. Time Lag - State Adoption_P'!$Y152:$AN152,MATCH(AT14,'2. Time Lag - State Adoption_P'!$Y$137:$AN$137,0)) -> 0 | CT14: =INDEX('2. Time Lag - State Adoption_P'!$Y152:$AN152,MATCH(AU14,'2. Time Lag - State Adoption_P'!$Y$137:$AN$137,0)) -> 0 | CU14: =INDEX('2. Time Lag - State Adoption_P'!$Y152:$AN152,MATCH(AV14,'2. Time Lag - State Adoption_P'!$Y$137:$AN$137,0)) -> 0 | CV14: =INDEX('2. Time Lag - State Adoption_P'!$Y152:$AN152,MATCH(AW14,'2. Time Lag - State Adoption_P'!$Y$137:$AN$137,0)) -> 0 | CW14: =INDEX('2. Time Lag - State Adoption_P'!$Y152:$AN152,MATCH(AX14,'2. Time Lag - State Adoption_P'!$Y$137:$AN$137,0)) -> 0 | CX14: =INDEX('2. Time Lag - State Adoption_P'!$Y152:$AN152,MATCH(AY14,'2. Time Lag - State Adoption_P'!$Y$137:$AN$137,0)) -> 0 | CY14: =INDEX('2. Time Lag - State Adoption_P'!$Y152:$AN152,MATCH(AZ14,'2. Time Lag - State Adoption_P'!$Y$137:$AN$137,0)) -> 0 | CZ14: =INDEX('2. Time Lag - State Adoption_P'!$Y152:$AN152,MATCH(BA14,'2. Time Lag - State Adoption_P'!$Y$137:$AN$137,0)) -> 0 | DA14: =INDEX('2. Time Lag - State Adoption_P'!$Y152:$AN152,MATCH(BB14,'2. Time Lag - State Adoption_P'!$Y$137:$AN$137,0)) -> 0 | DB14: =INDEX('2. Time Lag - State Adoption_P'!$Y152:$AN152,MATCH(BC14,'2. Time Lag - State Adoption_P'!$Y$137:$AN$137,0)) -> 0 | DC14: =INDEX('2. Time Lag - State Adoption_P'!$Y152:$AN152,MATCH(BD14,'2. Time Lag - State Adoption_P'!$Y$137:$AN$137,0)) -> 0 | DE14: HI | DF14: =COUNTIF($H14:OFFSET($H14,0,DF$1),H14) -> 1 | DG14: =COUNTIF($H14:OFFSET($H14,0,DG$1),I14) -> 2 | DH14: =COUNTIF($H14:OFFSET($H14,0,DH$1),J14) -> 3 | DI14: =COUNTIF($H14:OFFSET($H14,0,DI$1),K14) -> 4 | DJ14: =COUNTIF($H14:OFFSET($H14,0,DJ$1),L14) -> 5 | DK14: =COUNTIF($H14:OFFSET($H14,0,DK$1),M14) -> 6 | DL14: =COUNTIF($H14:OFFSET($H14,0,DL$1),N14) -> 7 | DM14: =COUNTIF($H14:OFFSET($H14,0,DM$1),O14) -> 8 | DN14: =COUNTIF($H14:OFFSET($H14,0,DN$1),P14) -> 9 | DO14: =COUNTIF($H14:OFFSET($H14,0,DO$1),Q14) -> 10 | DP14: =COUNTIF($H14:OFFSET($H14,0,DP$1),R14) -> 11 | DQ14: =COUNTIF($H14:OFFSET($H14,0,DQ$1),S14) -> 12 | DR14: =COUNTIF($H14:OFFSET($H14,0,DR$1),T14) -> 13 | DS14: =COUNTIF($H14:OFFSET($H14,0,DS$1),U14) -> 14 | DT14: =COUNTIF($H14:OFFSET($H14,0,DT$1),V14) -> 15 | DU14: =COUNTIF($H14:OFFSET($H14,0,DU$1),W14) -> 16 | DV14: =COUNTIF($H14:OFFSET($H14,0,DV$1),X14) -> 17 | DW14: =COUNTIF($H14:OFFSET($H14,0,DW$1),Y14) -> 18 | DX14: =COUNTIF($H14:OFFSET($H14,0,DX$1),Z14) -> 19 | DY14: =COUNTIF($H14:OFFSET($H14,0,DY$1),AA14) -> 20 | DZ14: =COUNTIF($H14:OFFSET($H14,0,DZ$1),AB14) -> 21 | EA14: =COUNTIF($H14:OFFSET($H14,0,EA$1),AC14) -> 22 | EB14: =COUNTIF($H14:OFFSET($H14,0,EB$1),AD14) -> 23 | EC14: =COUNTIF($H14:OFFSET($H14,0,EC$1),AE14) -> 24 | ED14: =COUNTIF($H14:OFFSET($H14,0,ED$1),AF14) -> 25 | EE14: =COUNTIF($H14:OFFSET($H14,0,EE$1),AG14) -> 26 | EF14: =COUNTIF($H14:OFFSET($H14,0,EF$1),AH14) -> 27 | EG14: =COUNTIF($H14:OFFSET($H14,0,EG$1),AI14) -> 28 | EH14: =COUNTIF($H14:OFFSET($H14,0,EH$1),AJ14) -> 29 | EI14: =COUNTIF($H14:OFFSET($H14,0,EI$1),AK14) -> 30 | EJ14: =COUNTIF($H14:OFFSET($H14,0,EJ$1),AL14) -> 31 | EK14: =COUNTIF($H14:OFFSET($H14,0,EK$1),AM14) -> 32 | EL14: =COUNTIF($H14:OFFSET($H14,0,EL$1),AN14) -> 33 | EM14: =COUNTIF($H14:OFFSET($H14,0,EM$1),AO14) -> 34 | EN14: =COUNTIF($H14:OFFSET($H14,0,EN$1),AP14) -> 35 | EO14: =COUNTIF($H14:OFFSET($H14,0,EO$1),AQ14) -> 36 | EP14: =COUNTIF($H14:OFFSET($H14,0,EP$1),AR14) -> 37 | EQ14: =COUNTIF($H14:OFFSET($H14,0,EQ$1),AS14) -> 38 | ER14: =COUNTIF($H14:OFFSET($H14,0,ER$1),AT14) -> 39 | ES14: =COUNTIF($H14:OFFSET($H14,0,ES$1),AU14) -> 40 | ET14: =COUNTIF($H14:OFFSET($H14,0,ET$1),AV14) -> 41 | EU14: =COUNTIF($H14:OFFSET($H14,0,EU$1),AW14) -> 42 | EV14: =COUNTIF($H14:OFFSET($H14,0,EV$1),AX14) -> 43 | EW14: =COUNTIF($H14:OFFSET($H14,0,EW$1),AY14) -> 44 | EX14: =COUNTIF($H14:OFFSET($H14,0,EX$1),AZ14) -> 45 | EY14: =COUNTIF($H14:OFFSET($H14,0,EY$1),BA14) -> 46 | EZ14: =COUNTIF($H14:OFFSET($H14,0,EZ$1),BB14) -> 47 | FA14: =COUNTIF($H14:OFFSET($H14,0,FA$1),BC14) -> 48 | FB14: =COUNTIF($H14:OFFSET($H14,0,FB$1),BD14) -> 49 | FD14: HI | FE14: 1 | FF14: 2 | FG14: 3 | FH14: 4 | FI14: 5 | FJ14: 6 | FK14: 7 | FL14: 8 | FM14: 9 | FN14: 10 | FO14: 11 | FP14: 12 | FQ14: 13 | FR14: 14 | FS14: 15 | FT14: 16 | FU14: 17 | FV14: 18 | FW14: 19 | FX14: 20 | FY14: 21 | FZ14: 22 | GA14: 23 | GB14: 24 | GC14: 25 | GD14: 26 | GE14: 27 | GF14: 28 | GG14: 29 | GH14: 30 | GI14: 31 | GJ14: 32 | GK14: 33 | GL14: 34 | GM14: 35 | GN14: 36 | GO14: 37 | GP14: 38 | GQ14: 39 | GR14: 40 | GS14: 41 | GT14: 42 | GU14: 43 | GV14: 44 | GW14: 45 | GX14: 46 | GY14: 47 | GZ14: 48 | HA14: 49 | HC14: HI | HD14: 61 | HE14: 62 | HF14: 63 | HG14: 64 | HH14: 65 | HI14: 66 | HJ14: 67 | HK14: 68 | HL14: 69 | HM14: 610 | HN14: 611 | HO14: 612 | HP14: 613 | HQ14: 614 | HR14: 615 | HS14: 616 | HT14: 617 | HU14: 618 | HV14: 619 | HW14: 620 | HX14: 621 | HY14: 622 | HZ14: 623 | IA14: 624 | IB14: 625 | IC14: 626 | ID14: 627 | IE14: 628 | IF14: 629 | IG14: 630 | IH14: 631 | II14: 632 | IJ14: 633 | IK14: 634 | IL14: 635 | IM14: 636 | IN14: 637 | IO14: 638 | IP14: 639 | IQ14: 640 | IR14: 641 | IS14: 642 | IT14: 643 | IU14: 644 | IV14: 645 | IW14: 646 | IX14: 647 | IY14: 648 | IZ14: 649
A15: 13 | B15: 90.1-2031 | E15: 13 | F15: Idaho | G15: ID | H15: =MATCH(H$2,'2. Time Lag - State Adoption_P'!$G17:$V17,1) -> 6 | I15: =MATCH(I$2,'2. Time Lag - State Adoption_P'!$G17:$V17,1) -> 6 | J15: =MATCH(J$2,'2. Time Lag - State Adoption_P'!$G17:$V17,1) -> 6 | K15: =MATCH(K$2,'2. Time Lag - State Adoption_P'!$G17:$V17,1) -> 6 | L15: =MATCH(L$2,'2. Time Lag - State Adoption_P'!$G17:$V17,1) -> 6 | M15: =MATCH(M$2,'2. Time Lag - State Adoption_P'!$G17:$V17,1) -> 6 | N15: =MATCH(N$2,'2. Time Lag - State Adoption_P'!$G17:$V17,1) -> 6 | O15: =MATCH(O$2,'2. Time Lag - State Adoption_P'!$G17:$V17,1) -> 6 | P15: =MATCH(P$2,'2. Time Lag - State Adoption_P'!$G17:$V17,1) -> 6 | Q15: =MATCH(Q$2,'2. Time Lag - State Adoption_P'!$G17:$V17,1) -> 6 | R15: =MATCH(R$2,'2. Time Lag - State Adoption_P'!$G17:$V17,1) -> 6 | S15: =MATCH(S$2,'2. Time Lag - State Adoption_P'!$G17:$V17,1) -> 6 | T15: =MATCH(T$2,'2. Time Lag - State Adoption_P'!$G17:$V17,1) -> 6 | U15: =MATCH(U$2,'2. Time Lag - State Adoption_P'!$G17:$V17,1) -> 6 | V15: =MATCH(V$2,'2. Time Lag - State Adoption_P'!$G17:$V17,1) -> 6 | W15: =MATCH(W$2,'2. Time Lag - State Adoption_P'!$G17:$V17,1) -> 6 | X15: =MATCH(X$2,'2. Time Lag - State Adoption_P'!$G17:$V17,1) -> 6 | Y15: =MATCH(Y$2,'2. Time Lag - State Adoption_P'!$G17:$V17,1) -> 6 | Z15: =MATCH(Z$2,'2. Time Lag - State Adoption_P'!$G17:$V17,1) -> 6 | AA15: =MATCH(AA$2,'2. Time Lag - State Adoption_P'!$G17:$V17,1) -> 6 | AB15: =MATCH(AB$2,'2. Time Lag - State Adoption_P'!$G17:$V17,1) -> 6 | AC15: =MATCH(AC$2,'2. Time Lag - State Adoption_P'!$G17:$V17,1) -> 6 | AD15: =MATCH(AD$2,'2. Time Lag - State Adoption_P'!$G17:$V17,1) -> 6 | AE15: =MATCH(AE$2,'2. Time Lag - State Adoption_P'!$G17:$V17,1) -> 6 | AF15: =MATCH(AF$2,'2. Time Lag - State Adoption_P'!$G17:$V17,1) -> 6 | AG15: =MATCH(AG$2,'2. Time Lag - State Adoption_P'!$G17:$V17,1) -> 6 | AH15: =MATCH(AH$2,'2. Time Lag - State Adoption_P'!$G17:$V17,1) -> 6 | AI15: =MATCH(AI$2,'2. Time Lag - State Adoption_P'!$G17:$V17,1) -> 6 | AJ15: =MATCH(AJ$2,'2. Time Lag - State Adoption_P'!$G17:$V17,1) -> 6 | AK15: =MATCH(AK$2,'2. Time Lag - State Adoption_P'!$G17:$V17,1) -> 6 | AL15: =MATCH(AL$2,'2. Time Lag - State Adoption_P'!$G17:$V17,1) -> 6 | AM15: =MATCH(AM$2,'2. Time Lag - State Adoption_P'!$G17:$V17,1) -> 6 | AN15: =MATCH(AN$2,'2. Time Lag - State Adoption_P'!$G17:$V17,1) -> 6 | AO15: =MATCH(AO$2,'2. Time Lag - State Adoption_P'!$G17:$V17,1) -> 6 | AP15: =MATCH(AP$2,'2. Time Lag - State Adoption_P'!$G17:$V17,1) -> 6 | AQ15: =MATCH(AQ$2,'2. Time Lag - State Adoption_P'!$G17:$V17,1) -> 6 | AR15: =MATCH(AR$2,'2. Time Lag - State Adoption_P'!$G17:$V17,1) -> 6 | AS15: =MATCH(AS$2,'2. Time Lag - State Adoption_P'!$G17:$V17,1) -> 6 | AT15: =MATCH(AT$2,'2. Time Lag - State Adoption_P'!$G17:$V17,1) -> 6 | AU15: =MATCH(AU$2,'2. Time Lag - State Adoption_P'!$G17:$V17,1) -> 6 | AV15: =MATCH(AV$2,'2. Time Lag - State Adoption_P'!$G17:$V17,1) -> 6 | AW15: =MATCH(AW$2,'2. Time Lag - State Adoption_P'!$G17:$V17,1) -> 6 | AX15: =MATCH(AX$2,'2. Time Lag - State Adoption_P'!$G17:$V17,1) -> 6 | AY15: =MATCH(AY$2,'2. Time Lag - State Adoption_P'!$G17:$V17,1) -> 6 | AZ15: =MATCH(AZ$2,'2. Time Lag - State Adoption_P'!$G17:$V17,1) -> 6 | BA15: =MATCH(BA$2,'2. Time Lag - State Adoption_P'!$G17:$V17,1) -> 6 | BB15: =MATCH(BB$2,'2. Time Lag - State Adoption_P'!$G17:$V17,1) -> 6 | BC15: =MATCH(BC$2,'2. Time Lag - State Adoption_P'!$G17:$V17,1) -> 6 | BD15: =MATCH(BD$2,'2. Time Lag - State Adoption_P'!$G17:$V17,1) -> 6 | BF15: ID | BG15: =INDEX('2. Time Lag - State Adoption_P'!$Y153:$AN153,MATCH(H15,'2. Time Lag - State Adoption_P'!$Y$137:$AN$137,0)) -> 0 | BH15: =INDEX('2. Time Lag - State Adoption_P'!$Y153:$AN153,MATCH(I15,'2. Time Lag - State Adoption_P'!$Y$137:$AN$137,0)) -> 0 | BI15: =INDEX('2. Time Lag - State Adoption_P'!$Y153:$AN153,MATCH(J15,'2. Time Lag - State Adoption_P'!$Y$137:$AN$137,0)) -> 0 | BJ15: =INDEX('2. Time Lag - State Adoption_P'!$Y153:$AN153,MATCH(K15,'2. Time Lag - State Adoption_P'!$Y$137:$AN$137,0)) -> 0 | BK15: =INDEX('2. Time Lag - State Adoption_P'!$Y153:$AN153,MATCH(L15,'2. Time Lag - State Adoption_P'!$Y$137:$AN$137,0)) -> 0 | BL15: =INDEX('2. Time Lag - State Adoption_P'!$Y153:$AN153,MATCH(M15,'2. Time Lag - State Adoption_P'!$Y$137:$AN$137,0)) -> 0 | BM15: =INDEX('2. Time Lag - State Adoption_P'!$Y153:$AN153,MATCH(N15,'2. Time Lag - State Adoption_P'!$Y$137:$AN$137,0)) -> 0 | BN15: =INDEX('2. Time Lag - State Adoption_P'!$Y153:$AN153,MATCH(O15,'2. Time Lag - State Adoption_P'!$Y$137:$AN$137,0)) -> 0 | BO15: =INDEX('2. Time Lag - State Adoption_P'!$Y153:$AN153,MATCH(P15,'2. Time Lag - State Adoption_P'!$Y$137:$AN$137,0)) -> 0 | BP15: =INDEX('2. Time Lag - State Adoption_P'!$Y153:$AN153,MATCH(Q15,'2. Time Lag - State Adoption_P'!$Y$137:$AN$137,0)) -> 0 | BQ15: =INDEX('2. Time Lag - State Adoption_P'!$Y153:$AN153,MATCH(R15,'2. Time Lag - State Adoption_P'!$Y$137:$AN$137,0)) -> 0 | BR15: =INDEX('2. Time Lag - State Adoption_P'!$Y153:$AN153,MATCH(S15,'2. Time Lag - State Adoption_P'!$Y$137:$AN$137,0)) -> 0 | BS15: =INDEX('2. Time Lag - State Adoption_P'!$Y153:$AN153,MATCH(T15,'2. Time Lag - State Adoption_P'!$Y$137:$AN$137,0)) -> 0 | BT15: =INDEX('2. Time Lag - State Adoption_P'!$Y153:$AN153,MATCH(U15,'2. Time Lag - State Adoption_P'!$Y$137:$AN$137,0)) -> 0 | BU15: =INDEX('2. Time Lag - State Adoption_P'!$Y153:$AN153,MATCH(V15,'2. Time Lag - State Adoption_P'!$Y$137:$AN$137,0)) -> 0 | BV15: =INDEX('2. Time Lag - State Adoption_P'!$Y153:$AN153,MATCH(W15,'2. Time Lag - State Adoption_P'!$Y$137:$AN$137,0)) -> 0 | BW15: =INDEX('2. Time Lag - State Adoption_P'!$Y153:$AN153,MATCH(X15,'2. Time Lag - State Adoption_P'!$Y$137:$AN$137,0)) -> 0 | BX15: =INDEX('2. Time Lag - State Adoption_P'!$Y153:$AN153,MATCH(Y15,'2. Time Lag - State Adoption_P'!$Y$137:$AN$137,0)) -> 0 | BY15: =INDEX('2. Time Lag - State Adoption_P'!$Y153:$AN153,MATCH(Z15,'2. Time Lag - State Adoption_P'!$Y$137:$AN$137,0)) -> 0 | BZ15: =INDEX('2. Time Lag - State Adoption_P'!$Y153:$AN153,MATCH(AA15,'2. Time Lag - State Adoption_P'!$Y$137:$AN$137,0)) -> 0 | CA15: =INDEX('2. Time Lag - State Adoption_P'!$Y153:$AN153,MATCH(AB15,'2. Time Lag - State Adoption_P'!$Y$137:$AN$137,0)) -> 0 | CB15: =INDEX('2. Time Lag - State Adoption_P'!$Y153:$AN153,MATCH(AC15,'2. Time Lag - State Adoption_P'!$Y$137:$AN$137,0)) -> 0 | CC15: =INDEX('2. Time Lag - State Adoption_P'!$Y153:$AN153,MATCH(AD15,'2. Time Lag - State Adoption_P'!$Y$137:$AN$137,0)) -> 0 | CD15: =INDEX('2. Time Lag - State Adoption_P'!$Y153:$AN153,MATCH(AE15,'2. Time Lag - State Adoption_P'!$Y$137:$AN$137,0)) -> 0 | CE15: =INDEX('2. Time Lag - State Adoption_P'!$Y153:$AN153,MATCH(AF15,'2. Time Lag - State Adoption_P'!$Y$137:$AN$137,0)) -> 0 | CF15: =INDEX('2. Time Lag - State Adoption_P'!$Y153:$AN153,MATCH(AG15,'2. Time Lag - State Adoption_P'!$Y$137:$AN$137,0)) -> 0 | CG15: =INDEX('2. Time Lag - State Adoption_P'!$Y153:$AN153,MATCH(AH15,'2. Time Lag - State Adoption_P'!$Y$137:$AN$137,0)) -> 0 | CH15: =INDEX('2. Time Lag - State Adoption_P'!$Y153:$AN153,MATCH(AI15,'2. Time Lag - State Adoption_P'!$Y$137:$AN$137,0)) -> 0 | CI15: =INDEX('2. Time Lag - State Adoption_P'!$Y153:$AN153,MATCH(AJ15,'2. Time Lag - State Adoption_P'!$Y$137:$AN$137,0)) -> 0 | CJ15: =INDEX('2. Time Lag - State Adoption_P'!$Y153:$AN153,MATCH(AK15,'2. Time Lag - State Adoption_P'!$Y$137:$AN$137,0)) -> 0 | CK15: =INDEX('2. Time Lag - State Adoption_P'!$Y153:$AN153,MATCH(AL15,'2. Time Lag - State Adoption_P'!$Y$137:$AN$137,0)) -> 0 | CL15: =INDEX('2. Time Lag - State Adoption_P'!$Y153:$AN153,MATCH(AM15,'2. Time Lag - State Adoption_P'!$Y$137:$AN$137,0)) -> 0 | CM15: =INDEX('2. Time Lag - State Adoption_P'!$Y153:$AN153,MATCH(AN15,'2. Time Lag - State Adoption_P'!$Y$137:$AN$137,0)) -> 0 | CN15: =INDEX('2. Time Lag - State Adoption_P'!$Y153:$AN153,MATCH(AO15,'2. Time Lag - State Adoption_P'!$Y$137:$AN$137,0)) -> 0 | CO15: =INDEX('2. Time Lag - State Adoption_P'!$Y153:$AN153,MATCH(AP15,'2. Time Lag - State Adoption_P'!$Y$137:$AN$137,0)) -> 0 | CP15: =INDEX('2. Time Lag - State Adoption_P'!$Y153:$AN153,MATCH(AQ15,'2. Time Lag - State Adoption_P'!$Y$137:$AN$137,0)) -> 0 | CQ15: =INDEX('2. Time Lag - State Adoption_P'!$Y153:$AN153,MATCH(AR15,'2. Time Lag - State Adoption_P'!$Y$137:$AN$137,0)) -> 0 | CR15: =INDEX('2. Time Lag - State Adoption_P'!$Y153:$AN153,MATCH(AS15,'2. Time Lag - State Adoption_P'!$Y$137:$AN$137,0)) -> 0 | CS15: =INDEX('2. Time Lag - State Adoption_P'!$Y153:$AN153,MATCH(AT15,'2. Time Lag - State Adoption_P'!$Y$137:$AN$137,0)) -> 0 | CT15: =INDEX('2. Time Lag - State Adoption_P'!$Y153:$AN153,MATCH(AU15,'2. Time Lag - State Adoption_P'!$Y$137:$AN$137,0)) -> 0 | CU15: =INDEX('2. Time Lag - State Adoption_P'!$Y153:$AN153,MATCH(AV15,'2. Time Lag - State Adoption_P'!$Y$137:$AN$137,0)) -> 0 | CV15: =INDEX('2. Time Lag - State Adoption_P'!$Y153:$AN153,MATCH(AW15,'2. Time Lag - State Adoption_P'!$Y$137:$AN$137,0)) -> 0 | CW15: =INDEX('2. Time Lag - State Adoption_P'!$Y153:$AN153,MATCH(AX15,'2. Time Lag - State Adoption_P'!$Y$137:$AN$137,0)) -> 0 | CX15: =INDEX('2. Time Lag - State Adoption_P'!$Y153:$AN153,MATCH(AY15,'2. Time Lag - State Adoption_P'!$Y$137:$AN$137,0)) -> 0 | CY15: =INDEX('2. Time Lag - State Adoption_P'!$Y153:$AN153,MATCH(AZ15,'2. Time Lag - State Adoption_P'!$Y$137:$AN$137,0)) -> 0 | CZ15: =INDEX('2. Time Lag - State Adoption_P'!$Y153:$AN153,MATCH(BA15,'2. Time Lag - State Adoption_P'!$Y$137:$AN$137,0)) -> 0 | DA15: =INDEX('2. Time Lag - State Adoption_P'!$Y153:$AN153,MATCH(BB15,'2. Time Lag - State Adoption_P'!$Y$137:$AN$137,0)) -> 0 | DB15: =INDEX('2. Time Lag - State Adoption_P'!$Y153:$AN153,MATCH(BC15,'2. Time Lag - State Adoption_P'!$Y$137:$AN$137,0)) -> 0 | DC15: =INDEX('2. Time Lag - State Adoption_P'!$Y153:$AN153,MATCH(BD15,'2. Time Lag - State Adoption_P'!$Y$137:$AN$137,0)) -> 0 | DE15: ID | DF15: =COUNTIF($H15:OFFSET($H15,0,DF$1),H15) -> 1 | DG15: =COUNTIF($H15:OFFSET($H15,0,DG$1),I15) -> 2 | DH15: =COUNTIF($H15:OFFSET($H15,0,DH$1),J15) -> 3 | DI15: =COUNTIF($H15:OFFSET($H15,0,DI$1),K15) -> 4 | DJ15: =COUNTIF($H15:OFFSET($H15,0,DJ$1),L15) -> 5 | DK15: =COUNTIF($H15:OFFSET($H15,0,DK$1),M15) -> 6 | DL15: =COUNTIF($H15:OFFSET($H15,0,DL$1),N15) -> 7 | DM15: =COUNTIF($H15:OFFSET($H15,0,DM$1),O15) -> 8 | DN15: =COUNTIF($H15:OFFSET($H15,0,DN$1),P15) -> 9 | DO15: =COUNTIF($H15:OFFSET($H15,0,DO$1),Q15) -> 10 | DP15: =COUNTIF($H15:OFFSET($H15,0,DP$1),R15) -> 11 | DQ15: =COUNTIF($H15:OFFSET($H15,0,DQ$1),S15) -> 12 | DR15: =COUNTIF($H15:OFFSET($H15,0,DR$1),T15) -> 13 | DS15: =COUNTIF($H15:OFFSET($H15,0,DS$1),U15) -> 14 | DT15: =COUNTIF($H15:OFFSET($H15,0,DT$1),V15) -> 15 | DU15: =COUNTIF($H15:OFFSET($H15,0,DU$1),W15) -> 16 | DV15: =COUNTIF($H15:OFFSET($H15,0,DV$1),X15) -> 17 | DW15: =COUNTIF($H15:OFFSET($H15,0,DW$1),Y15) -> 18 | DX15: =COUNTIF($H15:OFFSET($H15,0,DX$1),Z15) -> 19 | DY15: =COUNTIF($H15:OFFSET($H15,0,DY$1),AA15) -> 20 | DZ15: =COUNTIF($H15:OFFSET($H15,0,DZ$1),AB15) -> 21 | EA15: =COUNTIF($H15:OFFSET($H15,0,EA$1),AC15) -> 22 | EB15: =COUNTIF($H15:OFFSET($H15,0,EB$1),AD15) -> 23 | EC15: =COUNTIF($H15:OFFSET($H15,0,EC$1),AE15) -> 24 | ED15: =COUNTIF($H15:OFFSET($H15,0,ED$1),AF15) -> 25 | EE15: =COUNTIF($H15:OFFSET($H15,0,EE$1),AG15) -> 26 | EF15: =COUNTIF($H15:OFFSET($H15,0,EF$1),AH15) -> 27 | EG15: =COUNTIF($H15:OFFSET($H15,0,EG$1),AI15) -> 28 | EH15: =COUNTIF($H15:OFFSET($H15,0,EH$1),AJ15) -> 29 | EI15: =COUNTIF($H15:OFFSET($H15,0,EI$1),AK15) -> 30 | EJ15: =COUNTIF($H15:OFFSET($H15,0,EJ$1),AL15) -> 31 | EK15: =COUNTIF($H15:OFFSET($H15,0,EK$1),AM15) -> 32 | EL15: =COUNTIF($H15:OFFSET($H15,0,EL$1),AN15) -> 33 | EM15: =COUNTIF($H15:OFFSET($H15,0,EM$1),AO15) -> 34 | EN15: =COUNTIF($H15:OFFSET($H15,0,EN$1),AP15) -> 35 | EO15: =COUNTIF($H15:OFFSET($H15,0,EO$1),AQ15) -> 36 | EP15: =COUNTIF($H15:OFFSET($H15,0,EP$1),AR15) -> 37 | EQ15: =COUNTIF($H15:OFFSET($H15,0,EQ$1),AS15) -> 38 | ER15: =COUNTIF($H15:OFFSET($H15,0,ER$1),AT15) -> 39 | ES15: =COUNTIF($H15:OFFSET($H15,0,ES$1),AU15) -> 40 | ET15: =COUNTIF($H15:OFFSET($H15,0,ET$1),AV15) -> 41 | EU15: =COUNTIF($H15:OFFSET($H15,0,EU$1),AW15) -> 42 | EV15: =COUNTIF($H15:OFFSET($H15,0,EV$1),AX15) -> 43 | EW15: =COUNTIF($H15:OFFSET($H15,0,EW$1),AY15) -> 44 | EX15: =COUNTIF($H15:OFFSET($H15,0,EX$1),AZ15) -> 45 | EY15: =COUNTIF($H15:OFFSET($H15,0,EY$1),BA15) -> 46 | EZ15: =COUNTIF($H15:OFFSET($H15,0,EZ$1),BB15) -> 47 | FA15: =COUNTIF($H15:OFFSET($H15,0,FA$1),BC15) -> 48 | FB15: =COUNTIF($H15:OFFSET($H15,0,FB$1),BD15) -> 49 | FD15: ID | FE15: 1 | FF15: 2 | FG15: 3 | FH15: 4 | FI15: 5 | FJ15: 6 | FK15: 7 | FL15: 8 | FM15: 9 | FN15: 10 | FO15: 11 | FP15: 12 | FQ15: 13 | FR15: 14 | FS15: 15 | FT15: 16 | FU15: 17 | FV15: 18 | FW15: 19 | FX15: 20 | FY15: 21 | FZ15: 22 | GA15: 23 | GB15: 24 | GC15: 25 | GD15: 26 | GE15: 27 | GF15: 28 | GG15: 29 | GH15: 30 | GI15: 31 | GJ15: 32 | GK15: 33 | GL15: 34 | GM15: 35 | GN15: 36 | GO15: 37 | GP15: 38 | GQ15: 39 | GR15: 40 | GS15: 41 | GT15: 42 | GU15: 43 | GV15: 44 | GW15: 45 | GX15: 46 | GY15: 47 | GZ15: 48 | HA15: 49 | HC15: ID | HD15: 61 | HE15: 62 | HF15: 63 | HG15: 64 | HH15: 65 | HI15: 66 | HJ15: 67 | HK15: 68 | HL15: 69 | HM15: 610 | HN15: 611 | HO15: 612 | HP15: 613 | HQ15: 614 | HR15: 615 | HS15: 616 | HT15: 617 | HU15: 618 | HV15: 619 | HW15: 620 | HX15: 621 | HY15: 622 | HZ15: 623 | IA15: 624 | IB15: 625 | IC15: 626 | ID15: 627 | IE15: 628 | IF15: 629 | IG15: 630 | IH15: 631 | II15: 632 | IJ15: 633 | IK15: 634 | IL15: 635 | IM15: 636 | IN15: 637 | IO15: 638 | IP15: 639 | IQ15: 640 | IR15: 641 | IS15: 642 | IT15: 643 | IU15: 644 | IV15: 645 | IW15: 646 | IX15: 647 | IY15: 648 | IZ15: 649
A16: 14 | B16: 90.1-2034 | E16: 14 | F16: Illinois | G16: IL | H16: =MATCH(H$2,'2. Time Lag - State Adoption_P'!$G18:$V18,1) -> 6 | I16: =MATCH(I$2,'2. Time Lag - State Adoption_P'!$G18:$V18,1) -> 6 | J16: =MATCH(J$2,'2. Time Lag - State Adoption_P'!$G18:$V18,1) -> 6 | K16: =MATCH(K$2,'2. Time Lag - State Adoption_P'!$G18:$V18,1) -> 6 | L16: =MATCH(L$2,'2. Time Lag - State Adoption_P'!$G18:$V18,1) -> 6 | M16: =MATCH(M$2,'2. Time Lag - State Adoption_P'!$G18:$V18,1) -> 6 | N16: =MATCH(N$2,'2. Time Lag - State Adoption_P'!$G18:$V18,1) -> 6 | O16: =MATCH(O$2,'2. Time Lag - State Adoption_P'!$G18:$V18,1) -> 6 | P16: =MATCH(P$2,'2. Time Lag - State Adoption_P'!$G18:$V18,1) -> 6 | Q16: =MATCH(Q$2,'2. Time Lag - State Adoption_P'!$G18:$V18,1) -> 6 | R16: =MATCH(R$2,'2. Time Lag - State Adoption_P'!$G18:$V18,1) -> 6 | S16: =MATCH(S$2,'2. Time Lag - State Adoption_P'!$G18:$V18,1) -> 6 | T16: =MATCH(T$2,'2. Time Lag - State Adoption_P'!$G18:$V18,1) -> 6 | U16: =MATCH(U$2,'2. Time Lag - State Adoption_P'!$G18:$V18,1) -> 6 | V16: =MATCH(V$2,'2. Time Lag - State Adoption_P'!$G18:$V18,1) -> 6 | W16: =MATCH(W$2,'2. Time Lag - State Adoption_P'!$G18:$V18,1) -> 6 | X16: =MATCH(X$2,'2. Time Lag - State Adoption_P'!$G18:$V18,1) -> 6 | Y16: =MATCH(Y$2,'2. Time Lag - State Adoption_P'!$G18:$V18,1) -> 6 | Z16: =MATCH(Z$2,'2. Time Lag - State Adoption_P'!$G18:$V18,1) -> 6 | AA16: =MATCH(AA$2,'2. Time Lag - State Adoption_P'!$G18:$V18,1) -> 6 | AB16: =MATCH(AB$2,'2. Time Lag - State Adoption_P'!$G18:$V18,1) -> 6 | AC16: =MATCH(AC$2,'2. Time Lag - State Adoption_P'!$G18:$V18,1) -> 6 | AD16: =MATCH(AD$2,'2. Time Lag - State Adoption_P'!$G18:$V18,1) -> 6 | AE16: =MATCH(AE$2,'2. Time Lag - State Adoption_P'!$G18:$V18,1) -> 6 | AF16: =MATCH(AF$2,'2. Time Lag - State Adoption_P'!$G18:$V18,1) -> 6 | AG16: =MATCH(AG$2,'2. Time Lag - State Adoption_P'!$G18:$V18,1) -> 6 | AH16: =MATCH(AH$2,'2. Time Lag - State Adoption_P'!$G18:$V18,1) -> 6 | AI16: =MATCH(AI$2,'2. Time Lag - State Adoption_P'!$G18:$V18,1) -> 6 | AJ16: =MATCH(AJ$2,'2. Time Lag - State Adoption_P'!$G18:$V18,1) -> 6 | AK16: =MATCH(AK$2,'2. Time Lag - State Adoption_P'!$G18:$V18,1) -> 6 | AL16: =MATCH(AL$2,'2. Time Lag - State Adoption_P'!$G18:$V18,1) -> 6 | AM16: =MATCH(AM$2,'2. Time Lag - State Adoption_P'!$G18:$V18,1) -> 6 | AN16: =MATCH(AN$2,'2. Time Lag - State Adoption_P'!$G18:$V18,1) -> 6 | AO16: =MATCH(AO$2,'2. Time Lag - State Adoption_P'!$G18:$V18,1) -> 6 | AP16: =MATCH(AP$2,'2. Time Lag - State Adoption_P'!$G18:$V18,1) -> 6 | AQ16: =MATCH(AQ$2,'2. Time Lag - State Adoption_P'!$G18:$V18,1) -> 6 | AR16: =MATCH(AR$2,'2. Time Lag - State Adoption_P'!$G18:$V18,1) -> 6 | AS16: =MATCH(AS$2,'2. Time Lag - State Adoption_P'!$G18:$V18,1) -> 6 | AT16: =MATCH(AT$2,'2. Time Lag - State Adoption_P'!$G18:$V18,1) -> 6 | AU16: =MATCH(AU$2,'2. Time Lag - State Adoption_P'!$G18:$V18,1) -> 6 | AV16: =MATCH(AV$2,'2. Time Lag - State Adoption_P'!$G18:$V18,1) -> 6 | AW16: =MATCH(AW$2,'2. Time Lag - State Adoption_P'!$G18:$V18,1) -> 6 | AX16: =MATCH(AX$2,'2. Time Lag - State Adoption_P'!$G18:$V18,1) -> 6 | AY16: =MATCH(AY$2,'2. Time Lag - State Adoption_P'!$G18:$V18,1) -> 6 | AZ16: =MATCH(AZ$2,'2. Time Lag - State Adoption_P'!$G18:$V18,1) -> 6 | BA16: =MATCH(BA$2,'2. Time Lag - State Adoption_P'!$G18:$V18,1) -> 6 | BB16: =MATCH(BB$2,'2. Time Lag - State Adoption_P'!$G18:$V18,1) -> 6 | BC16: =MATCH(BC$2,'2. Time Lag - State Adoption_P'!$G18:$V18,1) -> 6 | BD16: =MATCH(BD$2,'2. Time Lag - State Adoption_P'!$G18:$V18,1) -> 6 | BF16: IL | BG16: =INDEX('2. Time Lag - State Adoption_P'!$Y154:$AN154,MATCH(H16,'2. Time Lag - State Adoption_P'!$Y$137:$AN$137,0)) -> 0 | BH16: =INDEX('2. Time Lag - State Adoption_P'!$Y154:$AN154,MATCH(I16,'2. Time Lag - State Adoption_P'!$Y$137:$AN$137,0)) -> 0 | BI16: =INDEX('2. Time Lag - State Adoption_P'!$Y154:$AN154,MATCH(J16,'2. Time Lag - State Adoption_P'!$Y$137:$AN$137,0)) -> 0 | BJ16: =INDEX('2. Time Lag - State Adoption_P'!$Y154:$AN154,MATCH(K16,'2. Time Lag - State Adoption_P'!$Y$137:$AN$137,0)) -> 0 | BK16: =INDEX('2. Time Lag - State Adoption_P'!$Y154:$AN154,MATCH(L16,'2. Time Lag - State Adoption_P'!$Y$137:$AN$137,0)) -> 0 | BL16: =INDEX('2. Time Lag - State Adoption_P'!$Y154:$AN154,MATCH(M16,'2. Time Lag - State Adoption_P'!$Y$137:$AN$137,0)) -> 0 | BM16: =INDEX('2. Time Lag - State Adoption_P'!$Y154:$AN154,MATCH(N16,'2. Time Lag - State Adoption_P'!$Y$137:$AN$137,0)) -> 0 | BN16: =INDEX('2. Time Lag - State Adoption_P'!$Y154:$AN154,MATCH(O16,'2. Time Lag - State Adoption_P'!$Y$137:$AN$137,0)) -> 0 | BO16: =INDEX('2. Time Lag - State Adoption_P'!$Y154:$AN154,MATCH(P16,'2. Time Lag - State Adoption_P'!$Y$137:$AN$137,0)) -> 0 | BP16: =INDEX('2. Time Lag - State Adoption_P'!$Y154:$AN154,MATCH(Q16,'2. Time Lag - State Adoption_P'!$Y$137:$AN$137,0)) -> 0 | BQ16: =INDEX('2. Time Lag - State Adoption_P'!$Y154:$AN154,MATCH(R16,'2. Time Lag - State Adoption_P'!$Y$137:$AN$137,0)) -> 0 | BR16: =INDEX('2. Time Lag - State Adoption_P'!$Y154:$AN154,MATCH(S16,'2. Time Lag - State Adoption_P'!$Y$137:$AN$137,0)) -> 0 | BS16: =INDEX('2. Time Lag - State Adoption_P'!$Y154:$AN154,MATCH(T16,'2. Time Lag - State Adoption_P'!$Y$137:$AN$137,0)) -> 0 | BT16: =INDEX('2. Time Lag - State Adoption_P'!$Y154:$AN154,MATCH(U16,'2. Time Lag - State Adoption_P'!$Y$137:$AN$137,0)) -> 0 | BU16: =INDEX('2. Time Lag - State Adoption_P'!$Y154:$AN154,MATCH(V16,'2. Time Lag - State Adoption_P'!$Y$137:$AN$137,0)) -> 0 | BV16: =INDEX('2. Time Lag - State Adoption_P'!$Y154:$AN154,MATCH(W16,'2. Time Lag - State Adoption_P'!$Y$137:$AN$137,0)) -> 0 | BW16: =INDEX('2. Time Lag - State Adoption_P'!$Y154:$AN154,MATCH(X16,'2. Time Lag - State Adoption_P'!$Y$137:$AN$137,0)) -> 0 | BX16: =INDEX('2. Time Lag - State Adoption_P'!$Y154:$AN154,MATCH(Y16,'2. Time Lag - State Adoption_P'!$Y$137:$AN$137,0)) -> 0 | BY16: =INDEX('2. Time Lag - State Adoption_P'!$Y154:$AN154,MATCH(Z16,'2. Time Lag - State Adoption_P'!$Y$137:$AN$137,0)) -> 0 | BZ16: =INDEX('2. Time Lag - State Adoption_P'!$Y154:$AN154,MATCH(AA16,'2. Time Lag - State Adoption_P'!$Y$137:$AN$137,0)) -> 0 | CA16: =INDEX('2. Time Lag - State Adoption_P'!$Y154:$AN154,MATCH(AB16,'2. Time Lag - State Adoption_P'!$Y$137:$AN$137,0)) -> 0 | CB16: =INDEX('2. Time Lag - State Adoption_P'!$Y154:$AN154,MATCH(AC16,'2. Time Lag - State Adoption_P'!$Y$137:$AN$137,0)) -> 0 | CC16: =INDEX('2. Time Lag - State Adoption_P'!$Y154:$AN154,MATCH(AD16,'2. Time Lag - State Adoption_P'!$Y$137:$AN$137,0)) -> 0 | CD16: =INDEX('2. Time Lag - State Adoption_P'!$Y154:$AN154,MATCH(AE16,'2. Time Lag - State Adoption_P'!$Y$137:$AN$137,0)) -> 0 | CE16: =INDEX('2. Time Lag - State Adoption_P'!$Y154:$AN154,MATCH(AF16,'2. Time Lag - State Adoption_P'!$Y$137:$AN$137,0)) -> 0 | CF16: =INDEX('2. Time Lag - State Adoption_P'!$Y154:$AN154,MATCH(AG16,'2. Time Lag - State Adoption_P'!$Y$137:$AN$137,0)) -> 0 | CG16: =INDEX('2. Time Lag - State Adoption_P'!$Y154:$AN154,MATCH(AH16,'2. Time Lag - State Adoption_P'!$Y$137:$AN$137,0)) -> 0 | CH16: =INDEX('2. Time Lag - State Adoption_P'!$Y154:$AN154,MATCH(AI16,'2. Time Lag - State Adoption_P'!$Y$137:$AN$137,0)) -> 0 | CI16: =INDEX('2. Time Lag - State Adoption_P'!$Y154:$AN154,MATCH(AJ16,'2. Time Lag - State Adoption_P'!$Y$137:$AN$137,0)) -> 0 | CJ16: =INDEX('2. Time Lag - State Adoption_P'!$Y154:$AN154,MATCH(AK16,'2. Time Lag - State Adoption_P'!$Y$137:$AN$137,0)) -> 0 | CK16: =INDEX('2. Time Lag - State Adoption_P'!$Y154:$AN154,MATCH(AL16,'2. Time Lag - State Adoption_P'!$Y$137:$AN$137,0)) -> 0 | CL16: =INDEX('2. Time Lag - State Adoption_P'!$Y154:$AN154,MATCH(AM16,'2. Time Lag - State Adoption_P'!$Y$137:$AN$137,0)) -> 0 | CM16: =INDEX('2. Time Lag - State Adoption_P'!$Y154:$AN154,MATCH(AN16,'2. Time Lag - State Adoption_P'!$Y$137:$AN$137,0)) -> 0 | CN16: =INDEX('2. Time Lag - State Adoption_P'!$Y154:$AN154,MATCH(AO16,'2. Time Lag - State Adoption_P'!$Y$137:$AN$137,0)) -> 0 | CO16: =INDEX('2. Time Lag - State Adoption_P'!$Y154:$AN154,MATCH(AP16,'2. Time Lag - State Adoption_P'!$Y$137:$AN$137,0)) -> 0 | CP16: =INDEX('2. Time Lag - State Adoption_P'!$Y154:$AN154,MATCH(AQ16,'2. Time Lag - State Adoption_P'!$Y$137:$AN$137,0)) -> 0 | CQ16: =INDEX('2. Time Lag - State Adoption_P'!$Y154:$AN154,MATCH(AR16,'2. Time Lag - State Adoption_P'!$Y$137:$AN$137,0)) -> 0 | CR16: =INDEX('2. Time Lag - State Adoption_P'!$Y154:$AN154,MATCH(AS16,'2. Time Lag - State Adoption_P'!$Y$137:$AN$137,0)) -> 0 | CS16: =INDEX('2. Time Lag - State Adoption_P'!$Y154:$AN154,MATCH(AT16,'2. Time Lag - State Adoption_P'!$Y$137:$AN$137,0)) -> 0 | CT16: =INDEX('2. Time Lag - State Adoption_P'!$Y154:$AN154,MATCH(AU16,'2. Time Lag - State Adoption_P'!$Y$137:$AN$137,0)) -> 0 | CU16: =INDEX('2. Time Lag - State Adoption_P'!$Y154:$AN154,MATCH(AV16,'2. Time Lag - State Adoption_P'!$Y$137:$AN$137,0)) -> 0 | CV16: =INDEX('2. Time Lag - State Adoption_P'!$Y154:$AN154,MATCH(AW16,'2. Time Lag - State Adoption_P'!$Y$137:$AN$137,0)) -> 0 | CW16: =INDEX('2. Time Lag - State Adoption_P'!$Y154:$AN154,MATCH(AX16,'2. Time Lag - State Adoption_P'!$Y$137:$AN$137,0)) -> 0 | CX16: =INDEX('2. Time Lag - State Adoption_P'!$Y154:$AN154,MATCH(AY16,'2. Time Lag - State Adoption_P'!$Y$137:$AN$137,0)) -> 0 | CY16: =INDEX('2. Time Lag - State Adoption_P'!$Y154:$AN154,MATCH(AZ16,'2. Time Lag - State Adoption_P'!$Y$137:$AN$137,0)) -> 0 | CZ16: =INDEX('2. Time Lag - State Adoption_P'!$Y154:$AN154,MATCH(BA16,'2. Time Lag - State Adoption_P'!$Y$137:$AN$137,0)) -> 0 | DA16: =INDEX('2. Time Lag - State Adoption_P'!$Y154:$AN154,MATCH(BB16,'2. Time Lag - State Adoption_P'!$Y$137:$AN$137,0)) -> 0 | DB16: =INDEX('2. Time Lag - State Adoption_P'!$Y154:$AN154,MATCH(BC16,'2. Time Lag - State Adoption_P'!$Y$137:$AN$137,0)) -> 0 | DC16: =INDEX('2. Time Lag - State Adoption_P'!$Y154:$AN154,MATCH(BD16,'2. Time Lag - State Adoption_P'!$Y$137:$AN$137,0)) -> 0 | DE16: IL | DF16: =COUNTIF($H16:OFFSET($H16,0,DF$1),H16) -> 1 | DG16: =COUNTIF($H16:OFFSET($H16,0,DG$1),I16) -> 2 | DH16: =COUNTIF($H16:OFFSET($H16,0,DH$1),J16) -> 3 | DI16: =COUNTIF($H16:OFFSET($H16,0,DI$1),K16) -> 4 | DJ16: =COUNTIF($H16:OFFSET($H16,0,DJ$1),L16) -> 5 | DK16: =COUNTIF($H16:OFFSET($H16,0,DK$1),M16) -> 6 | DL16: =COUNTIF($H16:OFFSET($H16,0,DL$1),N16) -> 7 | DM16: =COUNTIF($H16:OFFSET($H16,0,DM$1),O16) -> 8 | DN16: =COUNTIF($H16:OFFSET($H16,0,DN$1),P16) -> 9 | DO16: =COUNTIF($H16:OFFSET($H16,0,DO$1),Q16) -> 10 | DP16: =COUNTIF($H16:OFFSET($H16,0,DP$1),R16) -> 11 | DQ16: =COUNTIF($H16:OFFSET($H16,0,DQ$1),S16) -> 12 | DR16: =COUNTIF($H16:OFFSET($H16,0,DR$1),T16) -> 13 | DS16: =COUNTIF($H16:OFFSET($H16,0,DS$1),U16) -> 14 | DT16: =COUNTIF($H16:OFFSET($H16,0,DT$1),V16) -> 15 | DU16: =COUNTIF($H16:OFFSET($H16,0,DU$1),W16) -> 16 | DV16: =COUNTIF($H16:OFFSET($H16,0,DV$1),X16) -> 17 | DW16: =COUNTIF($H16:OFFSET($H16,0,DW$1),Y16) -> 18 | DX16: =COUNTIF($H16:OFFSET($H16,0,DX$1),Z16) -> 19 | DY16: =COUNTIF($H16:OFFSET($H16,0,DY$1),AA16) -> 20 | DZ16: =COUNTIF($H16:OFFSET($H16,0,DZ$1),AB16) -> 21 | EA16: =COUNTIF($H16:OFFSET($H16,0,EA$1),AC16) -> 22 | EB16: =COUNTIF($H16:OFFSET($H16,0,EB$1),AD16) -> 23 | EC16: =COUNTIF($H16:OFFSET($H16,0,EC$1),AE16) -> 24 | ED16: =COUNTIF($H16:OFFSET($H16,0,ED$1),AF16) -> 25 | EE16: =COUNTIF($H16:OFFSET($H16,0,EE$1),AG16) -> 26 | EF16: =COUNTIF($H16:OFFSET($H16,0,EF$1),AH16) -> 27 | EG16: =COUNTIF($H16:OFFSET($H16,0,EG$1),AI16) -> 28 | EH16: =COUNTIF($H16:OFFSET($H16,0,EH$1),AJ16) -> 29 | EI16: =COUNTIF($H16:OFFSET($H16,0,EI$1),AK16) -> 30 | EJ16: =COUNTIF($H16:OFFSET($H16,0,EJ$1),AL16) -> 31 | EK16: =COUNTIF($H16:OFFSET($H16,0,EK$1),AM16) -> 32 | EL16: =COUNTIF($H16:OFFSET($H16,0,EL$1),AN16) -> 33 | EM16: =COUNTIF($H16:OFFSET($H16,0,EM$1),AO16) -> 34 | EN16: =COUNTIF($H16:OFFSET($H16,0,EN$1),AP16) -> 35 | EO16: =COUNTIF($H16:OFFSET($H16,0,EO$1),AQ16) -> 36 | EP16: =COUNTIF($H16:OFFSET($H16,0,EP$1),AR16) -> 37 | EQ16: =COUNTIF($H16:OFFSET($H16,0,EQ$1),AS16) -> 38 | ER16: =COUNTIF($H16:OFFSET($H16,0,ER$1),AT16) -> 39 | ES16: =COUNTIF($H16:OFFSET($H16,0,ES$1),AU16) -> 40 | ET16: =COUNTIF($H16:OFFSET($H16,0,ET$1),AV16) -> 41 | EU16: =COUNTIF($H16:OFFSET($H16,0,EU$1),AW16) -> 42 | EV16: =COUNTIF($H16:OFFSET($H16,0,EV$1),AX16) -> 43 | EW16: =COUNTIF($H16:OFFSET($H16,0,EW$1),AY16) -> 44 | EX16: =COUNTIF($H16:OFFSET($H16,0,EX$1),AZ16) -> 45 | EY16: =COUNTIF($H16:OFFSET($H16,0,EY$1),BA16) -> 46 | EZ16: =COUNTIF($H16:OFFSET($H16,0,EZ$1),BB16) -> 47 | FA16: =COUNTIF($H16:OFFSET($H16,0,FA$1),BC16) -> 48 | FB16: =COUNTIF($H16:OFFSET($H16,0,FB$1),BD16) -> 49 | FD16: IL | FE16: 1 | FF16: 2 | FG16: 3 | FH16: 4 | FI16: 5 | FJ16: 6 | FK16: 7 | FL16: 8 | FM16: 9 | FN16: 10 | FO16: 11 | FP16: 12 | FQ16: 13 | FR16: 14 | FS16: 15 | FT16: 16 | FU16: 17 | FV16: 18 | FW16: 19 | FX16: 20 | FY16: 21 | FZ16: 22 | GA16: 23 | GB16: 24 | GC16: 25 | GD16: 26 | GE16: 27 | GF16: 28 | GG16: 29 | GH16: 30 | GI16: 31 | GJ16: 32 | GK16: 33 | GL16: 34 | GM16: 35 | GN16: 36 | GO16: 37 | GP16: 38 | GQ16: 39 | GR16: 40 | GS16: 41 | GT16: 42 | GU16: 43 | GV16: 44 | GW16: 45 | GX16: 46 | GY16: 47 | GZ16: 48 | HA16: 49 | HC16: IL | HD16: 61 | HE16: 62 | HF16: 63 | HG16: 64 | HH16: 65 | HI16: 66 | HJ16: 67 | HK16: 68 | HL16: 69 | HM16: 610 | HN16: 611 | HO16: 612 | HP16: 613 | HQ16: 614 | HR16: 615 | HS16: 616 | HT16: 617 | HU16: 618 | HV16: 619 | HW16: 620 | HX16: 621 | HY16: 622 | HZ16: 623 | IA16: 624 | IB16: 625 | IC16: 626 | ID16: 627 | IE16: 628 | IF16: 629 | IG16: 630 | IH16: 631 | II16: 632 | IJ16: 633 | IK16: 634 | IL16: 635 | IM16: 636 | IN16: 637 | IO16: 638 | IP16: 639 | IQ16: 640 | IR16: 641 | IS16: 642 | IT16: 643 | IU16: 644 | IV16: 645 | IW16: 646 | IX16: 647 | IY16: 648 | IZ16: 649
A17: 15 | B17: 90.1-2037 | E17: 15 | F17: Indiana | G17: IN | H17: =MATCH(H$2,'2. Time Lag - State Adoption_P'!$G19:$V19,1) -> 6 | I17: =MATCH(I$2,'2. Time Lag - State Adoption_P'!$G19:$V19,1) -> 6 | J17: =MATCH(J$2,'2. Time Lag - State Adoption_P'!$G19:$V19,1) -> 6 | K17: =MATCH(K$2,'2. Time Lag - State Adoption_P'!$G19:$V19,1) -> 6 | L17: =MATCH(L$2,'2. Time Lag - State Adoption_P'!$G19:$V19,1) -> 6 | M17: =MATCH(M$2,'2. Time Lag - State Adoption_P'!$G19:$V19,1) -> 6 | N17: =MATCH(N$2,'2. Time Lag - State Adoption_P'!$G19:$V19,1) -> 6 | O17: =MATCH(O$2,'2. Time Lag - State Adoption_P'!$G19:$V19,1) -> 6 | P17: =MATCH(P$2,'2. Time Lag - State Adoption_P'!$G19:$V19,1) -> 6 | Q17: =MATCH(Q$2,'2. Time Lag - State Adoption_P'!$G19:$V19,1) -> 6 | R17: =MATCH(R$2,'2. Time Lag - State Adoption_P'!$G19:$V19,1) -> 6 | S17: =MATCH(S$2,'2. Time Lag - State Adoption_P'!$G19:$V19,1) -> 6 | T17: =MATCH(T$2,'2. Time Lag - State Adoption_P'!$G19:$V19,1) -> 6 | U17: =MATCH(U$2,'2. Time Lag - State Adoption_P'!$G19:$V19,1) -> 6 | V17: =MATCH(V$2,'2. Time Lag - State Adoption_P'!$G19:$V19,1) -> 6 | W17: =MATCH(W$2,'2. Time Lag - State Adoption_P'!$G19:$V19,1) -> 6 | X17: =MATCH(X$2,'2. Time Lag - State Adoption_P'!$G19:$V19,1) -> 6 | Y17: =MATCH(Y$2,'2. Time Lag - State Adoption_P'!$G19:$V19,1) -> 6 | Z17: =MATCH(Z$2,'2. Time Lag - State Adoption_P'!$G19:$V19,1) -> 6 | AA17: =MATCH(AA$2,'2. Time Lag - State Adoption_P'!$G19:$V19,1) -> 6 | AB17: =MATCH(AB$2,'2. Time Lag - State Adoption_P'!$G19:$V19,1) -> 6 | AC17: =MATCH(AC$2,'2. Time Lag - State Adoption_P'!$G19:$V19,1) -> 6 | AD17: =MATCH(AD$2,'2. Time Lag - State Adoption_P'!$G19:$V19,1) -> 6 | AE17: =MATCH(AE$2,'2. Time Lag - State Adoption_P'!$G19:$V19,1) -> 6 | AF17: =MATCH(AF$2,'2. Time Lag - State Adoption_P'!$G19:$V19,1) -> 6 | AG17: =MATCH(AG$2,'2. Time Lag - State Adoption_P'!$G19:$V19,1) -> 6 | AH17: =MATCH(AH$2,'2. Time Lag - State Adoption_P'!$G19:$V19,1) -> 6 | AI17: =MATCH(AI$2,'2. Time Lag - State Adoption_P'!$G19:$V19,1) -> 6 | AJ17: =MATCH(AJ$2,'2. Time Lag - State Adoption_P'!$G19:$V19,1) -> 6 | AK17: =MATCH(AK$2,'2. Time Lag - State Adoption_P'!$G19:$V19,1) -> 6 | AL17: =MATCH(AL$2,'2. Time Lag - State Adoption_P'!$G19:$V19,1) -> 6 | AM17: =MATCH(AM$2,'2. Time Lag - State Adoption_P'!$G19:$V19,1) -> 6 | AN17: =MATCH(AN$2,'2. Time Lag - State Adoption_P'!$G19:$V19,1) -> 6 | AO17: =MATCH(AO$2,'2. Time Lag - State Adoption_P'!$G19:$V19,1) -> 6 | AP17: =MATCH(AP$2,'2. Time Lag - State Adoption_P'!$G19:$V19,1) -> 6 | AQ17: =MATCH(AQ$2,'2. Time Lag - State Adoption_P'!$G19:$V19,1) -> 6 | AR17: =MATCH(AR$2,'2. Time Lag - State Adoption_P'!$G19:$V19,1) -> 6 | AS17: =MATCH(AS$2,'2. Time Lag - State Adoption_P'!$G19:$V19,1) -> 6 | AT17: =MATCH(AT$2,'2. Time Lag - State Adoption_P'!$G19:$V19,1) -> 6 | AU17: =MATCH(AU$2,'2. Time Lag - State Adoption_P'!$G19:$V19,1) -> 6 | AV17: =MATCH(AV$2,'2. Time Lag - State Adoption_P'!$G19:$V19,1) -> 6 | AW17: =MATCH(AW$2,'2. Time Lag - State Adoption_P'!$G19:$V19,1) -> 6 | AX17: =MATCH(AX$2,'2. Time Lag - State Adoption_P'!$G19:$V19,1) -> 6 | AY17: =MATCH(AY$2,'2. Time Lag - State Adoption_P'!$G19:$V19,1) -> 6 | AZ17: =MATCH(AZ$2,'2. Time Lag - State Adoption_P'!$G19:$V19,1) -> 6 | BA17: =MATCH(BA$2,'2. Time Lag - State Adoption_P'!$G19:$V19,1) -> 6 | BB17: =MATCH(BB$2,'2. Time Lag - State Adoption_P'!$G19:$V19,1) -> 6 | BC17: =MATCH(BC$2,'2. Time Lag - State Adoption_P'!$G19:$V19,1) -> 6 | BD17: =MATCH(BD$2,'2. Time Lag - State Adoption_P'!$G19:$V19,1) -> 6 | BF17: IN | BG17: =INDEX('2. Time Lag - State Adoption_P'!$Y155:$AN155,MATCH(H17,'2. Time Lag - State Adoption_P'!$Y$137:$AN$137,0)) -> 0 | BH17: =INDEX('2. Time Lag - State Adoption_P'!$Y155:$AN155,MATCH(I17,'2. Time Lag - State Adoption_P'!$Y$137:$AN$137,0)) -> 0 | BI17: =INDEX('2. Time Lag - State Adoption_P'!$Y155:$AN155,MATCH(J17,'2. Time Lag - State Adoption_P'!$Y$137:$AN$137,0)) -> 0 | BJ17: =INDEX('2. Time Lag - State Adoption_P'!$Y155:$AN155,MATCH(K17,'2. Time Lag - State Adoption_P'!$Y$137:$AN$137,0)) -> 0 | BK17: =INDEX('2. Time Lag - State Adoption_P'!$Y155:$AN155,MATCH(L17,'2. Time Lag - State Adoption_P'!$Y$137:$AN$137,0)) -> 0 | BL17: =INDEX('2. Time Lag - State Adoption_P'!$Y155:$AN155,MATCH(M17,'2. Time Lag - State Adoption_P'!$Y$137:$AN$137,0)) -> 0 | BM17: =INDEX('2. Time Lag - State Adoption_P'!$Y155:$AN155,MATCH(N17,'2. Time Lag - State Adoption_P'!$Y$137:$AN$137,0)) -> 0 | BN17: =INDEX('2. Time Lag - State Adoption_P'!$Y155:$AN155,MATCH(O17,'2. Time Lag - State Adoption_P'!$Y$137:$AN$137,0)) -> 0 | BO17: =INDEX('2. Time Lag - State Adoption_P'!$Y155:$AN155,MATCH(P17,'2. Time Lag - State Adoption_P'!$Y$137:$AN$137,0)) -> 0 | BP17: =INDEX('2. Time Lag - State Adoption_P'!$Y155:$AN155,MATCH(Q17,'2. Time Lag - State Adoption_P'!$Y$137:$AN$137,0)) -> 0 | BQ17: =INDEX('2. Time Lag - State Adoption_P'!$Y155:$AN155,MATCH(R17,'2. Time Lag - State Adoption_P'!$Y$137:$AN$137,0)) -> 0 | BR17: =INDEX('2. Time Lag - State Adoption_P'!$Y155:$AN155,MATCH(S17,'2. Time Lag - State Adoption_P'!$Y$137:$AN$137,0)) -> 0 | BS17: =INDEX('2. Time Lag - State Adoption_P'!$Y155:$AN155,MATCH(T17,'2. Time Lag - State Adoption_P'!$Y$137:$AN$137,0)) -> 0 | BT17: =INDEX('2. Time Lag - State Adoption_P'!$Y155:$AN155,MATCH(U17,'2. Time Lag - State Adoption_P'!$Y$137:$AN$137,0)) -> 0 | BU17: =INDEX('2. Time Lag - State Adoption_P'!$Y155:$AN155,MATCH(V17,'2. Time Lag - State Adoption_P'!$Y$137:$AN$137,0)) -> 0 | BV17: =INDEX('2. Time Lag - State Adoption_P'!$Y155:$AN155,MATCH(W17,'2. Time Lag - State Adoption_P'!$Y$137:$AN$137,0)) -> 0 | BW17: =INDEX('2. Time Lag - State Adoption_P'!$Y155:$AN155,MATCH(X17,'2. Time Lag - State Adoption_P'!$Y$137:$AN$137,0)) -> 0 | BX17: =INDEX('2. Time Lag - State Adoption_P'!$Y155:$AN155,MATCH(Y17,'2. Time Lag - State Adoption_P'!$Y$137:$AN$137,0)) -> 0 | BY17: =INDEX('2. Time Lag - State Adoption_P'!$Y155:$AN155,MATCH(Z17,'2. Time Lag - State Adoption_P'!$Y$137:$AN$137,0)) -> 0 | BZ17: =INDEX('2. Time Lag - State Adoption_P'!$Y155:$AN155,MATCH(AA17,'2. Time Lag - State Adoption_P'!$Y$137:$AN$137,0)) -> 0 | CA17: =INDEX('2. Time Lag - State Adoption_P'!$Y155:$AN155,MATCH(AB17,'2. Time Lag - State Adoption_P'!$Y$137:$AN$137,0)) -> 0 | CB17: =INDEX('2. Time Lag - State Adoption_P'!$Y155:$AN155,MATCH(AC17,'2. Time Lag - State Adoption_P'!$Y$137:$AN$137,0)) -> 0 | CC17: =INDEX('2. Time Lag - State Adoption_P'!$Y155:$AN155,MATCH(AD17,'2. Time Lag - State Adoption_P'!$Y$137:$AN$137,0)) -> 0 | CD17: =INDEX('2. Time Lag - State Adoption_P'!$Y155:$AN155,MATCH(AE17,'2. Time Lag - State Adoption_P'!$Y$137:$AN$137,0)) -> 0 | CE17: =INDEX('2. Time Lag - State Adoption_P'!$Y155:$AN155,MATCH(AF17,'2. Time Lag - State Adoption_P'!$Y$137:$AN$137,0)) -> 0 | CF17: =INDEX('2. Time Lag - State Adoption_P'!$Y155:$AN155,MATCH(AG17,'2. Time Lag - State Adoption_P'!$Y$137:$AN$137,0)) -> 0 | CG17: =INDEX('2. Time Lag - State Adoption_P'!$Y155:$AN155,MATCH(AH17,'2. Time Lag - State Adoption_P'!$Y$137:$AN$137,0)) -> 0 | CH17: =INDEX('2. Time Lag - State Adoption_P'!$Y155:$AN155,MATCH(AI17,'2. Time Lag - State Adoption_P'!$Y$137:$AN$137,0)) -> 0 | CI17: =INDEX('2. Time Lag - State Adoption_P'!$Y155:$AN155,MATCH(AJ17,'2. Time Lag - State Adoption_P'!$Y$137:$AN$137,0)) -> 0 | CJ17: =INDEX('2. Time Lag - State Adoption_P'!$Y155:$AN155,MATCH(AK17,'2. Time Lag - State Adoption_P'!$Y$137:$AN$137,0)) -> 0 | CK17: =INDEX('2. Time Lag - State Adoption_P'!$Y155:$AN155,MATCH(AL17,'2. Time Lag - State Adoption_P'!$Y$137:$AN$137,0)) -> 0 | CL17: =INDEX('2. Time Lag - State Adoption_P'!$Y155:$AN155,MATCH(AM17,'2. Time Lag - State Adoption_P'!$Y$137:$AN$137,0)) -> 0 | CM17: =INDEX('2. Time Lag - State Adoption_P'!$Y155:$AN155,MATCH(AN17,'2. Time Lag - State Adoption_P'!$Y$137:$AN$137,0)) -> 0 | CN17: =INDEX('2. Time Lag - State Adoption_P'!$Y155:$AN155,MATCH(AO17,'2. Time Lag - State Adoption_P'!$Y$137:$AN$137,0)) -> 0 | CO17: =INDEX('2. Time Lag - State Adoption_P'!$Y155:$AN155,MATCH(AP17,'2. Time Lag - State Adoption_P'!$Y$137:$AN$137,0)) -> 0 | CP17: =INDEX('2. Time Lag - State Adoption_P'!$Y155:$AN155,MATCH(AQ17,'2. Time Lag - State Adoption_P'!$Y$137:$AN$137,0)) -> 0 | CQ17: =INDEX('2. Time Lag - State Adoption_P'!$Y155:$AN155,MATCH(AR17,'2. Time Lag - State Adoption_P'!$Y$137:$AN$137,0)) -> 0 | CR17: =INDEX('2. Time Lag - State Adoption_P'!$Y155:$AN155,MATCH(AS17,'2. Time Lag - State Adoption_P'!$Y$137:$AN$137,0)) -> 0 | CS17: =INDEX('2. Time Lag - State Adoption_P'!$Y155:$AN155,MATCH(AT17,'2. Time Lag - State Adoption_P'!$Y$137:$AN$137,0)) -> 0 | CT17: =INDEX('2. Time Lag - State Adoption_P'!$Y155:$AN155,MATCH(AU17,'2. Time Lag - State Adoption_P'!$Y$137:$AN$137,0)) -> 0 | CU17: =INDEX('2. Time Lag - State Adoption_P'!$Y155:$AN155,MATCH(AV17,'2. Time Lag - State Adoption_P'!$Y$137:$AN$137,0)) -> 0 | CV17: =INDEX('2. Time Lag - State Adoption_P'!$Y155:$AN155,MATCH(AW17,'2. Time Lag - State Adoption_P'!$Y$137:$AN$137,0)) -> 0 | CW17: =INDEX('2. Time Lag - State Adoption_P'!$Y155:$AN155,MATCH(AX17,'2. Time Lag - State Adoption_P'!$Y$137:$AN$137,0)) -> 0 | CX17: =INDEX('2. Time Lag - State Adoption_P'!$Y155:$AN155,MATCH(AY17,'2. Time Lag - State Adoption_P'!$Y$137:$AN$137,0)) -> 0 | CY17: =INDEX('2. Time Lag - State Adoption_P'!$Y155:$AN155,MATCH(AZ17,'2. Time Lag - State Adoption_P'!$Y$137:$AN$137,0)) -> 0 | CZ17: =INDEX('2. Time Lag - State Adoption_P'!$Y155:$AN155,MATCH(BA17,'2. Time Lag - State Adoption_P'!$Y$137:$AN$137,0)) -> 0 | DA17: =INDEX('2. Time Lag - State Adoption_P'!$Y155:$AN155,MATCH(BB17,'2. Time Lag - State Adoption_P'!$Y$137:$AN$137,0)) -> 0 | DB17: =INDEX('2. Time Lag - State Adoption_P'!$Y155:$AN155,MATCH(BC17,'2. Time Lag - State Adoption_P'!$Y$137:$AN$137,0)) -> 0 | DC17: =INDEX('2. Time Lag - State Adoption_P'!$Y155:$AN155,MATCH(BD17,'2. Time Lag - State Adoption_P'!$Y$137:$AN$137,0)) -> 0 | DE17: IN | DF17: =COUNTIF($H17:OFFSET($H17,0,DF$1),H17) -> 1 | DG17: =COUNTIF($H17:OFFSET($H17,0,DG$1),I17) -> 2 | DH17: =COUNTIF($H17:OFFSET($H17,0,DH$1),J17) -> 3 | DI17: =COUNTIF($H17:OFFSET($H17,0,DI$1),K17) -> 4 | DJ17: =COUNTIF($H17:OFFSET($H17,0,DJ$1),L17) -> 5 | DK17: =COUNTIF($H17:OFFSET($H17,0,DK$1),M17) -> 6 | DL17: =COUNTIF($H17:OFFSET($H17,0,DL$1),N17) -> 7 | DM17: =COUNTIF($H17:OFFSET($H17,0,DM$1),O17) -> 8 | DN17: =COUNTIF($H17:OFFSET($H17,0,DN$1),P17) -> 9 | DO17: =COUNTIF($H17:OFFSET($H17,0,DO$1),Q17) -> 10 | DP17: =COUNTIF($H17:OFFSET($H17,0,DP$1),R17) -> 11 | DQ17: =COUNTIF($H17:OFFSET($H17,0,DQ$1),S17) -> 12 | DR17: =COUNTIF($H17:OFFSET($H17,0,DR$1),T17) -> 13 | DS17: =COUNTIF($H17:OFFSET($H17,0,DS$1),U17) -> 14 | DT17: =COUNTIF($H17:OFFSET($H17,0,DT$1),V17) -> 15 | DU17: =COUNTIF($H17:OFFSET($H17,0,DU$1),W17) -> 16 | DV17: =COUNTIF($H17:OFFSET($H17,0,DV$1),X17) -> 17 | DW17: =COUNTIF($H17:OFFSET($H17,0,DW$1),Y17) -> 18 | DX17: =COUNTIF($H17:OFFSET($H17,0,DX$1),Z17) -> 19 | DY17: =COUNTIF($H17:OFFSET($H17,0,DY$1),AA17) -> 20 | DZ17: =COUNTIF($H17:OFFSET($H17,0,DZ$1),AB17) -> 21 | EA17: =COUNTIF($H17:OFFSET($H17,0,EA$1),AC17) -> 22 | EB17: =COUNTIF($H17:OFFSET($H17,0,EB$1),AD17) -> 23 | EC17: =COUNTIF($H17:OFFSET($H17,0,EC$1),AE17) -> 24 | ED17: =COUNTIF($H17:OFFSET($H17,0,ED$1),AF17) -> 25 | EE17: =COUNTIF($H17:OFFSET($H17,0,EE$1),AG17) -> 26 | EF17: =COUNTIF($H17:OFFSET($H17,0,EF$1),AH17) -> 27 | EG17: =COUNTIF($H17:OFFSET($H17,0,EG$1),AI17) -> 28 | EH17: =COUNTIF($H17:OFFSET($H17,0,EH$1),AJ17) -> 29 | EI17: =COUNTIF($H17:OFFSET($H17,0,EI$1),AK17) -> 30 | EJ17: =COUNTIF($H17:OFFSET($H17,0,EJ$1),AL17) -> 31 | EK17: =COUNTIF($H17:OFFSET($H17,0,EK$1),AM17) -> 32 | EL17: =COUNTIF($H17:OFFSET($H17,0,EL$1),AN17) -> 33 | EM17: =COUNTIF($H17:OFFSET($H17,0,EM$1),AO17) -> 34 | EN17: =COUNTIF($H17:OFFSET($H17,0,EN$1),AP17) -> 35 | EO17: =COUNTIF($H17:OFFSET($H17,0,EO$1),AQ17) -> 36 | EP17: =COUNTIF($H17:OFFSET($H17,0,EP$1),AR17) -> 37 | EQ17: =COUNTIF($H17:OFFSET($H17,0,EQ$1),AS17) -> 38 | ER17: =COUNTIF($H17:OFFSET($H17,0,ER$1),AT17) -> 39 | ES17: =COUNTIF($H17:OFFSET($H17,0,ES$1),AU17) -> 40 | ET17: =COUNTIF($H17:OFFSET($H17,0,ET$1),AV17) -> 41 | EU17: =COUNTIF($H17:OFFSET($H17,0,EU$1),AW17) -> 42 | EV17: =COUNTIF($H17:OFFSET($H17,0,EV$1),AX17) -> 43 | EW17: =COUNTIF($H17:OFFSET($H17,0,EW$1),AY17) -> 44 | EX17: =COUNTIF($H17:OFFSET($H17,0,EX$1),AZ17) -> 45 | EY17: =COUNTIF($H17:OFFSET($H17,0,EY$1),BA17) -> 46 | EZ17: =COUNTIF($H17:OFFSET($H17,0,EZ$1),BB17) -> 47 | FA17: =COUNTIF($H17:OFFSET($H17,0,FA$1),BC17) -> 48 | FB17: =COUNTIF($H17:OFFSET($H17,0,FB$1),BD17) -> 49 | FD17: IN | FE17: 1 | FF17: 2 | FG17: 3 | FH17: 4 | FI17: 5 | FJ17: 6 | FK17: 7 | FL17: 8 | FM17: 9 | FN17: 10 | FO17: 11 | FP17: 12 | FQ17: 13 | FR17: 14 | FS17: 15 | FT17: 16 | FU17: 17 | FV17: 18 | FW17: 19 | FX17: 20 | FY17: 21 | FZ17: 22 | GA17: 23 | GB17: 24 | GC17: 25 | GD17: 26 | GE17: 27 | GF17: 28 | GG17: 29 | GH17: 30 | GI17: 31 | GJ17: 32 | GK17: 33 | GL17: 34 | GM17: 35 | GN17: 36 | GO17: 37 | GP17: 38 | GQ17: 39 | GR17: 40 | GS17: 41 | GT17: 42 | GU17: 43 | GV17: 44 | GW17: 45 | GX17: 46 | GY17: 47 | GZ17: 48 | HA17: 49 | HC17: IN | HD17: 61 | HE17: 62 | HF17: 63 | HG17: 64 | HH17: 65 | HI17: 66 | HJ17: 67 | HK17: 68 | HL17: 69 | HM17: 610 | HN17: 611 | HO17: 612 | HP17: 613 | HQ17: 614 | HR17: 615 | HS17: 616 | HT17: 617 | HU17: 618 | HV17: 619 | HW17: 620 | HX17: 621 | HY17: 622 | HZ17: 623 | IA17: 624 | IB17: 625 | IC17: 626 | ID17: 627 | IE17: 628 | IF17: 629 | IG17: 630 | IH17: 631 | II17: 632 | IJ17: 633 | IK17: 634 | IL17: 635 | IM17: 636 | IN17: 637 | IO17: 638 | IP17: 639 | IQ17: 640 | IR17: 641 | IS17: 642 | IT17: 643 | IU17: 644 | IV17: 645 | IW17: 646 | IX17: 647 | IY17: 648 | IZ17: 649
